Workbook

Sheet User_Agreement
B7: v6.7
B8: ©2001-2010 Clean Air-Cool Planet, Inc. All rights reserved
B9: Clean Air-Cool Planet, Campus Carbon Calculator, and the Clean Air-Cool Planet logo are trademarks of Clean Air-Cool Planet, Inc.
B10: USERS' AGREEMENT
B12: By using Clean Air-Cool Planet’s Campus Carbon Calculator, you are agreeing to specific terms and conditions:
B13: 1. The Campus Carbon Calculator is designed to help campus staff, faculty, students and administrators document, understand, project, and reduce the campus greenhouse gas footprint. The Calculator can help a campus in taking the first steps toward a comprehensive Climate Action or Climate Neutrality Plan. Organizations or entities wishing to use the Calculator for other purposes should contact CA-CP. CA-CP reserves all copyright privileges.
B14: 2. When presenting the results of your campus greenhouse gas inventory, whether in written reports or spoken presentations, please credit the “Clean Air-Cool Planet Campus Carbon Calculator” as a tool you used to complete this task.
B15: 3. Many campuses want to share the results of the inventory with their constituents and the general public once they’ve completed it. Whether or not you are making your inventory public, download and use of the Calculator implies willingness to share results of the inventory with CA-CP, only for purposes of aggregating U.S. campus inventory results. Results are expected to be shared upon completion. CA-CP will keep these results completely confidential unless express written consent is given to the contrary.
B16: 4. CA-CP will not be responsible for verifying your results from the Campus Carbon Calculator, and assumes no liability for your inventory results, or their use on your campus.
B17: I UNDERSTAND AND AM WILLING TO ABIDE BY THESE TERMS. I WISH TO PROCEED.
B18: Originally developed by Adam Wilson as a collaborative project between the University of New Hampshire's Office of Sustainability and Clean Air-Cool Planet in 2001. Version 4.0 was updated to version 5.0 by Jordan Macy and Jennifer Schroeder in '05-'06. Version 5.0 was updated to version 6.0 by Claire Roby, Ian Hough, Jason Kowalski, Lisa Weil, Tai Young Taft, and Jennifer (Schroeder) Andrews in '07-'08. For a complete list of changes, see the Users' Guide.
B20: Acknowledgments:
B21: CA-CP would first like to extend gratitude and acknowledgement to one of our first, and best, partners - the University of New Hampshire. Their integral role in the creation of this tool is a great example of the power schools have to help accelerate the pace of change by solving problems on their own campuses while being mindful of the potential for creating models to light the way for others. Thanks to Adam Wilson, Dr. Cameron Wake, Dr. Tom Kelly, Jordan Macy, Brett Pasinella, and everyone over at the University of New Hampshire Office of Sustainability, without whose expertise, time and patience this tool would not exist.
B22: The planning elements of the tool were inspired by the good work of students at Middlebury College (MiddShift), University of Californa Santa Barbara (NAELS Climate Neutral project), and the efforts of Duke University as presented by then-Sustainability Coordinator Sam Hummel in his "Charting a Path to Greenhouse Gas Reductions" paper at the Ball State Greening of the Campus conference in 2005. Tai Young Taft and Lisa Weil did the hard work of taking it from a vague vision to a functional, coherent framework; Jason Kowalski's and Ian Hough's phenomenal dedication, expertise and Google doc-madness made the tool what it, ultimately, is - an amazing resource that CA-CP is proud to claim. And Claire Roby helped us bring this over the finish line with some final creative modeling. Again, sincere thanks to each.
B23: CA-CP would also like to extend sincere thanks for the invaluable review, assistance and/or collaboration offered over the years by the following individuals and organizations: Julian Dautremont-Smith of the Association for the Advancement of Sustainability in Higher Education (AASHE); the team over at the World Resources Institute, including Jennifer Layke, Samantha Putt del Pino, Ryan Levinson and Derik Broekhoeff; the staff of the National Wildlife Federation's Campus Ecology Program, especially Julian Keniry, Kristy Jones, Praween Dayananda, Justin Schott and Lisa Madry; Dr. Edward Wells at Wilson College, Dr. Kurt Teichert at Brown University, Ramsay Huntley (formerly of) Tufts University, Jim Simon at the University of Buffalo (SUNY); and to the many Calculator users - students, staff and faculty - whose feedback and keen eyes for details have improved this tool tremendously over the years.

Sheet Introduction
A6: ©2001-2010 Clean Air-Cool Planet, Inc. All Rights Reserved
B7: Clean Air-Cool Planet, Campus Carbon Calculator, and the Clean Air-Cool Planet logo are trademarks of Clean Air-Cool Planet, Inc.
F8: www.cleanair-coolplanet.org
F10: University | G10: Macalester College
F11: Contact Name | G11: Suzanne Savanick Hansen | I11: Note: v6.7 can automatically transfer your data from previous v6 files. Scroll down for instructions
F12: Title | G12: Sustainability Manager
F13: Organization | G13: Sustainability Office
F14: State
F15: Phone | G15: 651.696.8138
F16: Fax
F17: E-Mail | G17: sustainability@macalester.edu
F26: Getting Started
F34: Navigating the Calculator
F43: Background Information
F52: Color Coding
F61: Using the Calculator
F75: Updating from Previous Calculator Files
M76: Use these buttons if you are using an older version of Excel, with .xls file extensions
M84: Use these buttons if you are using newer version of Excel, with .xlsx file extensions
M92: Use these buttons if you are using an older version of Excel, with .xls file extensions
M101: Use these buttons if you are using an newer version of Excel, with .xlsx file extensions

Sheet Spreadsheet_Map
A1: ©2001-2010 Clean Air-Cool Planet, Inc. All rights reserved.
A2: Clean Air-Cool Planet, Campus Carbon Calculator, and the Clean Air-Cool Planet logo are trademarks of Clean Air-Cool Planet, Inc.
E12: INPUTS | H12: EMISSIONS FACTORS | M12: CALCULATIONS | S12: RESULTS | X12: GRAPHS
B64: REFERENCE MODULE

Sheet Input
C2: On this Worksheet: Enter data related to emissions. If a column does not apply or the data is unavailable, leave it blank.
C3: MODULE | D3: Input
C4: WORKSHEET | D4: Input: Enter emissions source activity and institutional data
C5: UNIVERSITY | D5: =IF((ISBLANK(Introduction!$G$10)),"Please enter university name on 'Introduction' sheet",Introduction!$G$10) -> Macalester College
N6: --- Scope 1 Emissions Sources --- | BR6: --- Scope 2 Emissions Sources --- | BU6: --- Scope 3 Emissions Sources --- | CY6: --- Offsets ---
D7: Institutional Data | N7: On-Campus Stationary Sources | AP7: Direct Transportation Sources | AZ7: Refrigerants & Chemicals | BF7: Agriculture Sources | BR7: Purchased Electricity, Steam, and Chilled Water | BU7: Commuting - click here to enter data | CC7: Directly Financed Outsourced Travel | CJ7: Study Abroad Travel | CK7: Solid Waste | CP7: Wastewater | CT7: Paper
C8: Fiscal Year | D8: Budget - Click here to enter data | G8: Population | L8: Physical Size | N8: On-Campus Cogeneration Plant(s) | AD8: Other On-Campus Stationary Sources | AP8: University Fleet | AZ8: Refrigerants & Chemicals | BF8: Fertilizer Application | BJ8: Animal Husbandry | BR8: Electricity | BS8: Steam | BT8: Chilled Water | BU8: Faculty / Staff Commuting | BY8: Student Commuting | CC8: Air Travel | CE8: Other | CK8: Incinerated Waste (not used for on-campus power) | CM8: Landfilled Waste | CP8: Septic System | CQ8: Central Treatment System | CT8: Uncoated Freesheet | CU8: Uncoated Freesheet | CV8: Uncoated Freesheet | CW8: Uncoated Freesheet | CX8: Uncoated Freesheet | CY8: Offsets with Additionality | DD8: Non-Additional Renewable Energy Certificates (RECs)
D9: Operating Budget | E9: Research Budget | F9: Energy Budget | G9: Full Time Students | H9: Part-Time Students | I9: Summer School Students | J9: Faculty | K9: Staff | L9: Total Building Space | M9: Total Research Building Space | N9: Residual Oil (#5-6) | O9: Distillate Oil (#1-4) | P9: Natural Gas | Q9: LPG (Propane) | R9: Coal (Steam Coal) | S9: Incinerated Waste | T9: Wood Chips | U9: Wood Pellets | V9: Grass Pellets | W9: Residual BioHeat | X9: Distillate BioHeat | Y9: =Other_Stationary -> Other | Z9: Electric Output | AA9: Steam Output | AB9: Electric Efficiency | AC9: Steam Efficiency | AD9: Residual Oil (#5-6) | AE9: Distillate Oil (#1-4) | AF9: Natural Gas | AG9: LPG (Propane) | AH9: Coal (Steam Coal) | AI9: Incinerated Waste | AJ9: Wood Chips | AK9: Wood Pellets | AL9: Grass Pellets | AM9: Residual BioHeat | AN9: Distillate BioHeat | AO9: =Other_Stationary -> Other | AP9: Gasoline Fleet | AQ9: Diesel Fleet | AR9: Natural Gas Fleet | AS9: E85 Fleet | AT9: B5 Fleet | AU9: B20 Fleet | AV9: B100 | AW9: Hydrogen | AX9: =Other_Transportation -> Other Fleet Fuel | AY9: Electric Fleet | AZ9: HFC-134a | BA9: HFC-404a | BB9: HCFC-22 | BC9: HCFE-235da2 | BD9: HG-10 | BE9: Other | BF9: Synthetic | BG9: % Nitrogen | BH9: Organic | BI9: % Nitrogen | BJ9: Dairy Cows | BK9: Beef Cows | BL9: Swine | BM9: Goats | BN9: Sheep | BO9: Horses | BP9: Poultry | BQ9: =Other_Animal -> Other | BR9: CLICK TO SET eGRID SUBREGION | BS9: CLICK TO SET FUEL MIX | BT9: CLICK TO SET FUEL MIX | BU9: Automobile | BV9: Bus | BW9: Light Rail | BX9: Commuter Rail | BY9: Automobile | BZ9: Bus | CA9: Light Rail | CB9: Commuter Rail | CC9: Faculty / Staff | CD9: Students | CE9: Train | CF9: Taxi / Ferry / Rental Car | CG9: Bus | CH9: Alternative Fuel Bus | CI9: Personal Mileage Reimbursement | CJ9: Air | CK9: Mass Burn | CL9: Refuse Derived Fuel (RDF) | CM9: No CH4 Recovery | CN9: CH4 Recovery and Flaring | CO9: CH4 Recovery and Electric Generation | CQ9: Aerobic | CR9: Anaerobic | CS9: Anaerobic Digestion | CT9: 0 | CU9: 0.3 | CV9: 0.5 | CW9: 0.75 | CX9: 1 | CY9: On-campus Composting | CZ9: Forest Preservation | DA9: Retail Offsets (High End) | DB9: Retail Offsets (Low End) | DC9: =Other_Offset -> Other | DD9: Green Power Certificates | DE9: Retail Offsets (High End) | DF9: Retail Offsets (Low End) | DG9: =Other_Offset -> Other
D10: =Input_InflAdj!$F$10 -> $ (2005) | E10: =Input_InflAdj!$F$10 -> $ (2005) | F10: =Input_InflAdj!$F$10 -> $ (2005) | G10: # | H10: # | I10: # | J10: # | K10: # | L10: Square feet | M10: Square feet | N10: Gallons | O10: Gallons | P10: MMBtu | Q10: Gallons | R10: Short Tons | S10: Short Tons | T10: Short Tons | U10: Short Tons | V10: Short Tons | W10: Gallons | X10: Gallons | Y10: MMBtu | Z10: kWh | AA10: MMBtu | AB10: % | AC10: % | AD10: Gallons | AE10: Gallons | AF10: MMBtu | AG10: Gallons | AH10: Short Tons | AI10: Short Tons | AJ10: Short Tons | AK10: Short Tons | AL10: Short Tons | AM10: Gallons | AN10: Gallons | AO10: MMBtu | AP10: Gallons | AQ10: Gallons | AR10: MMBtu | AS10: Gallons | AT10: Gallons | AU10: Gallons | AV10: Gallons | AW10: MMBtu | AX10: MMBtu | AY10: kWh | AZ10: Pounds | BA10: Pounds | BB10: Pounds | BC10: Pounds | BD10: Pounds | BE10: Pounds | BF10: Pounds | BG10: % | BH10: Pounds | BI10: % | BJ10: # | BK10: # | BL10: # | BM10: # | BN10: # | BO10: # | BP10: # | BQ10: # | BR10: kWh | BS10: MMBtu | BT10: MMBtu | BU10: Miles | BV10: Miles | BW10: Miles | BX10: Miles | BY10: Miles | BZ10: Miles | CA10: Miles | CB10: Miles | CC10: Miles | CD10: Miles | CE10: Miles | CF10: Miles | CG10: Miles | CH10: Miles | CI10: Miles | CJ10: Miles | CK10: Short Tons | CL10: Short Tons | CM10: Short Tons | CN10: Short Tons | CO10: Short Tons | CP10: Gallons | CQ10: Gallons | CR10: Gallons | CS10: Gallons | CT10: lbs | CU10: lbs | CV10: lbs | CW10: lbs | CX10: lbs | CY10: Short Tons Compost | CZ10: MT eCO2 | DA10: MT eCO2 | DB10: MT eCO2 | DC10: MT eCO2 | DD10: kWh | DE10: MT eCO2 | DF10: MT eCO2 | DG10: MT eCO2
C11: 1990 | D11: =Input_InflAdj!G11 -> 0 | E11: =Input_InflAdj!H11 -> 0 | F11: =Input_InflAdj!I11 -> 0 | BU11: =Input_Commuter!DD10 -> 0 | BV11: =Input_Commuter!DF10 -> 0 | BW11: =Input_Commuter!DH10 -> 0 | BX11: =Input_Commuter!DJ10 -> 0 | BY11: =Input_Commuter!AI10 -> 0 | BZ11: =Input_Commuter!AK10 -> 0 | CA11: =Input_Commuter!AM10 -> 0 | CB11: =Input_Commuter!AO10 -> 0
C12: 1991 | D12: =Input_InflAdj!G12 -> 38877242.19 | E12: =Input_InflAdj!H12 -> 0 | F12: =Input_InflAdj!I12 -> 982388.9945 | G12: 1780 | J12: 217 | K12: 312 | L12: 1072389 | M12: 118408 | AD12: 0 | AE12: 0 | AF12: 69181.85287 | AP12: 13752.59566 | BF12: 7444 | BG12: 0.25 | BR12: 11378047.29 | BU12: =Input_Commuter!DD11 -> 1218952.882 | BV12: =Input_Commuter!DF11 -> 44085.66989 | BW12: =Input_Commuter!DH11 -> 0 | BX12: =Input_Commuter!DJ11 -> 0 | BY12: =Input_Commuter!AI11 -> 119217.28 | BZ12: =Input_Commuter!AK11 -> 10366.72 | CA12: =Input_Commuter!AM11 -> 0 | CB12: =Input_Commuter!AO11 -> 0 | CC12: 3260685.634 | CL12: 337 | CO12: 18 | CS12: 28954304 | CY12: 12 | CZ12: 150
C13: 1992 | D13: =Input_InflAdj!G13 -> 40702591.44 | E13: =Input_InflAdj!H13 -> 0 | F13: =Input_InflAdj!I13 -> 0 | G13: 1776 | J13: 217 | K13: 312 | L13: 1098389 | M13: 118408 | AD13: 0 | AE13: 0 | AF13: 73659.53802 | AP13: 11012.62731 | BF13: 7444 | BG13: 0.25 | BR13: 11653907.29 | BU13: =Input_Commuter!DD12 -> 1218952.882 | BV13: =Input_Commuter!DF12 -> 44085.66989 | BW13: =Input_Commuter!DH12 -> 0 | BX13: =Input_Commuter!DJ12 -> 0 | BY13: =Input_Commuter!AI12 -> 118949.376 | BZ13: =Input_Commuter!AK12 -> 10343.424 | CA13: =Input_Commuter!AM12 -> 0 | CB13: =Input_Commuter!AO12 -> 0 | CC13: 2632806.131 | CL13: 337 | CO13: 18 | CS13: 29018080 | CY13: 12 | CZ13: 150
C14: 1993 | D14: =Input_InflAdj!G14 -> 42095668.07 | E14: =Input_InflAdj!H14 -> 0 | F14: =Input_InflAdj!I14 -> 1033755.274 | G14: 1765 | J14: 217 | K14: 312 | L14: 1127389 | M14: 118408 | AD14: 209085 | AE14: 0 | AF14: 80084.28181 | AP14: 14711.58279 | BF14: 7444 | BG14: 0.25 | BR14: 11961597.29 | BU14: =Input_Commuter!DD13 -> 1218952.882 | BV14: =Input_Commuter!DF13 -> 44085.66989 | BW14: =Input_Commuter!DH13 -> 0 | BX14: =Input_Commuter!DJ13 -> 0 | BY14: =Input_Commuter!AI13 -> 153916.7583 | BZ14: =Input_Commuter!AK13 -> 13384.06594 | CA14: =Input_Commuter!AM13 -> 0 | CB14: =Input_Commuter!AO13 -> 0 | CC14: 3604223.677 | CL14: 337 | CO14: 18 | CS14: 29129688 | CY14: 12 | CZ14: 150
C15: 1994 | D15: =Input_InflAdj!G15 -> 45723502.6 | E15: =Input_InflAdj!H15 -> 0 | F15: =Input_InflAdj!I15 -> 955278.4455 | G15: 1761 | J15: 217 | K15: 312 | L15: 1127389 | M15: 118408 | AD15: 288431 | AE15: 0 | AF15: 81868.3376 | AP15: 18182.95286 | BF15: 7444 | BG15: 0.25 | BR15: 11961597.29 | BU15: =Input_Commuter!DD14 -> 1218952.882 | BV15: =Input_Commuter!DF14 -> 44085.66989 | BW15: =Input_Commuter!DH14 -> 0 | BX15: =Input_Commuter!DJ14 -> 0 | BY15: =Input_Commuter!AI14 -> 117944.736 | BZ15: =Input_Commuter!AK14 -> 10256.064 | CA15: =Input_Commuter!AM14 -> 0 | CB15: =Input_Commuter!AO14 -> 0 | CC15: 4013139.817 | CL15: 337 | CO15: 18 | CS15: 28491928 | CY15: 12 | CZ15: 150
C16: 1995 | D16: =Input_InflAdj!G16 -> 46913356.07 | E16: =Input_InflAdj!H16 -> 0 | F16: =Input_InflAdj!I16 -> 1004834 | G16: 1740 | J16: 217 | K16: 312 | L16: 1127389 | M16: 118408 | AD16: 149460 | AE16: 0 | AF16: 71263.11711 | AP16: 17361.79954 | BF16: 7444 | BG16: 0.25 | BR16: 11961597.29 | BU16: =Input_Commuter!DD15 -> 1218952.882 | BV16: =Input_Commuter!DF15 -> 44085.66989 | BW16: =Input_Commuter!DH15 -> 0 | BX16: =Input_Commuter!DJ15 -> 0 | BY16: =Input_Commuter!AI15 -> 116538.24 | BZ16: =Input_Commuter!AK15 -> 10133.76 | CA16: =Input_Commuter!AM15 -> 0 | CB16: =Input_Commuter!AO15 -> 0 | CC16: 4051475.627 | CL16: 337 | CO16: 18 | CS16: 28348432 | CY16: 12 | CZ16: 150
C17: 1996 | D17: =Input_InflAdj!G17 -> 48333313.27 | E17: =Input_InflAdj!H17 -> 0 | F17: =Input_InflAdj!I17 -> 949055.3997 | G17: 1719 | J17: 217 | K17: 312 | L17: 1127389 | M17: 118408 | AD17: 232839 | AE17: 0 | AF17: 85149.01795 | AP17: 18218.876 | BF17: 7444 | BG17: 0.25 | BR17: 11961597.29 | BU17: =Input_Commuter!DD16 -> 1218952.882 | BV17: =Input_Commuter!DF16 -> 44085.66989 | BW17: =Input_Commuter!DH16 -> 0 | BX17: =Input_Commuter!DJ16 -> 0 | BY17: =Input_Commuter!AI16 -> 115131.744 | BZ17: =Input_Commuter!AK16 -> 10011.456 | CA17: =Input_Commuter!AM16 -> 0 | CB17: =Input_Commuter!AO16 -> 0 | CC17: 4187028.715 | CL17: 337 | CO17: 18 | CS17: 27774448 | CY17: 12 | CZ17: 150
C18: 1997 | D18: =Input_InflAdj!G18 -> 58626366.47 | E18: =Input_InflAdj!H18 -> 0 | F18: =Input_InflAdj!I18 -> 900358.8644 | G18: 1742 | J18: 217 | K18: 312 | L18: 1127389 | M18: 118408 | AD18: 171889 | AE18: 7503 | AF18: 81779.13481 | AP18: 19081.5092 | BF18: 7444 | BG18: 0.25 | BR18: 11961597.29 | BU18: =Input_Commuter!DD17 -> 1218952.882 | BV18: =Input_Commuter!DF17 -> 44085.66989 | BW18: =Input_Commuter!DH17 -> 0 | BX18: =Input_Commuter!DJ17 -> 0 | BY18: =Input_Commuter!AI17 -> 116672.192 | BZ18: =Input_Commuter!AK17 -> 10145.408 | CA18: =Input_Commuter!AM17 -> 0 | CB18: =Input_Commuter!AO17 -> 0 | CC18: 4747740.974 | CL18: 337 | CO18: 18 | CS18: 28109272 | CY18: 12 | CZ18: 150
C19: 1998 | D19: =Input_InflAdj!G19 -> 60108937.57 | E19: =Input_InflAdj!H19 -> 612627.3867 | F19: =Input_InflAdj!I19 -> 1028464.332 | G19: 1723 | J19: 217 | K19: 290 | L19: 1207989 | M19: 178408 | AD19: 9246 | AE19: 0 | AF19: 73352.44037 | AP19: 20429.56433 | BF19: 7444 | BG19: 0.25 | BR19: 12816763.29 | BU19: =Input_Commuter!DD18 -> 1148540.447 | BV19: =Input_Commuter!DF18 -> 40977.06496 | BW19: =Input_Commuter!DH18 -> 0 | BX19: =Input_Commuter!DJ18 -> 0 | BY19: =Input_Commuter!AI18 -> 115399.648 | BZ19: =Input_Commuter!AK18 -> 10034.752 | CA19: =Input_Commuter!AM18 -> 0 | CB19: =Input_Commuter!AO18 -> 0 | CC19: 4985372.067 | CL19: 337 | CO19: 18 | CS19: 27799420 | CY19: 12 | CZ19: 150
C20: 1999 | D20: =Input_InflAdj!G20 -> 56806189.02 | E20: =Input_InflAdj!H20 -> 435309.7396 | F20: =Input_InflAdj!I20 -> 1053634.317 | G20: 1794 | J20: 217 | K20: 292 | L20: 1207989 | M20: 178408 | AD20: 73 | AE20: 10397 | AF20: 72853.29968 | AP20: 22363.81984 | BF20: 7444 | BG20: 0.25 | BR20: 12816763.29 | BU20: =Input_Commuter!DD19 -> 1154941.577 | BV20: =Input_Commuter!DF19 -> 41259.66541 | BW20: =Input_Commuter!DH19 -> 0 | BX20: =Input_Commuter!DJ19 -> 0 | BY20: =Input_Commuter!AI19 -> 144029.7314 | BZ20: =Input_Commuter!AK19 -> 12524.32447 | CA20: =Input_Commuter!AM19 -> 0 | CB20: =Input_Commuter!AO19 -> 0 | CC20: 4710041.86 | CL20: 337 | CO20: 18 | CS20: 28498800 | CY20: 12 | CZ20: 150
C21: 2000 | D21: =Input_InflAdj!G21 -> 58027844.32 | E21: =Input_InflAdj!H21 -> 741309.9489 | F21: =Input_InflAdj!I21 -> 1046824.854 | G21: 1753 | J21: 217 | K21: 304 | L21: 1207989 | M21: 178408 | AD21: 168 | AE21: 1489 | AF21: 41341.70853 | AP21: 21199.17995 | BF21: 7444 | BG21: 0.25 | BR21: 12735222 | BU21: =Input_Commuter!DD20 -> 1193348.36 | BV21: =Input_Commuter!DF20 -> 42955.2681 | BW21: =Input_Commuter!DH20 -> 0 | BX21: =Input_Commuter!DJ20 -> 0 | BY21: =Input_Commuter!AI20 -> 117408.928 | BZ21: =Input_Commuter!AK20 -> 10209.472 | CA21: =Input_Commuter!AM20 -> 0 | CB21: =Input_Commuter!AO20 -> 0 | CC21: 4943357.357 | CL21: 337 | CO21: 18 | CS21: 28936380 | CY21: 12 | CZ21: 150
C22: 2001 | D22: =Input_InflAdj!G22 -> 60543604.26 | E22: =Input_InflAdj!H22 -> 816641.8363 | F22: =Input_InflAdj!I22 -> 0 | G22: 1787 | J22: 217 | K22: 308 | L22: 1243789 | M22: 178408 | AD22: 314450 | AE22: 0 | AF22: 92379.59069 | AP22: 16288.9192 | BF22: 7444 | BG22: 0.25 | BR22: 12188404 | BU22: =Input_Commuter!DD21 -> 1206150.621 | BV22: =Input_Commuter!DF21 -> 43520.46899 | BW22: =Input_Commuter!DH21 -> 0 | BX22: =Input_Commuter!DJ21 -> 0 | BY22: =Input_Commuter!AI21 -> 99474.35921 | BZ22: =Input_Commuter!AK21 -> 8649.944279 | CA22: =Input_Commuter!AM21 -> 0 | CB22: =Input_Commuter!AO21 -> 0 | CC22: 4831124.372 | CL22: 337 | CO22: 18 | CS22: 31483320 | CY22: 12 | CZ22: 150
C23: 2002 | D23: =Input_InflAdj!G23 -> 62683167.57 | E23: =Input_InflAdj!H23 -> 892653.774 | F23: =Input_InflAdj!I23 -> 1387029.947 | G23: 1810 | J23: 205 | K23: 298 | L23: 1254789 | M23: 178408 | AD23: 6542 | AE23: 3086 | AF23: 42493.23339 | AP23: 17660.75637 | BF23: 7444 | BG23: 0.25 | BR23: 13445399 | BU23: =Input_Commuter!DD22 -> 1162405.969 | BV23: =Input_Commuter!DF22 -> 42107.46675 | BW23: =Input_Commuter!DH22 -> 0 | BX23: =Input_Commuter!DJ22 -> 0 | BY23: =Input_Commuter!AI22 -> 141033.2827 | BZ23: =Input_Commuter!AK22 -> 12263.76372 | CA23: =Input_Commuter!AM22 -> 0 | CB23: =Input_Commuter!AO22 -> 0 | CC23: 5515433.289 | CL23: 337 | CO23: 18 | CS23: 30632096 | CY23: 12 | CZ23: 150
C24: 2003 | D24: =Input_InflAdj!G24 -> 64156373.79 | E24: =Input_InflAdj!H24 -> 617041.3874 | F24: =Input_InflAdj!I24 -> 1381439.905 | G24: 1851 | J24: 221 | K24: 315 | L24: 1258133 | M24: 178408 | AD24: 168 | AE24: 1489 | AF24: 31251.27645 | AP24: 19390.588 | BF24: 7444 | BG24: 0.25 | BR24: 13893933 | BU24: =Input_Commuter!DD23 -> 1232616.818 | BV24: =Input_Commuter!DF23 -> 44509.57056 | BW24: =Input_Commuter!DH23 -> 0 | BX24: =Input_Commuter!DJ23 -> 0 | BY24: =Input_Commuter!AI23 -> 99945.2031 | BZ24: =Input_Commuter!AK23 -> 8690.887226 | CA24: =Input_Commuter!AM23 -> 0 | CB24: =Input_Commuter!AO23 -> 0 | CC24: 6233504.069 | CL24: 337 | CO24: 18 | CS24: 32570164 | CY24: 12 | CZ24: 150
C25: 2004 | D25: =Input_InflAdj!G25 -> 63664623.63 | E25: =Input_InflAdj!H25 -> 1129780.137 | F25: =Input_InflAdj!I25 -> 0 | G25: 1865 | J25: 215 | K25: 312 | L25: 1254851 | M25: 178408 | AD25: 347129 | AE25: 13998 | AF25: 90988.26813 | AP25: 16641.98886 | BF25: 7444 | BG25: 0.25 | BR25: 13616229 | BU25: =Input_Commuter!DD24 -> 1216921.762 | BV25: =Input_Commuter!DF24 -> 44085.66989 | BW25: =Input_Commuter!DH24 -> 0 | BX25: =Input_Commuter!DJ24 -> 0 | BY25: =Input_Commuter!AI24 -> 116189.132 | BZ25: =Input_Commuter!AK24 -> 10103.40278 | CA25: =Input_Commuter!AM24 -> 0 | CB25: =Input_Commuter!AO24 -> 0 | CC25: 5955765.183 | CL25: 337 | CO25: 18 | CS25: 31288092 | CY25: 12 | CZ25: 150
C26: 2005 | D26: =Input_InflAdj!G26 -> 64454276 | E26: =Input_InflAdj!H26 -> 977000 | F26: =Input_InflAdj!I26 -> 0 | G26: 1841 | J26: 216 | K26: 321 | L26: 1266851 | M26: 178408 | AD26: 409692 | AE26: 0 | AF26: 101967.6895 | AP26: 14121.13461 | BF26: 7444 | BG26: 0.25 | BR26: 13669434 | BU26: =Input_Commuter!DD25 -> 1246742.41 | BV26: =Input_Commuter!DF25 -> 45357.3719 | BW26: =Input_Commuter!DH25 -> 0 | BX26: =Input_Commuter!DJ25 -> 0 | BY26: =Input_Commuter!AI25 -> 125817.207 | BZ26: =Input_Commuter!AK25 -> 10940.6267 | CA26: =Input_Commuter!AM25 -> 0 | CB26: =Input_Commuter!AO25 -> 0 | CC26: 6091118.997 | CL26: 337 | CO26: 18 | CS26: 28518248 | CY26: 12 | CZ26: 150
C27: 2006 | D27: =Input_InflAdj!G27 -> 65736863.69 | E27: =Input_InflAdj!H27 -> 1255416.711 | F27: =Input_InflAdj!I27 -> 1157019.185 | G27: 1895 | J27: 223 | K27: 318 | L27: 1266851 | M27: 178408 | AD27: 219021 | AE27: 0 | AF27: 98390.3106 | AP27: 12032.96651 | BF27: 7444 | BG27: 0.25 | BR27: 13772060 | BU27: =Input_Commuter!DD26 -> 1244249.634 | BV27: =Input_Commuter!DF26 -> 44933.47123 | BW27: =Input_Commuter!DH26 -> 0 | BX27: =Input_Commuter!DJ26 -> 0 | BY27: =Input_Commuter!AI26 -> 158877.7282 | BZ27: =Input_Commuter!AK26 -> 13815.45463 | CA27: =Input_Commuter!AM26 -> 0 | CB27: =Input_Commuter!AO26 -> 0 | CC27: 6235641.777 | CL27: 197 | CO27: 215.4 | CS27: 29409116 | CY27: 12 | CZ27: 150
C28: 2007 | D28: =Input_InflAdj!G28 -> 68281214.88 | E28: =Input_InflAdj!H28 -> 876405.98 | F28: =Input_InflAdj!I28 -> 0 | G28: 1889 | J28: 225 | K28: 335 | L28: 1266851 | M28: 178408 | AD28: 320608 | AE28: 0 | AF28: 99464.6931 | AP28: 12271.45709 | BF28: 7444 | BG28: 0.25 | BR28: 13077532 | BU28: =Input_Commuter!DD27 -> 1300690.363 | BV28: =Input_Commuter!DF27 -> 47335.57504 | BW28: =Input_Commuter!DH27 -> 0 | BX28: =Input_Commuter!DJ27 -> 0 | BY28: =Input_Commuter!AI27 -> 93751.99286 | BZ28: =Input_Commuter!AK27 -> 8152.347205 | CA28: =Input_Commuter!AM27 -> 0 | CB28: =Input_Commuter!AO27 -> 0 | CC28: 6750544.239 | CL28: 84 | CO28: 252 | CS28: 29047084 | CY28: 12 | CZ28: 150
C29: 2008 | D29: =Input_InflAdj!G29 -> 71166271.68 | E29: =Input_InflAdj!H29 -> 649940.3358 | F29: =Input_InflAdj!I29 -> 1614192.683 | G29: 1889 | J29: 170.41 | K29: 365 | L29: 1351585 | M29: 178408 | AD29: 59202 | AE29: 16956 | AF29: 104327 | AP29: 12996 | BF29: 7444 | BG29: 0.25 | BR29: 13438593 | BU29: =Input_Commuter!DD28 -> 1341267.901 | BV29: =Input_Commuter!DF28 -> 51574.58176 | BW29: =Input_Commuter!DH28 -> 0 | BX29: =Input_Commuter!DJ28 -> 0 | BY29: =Input_Commuter!AI28 -> 102992.7165 | BZ29: =Input_Commuter!AK28 -> 8955.888393 | CA29: =Input_Commuter!AM28 -> 0 | CB29: =Input_Commuter!AO28 -> 0 | CC29: 3855532 | CJ29: 2762240 | CL29: 114.5 | CO29: 343.5 | CS29: 21040076 | CT29: 21926 | CU29: 50350 | CY29: 12 | CZ29: 150
C30: 2009 | D30: =Input_InflAdj!G30 -> 74370127.3 | E30: =Input_InflAdj!H30 -> 862215.9426 | F30: =Input_InflAdj!I30 -> 1500077.378 | G30: 1872 | J30: 175 | K30: 395 | L30: 1351585 | M30: 178408 | AD30: 267330 | AE30: 0 | AF30: 63293.4 | AP30: 6209.21 | BF30: 7444 | BG30: 0.25 | BR30: 13072676.67 | BU30: =Input_Commuter!DD29 -> 1438761.279 | BV30: =Input_Commuter!DF29 -> 62438.38848 | BW30: =Input_Commuter!DH29 -> 0 | BX30: =Input_Commuter!DJ29 -> 0 | BY30: =Input_Commuter!AI29 -> 125379.072 | BZ30: =Input_Commuter!AK29 -> 10902.528 | CA30: =Input_Commuter!AM29 -> 0 | CB30: =Input_Commuter!AO29 -> 0 | CC30: 4645143.78 | CJ30: 2777538.25 | CL30: 107 | CO30: 320 | CS30: 29616125 | CT30: 21916.4 | CU30: 50351 | CY30: 12 | CZ30: 150 | DD30: 76793 | DE30: 33.89
C31: 2010 | D31: =Input_InflAdj!G31 -> 73873158.99 | E31: =Input_InflAdj!H31 -> 1018251.852 | F31: =Input_InflAdj!I31 -> 1371436.012 | G31: 1971 | J31: 177.7 | K31: 381.2 | L31: 1351585 | M31: 178408 | AD31: 43156 | AE31: 0 | AF31: 85177.55 | AP31: =6673.78999999999 + 94.5416666666666 -> 6768.331667 | BF31: 8000 | BG31: 0.1425 | BR31: 12230379 | BU31: =Input_Commuter!DD30 -> 177230.872 | BV31: =Input_Commuter!DF30 -> 6727.0112 | BW31: =Input_Commuter!DH30 -> 0 | BX31: =Input_Commuter!DJ30 -> 0 | BY31: =Input_Commuter!AI30 -> 19602.7776 | BZ31: =Input_Commuter!AK30 -> 3532.032 | CA31: =Input_Commuter!AM30 -> 0 | CB31: =Input_Commuter!AO30 -> 0 | CC31: 4406122.526 | CJ31: 2753045.933 | CL31: 241.04575 | CO31: 241.04575 | CS31: 25661107.2 | CT31: 6000 | CU31: 26000 | CX31: 24000 | CY31: 12 | CZ31: 150 | DD31: 76793 | DE31: 33.89
C32: 2011 | D32: =Input_InflAdj!G32 -> 0 | E32: =Input_InflAdj!H32 -> 0 | F32: =Input_InflAdj!I32 -> 0 | BU32: =Input_Commuter!DD31 -> 0 | BV32: =Input_Commuter!DF31 -> 0 | BW32: =Input_Commuter!DH31 -> 0 | BX32: =Input_Commuter!DJ31 -> 0 | BY32: =Input_Commuter!AI31 -> 0 | BZ32: =Input_Commuter!AK31 -> 0 | CA32: =Input_Commuter!AM31 -> 0 | CB32: =Input_Commuter!AO31 -> 0
C33: Note: Signatories of the ACUPCC should reference the Implementation Guide, as they have specified definitions for many data categories. You may gather
D34: data for the categories that differ in the | F34: ACUPCC Reporting Worksheet. | H34: For guidance reference the | J34: ACUPCC Implementation Guide (pdf).
B36: ©2001-2010 Clean Air-Cool Planet, Inc. All rights reserved
B37: Clean Air-Cool Planet, Campus Carbon Calculator, and the Clean Air-Cool Planet logo are trademarks of Clean Air-Cool Planet, Inc.

Sheet Input_InflAdj
B2: On this Worksheet: Original budget values, and values adjusted for inflation
B3: MODULE | C3: Input
B4: WORKSHEET | C4: Inflation Adjustment: Enter your budget values in the left-hand columns and they will be adjusted for inflation.
B5: UNIVERSITY | C5: =IF((ISBLANK(Introduction!$G$10)),"Please enter university name on 'Introduction' sheet",Introduction!$G$10) -> Macalester College
C8: Budget | F8: Conversion | G8: Budget Adjusted for Inflation
B9: Fiscal Year | C9: Operating Budget | D9: Research Dollars | E9: Energy Budget | F9: Deflator | G9: Operating Budget | H9: Research Dollars | I9: Energy Budget
C10: $ | D10: $ | E10: $ | F10: $ (2005) | G10: $ | H10: $ | I10: $
B11: =Input!C11 -> 1990 | F11: 0.722 | G11: =C11/$F11 -> 0 | H11: =D11/$F11 -> 0 | I11: =E11/$F11 -> 0
B12: =Input!C12 -> 1991 | C12: 29051408 | E12: 734100 | F12: 0.74726 | G12: =C12/$F12 -> 38877242.19 | H12: 0 | I12: 982388.9945
B13: =Input!C13 -> 1992 | C13: 31114689 | E13: 0 | F13: 0.76444 | G13: 40702591.44 | H13: 0 | I13: 0
B14: =Input!C14 -> 1993 | C14: 32923022 | E14: 808500 | F14: 0.7821 | G14: 42095668.07 | H14: 0 | I14: 1033755.274
B15: =Input!C15 -> 1994 | C15: 36520276 | E15: 763000 | F15: 0.79872 | G15: 45723502.6 | H15: 0 | I15: 955278.4455
B16: =Input!C16 -> 1995 | C16: 38237200 | E16: 819000 | F16: 0.81506 | G16: 46913356.07 | H16: 0 | I16: 1004834
B17: =Input!C17 -> 1996 | C17: 40141300 | E17: 788200 | F17: 0.83051 | G17: 48333313.27 | H17: 0 | I17: 949055.3997
B18: =Input!C18 -> 1997 | C18: 49500000 | E18: 760200 | F18: 0.84433 | G18: 58626366.47 | H18: 0 | I18: 900358.8644
B19: =Input!C19 -> 1998 | C19: 51315000 | D19: 523000 | E19: 878000 | F19: 0.8537 | G19: 60108937.57 | H19: 612627.3867 | I19: 1028464.332
B20: =Input!C20 -> 1999 | C20: 49197000 | D20: 377000 | E20: 912500 | F20: 0.86605 | G20: 56806189.02 | H20: 435309.7396 | I20: 1053634.317
B21: =Input!C21 -> 2000 | C21: 51350000 | D21: 656000 | E21: 926356.25 | F21: 0.88492 | G21: 58027844.32 | H21: 741309.9489 | I21: 1046824.854
B22: =Input!C22 -> 2001 | C22: 54861587 | D22: 740000 | E22: 0 | F22: 0.90615 | G22: 60543604.26 | H22: 816641.8363 | I22: 0
B23: =Input!C23 -> 2002 | C23: 57792000 | D23: 823000 | E23: 1278800 | F23: 0.92197 | G23: 62683167.57 | H23: 892653.774 | I23: 1387029.947
B24: =Input!C24 -> 2003 | C24: 60409000 | D24: 581000 | E24: 1300750 | F24: 0.94159 | G24: 64156373.79 | H24: 617041.3874 | I24: 1381439.905
B25: =Input!C25 -> 2004 | C25: 61648365 | D25: 1094000 | E25: 0 | F25: 0.96833 | G25: 63664623.63 | H25: 1129780.137 | I25: 0
B26: =Input!C26 -> 2005 | C26: 64454276 | D26: 977000 | E26: 0 | F26: 1 | G26: =C26/$F26 -> 64454276 | H26: =D26/$F26 -> 977000 | I26: =E26/$F26 -> 0
B27: =Input!C27 -> 2006 | C27: 67809547 | D27: 1295000 | E27: 1193500 | F27: 1.03153 | G27: 65736863.69 | H27: 1255416.711 | I27: 1157019.185
B28: =Input!C28 -> 2007 | C28: 72300930 | D28: 928000 | E28: 0 | F28: 1.05887 | G28: 68281214.88 | H28: 876405.98 | I28: 0
B29: =Input!C29 -> 2008 | C29: 76934298 | D29: 702618 | E29: 1745023 | F29: 1.08105 | G29: 71166271.68 | H29: 649940.3358 | I29: 1614192.683
B30: =Input!C30 -> 2009 | C30: 81849531 | D30: 948929 | E30: 1650940.16 | F30: 1.10057 | G30: 74370127.3 | H30: 862215.9426 | I30: 1500077.378
B31: =Input!C31 -> 2010 | C31: 82850964 | D31: 1142000 | E31: 1538106.63 | F31: 1.12153 | G31: 73873158.99 | H31: 1018251.852 | I31: 1371436.012
B32: =Input!C32 -> 2011 | F32: 1.14197 | G32: 0 | H32: 0 | I32: 0
B33: ='Linear Projection'!B11 -> 2012 | F33: 1.16329 | G33: 0 | H33: 0 | I33: 0
B34: ='Linear Projection'!B12 -> 2013 | F34: 1.18417 | G34: 0 | H34: 0 | I34: 0
B35: ='Linear Projection'!B13 -> 2014 | F35: 1.20462 | G35: 0 | H35: 0 | I35: 0
B36: ='Linear Projection'!B14 -> 2015 | F36: 1.22491 | G36: 0 | H36: 0 | I36: 0
B37: ='Linear Projection'!B15 -> 2016 | F37: 1.24577 | G37: 0 | H37: 0 | I37: 0
B38: ='Linear Projection'!B16 -> 2017 | F38: 1.26744 | G38: 0 | H38: 0 | I38: 0
B39: ='Linear Projection'!B17 -> 2018 | F39: 1.28932 | G39: 0 | H39: 0 | I39: 0
B40: ='Linear Projection'!B18 -> 2019 | F40: 1.31211 | G40: 0 | H40: 0 | I40: 0
B41: ='Linear Projection'!B19 -> 2020 | F41: 1.33541 | G41: 0 | H41: 0 | I41: 0
B42: ='Linear Projection'!B20 -> 2021 | F42: 1.35953 | G42: 0 | H42: 0 | I42: 0
B43: ='Linear Projection'!B21 -> 2022 | F43: 1.3855 | G43: 0 | H43: 0 | I43: 0
B44: ='Linear Projection'!B22 -> 2023 | F44: 1.41322 | G44: 0 | H44: 0 | I44: 0
B45: ='Linear Projection'!B23 -> 2024 | F45: 1.44201 | G45: 0 | H45: 0 | I45: 0
B46: ='Linear Projection'!B24 -> 2025 | F46: 1.47204 | G46: 0 | H46: 0 | I46: 0
B47: ='Linear Projection'!B25 -> 2026 | F47: 1.5028 | G47: 0 | H47: 0 | I47: 0
B48: ='Linear Projection'!B26 -> 2027 | F48: 1.53356 | G48: 0 | H48: 0 | I48: 0
B49: ='Linear Projection'!B27 -> 2028 | F49: 1.56401 | G49: 0 | H49: 0 | I49: 0
B50: ='Linear Projection'!B28 -> 2029 | F50: 1.59483 | G50: 0 | H50: 0 | I50: 0
B51: ='Linear Projection'!B29 -> 2030 | F51: 1.6261 | G51: 0 | H51: 0 | I51: 0
B52: ='Linear Projection'!B30 -> 2031 | F52: =F51+$F$84 -> 1.64834407 | G52: 0 | H52: 0 | I52: 0
B53: ='Linear Projection'!B31 -> 2032 | F53: 1.670588139 | G53: 0 | H53: 0 | I53: 0
B54: ='Linear Projection'!B32 -> 2033 | F54: 1.692832209 | G54: 0 | H54: 0 | I54: 0
B55: ='Linear Projection'!B33 -> 2034 | F55: 1.715076279 | G55: 0 | H55: 0 | I55: 0
B56: ='Linear Projection'!B34 -> 2035 | F56: 1.737320348 | G56: 0 | H56: 0 | I56: 0
B57: ='Linear Projection'!B35 -> 2036 | F57: 1.759564418 | G57: 0 | H57: 0 | I57: 0
B58: ='Linear Projection'!B36 -> 2037 | F58: 1.781808488 | G58: 0 | H58: 0 | I58: 0
B59: ='Linear Projection'!B37 -> 2038 | F59: 1.804052557 | G59: 0 | H59: 0 | I59: 0
B60: ='Linear Projection'!B38 -> 2039 | F60: 1.826296627 | G60: 0 | H60: 0 | I60: 0
B61: ='Linear Projection'!B39 -> 2040 | F61: 1.848540697 | G61: 0 | H61: 0 | I61: 0
B62: ='Linear Projection'!B40 -> 2041 | F62: 1.870784767 | G62: 0 | H62: 0 | I62: 0
B63: ='Linear Projection'!B41 -> 2042 | F63: 1.893028836 | G63: 0 | H63: 0 | I63: 0
B64: ='Linear Projection'!B42 -> 2043 | F64: 1.915272906 | G64: 0 | H64: 0 | I64: 0
B65: ='Linear Projection'!B43 -> 2044 | F65: 1.937516976 | G65: 0 | H65: 0 | I65: 0
B66: ='Linear Projection'!B44 -> 2045 | F66: 1.959761045 | G66: 0 | H66: 0 | I66: 0
B67: ='Linear Projection'!B45 -> 2046 | F67: 1.982005115 | G67: 0 | H67: 0 | I67: 0
B68: ='Linear Projection'!B46 -> 2047 | F68: 2.004249185 | G68: 0 | H68: 0 | I68: 0
B69: ='Linear Projection'!B47 -> 2048 | F69: 2.026493254 | G69: 0 | H69: 0 | I69: 0
B70: ='Linear Projection'!B48 -> 2049 | F70: 2.048737324 | G70: 0 | H70: 0 | I70: 0
B71: ='Linear Projection'!B49 -> 2050 | F71: 2.070981394 | G71: 0 | H71: 0 | I71: 0
B72: ='Linear Projection'!B50 -> 2051 | F72: 2.093225463 | G72: 0 | H72: 0 | I72: 0
B73: ='Linear Projection'!B51 -> 2052 | F73: 2.115469533 | G73: 0 | H73: 0 | I73: 0
B74: ='Linear Projection'!B52 -> 2053 | F74: 2.137713603 | G74: 0 | H74: 0 | I74: 0
B75: ='Linear Projection'!B53 -> 2054 | F75: 2.159957672 | G75: 0 | H75: 0 | I75: 0
B76: ='Linear Projection'!B54 -> 2055 | F76: 2.182201742 | G76: 0 | H76: 0 | I76: 0
B77: ='Linear Projection'!B55 -> 2056 | F77: 2.204445812 | G77: 0 | H77: 0 | I77: 0
B78: ='Linear Projection'!B56 -> 2057 | F78: 2.226689882 | G78: 0 | H78: 0 | I78: 0
B79: ='Linear Projection'!B57 -> 2058 | F79: 2.248933951 | G79: 0 | H79: 0 | I79: 0
B80: ='Linear Projection'!B58 -> 2059 | F80: 2.271178021 | G80: 0 | H80: 0 | I80: 0
B81: ='Linear Projection'!B59 -> 2060 | F81: 2.293422091 | G81: 0 | H81: 0 | I81: 0
B82: Source: | F82: =Reference!$B$25 -> 19
B83: Source 2: | F83: =Reference!$B$26 -> 20
E84: Slope | F84: =SLOPE(F11:F51,B11:B51) -> 0.02224406969
A85: ©2001-2010 Clean Air-Cool Planet, Inc. All rights reserved
A86: Clean Air-Cool Planet, Campus Carbon Calculator, and the Clean Air-Cool Planet logo are trademarks of Clean Air-Cool Planet, Inc.

Sheet CustFuelMix
B2: On this Worksheet: If you know the exact fuel mix of your electric utility, enter it on this sheet.
B3: MODULE | C3: Input
B4: WORKSHEET | C4: Custom Fuel Mix
B5: UNIVERSITY | C5: =IF((ISBLANK(Introduction!$G$10)),"Please enter university name on 'Introduction' sheet",Introduction!$G$10) -> Macalester College
B7: Fiscal Year | C7: Total Electricity Purchased | D7: Net Purchased | E7: Coal | F7: Natural Gas | G7: Distillate Oil (#1-#4) | H7: Residual Oil (#5-#6) | I7: Nuclear | J7: Waste to Energy | K7: Hydro-Electric | L7: Biomass | M7: Renewable (wind, solar) | N7: Total Percentage
C8: (kWh) | D8: (%) | E8: (%) | F8: (%) | G8: (%) | H8: (%) | I8: (%) | J8: (%) | K8: (%) | L8: (%) | M8: (%) | N8: (%)
B9: 1990 | C9: =Input!BR11 -> 0 | N9: =SUM(D9:M9) -> 0
B10: 1991 | C10: =Input!BR12 -> 11378047.29 | E10: 0.435 | F10: 0.1275 | I10: 0.275 | K10: 0.0625 | L10: 0.0175 | M10: 0.0825 | N10: 1
B11: 1992 | C11: =Input!BR13 -> 11653907.29 | E11: 0.435 | F11: 0.1275 | I11: 0.275 | K11: 0.0625 | L11: 0.0175 | M11: 0.0825 | N11: 1
B12: 1993 | C12: =Input!BR14 -> 11961597.29 | E12: 0.435 | F12: 0.1275 | I12: 0.275 | K12: 0.0625 | L12: 0.0175 | M12: 0.0825 | N12: 1
B13: 1994 | C13: =Input!BR15 -> 11961597.29 | E13: 0.435 | F13: 0.1275 | I13: 0.275 | K13: 0.0625 | L13: 0.0175 | M13: 0.0825 | N13: 1
B14: 1995 | C14: =Input!BR16 -> 11961597.29 | E14: 0.435 | F14: 0.1275 | I14: 0.275 | K14: 0.0625 | L14: 0.0175 | M14: 0.0825 | N14: 1
B15: 1996 | C15: =Input!BR17 -> 11961597.29 | E15: 0.435 | F15: 0.1275 | I15: 0.275 | K15: 0.0625 | L15: 0.0175 | M15: 0.0825 | N15: 1
B16: 1997 | C16: =Input!BR18 -> 11961597.29 | E16: 0.435 | F16: 0.1275 | I16: 0.275 | K16: 0.0625 | L16: 0.0175 | M16: 0.0825 | N16: 1
B17: 1998 | C17: =Input!BR19 -> 12816763.29 | E17: 0.435 | F17: 0.1275 | I17: 0.275 | K17: 0.0625 | L17: 0.0175 | M17: 0.0825 | N17: 1
B18: 1999 | C18: =Input!BR20 -> 12816763.29 | E18: 0.435 | F18: 0.1275 | I18: 0.275 | K18: 0.0625 | L18: 0.0175 | M18: 0.0825 | N18: 1
B19: 2000 | C19: =Input!BR21 -> 12735222 | E19: 0.435 | F19: 0.1275 | I19: 0.275 | K19: 0.0625 | L19: 0.0175 | M19: 0.0825 | N19: 1
B20: 2001 | C20: =Input!BR22 -> 12188404 | E20: 0.435 | F20: 0.1275 | I20: 0.275 | K20: 0.0625 | L20: 0.0175 | M20: 0.0825 | N20: 1
B21: 2002 | C21: =Input!BR23 -> 13445399 | E21: 0.435 | F21: 0.1275 | I21: 0.275 | K21: 0.0625 | L21: 0.0175 | M21: 0.0825 | N21: 1
B22: 2003 | C22: =Input!BR24 -> 13893933 | E22: 0.435 | F22: 0.1275 | I22: 0.275 | K22: 0.0625 | L22: 0.0175 | M22: 0.0825 | N22: 1
B23: 2004 | C23: =Input!BR25 -> 13616229 | E23: 0.435 | F23: 0.1275 | I23: 0.275 | K23: 0.0625 | L23: 0.0175 | M23: 0.0825 | N23: 1
B24: 2005 | C24: =Input!BR26 -> 13669434 | E24: 0.435 | F24: 0.1275 | I24: 0.275 | K24: 0.0625 | L24: 0.0175 | M24: 0.0825 | N24: 1
B25: 2006 | C25: =Input!BR27 -> 13772060 | E25: 0.435 | F25: 0.125 | I25: 0.275 | K25: 0.05 | L25: 0.01 | M25: 0.105 | N25: 1
B26: 2007 | C26: =Input!BR28 -> 13077532 | E26: 0.41 | F26: 0.165 | I26: 0.275 | K26: 0.085 | L26: 0.025 | M26: 0.04 | N26: 1
B27: 2008 | C27: =Input!BR29 -> 13438593 | E27: 0.435 | F27: 0.13 | I27: 0.275 | K27: 0.075 | L27: 0.025 | M27: 0.06 | N27: 1
B28: 2009 | C28: =Input!BR30 -> 13072676.67 | E28: 0.475 | F28: 0.0575 | I28: 0.277 | J28: 0.0025 | K28: 0.0855 | L28: 0.026 | M28: 0.0765 | N28: 1
B29: 2010 | C29: =Input!BR31 -> 12230379 | E29: 0.45 | F29: 0.07 | I29: 0.285 | J29: 0.005 | K29: 0.08 | L29: 0.03 | M29: 0.08 | N29: 1
B30: 2011 | C30: =Input!BR32 -> 0 | N30: 0
B31: 2012 | C31: ='Detailed Projection'!BQ23 -> 13809641.77 | D31: =D$30 -> 0 | E31: =E$30 -> 0 | F31: 0 | G31: 0 | H31: 0 | I31: 0 | J31: 0 | K31: 0 | L31: 0 | M31: 0 | N31: 0
B32: 2013 | C32: ='Detailed Projection'!BQ24 -> 13907813.54 | D32: =D$30 -> 0 | E32: 0 | F32: 0 | G32: 0 | H32: 0 | I32: 0 | J32: 0 | K32: 0 | L32: 0 | M32: 0 | N32: 0
B33: 2014 | C33: ='Detailed Projection'!BQ25 -> 14005985.3 | D33: 0 | E33: 0 | F33: 0 | G33: 0 | H33: 0 | I33: 0 | J33: 0 | K33: 0 | L33: 0 | M33: 0 | N33: 0
B34: 2015 | C34: ='Detailed Projection'!BQ26 -> 14104157.07 | D34: 0 | E34: 0 | F34: 0 | G34: 0 | H34: 0 | I34: 0 | J34: 0 | K34: 0 | L34: 0 | M34: 0 | N34: 0
B35: 2016 | C35: ='Detailed Projection'!BQ27 -> 14202328.84 | D35: 0 | E35: 0 | F35: 0 | G35: 0 | H35: 0 | I35: 0 | J35: 0 | K35: 0 | L35: 0 | M35: 0 | N35: 0
B36: 2017 | C36: ='Detailed Projection'!BQ28 -> 14300500.6 | D36: 0 | E36: 0 | F36: 0 | G36: 0 | H36: 0 | I36: 0 | J36: 0 | K36: 0 | L36: 0 | M36: 0 | N36: 0
B37: 2018 | C37: ='Detailed Projection'!BQ29 -> 14398672.37 | D37: 0 | E37: 0 | F37: 0 | G37: 0 | H37: 0 | I37: 0 | J37: 0 | K37: 0 | L37: 0 | M37: 0 | N37: 0
B38: 2019 | C38: ='Detailed Projection'!BQ30 -> 14496844.13 | D38: 0 | E38: 0 | F38: 0 | G38: 0 | H38: 0 | I38: 0 | J38: 0 | K38: 0 | L38: 0 | M38: 0 | N38: 0
B39: 2020 | C39: ='Detailed Projection'!BQ31 -> 14595015.9 | D39: 0 | E39: 0 | F39: 0 | G39: 0 | H39: 0 | I39: 0 | J39: 0 | K39: 0 | L39: 0 | M39: 0 | N39: 0
B40: 2021 | C40: ='Detailed Projection'!BQ32 -> 14693187.67 | D40: 0 | E40: 0 | F40: 0 | G40: 0 | H40: 0 | I40: 0 | J40: 0 | K40: 0 | L40: 0 | M40: 0 | N40: 0
B41: 2022 | C41: ='Detailed Projection'!BQ33 -> 14791359.43 | D41: 0 | E41: 0 | F41: 0 | G41: 0 | H41: 0 | I41: 0 | J41: 0 | K41: 0 | L41: 0 | M41: 0 | N41: =SUM(D41:M41) -> 0
B42: 2023 | C42: ='Detailed Projection'!BQ34 -> 14889531.2 | D42: 0 | E42: 0 | F42: 0 | G42: 0 | H42: 0 | I42: 0 | J42: 0 | K42: 0 | L42: 0 | M42: 0 | N42: 0
B43: 2024 | C43: ='Detailed Projection'!BQ35 -> 14987702.96 | D43: 0 | E43: 0 | F43: 0 | G43: 0 | H43: 0 | I43: 0 | J43: 0 | K43: 0 | L43: 0 | M43: 0 | N43: 0
B44: 2025 | C44: ='Detailed Projection'!BQ36 -> 15085874.73 | D44: 0 | E44: 0 | F44: 0 | G44: 0 | H44: 0 | I44: 0 | J44: 0 | K44: 0 | L44: 0 | M44: 0 | N44: 0
B45: 2026 | C45: ='Detailed Projection'!BQ37 -> 15184046.5 | D45: 0 | E45: 0 | F45: 0 | G45: 0 | H45: 0 | I45: 0 | J45: 0 | K45: 0 | L45: 0 | M45: 0 | N45: 0
B46: 2027 | C46: ='Detailed Projection'!BQ38 -> 15282218.26 | D46: 0 | E46: 0 | F46: 0 | G46: 0 | H46: 0 | I46: 0 | J46: 0 | K46: 0 | L46: 0 | M46: 0 | N46: 0
B47: 2028 | C47: ='Detailed Projection'!BQ39 -> 15380390.03 | D47: 0 | E47: 0 | F47: 0 | G47: 0 | H47: 0 | I47: 0 | J47: 0 | K47: 0 | L47: 0 | M47: 0 | N47: 0
B48: 2029 | C48: ='Detailed Projection'!BQ40 -> 15478561.79 | D48: 0 | E48: 0 | F48: 0 | G48: 0 | H48: 0 | I48: 0 | J48: 0 | K48: 0 | L48: 0 | M48: 0 | N48: 0
B49: 2030 | C49: ='Detailed Projection'!BQ41 -> 15576733.56 | D49: 0 | E49: 0 | F49: 0 | G49: 0 | H49: 0 | I49: 0 | J49: 0 | K49: 0 | L49: 0 | M49: 0 | N49: 0
B50: 2031 | C50: ='Detailed Projection'!BQ42 -> 15674905.32 | D50: 0 | E50: 0 | F50: 0 | G50: 0 | H50: 0 | I50: 0 | J50: 0 | K50: 0 | L50: 0 | M50: 0 | N50: 0
B51: 2032 | C51: ='Detailed Projection'!BQ43 -> 15773077.09 | D51: 0 | E51: 0 | F51: 0 | G51: 0 | H51: 0 | I51: 0 | J51: 0 | K51: 0 | L51: 0 | M51: 0 | N51: 0
B52: 2033 | C52: ='Detailed Projection'!BQ44 -> 15871248.86 | D52: 0 | E52: 0 | F52: 0 | G52: 0 | H52: 0 | I52: 0 | J52: 0 | K52: 0 | L52: 0 | M52: 0 | N52: 0
B53: 2034 | C53: ='Detailed Projection'!BQ45 -> 15969420.62 | D53: 0 | E53: 0 | F53: 0 | G53: 0 | H53: 0 | I53: 0 | J53: 0 | K53: 0 | L53: 0 | M53: 0 | N53: 0
B54: 2035 | C54: ='Detailed Projection'!BQ46 -> 16067592.39 | D54: 0 | E54: 0 | F54: 0 | G54: 0 | H54: 0 | I54: 0 | J54: 0 | K54: 0 | L54: 0 | M54: 0 | N54: 0
B55: 2036 | C55: ='Detailed Projection'!BQ47 -> 16165764.15 | D55: 0 | E55: 0 | F55: 0 | G55: 0 | H55: 0 | I55: 0 | J55: 0 | K55: 0 | L55: 0 | M55: 0 | N55: 0
B56: 2037 | C56: ='Detailed Projection'!BQ48 -> 16263935.92 | D56: 0 | E56: 0 | F56: 0 | G56: 0 | H56: 0 | I56: 0 | J56: 0 | K56: 0 | L56: 0 | M56: 0 | N56: 0
B57: 2038 | C57: ='Detailed Projection'!BQ49 -> 16362107.69 | D57: 0 | E57: 0 | F57: 0 | G57: 0 | H57: 0 | I57: 0 | J57: 0 | K57: 0 | L57: 0 | M57: 0 | N57: 0
B58: 2039 | C58: ='Detailed Projection'!BQ50 -> 16460279.45 | D58: 0 | E58: 0 | F58: 0 | G58: 0 | H58: 0 | I58: 0 | J58: 0 | K58: 0 | L58: 0 | M58: 0 | N58: 0
B59: 2040 | C59: ='Detailed Projection'!BQ51 -> 16558451.22 | D59: 0 | E59: 0 | F59: 0 | G59: 0 | H59: 0 | I59: 0 | J59: 0 | K59: 0 | L59: 0 | M59: 0 | N59: 0
B60: 2041 | C60: ='Detailed Projection'!BQ52 -> 16656622.98 | D60: 0 | E60: 0 | F60: 0 | G60: 0 | H60: 0 | I60: 0 | J60: 0 | K60: 0 | L60: 0 | M60: 0 | N60: 0
B61: 2042 | C61: ='Detailed Projection'!BQ53 -> 16754794.75 | D61: 0 | E61: 0 | F61: 0 | G61: 0 | H61: 0 | I61: 0 | J61: 0 | K61: 0 | L61: 0 | M61: 0 | N61: 0
B62: 2043 | C62: ='Detailed Projection'!BQ54 -> 16852966.52 | D62: 0 | E62: 0 | F62: 0 | G62: 0 | H62: 0 | I62: 0 | J62: 0 | K62: 0 | L62: 0 | M62: 0 | N62: 0
B63: 2044 | C63: ='Detailed Projection'!BQ55 -> 16951138.28 | D63: 0 | E63: 0 | F63: 0 | G63: 0 | H63: 0 | I63: 0 | J63: 0 | K63: 0 | L63: 0 | M63: 0 | N63: 0
B64: 2045 | C64: ='Detailed Projection'!BQ56 -> 17049310.05 | D64: 0 | E64: 0 | F64: 0 | G64: 0 | H64: 0 | I64: 0 | J64: 0 | K64: 0 | L64: 0 | M64: 0 | N64: 0
B65: 2046 | C65: ='Detailed Projection'!BQ57 -> 17147481.81 | D65: 0 | E65: 0 | F65: 0 | G65: 0 | H65: 0 | I65: 0 | J65: 0 | K65: 0 | L65: 0 | M65: 0 | N65: 0
B66: 2047 | C66: ='Detailed Projection'!BQ58 -> 17245653.58 | D66: 0 | E66: 0 | F66: 0 | G66: 0 | H66: 0 | I66: 0 | J66: 0 | K66: 0 | L66: 0 | M66: 0 | N66: 0
B67: 2048 | C67: ='Detailed Projection'!BQ59 -> 17343825.35 | D67: 0 | E67: 0 | F67: 0 | G67: 0 | H67: 0 | I67: 0 | J67: 0 | K67: 0 | L67: 0 | M67: 0 | N67: 0
B68: 2049 | C68: ='Detailed Projection'!BQ60 -> 17441997.11 | D68: 0 | E68: 0 | F68: 0 | G68: 0 | H68: 0 | I68: 0 | J68: 0 | K68: 0 | L68: 0 | M68: 0 | N68: 0
B69: 2050 | C69: ='Detailed Projection'!BQ61 -> 17540168.88 | D69: 0 | E69: 0 | F69: 0 | G69: 0 | H69: 0 | I69: 0 | J69: 0 | K69: 0 | L69: 0 | M69: 0 | N69: 0
B70: 2051 | C70: ='Detailed Projection'!BQ62 -> 17638340.64 | D70: 0 | E70: 0 | F70: 0 | G70: 0 | H70: 0 | I70: 0 | J70: 0 | K70: 0 | L70: 0 | M70: 0 | N70: 0
B71: 2052 | C71: ='Detailed Projection'!BQ63 -> 17736512.41 | D71: =D$30 -> 0 | E71: 0 | F71: 0 | G71: 0 | H71: 0 | I71: 0 | J71: 0 | K71: 0 | L71: 0 | M71: 0 | N71: 0
B72: 2053 | C72: ='Detailed Projection'!BQ64 -> 17834684.18 | D72: 0 | E72: 0 | F72: 0 | G72: 0 | H72: 0 | I72: 0 | J72: 0 | K72: 0 | L72: 0 | M72: 0 | N72: 0
B73: 2054 | C73: ='Detailed Projection'!BQ65 -> 17932855.94 | D73: 0 | E73: 0 | F73: 0 | G73: 0 | H73: 0 | I73: 0 | J73: 0 | K73: 0 | L73: 0 | M73: 0 | N73: =SUM(D73:M73) -> 0
B74: 2055 | C74: ='Detailed Projection'!BQ66 -> 18031027.71 | D74: 0 | E74: 0 | F74: 0 | G74: 0 | H74: 0 | I74: 0 | J74: 0 | K74: 0 | L74: 0 | M74: 0 | N74: 0
B75: 2056 | C75: ='Detailed Projection'!BQ67 -> 18129199.47 | D75: 0 | E75: 0 | F75: 0 | G75: 0 | H75: 0 | I75: 0 | J75: 0 | K75: 0 | L75: 0 | M75: 0 | N75: 0
B76: 2057 | C76: ='Detailed Projection'!BQ68 -> 18227371.24 | D76: 0 | E76: 0 | F76: 0 | G76: 0 | H76: 0 | I76: 0 | J76: 0 | K76: 0 | L76: 0 | M76: 0 | N76: 0
B77: 2058 | C77: ='Detailed Projection'!BQ69 -> 18325543 | D77: 0 | E77: 0 | F77: 0 | G77: 0 | H77: 0 | I77: 0 | J77: 0 | K77: 0 | L77: 0 | M77: 0 | N77: 0
B78: 2059 | C78: ='Detailed Projection'!BQ70 -> 18423714.77 | D78: 0 | E78: 0 | F78: 0 | G78: 0 | H78: 0 | I78: 0 | J78: 0 | K78: 0 | L78: 0 | M78: 0 | N78: 0
B79: 2060 | C79: ='Detailed Projection'!BQ71 -> 18521886.54 | D79: 0 | E79: 0 | F79: 0 | G79: 0 | H79: 0 | I79: 0 | J79: 0 | K79: 0 | L79: 0 | M79: 0 | N79: 0
B83: ©2001-2010 Clean Air-Cool Planet, Inc. All rights reserved
B84: Clean Air-Cool Planet, Campus Carbon Calculator, and the Clean Air-Cool Planet logo are trademarks of Clean Air-Cool Planet, Inc.

Sheet Input_Commuter
B2: On this Worksheet: Estimates of commuter miles traveled for faculty, staff, and students.
B3: MODULE | C3: Input
B4: WORKSHEET | C4: Commuter Traffic
B5: UNIVERSITY | C5: =IF((ISBLANK(Introduction!$G$10)),"Please enter university name on 'Introduction' sheet",Introduction!$G$10) -> Macalester College
C7: Students - Personal Vehicle / Carpool | L7: Students - Bus | S7: Students - Light Rail | Z7: Students - Commuter Rail | AI7: Summary - Students | AR7: Faculty - Personal Vehicle / Carpool | BA7: Faculty - Bus | BH7: Faculty - Light Rail | BO7: Faculty - Commuter Rail | BX7: Staff - Personal Vehicle / Carpool | CG7: Staff - Bus | CN7: Staff - Light Rail | CU7: Staff - Commuter Rail | DD7: Summary - Faculty and Staff
B8: Fiscal Year | C8: Students | D8: Automobile Fuel Efficiency | E8: % Personal Vehicle | F8: % Carpool | G8: Trips / Week | H8: Weeks / Year | I8: Miles / Trip | J8: Total Distance | K8: Fuel Consumption | L8: Bus fuel efficiency | M8: % Bus | N8: Passenger Trips / Week | O8: Passenger Weeks / Year | P8: Passenger Miles / Trip | Q8: Total Distance | R8: Fuel Consumption | S8: Light rail fuel efficiency | T8: % Light Rail | U8: Passenger Trips / Week | V8: Passenger Weeks / Year | W8: Passenger Miles / Trip | X8: Total Distance | Y8: Electricity Consumption | Z8: Commuter rail fuel efficiency - diesel | AA8: Commuter rail fuel efficiency - electric | AB8: % Commuter Rail | AC8: Passenger Trips / Week | AD8: Passenger Weeks / Year | AE8: Passenger Miles / Trip | AF8: Total Distance | AG8: Diesel Consumption | AH8: Electricity Consumption | AI8: Automobile Commuting | AK8: Bus Commuting | AM8: Light Rail Commuting | AO8: Commuter Rail Commuting | AR8: Faculty | AS8: Automobile Fuel Efficiency | AT8: % Personal Vehicle | AU8: % Carpool | AV8: Trips / Week | AW8: Weeks / Year | AX8: Miles / Trip | AY8: Total Distance | AZ8: Fuel Consumption | BA8: Bus fuel efficiency | BB8: % Bus | BC8: Passenger Trips / Week | BD8: Passenger Weeks / Year | BE8: Passenger Miles / Trip | BF8: Total Distance | BG8: Fuel Consumption | BH8: Light rail fuel efficiency | BI8: % Light Rail | BJ8: Passenger Trips / Week | BK8: Passenger Weeks / Year | BL8: Passenger Miles / Trip | BM8: Total Distance | BN8: Electricity Consumption | BO8: Commuter rail fuel efficiency - diesel | BP8: Commuter rail fuel efficiency - electric | BQ8: % Commuter Rail | BR8: Passenger Trips / Week | BS8: Passenger Weeks / Year | BT8: Passenger Miles / Trip | BU8: Total Distance | BV8: Diesel Consumption | BW8: Electricity Consumption | BX8: Staff | BY8: Automobile Fuel Efficiency | BZ8: % Personal Vehicle | CA8: % Carpool | CB8: Trips / Week | CC8: Weeks / Year | CD8: Miles / Trip | CE8: Total Distance | CF8: Fuel Consumption | CG8: Bus fuel efficiency | CH8: % Bus | CI8: Passenger Trips / Week | CJ8: Passenger Weeks / Year | CK8: Passenger Miles / Trip | CL8: Total Distance | CM8: Fuel Consumption | CN8: Light rail fuel efficiency | CO8: % Light Rail | CP8: Passenger Trips / Week | CQ8: Passenger Weeks / Year | CR8: Passenger Miles / Trip | CS8: Total Distance | CT8: Electricity Consumption | CU8: Commuter rail fuel efficiency - diesel | CV8: Commuter rail fuel efficiency - electric | CW8: % Commuter Rail | CX8: Passenger Trips / Week | CY8: Passenger Weeks / Year | CZ8: Passenger Miles / Trip | DA8: Total Distance | DB8: Diesel Consumption | DC8: Electricity Consumption | DD8: Automobile Commuting | DF8: Bus Commuting | DH8: Light Rail Commuting | DJ8: Commuter Rail Commuting
C9: # | D9: MPG | E9: % | F9: % | G9: # | H9: # | I9: # | J9: Miles | K9: Gallons (Gasoline) | L9: MPG / Passenger | M9: % | N9: # | O9: # | P9: # | Q9: Miles | R9: Gallons (Diesel) | S9: Passenger Miles / kWh | T9: % | U9: # | V9: # | W9: # | X9: Miles | Y9: kWh | Z9: Passenger Miles / Gallon | AA9: Passenger Miles / kWh | AB9: % | AC9: # | AD9: # | AE9: # | AF9: Passenger Miles | AG9: Gallons (Diesel) | AH9: kWh | AI9: Total Miles | AJ9: Gallons Gasoline | AK9: Total Miles | AL9: Gallons Diesel | AM9: Total Miles | AN9: kWh | AO9: Total Miles | AP9: Gallons Diesel | AQ9: kWh | AR9: # | AS9: MPG | AT9: % | AU9: % | AV9: # | AW9: # | AX9: # | AY9: Miles | AZ9: Gallons (Gasoline) | BA9: MPG / Passenger | BB9: % | BC9: # | BD9: # | BE9: # | BF9: Miles | BG9: Gallons (Diesel) | BH9: Passenger Miles / kWh | BI9: % | BJ9: # | BK9: # | BL9: # | BM9: Miles | BN9: kWh | BO9: Passenger Miles / Gallon | BP9: Passenger Miles / kWh | BQ9: % | BR9: # | BS9: # | BT9: # | BU9: Passenger Miles | BV9: Gallons (Diesel) | BW9: kWh | BX9: # | BY9: MPG | BZ9: % | CA9: % | CB9: # | CC9: # | CD9: # | CE9: Miles | CF9: Gallons (Gasoline) | CG9: MPG / Passenger | CH9: % | CI9: # | CJ9: # | CK9: # | CL9: Miles | CM9: Gallons (Diesel) | CN9: Passenger Miles / kWh | CO9: % | CP9: # | CQ9: # | CR9: # | CS9: Miles | CT9: kWh | CU9: Passenger Miles / Gallon | CV9: Passenger Miles / kWh | CW9: % | CX9: # | CY9: # | CZ9: # | DA9: Passenger Miles | DB9: Gallons (Diesel) | DC9: kWh | DD9: Total Miles | DE9: Gallons Gasoline | DF9: Total Miles | DG9: Gallons Diesel | DH9: Total Miles | DI9: kWh | DJ9: Total Miles | DK9: Gallons Diesel | DL9: kWh
B10: =Input!C11 -> 1990 | C10: =Input!G11+(0.5*Input!H11) -> 0 | D10: 19.86502103 | J10: =((C10*E10)+(C10*F10)/2)*G10*H10*I10 -> 0 | K10: =J10/D10 -> 0 | L10: 37.25643744 | Q10: =((C10*M10)*N10*O10*P10) -> 0 | R10: =Q10/L10 -> 0 | S10: 2.389121339 | X10: =((C10*T10)*U10*V10*W10) -> 0 | Y10: =X10/S10 -> 0 | Z10: 134.4317686 | AA10: 5.776508972 | AF10: =((C10*AB10)*AC10*AD10*AE10) -> 0 | AG10: =AF10/Z10 -> 0 | AH10: =AF10/AA10 -> 0 | AI10: =J10 -> 0 | AJ10: =K10 -> 0 | AK10: =Q10 -> 0 | AL10: =R10 -> 0 | AM10: =X10 -> 0 | AN10: =Y10 -> 0 | AO10: =AF10 -> 0 | AP10: =AG10 -> 0 | AQ10: =AH10 -> 0 | AR10: =Input!J11 -> 0 | AS10: 19.86502103 | AY10: =((AR10*AT10)+(AR10*AU10)/2)*AV10*AW10*AX10 -> 0 | AZ10: =AY10/AS10 -> 0 | BA10: 37.25643744 | BF10: =((AR10*BB10)*BC10*BD10*BE10) -> 0 | BG10: =BF10/BA10 -> 0 | BH10: 2.389121339 | BM10: =((AR10*BI10)*BJ10*BK10*BL10) -> 0 | BN10: =BM10/BH10 -> 0 | BO10: 134.4317686 | BP10: 5.776508972 | BU10: =((AR10*BQ10)*BR10*BS10*BT10) -> 0 | BV10: =BU10/BO10 -> 0 | BW10: =BU10/BP10 -> 0 | BX10: =Input!K11 -> 0 | BY10: 19.86502103 | CE10: =((BX10*BZ10)+(BX10*CA10)/2)*CB10*CC10*CD10 -> 0 | CF10: =CE10/BY10 -> 0 | CG10: 37.25643744 | CL10: =((BX10*CH10)*CI10*CJ10*CK10) -> 0 | CM10: =CL10/CG10 -> 0 | CN10: 2.389121339 | CS10: =((BX10*CO10)*CP10*CQ10*CR10) -> 0 | CT10: =CS10/CN10 -> 0 | CU10: 134.4317686 | CV10: 5.776508972 | DA10: =((BX10*CW10)*CX10*CY10*CZ10) -> 0 | DB10: =DA10/CU10 -> 0 | DC10: =DA10/CV10 -> 0 | DD10: =AY10+CE10 -> 0 | DE10: =AZ10+CF10 -> 0 | DF10: =BF10+CL10 -> 0 | DG10: =BG10+CM10 -> 0 | DH10: =BM10+CS10 -> 0 | DI10: =BN10+CT10 -> 0 | DJ10: =BU10+DA10 -> 0 | DK10: =BV10+DB10 -> 0 | DL10: =BW10+DC10 -> 0
B11: =Input!C12 -> 1991 | C11: =Input!G12+(0.5*Input!H12) -> 1780 | D11: 20.58331996 | E11: 0.23 | F11: 0 | G11: 5.6 | H11: 52 | I11: 1 | J11: 119217.28 | K11: =J11/D11 -> 5791.936395 | L11: 37.25643744 | M11: 0.02 | N11: 5.6 | O11: 52 | P11: 1 | Q11: 10366.72 | R11: =Q11/L11 -> 278.2531211 | S11: 2.389121339 | X11: 0 | Y11: =X11/S11 -> 0 | Z11: 134.4317686 | AA11: 5.776508972 | AF11: 0 | AG11: =AF11/Z11 -> 0 | AH11: =AF11/AA11 -> 0 | AI11: =J11 -> 119217.28 | AJ11: =K11 -> 5791.936395 | AK11: =Q11 -> 10366.72 | AL11: =R11 -> 278.2531211 | AM11: =X11 -> 0 | AN11: =Y11 -> 0 | AO11: =AF11 -> 0 | AP11: =AG11 -> 0 | AQ11: =AH11 -> 0 | AR11: =Input!J12 -> 217 | AS11: 20.58331996 | AT11: 0.659 | AU11: 0.077 | AV11: 5.6 | AW11: 52 | AX11: 5 | AY11: =((AR11*AT11)+(AR11*AU11)/2)*AV11*AW11*AX11 -> 220376.52 | AZ11: =AY11/AS11 -> 10706.55854 | BA11: 37.25643744 | BB11: 0 | BC11: 5.6 | BD11: 52 | BE11: 5 | BF11: 0 | BG11: =BF11/BA11 -> 0 | BH11: 2.389121339 | BM11: 0 | BN11: =BM11/BH11 -> 0 | BO11: 134.4317686 | BP11: 5.776508972 | BU11: 0 | BV11: =BU11/BO11 -> 0 | BW11: =BU11/BP11 -> 0 | BX11: =Input!K12 -> 312 | BY11: 20.58331996 | BZ11: 0.8257 | CA11: 0.0157 | CB11: 9.23 | CC11: 52 | CD11: 8 | CE11: 998576.3624 | CF11: =CE11/BY11 -> 48513.8629 | CG11: 37.25643744 | CH11: 0.0368 | CI11: 9.23 | CJ11: 52 | CK11: 8 | CL11: 44085.66989 | CM11: =CL11/CG11 -> 1183.303421 | CN11: 2.389121339 | CS11: 0 | CT11: =CS11/CN11 -> 0 | CU11: 134.4317686 | CV11: 5.776508972 | DA11: 0 | DB11: =DA11/CU11 -> 0 | DC11: =DA11/CV11 -> 0 | DD11: =AY11+CE11 -> 1218952.882 | DE11: =AZ11+CF11 -> 59220.42143 | DF11: =BF11+CL11 -> 44085.66989 | DG11: =BG11+CM11 -> 1183.303421 | DH11: =BM11+CS11 -> 0 | DI11: =BN11+CT11 -> 0 | DJ11: =BU11+DA11 -> 0 | DK11: =BV11+DB11 -> 0 | DL11: =BW11+DC11 -> 0
B12: =Input!C13 -> 1992 | C12: =Input!G13+(0.5*Input!H13) -> 1776 | D12: 20.47825977 | E12: 0.23 | F12: 0 | G12: 5.6 | H12: 52 | I12: 1 | J12: 118949.376 | K12: 5808.568568 | L12: 37.25643744 | M12: 0.02 | N12: 5.6 | O12: 52 | P12: 1 | Q12: 10343.424 | R12: 277.6278332 | S12: 2.389121339 | X12: 0 | Y12: 0 | Z12: 134.4317686 | AA12: 5.776508972 | AF12: 0 | AG12: 0 | AH12: 0 | AI12: 118949.376 | AJ12: 5808.568568 | AK12: 10343.424 | AL12: 277.6278332 | AM12: 0 | AN12: 0 | AO12: 0 | AP12: 0 | AQ12: 0 | AR12: =Input!J13 -> 217 | AS12: 20.47825977 | AT12: 0.659 | AU12: 0.077 | AV12: 5.6 | AW12: 52 | AX12: 5 | AY12: 220376.52 | AZ12: 10761.48669 | BA12: 37.25643744 | BB12: 0 | BC12: 5.6 | BD12: 52 | BE12: 5 | BF12: 0 | BG12: 0 | BH12: 2.389121339 | BM12: 0 | BN12: 0 | BO12: 134.4317686 | BP12: 5.776508972 | BU12: 0 | BV12: 0 | BW12: 0 | BX12: =Input!K13 -> 312 | BY12: 20.47825977 | BZ12: 0.8257 | CA12: 0.0157 | CB12: 9.23 | CC12: 52 | CD12: 8 | CE12: 998576.3624 | CF12: 48762.75493 | CG12: 37.25643744 | CH12: 0.0368 | CI12: 9.23 | CJ12: 52 | CK12: 8 | CL12: 44085.66989 | CM12: 1183.303421 | CN12: 2.389121339 | CS12: 0 | CT12: 0 | CU12: 134.4317686 | CV12: 5.776508972 | DA12: 0 | DB12: 0 | DC12: 0 | DD12: 1218952.882 | DE12: 59524.24162 | DF12: 44085.66989 | DG12: 1183.303421 | DH12: 0 | DI12: 0 | DJ12: 0 | DK12: 0 | DL12: 0
B13: =Input!C14 -> 1993 | C13: =Input!G14+(0.5*Input!H14) -> 1765 | D13: 20.14921795 | E13: 0.23 | F13: 0 | G13: 5.6 | H13: 52 | I13: 1.302033 | J13: 153916.7583 | K13: 7638.845273 | L13: 37.25643744 | M13: 0.02 | N13: 5.6 | O13: 52 | P13: 1.302033 | Q13: 13384.06594 | R13: 359.2417005 | S13: 2.389121339 | X13: 0 | Y13: 0 | Z13: 134.4317686 | AA13: 5.776508972 | AF13: 0 | AG13: 0 | AH13: 0 | AI13: 153916.7583 | AJ13: 7638.845273 | AK13: 13384.06594 | AL13: 359.2417005 | AM13: 0 | AN13: 0 | AO13: 0 | AP13: 0 | AQ13: 0 | AR13: =Input!J14 -> 217 | AS13: 20.14921795 | AT13: 0.659 | AU13: 0.077 | AV13: 5.6 | AW13: 52 | AX13: 5 | AY13: 220376.52 | AZ13: 10937.22449 | BA13: 37.25643744 | BB13: 0 | BC13: 5.6 | BD13: 52 | BE13: 5 | BF13: 0 | BG13: 0 | BH13: 2.389121339 | BM13: 0 | BN13: 0 | BO13: 134.4317686 | BP13: 5.776508972 | BU13: 0 | BV13: 0 | BW13: 0 | BX13: =Input!K14 -> 312 | BY13: 20.14921795 | BZ13: 0.8257 | CA13: 0.0157 | CB13: 9.23 | CC13: 52 | CD13: 8 | CE13: 998576.3624 | CF13: 49559.06303 | CG13: 37.25643744 | CH13: 0.0368 | CI13: 9.23 | CJ13: 52 | CK13: 8 | CL13: 44085.66989 | CM13: 1183.303421 | CN13: 2.389121339 | CS13: 0 | CT13: 0 | CU13: 134.4317686 | CV13: 5.776508972 | DA13: 0 | DB13: 0 | DC13: 0 | DD13: 1218952.882 | DE13: 60496.28752 | DF13: 44085.66989 | DG13: 1183.303421 | DH13: 0 | DI13: 0 | DJ13: 0 | DK13: 0 | DL13: 0
B14: =Input!C15 -> 1994 | C14: =Input!G15+(0.5*Input!H15) -> 1761 | D14: 20.18512308 | E14: 0.23 | F14: 0 | G14: 5.6 | H14: 52 | I14: 1 | J14: 117944.736 | K14: 5843.151689 | L14: 33.32719834 | M14: 0.02 | N14: 5.6 | O14: 52 | P14: 1 | Q14: 10256.064 | R14: 307.7385593 | S14: 2.953900709 | X14: 0 | Y14: 0 | Z14: 129.1760905 | AA14: 6.427652733 | AF14: 0 | AG14: 0 | AH14: 0 | AI14: 117944.736 | AJ14: 5843.151689 | AK14: 10256.064 | AL14: 307.7385593 | AM14: 0 | AN14: 0 | AO14: 0 | AP14: 0 | AQ14: 0 | AR14: =Input!J15 -> 217 | AS14: 20.18512308 | AT14: 0.659 | AU14: 0.077 | AV14: 5.6 | AW14: 52 | AX14: 5 | AY14: 220376.52 | AZ14: 10917.76945 | BA14: 33.32719834 | BB14: 0 | BC14: 5.6 | BD14: 52 | BE14: 5 | BF14: 0 | BG14: 0 | BH14: 2.953900709 | BM14: 0 | BN14: 0 | BO14: 129.1760905 | BP14: 6.427652733 | BU14: 0 | BV14: 0 | BW14: 0 | BX14: =Input!K15 -> 312 | BY14: 20.18512308 | BZ14: 0.8257 | CA14: 0.0157 | CB14: 9.23 | CC14: 52 | CD14: 8 | CE14: 998576.3624 | CF14: 49470.90778 | CG14: 33.32719834 | CH14: 0.0368 | CI14: 9.23 | CJ14: 52 | CK14: 8 | CL14: 44085.66989 | CM14: 1322.81356 | CN14: 2.953900709 | CS14: 0 | CT14: 0 | CU14: 129.1760905 | CV14: 6.427652733 | DA14: 0 | DB14: 0 | DC14: 0 | DD14: 1218952.882 | DE14: 60388.67723 | DF14: 44085.66989 | DG14: 1322.81356 | DH14: 0 | DI14: 0 | DJ14: 0 | DK14: 0 | DL14: 0
B15: =Input!C16 -> 1995 | C15: =Input!G16+(0.5*Input!H16) -> 1740 | D15: 20.43079765 | E15: 0.23 | F15: 0 | G15: 5.6 | H15: 52 | I15: 1 | J15: 116538.24 | K15: 5704.047487 | L15: 33.37903779 | M15: 0.02 | N15: 5.6 | O15: 52 | P15: 1 | Q15: 10133.76 | R15: 303.5965285 | S15: 2.986111111 | X15: 0 | Y15: 0 | Z15: 130.7243435 | AA15: 6.579409417 | AF15: 0 | AG15: 0 | AH15: 0 | AI15: 116538.24 | AJ15: 5704.047487 | AK15: 10133.76 | AL15: 303.5965285 | AM15: 0 | AN15: 0 | AO15: 0 | AP15: 0 | AQ15: 0 | AR15: =Input!J16 -> 217 | AS15: 20.43079765 | AT15: 0.659 | AU15: 0.077 | AV15: 5.6 | AW15: 52 | AX15: 5 | AY15: 220376.52 | AZ15: 10786.48635 | BA15: 33.37903779 | BB15: 0 | BC15: 5.6 | BD15: 52 | BE15: 5 | BF15: 0 | BG15: 0 | BH15: 2.986111111 | BM15: 0 | BN15: 0 | BO15: 130.7243435 | BP15: 6.579409417 | BU15: 0 | BV15: 0 | BW15: 0 | BX15: =Input!K16 -> 312 | BY15: 20.43079765 | BZ15: 0.8257 | CA15: 0.0157 | CB15: 9.23 | CC15: 52 | CD15: 8 | CE15: 998576.3624 | CF15: 48876.03408 | CG15: 33.37903779 | CH15: 0.0368 | CI15: 9.23 | CJ15: 52 | CK15: 8 | CL15: 44085.66989 | CM15: 1320.759159 | CN15: 2.986111111 | CS15: 0 | CT15: 0 | CU15: 130.7243435 | CV15: 6.579409417 | DA15: 0 | DB15: 0 | DC15: 0 | DD15: 1218952.882 | DE15: 59662.52043 | DF15: 44085.66989 | DG15: 1320.759159 | DH15: 0 | DI15: 0 | DJ15: 0 | DK15: 0 | DL15: 0
B16: =Input!C17 -> 1996 | C16: =Input!G17+(0.5*Input!H17) -> 1719 | D16: 20.42262036 | E16: 0.23 | F16: 0 | G16: 5.6 | H16: 52 | I16: 1 | J16: 115131.744 | K16: 5637.461891 | L16: 33.05636338 | M16: 0.02 | N16: 5.6 | O16: 52 | P16: 1 | Q16: 10011.456 | R16: 302.860175 | S16: 2.981308411 | X16: 0 | Y16: 0 | Z16: 134.9373061 | AA16: 6.654183267 | AF16: 0 | AG16: 0 | AH16: 0 | AI16: 115131.744 | AJ16: 5637.461891 | AK16: 10011.456 | AL16: 302.860175 | AM16: 0 | AN16: 0 | AO16: 0 | AP16: 0 | AQ16: 0 | AR16: =Input!J17 -> 217 | AS16: 20.42262036 | AT16: 0.659 | AU16: 0.077 | AV16: 5.6 | AW16: 52 | AX16: 5 | AY16: 220376.52 | AZ16: 10790.8053 | BA16: 33.05636338 | BB16: 0 | BC16: 5.6 | BD16: 52 | BE16: 5 | BF16: 0 | BG16: 0 | BH16: 2.981308411 | BM16: 0 | BN16: 0 | BO16: 134.9373061 | BP16: 6.654183267 | BU16: 0 | BV16: 0 | BW16: 0 | BX16: =Input!K17 -> 312 | BY16: 20.42262036 | BZ16: 0.8257 | CA16: 0.0157 | CB16: 9.23 | CC16: 52 | CD16: 8 | CE16: 998576.3624 | CF16: 48895.60423 | CG16: 33.05636338 | CH16: 0.0368 | CI16: 9.23 | CJ16: 52 | CK16: 8 | CL16: 44085.66989 | CM16: 1333.651539 | CN16: 2.981308411 | CS16: 0 | CT16: 0 | CU16: 134.9373061 | CV16: 6.654183267 | DA16: 0 | DB16: 0 | DC16: 0 | DD16: 1218952.882 | DE16: 59686.40953 | DF16: 44085.66989 | DG16: 1333.651539 | DH16: 0 | DI16: 0 | DJ16: 0 | DK16: 0 | DL16: 0
B17: =Input!C18 -> 1997 | C17: =Input!G18+(0.5*Input!H18) -> 1742 | D17: 20.56110244 | E17: 0.23 | F17: 0 | G17: 5.6 | H17: 52 | I17: 1 | J17: 116672.192 | K17: 5674.413243 | L17: 32.80257548 | M17: 0.02 | N17: 5.6 | O17: 52 | P17: 1 | Q17: 10145.408 | R17: 309.2869341 | S17: 2.867036011 | X17: 0 | Y17: 0 | Z17: 127.1936071 | AA17: 6.329133858 | AF17: 0 | AG17: 0 | AH17: 0 | AI17: 116672.192 | AJ17: 5674.413243 | AK17: 10145.408 | AL17: 309.2869341 | AM17: 0 | AN17: 0 | AO17: 0 | AP17: 0 | AQ17: 0 | AR17: =Input!J18 -> 217 | AS17: 20.56110244 | AT17: 0.659 | AU17: 0.077 | AV17: 5.6 | AW17: 52 | AX17: 5 | AY17: 220376.52 | AZ17: 10718.12762 | BA17: 32.80257548 | BB17: 0 | BC17: 5.6 | BD17: 52 | BE17: 5 | BF17: 0 | BG17: 0 | BH17: 2.867036011 | BM17: 0 | BN17: 0 | BO17: 127.1936071 | BP17: 6.329133858 | BU17: 0 | BV17: 0 | BW17: 0 | BX17: =Input!K18 -> 312 | BY17: 20.56110244 | BZ17: 0.8257 | CA17: 0.0157 | CB17: 9.23 | CC17: 52 | CD17: 8 | CE17: 998576.3624 | CF17: 48566.28506 | CG17: 32.80257548 | CH17: 0.0368 | CI17: 9.23 | CJ17: 52 | CK17: 8 | CL17: 44085.66989 | CM17: 1343.969772 | CN17: 2.867036011 | CS17: 0 | CT17: 0 | CU17: 127.1936071 | CV17: 6.329133858 | DA17: 0 | DB17: 0 | DC17: 0 | DD17: 1218952.882 | DE17: 59284.41268 | DF17: 44085.66989 | DG17: 1343.969772 | DH17: 0 | DI17: 0 | DJ17: 0 | DK17: 0 | DL17: 0
B18: =Input!C19 -> 1998 | C18: =Input!G19+(0.5*Input!H19) -> 1723 | D18: 20.62701551 | E18: 0.23 | F18: 0 | G18: 5.6 | H18: 52 | I18: 1 | J18: 115399.648 | K18: 5594.587737 | L18: 33.56241274 | M18: 0.02 | N18: 5.6 | O18: 52 | P18: 1 | Q18: 10034.752 | R18: 298.9878016 | S18: 2.960629921 | X18: 0 | Y18: 0 | Z18: 125.7803468 | AA18: 6.700538876 | AF18: 0 | AG18: 0 | AH18: 0 | AI18: 115399.648 | AJ18: 5594.587737 | AK18: 10034.752 | AL18: 298.9878016 | AM18: 0 | AN18: 0 | AO18: 0 | AP18: 0 | AQ18: 0 | AR18: =Input!J19 -> 217 | AS18: 20.62701551 | AT18: 0.659 | AU18: 0.077 | AV18: 5.6 | AW18: 52 | AX18: 5 | AY18: 220376.52 | AZ18: 10683.87814 | BA18: 33.56241274 | BB18: 0 | BC18: 5.6 | BD18: 52 | BE18: 5 | BF18: 0 | BG18: 0 | BH18: 2.960629921 | BM18: 0 | BN18: 0 | BO18: 125.7803468 | BP18: 6.700538876 | BU18: 0 | BV18: 0 | BW18: 0 | BX18: =Input!K19 -> 290 | BY18: 20.62701551 | BZ18: 0.8257 | CA18: 0.0157 | CB18: 9.23 | CC18: 52 | CD18: 8 | CE18: 928163.9266 | CF18: 44997.49013 | CG18: 33.56241274 | CH18: 0.0368 | CI18: 9.23 | CJ18: 52 | CK18: 8 | CL18: 40977.06496 | CM18: 1220.921311 | CN18: 2.960629921 | CS18: 0 | CT18: 0 | CU18: 125.7803468 | CV18: 6.700538876 | DA18: 0 | DB18: 0 | DC18: 0 | DD18: 1148540.447 | DE18: 55681.36826 | DF18: 40977.06496 | DG18: 1220.921311 | DH18: 0 | DI18: 0 | DJ18: 0 | DK18: 0 | DL18: 0
B19: =Input!C20 -> 1999 | C19: =Input!G20+(0.5*Input!H20) -> 1794 | D19: 20.41937789 | E19: 0.23 | F19: 0 | G19: 5.6 | H19: 52 | I19: 1.1987 | J19: 144029.7314 | K19: 7053.580779 | L19: 34.30097508 | M19: 0.02 | N19: 5.6 | O19: 52 | P19: 1.1987 | Q19: 12524.32447 | R19: 365.1302751 | S19: 2.899038462 | X19: 0 | Y19: 0 | Z19: 120.0739675 | AA19: 6.63086233 | AF19: 0 | AG19: 0 | AH19: 0 | AI19: 144029.7314 | AJ19: 7053.580779 | AK19: 12524.32447 | AL19: 365.1302751 | AM19: 0 | AN19: 0 | AO19: 0 | AP19: 0 | AQ19: 0 | AR19: =Input!J20 -> 217 | AS19: 20.41937789 | AT19: 0.659 | AU19: 0.077 | AV19: 5.6 | AW19: 52 | AX19: 5 | AY19: 220376.52 | AZ19: 10792.51881 | BA19: 34.30097508 | BB19: 0 | BC19: 5.6 | BD19: 52 | BE19: 5 | BF19: 0 | BG19: 0 | BH19: 2.899038462 | BM19: 0 | BN19: 0 | BO19: 120.0739675 | BP19: 6.63086233 | BU19: 0 | BV19: 0 | BW19: 0 | BX19: =Input!K20 -> 292 | BY19: 20.41937789 | BZ19: 0.8257 | CA19: 0.0157 | CB19: 9.23 | CC19: 52 | CD19: 8 | CE19: 934565.0571 | CF19: 45768.53724 | CG19: 34.30097508 | CH19: 0.0368 | CI19: 9.23 | CJ19: 52 | CK19: 8 | CL19: 41259.66541 | CM19: 1202.871502 | CN19: 2.899038462 | CS19: 0 | CT19: 0 | CU19: 120.0739675 | CV19: 6.63086233 | DA19: 0 | DB19: 0 | DC19: 0 | DD19: 1154941.577 | DE19: 56561.05605 | DF19: 41259.66541 | DG19: 1202.871502 | DH19: 0 | DI19: 0 | DJ19: 0 | DK19: 0 | DL19: 0
B20: =Input!C21 -> 2000 | C20: =Input!G21+(0.5*Input!H21) -> 1753 | D20: 20.83761505 | E20: 0.23 | F20: 0 | G20: 5.6 | H20: 52 | I20: 1 | J20: 117408.928 | K20: 5634.470533 | L20: 33.44196738 | M20: 0.02 | N20: 5.6 | O20: 52 | P20: 1 | Q20: 10209.472 | R20: 305.2892159 | S20: 2.928725702 | X20: 0 | Y20: 0 | Z20: 132.7628569 | AA20: 6.862773723 | AF20: 0 | AG20: 0 | AH20: 0 | AI20: 117408.928 | AJ20: 5634.470533 | AK20: 10209.472 | AL20: 305.2892159 | AM20: 0 | AN20: 0 | AO20: 0 | AP20: 0 | AQ20: 0 | AR20: =Input!J21 -> 217 | AS20: 20.83761505 | AT20: 0.659 | AU20: 0.077 | AV20: 5.6 | AW20: 52 | AX20: 5 | AY20: 220376.52 | AZ20: 10575.89937 | BA20: 33.44196738 | BB20: 0 | BC20: 5.6 | BD20: 52 | BE20: 5 | BF20: 0 | BG20: 0 | BH20: 2.928725702 | BM20: 0 | BN20: 0 | BO20: 132.7628569 | BP20: 6.862773723 | BU20: 0 | BV20: 0 | BW20: 0 | BX20: =Input!K21 -> 304 | BY20: 20.83761505 | BZ20: 0.8257 | CA20: 0.0157 | CB20: 9.23 | CC20: 52 | CD20: 8 | CE20: 972971.8403 | CF20: 46693.05186 | CG20: 33.44196738 | CH20: 0.0368 | CI20: 9.23 | CJ20: 52 | CK20: 8 | CL20: 42955.2681 | CM20: 1284.471921 | CN20: 2.928725702 | CS20: 0 | CT20: 0 | CU20: 132.7628569 | CV20: 6.862773723 | DA20: 0 | DB20: 0 | DC20: 0 | DD20: 1193348.36 | DE20: 57268.95123 | DF20: 42955.2681 | DG20: 1284.471921 | DH20: 0 | DI20: 0 | DJ20: 0 | DK20: 0 | DL20: 0
B21: =Input!C22 -> 2001 | C21: =Input!G22+(0.5*Input!H22) -> 1787 | D21: 21.06180363 | E21: 0.23 | F21: 0 | G21: 5.6 | H21: 52 | I21: 0.831127 | J21: 99474.35921 | K21: 4722.974393 | L21: 37.50442791 | M21: 0.02 | N21: 5.6 | O21: 52 | P21: 0.831127 | Q21: 8649.944279 | R21: 230.6379476 | S21: 2.950718686 | X21: 0 | Y21: 0 | Z21: 132.2364412 | AA21: 7.051698671 | AF21: 0 | AG21: 0 | AH21: 0 | AI21: 99474.35921 | AJ21: 4722.974393 | AK21: 8649.944279 | AL21: 230.6379476 | AM21: 0 | AN21: 0 | AO21: 0 | AP21: 0 | AQ21: 0 | AR21: =Input!J22 -> 217 | AS21: 21.06180363 | AT21: 0.659 | AU21: 0.077 | AV21: 5.6 | AW21: 52 | AX21: 5 | AY21: 220376.52 | AZ21: 10463.32612 | BA21: 37.50442791 | BB21: 0 | BC21: 5.6 | BD21: 52 | BE21: 5 | BF21: 0 | BG21: 0 | BH21: 2.950718686 | BM21: 0 | BN21: 0 | BO21: 132.2364412 | BP21: 7.051698671 | BU21: 0 | BV21: 0 | BW21: 0 | BX21: =Input!K22 -> 308 | BY21: 21.06180363 | BZ21: 0.8257 | CA21: 0.0157 | CB21: 9.23 | CC21: 52 | CD21: 8 | CE21: 985774.1013 | CF21: 46803.87865 | CG21: 37.50442791 | CH21: 0.0368 | CI21: 9.23 | CJ21: 52 | CK21: 8 | CL21: 43520.46899 | CM21: 1160.408821 | CN21: 2.950718686 | CS21: 0 | CT21: 0 | CU21: 132.2364412 | CV21: 7.051698671 | DA21: 0 | DB21: 0 | DC21: 0 | DD21: 1206150.621 | DE21: 57267.20477 | DF21: 43520.46899 | DG21: 1160.408821 | DH21: 0 | DI21: 0 | DJ21: 0 | DK21: 0 | DL21: 0
B22: =Input!C23 -> 2002 | C22: =Input!G23+(0.5*Input!H23) -> 1810 | D22: 20.909717 | E22: 0.23 | F22: 0 | G22: 5.6 | H22: 52 | I22: 1.163386 | J22: 141033.2827 | K22: 6744.868078 | L22: 39.07225532 | M22: 0.02 | N22: 5.6 | O22: 52 | P22: 1.163386 | Q22: 12263.76372 | R22: 313.8739655 | S22: 2.807843137 | X22: 0 | Y22: 0 | Z22: 130.4652216 | AA22: 7.124437781 | AF22: 0 | AG22: 0 | AH22: 0 | AI22: 141033.2827 | AJ22: 6744.868078 | AK22: 12263.76372 | AL22: 313.8739655 | AM22: 0 | AN22: 0 | AO22: 0 | AP22: 0 | AQ22: 0 | AR22: =Input!J23 -> 205 | AS22: 20.909717 | AT22: 0.659 | AU22: 0.08 | AV22: 5.6 | AW22: 52 | AX22: 5 | AY22: 208637.52 | AZ22: 9978.017396 | BA22: 39.07225532 | BB22: 0 | BC22: 5.6 | BD22: 52 | BE22: 5 | BF22: 0 | BG22: 0 | BH22: 2.807843137 | BM22: 0 | BN22: 0 | BO22: 130.4652216 | BP22: 7.124437781 | BU22: 0 | BV22: 0 | BW22: 0 | BX22: =Input!K23 -> 298 | BY22: 20.909717 | BZ22: 0.8257 | CA22: 0.0157 | CB22: 9.23 | CC22: 52 | CD22: 8 | CE22: 953768.4487 | CF22: 45613.64692 | CG22: 39.07225532 | CH22: 0.0368 | CI22: 9.23 | CJ22: 52 | CK22: 8 | CL22: 42107.46675 | CM22: 1077.682013 | CN22: 2.807843137 | CS22: 0 | CT22: 0 | CU22: 130.4652216 | CV22: 7.124437781 | DA22: 0 | DB22: 0 | DC22: 0 | DD22: 1162405.969 | DE22: 55591.66432 | DF22: 42107.46675 | DG22: 1077.682013 | DH22: 0 | DI22: 0 | DJ22: 0 | DK22: 0 | DL22: 0
B23: =Input!C24 -> 2003 | C23: =Input!G24+(0.5*Input!H24) -> 1851 | D23: 21.18659586 | E23: 0.23 | F23: 0 | G23: 5.6 | H23: 52 | I23: 0.806188 | J23: 99945.2031 | K23: 4717.379033 | L23: 39.67064891 | M23: 0.02 | N23: 5.6 | O23: 52 | P23: 0.806188 | Q23: 8690.887226 | R23: 219.0760037 | S23: 2.911242604 | X23: 0 | Y23: 0 | Z23: 132.2788664 | AA23: 6.911785973 | AF23: 0 | AG23: 0 | AH23: 0 | AI23: 99945.2031 | AJ23: 4717.379033 | AK23: 8690.887226 | AL23: 219.0760037 | AM23: 0 | AN23: 0 | AO23: 0 | AP23: 0 | AQ23: 0 | AR23: =Input!J24 -> 221 | AS23: 21.18659586 | AT23: 0.659 | AU23: 0.077 | AV23: 5.6 | AW23: 52 | AX23: 5 | AY23: 224438.76 | AZ23: 10593.43188 | BA23: 39.67064891 | BB23: 0 | BC23: 5.6 | BD23: 52 | BE23: 5 | BF23: 0 | BG23: 0 | BH23: 2.911242604 | BM23: 0 | BN23: 0 | BO23: 132.2788664 | BP23: 6.911785973 | BU23: 0 | BV23: 0 | BW23: 0 | BX23: =Input!K24 -> 315 | BY23: 21.18659586 | BZ23: 0.8257 | CA23: 0.0157 | CB23: 9.23 | CC23: 52 | CD23: 8 | CE23: 1008178.058 | CF23: 47585.6558 | CG23: 39.67064891 | CH23: 0.0368 | CI23: 9.23 | CJ23: 52 | CK23: 8 | CL23: 44509.57056 | CM23: 1121.977376 | CN23: 2.911242604 | CS23: 0 | CT23: 0 | CU23: 132.2788664 | CV23: 6.911785973 | DA23: 0 | DB23: 0 | DC23: 0 | DD23: 1232616.818 | DE23: 58179.08768 | DF23: 44509.57056 | DG23: 1121.977376 | DH23: 0 | DI23: 0 | DJ23: 0 | DK23: 0 | DL23: 0
B24: =Input!C25 -> 2004 | C24: =Input!G25+(0.5*Input!H25) -> 1865 | D24: 22.1 | E24: 0.23 | F24: 0 | G24: 5.6 | H24: 52 | I24: 0.930181 | J24: 116189.132 | K24: 5257.426785 | L24: 39.67064891 | M24: 0.02 | N24: 5.6 | O24: 52 | P24: 0.930181 | Q24: 10103.40278 | R24: 254.6820649 | S24: 2.911242604 | X24: 0 | Y24: 0 | Z24: 132.2788664 | AA24: 6.911785973 | AF24: 0 | AG24: 0 | AH24: 0 | AI24: 116189.132 | AJ24: 5257.426785 | AK24: 10103.40278 | AL24: 254.6820649 | AM24: 0 | AN24: 0 | AO24: 0 | AP24: 0 | AQ24: 0 | AR24: =Input!J25 -> 215 | AS24: 22.1 | AT24: 0.659 | AU24: 0.077 | AV24: 5.6 | AW24: 52 | AX24: 5 | AY24: 218345.4 | AZ24: 9879.882353 | BA24: 39.67064891 | BB24: 0 | BC24: 5.6 | BD24: 52 | BE24: 5 | BF24: 0 | BG24: 0 | BH24: 2.911242604 | BM24: 0 | BN24: 0 | BO24: 132.2788664 | BP24: 6.911785973 | BU24: 0 | BV24: 0 | BW24: 0 | BX24: =Input!K25 -> 312 | BY24: 22.1 | BZ24: 0.8257 | CA24: 0.0157 | CB24: 9.23 | CC24: 52 | CD24: 8 | CE24: 998576.3624 | CF24: 45184.45079 | CG24: 39.67064891 | CH24: 0.0368 | CI24: 9.23 | CJ24: 52 | CK24: 8 | CL24: 44085.66989 | CM24: 1111.291877 | CN24: 2.911242604 | CS24: 0 | CT24: 0 | CU24: 132.2788664 | CV24: 6.911785973 | DA24: 0 | DB24: 0 | DC24: 0 | DD24: 1216921.762 | DE24: 55064.33314 | DF24: 44085.66989 | DG24: 1111.291877 | DH24: 0 | DI24: 0 | DJ24: 0 | DK24: 0 | DL24: 0
B25: =Input!C26 -> 2005 | C25: =Input!G26+(0.5*Input!H26) -> 1841 | D25: 22.1 | E25: 0.23 | F25: 0 | G25: 5.6 | H25: 52 | I25: 1.020392 | J25: 125817.207 | K25: 5693.086291 | L25: 39.67064891 | M25: 0.02 | N25: 5.6 | O25: 52 | P25: 1.020392 | Q25: 10940.6267 | R25: 275.7864315 | S25: 2.911242604 | X25: 0 | Y25: 0 | Z25: 132.2788664 | AA25: 6.911785973 | AF25: 0 | AG25: 0 | AH25: 0 | AI25: 125817.207 | AJ25: 5693.086291 | AK25: 10940.6267 | AL25: 275.7864315 | AM25: 0 | AN25: 0 | AO25: 0 | AP25: 0 | AQ25: 0 | AR25: =Input!J26 -> 216 | AS25: 22.1 | AT25: 0.659 | AU25: 0.077 | AV25: 5.6 | AW25: 52 | AX25: 5 | AY25: 219360.96 | AZ25: 9925.835294 | BA25: 39.67064891 | BB25: 0 | BC25: 5.6 | BD25: 52 | BE25: 5 | BF25: 0 | BG25: 0 | BH25: 2.911242604 | BM25: 0 | BN25: 0 | BO25: 132.2788664 | BP25: 6.911785973 | BU25: 0 | BV25: 0 | BW25: 0 | BX25: =Input!K26 -> 321 | BY25: 22.1 | BZ25: 0.8257 | CA25: 0.0157 | CB25: 9.23 | CC25: 52 | CD25: 8 | CE25: 1027381.45 | CF25: 46487.8484 | CG25: 39.67064891 | CH25: 0.0368 | CI25: 9.23 | CJ25: 52 | CK25: 8 | CL25: 45357.3719 | CM25: 1143.348374 | CN25: 2.911242604 | CS25: 0 | CT25: 0 | CU25: 132.2788664 | CV25: 6.911785973 | DA25: 0 | DB25: 0 | DC25: 0 | DD25: 1246742.41 | DE25: 56413.6837 | DF25: 45357.3719 | DG25: 1143.348374 | DH25: 0 | DI25: 0 | DJ25: 0 | DK25: 0 | DL25: 0
B26: =Input!C27 -> 2006 | C26: =Input!G27+(0.5*Input!H27) -> 1895 | D26: 22.1 | E26: 0.23 | F26: 0 | G26: 5.6 | H26: 52 | I26: 1.251799 | J26: 158877.7282 | K26: 7189.037476 | L26: 39.67064891 | M26: 0.02 | N26: 5.6 | O26: 52 | P26: 1.251799 | Q26: 13815.45463 | R26: 348.25381 | S26: 2.911242604 | X26: 0 | Y26: 0 | Z26: 132.2788664 | AA26: 6.911785973 | AF26: 0 | AG26: 0 | AH26: 0 | AI26: 158877.7282 | AJ26: 7189.037476 | AK26: 13815.45463 | AL26: 348.25381 | AM26: 0 | AN26: 0 | AO26: 0 | AP26: 0 | AQ26: 0 | AR26: =Input!J27 -> 223 | AS26: 22.1 | AT26: 0.659 | AU26: 0.077 | AV26: 5.6 | AW26: 52 | AX26: 5 | AY26: 226469.88 | AZ26: 10247.50588 | BA26: 39.67064891 | BB26: 0 | BC26: 5.6 | BD26: 52 | BE26: 5 | BF26: 0 | BG26: 0 | BH26: 2.911242604 | BM26: 0 | BN26: 0 | BO26: 132.2788664 | BP26: 6.911785973 | BU26: 0 | BV26: 0 | BW26: 0 | BX26: =Input!K27 -> 318 | BY26: 22.1 | BZ26: 0.8257 | CA26: 0.0157 | CB26: 9.23 | CC26: 52 | CD26: 8 | CE26: 1017779.754 | CF26: 46053.38253 | CG26: 39.67064891 | CH26: 0.0368 | CI26: 9.23 | CJ26: 52 | CK26: 8 | CL26: 44933.47123 | CM26: 1132.662875 | CN26: 2.911242604 | CS26: 0 | CT26: 0 | CU26: 132.2788664 | CV26: 6.911785973 | DA26: 0 | DB26: 0 | DC26: 0 | DD26: 1244249.634 | DE26: 56300.88841 | DF26: 44933.47123 | DG26: 1132.662875 | DH26: 0 | DI26: 0 | DJ26: 0 | DK26: 0 | DL26: 0
B27: =Input!C28 -> 2007 | C27: =Input!G28+(0.5*Input!H28) -> 1889 | D27: 22.1 | E27: 0.23 | F27: 0 | G27: 5.6 | H27: 52 | I27: 0.741019 | J27: 93751.99286 | K27: 4242.171623 | L27: 39.67064891 | M27: 0.02 | N27: 5.6 | O27: 52 | P27: 0.741019 | Q27: 8152.347205 | R27: 205.5007274 | S27: 2.911242604 | X27: 0 | Y27: 0 | Z27: 132.2788664 | AA27: 6.911785973 | AF27: 0 | AG27: 0 | AH27: 0 | AI27: 93751.99286 | AJ27: 4242.171623 | AK27: 8152.347205 | AL27: 205.5007274 | AM27: 0 | AN27: 0 | AO27: 0 | AP27: 0 | AQ27: 0 | AR27: =Input!J28 -> 225 | AS27: 22.1 | AT27: 0.659 | AU27: 0.077 | AV27: 5.6 | AW27: 52 | AX27: 5 | AY27: 228501 | AZ27: 10339.41176 | BA27: 39.67064891 | BB27: 0 | BC27: 5.6 | BD27: 52 | BE27: 5 | BF27: 0 | BG27: 0 | BH27: 2.911242604 | BM27: 0 | BN27: 0 | BO27: 132.2788664 | BP27: 6.911785973 | BU27: 0 | BV27: 0 | BW27: 0 | BX27: =Input!K28 -> 335 | BY27: 22.1 | BZ27: 0.8257 | CA27: 0.0157 | CB27: 9.23 | CC27: 52 | CD27: 8 | CE27: 1072189.363 | CF27: 48515.35581 | CG27: 39.67064891 | CH27: 0.0368 | CI27: 9.23 | CJ27: 52 | CK27: 8 | CL27: 47335.57504 | CM27: 1193.214035 | CN27: 2.911242604 | CS27: 0 | CT27: 0 | CU27: 132.2788664 | CV27: 6.911785973 | DA27: 0 | DB27: 0 | DC27: 0 | DD27: 1300690.363 | DE27: 58854.76758 | DF27: 47335.57504 | DG27: 1193.214035 | DH27: 0 | DI27: 0 | DJ27: 0 | DK27: 0 | DL27: 0
B28: =Input!C29 -> 2008 | C28: =Input!G29+(0.5*Input!H29) -> 1889 | D28: 22.1 | E28: 0.23 | F28: 0 | G28: 5.6 | H28: 52 | I28: 0.814058 | J28: 102992.7165 | K28: 4660.303915 | L28: 39.67064891 | M28: 0.02 | N28: 5.6 | O28: 52 | P28: 0.814058 | Q28: 8955.888393 | R28: 225.7560347 | S28: 2.911242604 | X28: 0 | Y28: 0 | Z28: 132.2788664 | AA28: 6.911785973 | AF28: 0 | AG28: 0 | AH28: 0 | AI28: 102992.7165 | AJ28: 4660.303915 | AK28: 8955.888393 | AL28: 225.7560347 | AM28: 0 | AN28: 0 | AO28: 0 | AP28: 0 | AQ28: 0 | AR28: =Input!J29 -> 170.41 | AS28: 22.1 | AT28: 0.659 | AU28: 0.077 | AV28: 5.6 | AW28: 52 | AX28: 5 | AY28: 173061.5796 | AZ28: 7830.840706 | BA28: 39.67064891 | BB28: 0 | BC28: 5.6 | BD28: 52 | BE28: 5 | BF28: 0 | BG28: 0 | BH28: 2.911242604 | BM28: 0 | BN28: 0 | BO28: 132.2788664 | BP28: 6.911785973 | BU28: 0 | BV28: 0 | BW28: 0 | BX28: =Input!K29 -> 365 | BY28: 22.1 | BZ28: 0.8257 | CA28: 0.0157 | CB28: 9.23 | CC28: 52 | CD28: 8 | CE28: 1168206.321 | CF28: 52860.01454 | CG28: 39.67064891 | CH28: 0.0368 | CI28: 9.23 | CJ28: 52 | CK28: 8 | CL28: 51574.58176 | CM28: 1300.069023 | CN28: 2.911242604 | CS28: 0 | CT28: 0 | CU28: 132.2788664 | CV28: 6.911785973 | DA28: 0 | DB28: 0 | DC28: 0 | DD28: 1341267.901 | DE28: 60690.85525 | DF28: 51574.58176 | DG28: 1300.069023 | DH28: 0 | DI28: 0 | DJ28: 0 | DK28: 0 | DL28: 0
B29: =Input!C30 -> 2009 | C29: =Input!G30+(0.5*Input!H30) -> 1872 | D29: 22.1 | E29: 0.23 | F29: 0 | G29: 5.6 | H29: 52 | I29: 1 | J29: 125379.072 | K29: 5673.261176 | L29: 39.67064891 | M29: 0.02 | N29: 5.6 | O29: 52 | P29: 1 | Q29: 10902.528 | R29: 274.8260566 | S29: 2.911242604 | X29: 0 | Y29: 0 | Z29: 132.2788664 | AA29: 6.911785973 | AF29: 0 | AG29: 0 | AH29: 0 | AI29: 125379.072 | AJ29: 5673.261176 | AK29: 10902.528 | AL29: 274.8260566 | AM29: 0 | AN29: 0 | AO29: 0 | AP29: 0 | AQ29: 0 | AR29: =Input!J30 -> 175 | AS29: 22.1 | AT29: 0.666 | AU29: 0.038 | AV29: 5.6 | AW29: 52 | AX29: 5 | AY29: 174538 | AZ29: 7897.647059 | BA29: 39.67064891 | BB29: 0.026 | BC29: 5.6 | BD29: 52 | BE29: 5 | BF29: 6624.8 | BG29: 166.9949996 | BH29: 2.911242604 | BM29: 0 | BN29: 0 | BO29: 132.2788664 | BP29: 6.911785973 | BU29: 0 | BV29: 0 | BW29: 0 | BX29: =Input!K30 -> 395 | BY29: 22.1 | BZ29: 0.8257 | CA29: 0.0157 | CB29: 9.23 | CC29: 52 | CD29: 8 | CE29: 1264223.279 | CF29: 57204.67327 | CG29: 39.67064891 | CH29: 0.0368 | CI29: 9.23 | CJ29: 52 | CK29: 8 | CL29: 55813.58848 | CM29: 1406.924011 | CN29: 2.911242604 | CS29: 0 | CT29: 0 | CU29: 132.2788664 | CV29: 6.911785973 | DA29: 0 | DB29: 0 | DC29: 0 | DD29: 1438761.279 | DE29: 65102.32033 | DF29: 62438.38848 | DG29: 1573.919011 | DH29: 0 | DI29: 0 | DJ29: 0 | DK29: 0 | DL29: 0
B30: =Input!C31 -> 2010 | C30: =Input!G31+(0.5*Input!H31) -> 1971 | D30: 22.1 | E30: 0.048 | F30: 0.015 | G30: 5.6 | H30: 32 | I30: 1 | J30: =((C30*E30)+(C30*F30)/2)*G30*H30*I30 -> 19602.7776 | K30: =J30/D30 -> 887.0035113 | L30: 39.67064891 | M30: 0.01 | N30: 5.6 | O30: 32 | P30: 1 | Q30: =((C30*M30)*N30*O30*P30) -> 3532.032 | R30: =Q30/L30 -> 89.03388519 | S30: 2.911242604 | X30: 0 | Y30: 0 | Z30: 132.2788664 | AA30: 6.911785973 | AF30: 0 | AG30: 0 | AH30: 0 | AI30: 19602.7776 | AJ30: 887.0035113 | AK30: 3532.032 | AL30: 89.03388519 | AM30: 0 | AN30: 0 | AO30: 0 | AP30: 0 | AQ30: 0 | AR30: =Input!J31 -> 177.7 | AS30: 22.1 | AT30: 0.666 | AU30: 0.038 | AV30: 5.6 | AW30: 52 | AX30: 5 | AY30: 177230.872 | AZ30: 8019.496471 | BA30: 39.67064891 | BB30: 0.026 | BC30: 5.6 | BD30: 52 | BE30: 5 | BF30: 6727.0112 | BG30: 169.5714939 | BH30: 2.911242604 | BM30: 0 | BN30: 0 | BO30: 132.2788664 | BP30: 6.911785973 | BU30: 0 | BV30: 0 | BW30: 0 | BX30: =Input!K31 -> 381.2 | BY30: 22.1 | CE30: 0 | CF30: 0 | CG30: 39.67064891 | CL30: 0 | CM30: 0 | CN30: 2.911242604 | CS30: 0 | CT30: 0 | CU30: 132.2788664 | CV30: 6.911785973 | DA30: 0 | DB30: 0 | DC30: 0 | DD30: 177230.872 | DE30: 8019.496471 | DF30: 6727.0112 | DG30: 169.5714939 | DH30: 0 | DI30: 0 | DJ30: 0 | DK30: 0 | DL30: 0
B31: =Input!C32 -> 2011 | C31: =Input!G32+(0.5*Input!H32) -> 0 | D31: 23.1 | J31: =((C31*E31)+(C31*F31)/2)*G31*H31*I31 -> 0 | K31: =J31/D31 -> 0 | L31: 40.67064891 | Q31: =((C31*M31)*N31*O31*P31) -> 0 | R31: =Q31/L31 -> 0 | S31: 3.911242604 | X31: =((C31*T31)*U31*V31*W31) -> 0 | Y31: =X31/S31 -> 0 | Z31: 132.2788664 | AA31: 6.911785973 | AF31: =((C31*AB31)*AC31*AD31*AE31) -> 0 | AG31: =AF31/Z31 -> 0 | AH31: =AF31/AA31 -> 0 | AI31: =J31 -> 0 | AJ31: =K31 -> 0 | AK31: =Q31 -> 0 | AL31: =R31 -> 0 | AM31: =X31 -> 0 | AN31: =Y31 -> 0 | AO31: =AF31 -> 0 | AP31: =AG31 -> 0 | AQ31: =AH31 -> 0 | AR31: =Input!J32 -> 0 | AS31: 23.1 | AY31: =((AR31*AT31)+(AR31*AU31)/2)*AV31*AW31*AX31 -> 0 | AZ31: =AY31/AS31 -> 0 | BA31: 40.67064891 | BF31: =((AR31*BB31)*BC31*BD31*BE31) -> 0 | BG31: =BF31/BA31 -> 0 | BH31: 3.911242604 | BM31: =((AR31*BI31)*BJ31*BK31*BL31) -> 0 | BN31: =BM31/BH31 -> 0 | BO31: 132.2788664 | BP31: 6.911785973 | BU31: =((AR31*BQ31)*BR31*BS31*BT31) -> 0 | BV31: =BU31/BO31 -> 0 | BW31: =BU31/BP31 -> 0 | BX31: =Input!K32 -> 0 | BY31: 23.1 | CE31: =((BX31*BZ31)+(BX31*CA31)/2)*CB31*CC31*CD31 -> 0 | CF31: =CE31/BY31 -> 0 | CG31: 40.67064891 | CL31: =((BX31*CH31)*CI31*CJ31*CK31) -> 0 | CM31: =CL31/CG31 -> 0 | CN31: 3.911242604 | CS31: =((BX31*CO31)*CP31*CQ31*CR31) -> 0 | CT31: =CS31/CN31 -> 0 | CU31: 132.2788664 | CV31: 6.911785973 | DA31: =((BX31*CW31)*CX31*CY31*CZ31) -> 0 | DB31: =DA31/CU31 -> 0 | DC31: =DA31/CV31 -> 0 | DD31: =AY31+CE31 -> 0 | DE31: =AZ31+CF31 -> 0 | DF31: =BF31+CL31 -> 0 | DG31: =BG31+CM31 -> 0 | DH31: =BM31+CS31 -> 0 | DI31: =BN31+CT31 -> 0 | DJ31: =BU31+DA31 -> 0 | DK31: =BV31+DB31 -> 0 | DL31: =BW31+DC31 -> 0
B32: ='Linear Projection'!B11 -> 2012 | C32: ='Detailed Projection'!F23+(0.5*'Detailed Projection'!G23) -> 1925.034586 | D32: 22.1 | J32: 0 | K32: 0 | L32: 39.67064891 | Q32: 0 | R32: 0 | S32: 2.911242604 | X32: 0 | Y32: 0 | Z32: 132.2788664 | AA32: 6.911785973 | AF32: 0 | AG32: 0 | AH32: 0 | AI32: 0 | AJ32: 0 | AK32: 0 | AL32: 0 | AM32: 0 | AN32: 0 | AO32: 0 | AP32: 0 | AQ32: 0 | AR32: ='Detailed Projection'!I23 -> 193.215406 | AS32: 22.1 | AY32: 0 | AZ32: 0 | BA32: 39.67064891 | BF32: 0 | BG32: 0 | BH32: 2.911242604 | BM32: 0 | BN32: 0 | BO32: 132.2788664 | BP32: 6.911785973 | BU32: 0 | BV32: 0 | BW32: 0 | BX32: ='Detailed Projection'!J23 -> 356.4804511 | BY32: 22.1 | CE32: 0 | CF32: 0 | CG32: 39.67064891 | CL32: 0 | CM32: 0 | CN32: 2.911242604 | CS32: 0 | CT32: 0 | CU32: 132.2788664 | CV32: 6.911785973 | DA32: 0 | DB32: 0 | DC32: 0 | DD32: 0 | DE32: 0 | DF32: 0 | DG32: 0 | DH32: 0 | DI32: 0 | DJ32: 0 | DK32: 0 | DL32: 0
B33: ='Linear Projection'!B12 -> 2013 | C33: ='Detailed Projection'!F24+(0.5*'Detailed Projection'!G24) -> 1934.937594 | D33: 22.1 | J33: 0 | K33: 0 | L33: 39.67064891 | Q33: 0 | R33: 0 | S33: 2.911242604 | X33: 0 | Y33: 0 | Z33: 132.2788664 | AA33: 6.911785973 | AF33: 0 | AG33: 0 | AH33: 0 | AI33: 0 | AJ33: 0 | AK33: 0 | AL33: 0 | AM33: 0 | AN33: 0 | AO33: 0 | AP33: 0 | AQ33: 0 | AR33: ='Detailed Projection'!I24 -> 191.6901805 | AS33: 22.1 | AY33: 0 | AZ33: 0 | BA33: 39.67064891 | BF33: 0 | BG33: 0 | BH33: 2.911242604 | BM33: 0 | BN33: 0 | BO33: 132.2788664 | BP33: 6.911785973 | BU33: 0 | BV33: 0 | BW33: 0 | BX33: ='Detailed Projection'!J24 -> 359.5735338 | BY33: 22.1 | CE33: 0 | CF33: 0 | CG33: 39.67064891 | CL33: 0 | CM33: 0 | CN33: 2.911242604 | CS33: 0 | CT33: 0 | CU33: 132.2788664 | CV33: 6.911785973 | DA33: 0 | DB33: 0 | DC33: 0 | DD33: 0 | DE33: 0 | DF33: 0 | DG33: 0 | DH33: 0 | DI33: 0 | DJ33: 0 | DK33: 0 | DL33: 0
B34: ='Linear Projection'!B13 -> 2014 | C34: ='Detailed Projection'!F25+(0.5*'Detailed Projection'!G25) -> 1944.840602 | D34: 22.1 | J34: 0 | K34: 0 | L34: 39.67064891 | Q34: 0 | R34: 0 | S34: 2.911242604 | X34: 0 | Y34: 0 | Z34: 132.2788664 | AA34: 6.911785973 | AF34: 0 | AG34: 0 | AH34: 0 | AI34: 0 | AJ34: 0 | AK34: 0 | AL34: 0 | AM34: 0 | AN34: 0 | AO34: 0 | AP34: 0 | AQ34: 0 | AR34: ='Detailed Projection'!I25 -> 190.1649549 | AS34: 22.1 | AY34: 0 | AZ34: 0 | BA34: 39.67064891 | BF34: 0 | BG34: 0 | BH34: 2.911242604 | BM34: 0 | BN34: 0 | BO34: 132.2788664 | BP34: 6.911785973 | BU34: 0 | BV34: 0 | BW34: 0 | BX34: ='Detailed Projection'!J25 -> 362.6666165 | BY34: 22.1 | CE34: 0 | CF34: 0 | CG34: 39.67064891 | CL34: 0 | CM34: 0 | CN34: 2.911242604 | CS34: 0 | CT34: 0 | CU34: 132.2788664 | CV34: 6.911785973 | DA34: 0 | DB34: 0 | DC34: 0 | DD34: 0 | DE34: 0 | DF34: 0 | DG34: 0 | DH34: 0 | DI34: 0 | DJ34: 0 | DK34: 0 | DL34: 0
B35: ='Linear Projection'!B14 -> 2015 | C35: ='Detailed Projection'!F26+(0.5*'Detailed Projection'!G26) -> 1954.743609 | D35: 22.1 | J35: 0 | K35: 0 | L35: 39.67064891 | Q35: 0 | R35: 0 | S35: 2.911242604 | X35: 0 | Y35: 0 | Z35: 132.2788664 | AA35: 6.911785973 | AF35: 0 | AG35: 0 | AH35: 0 | AI35: 0 | AJ35: 0 | AK35: 0 | AL35: 0 | AM35: 0 | AN35: 0 | AO35: 0 | AP35: 0 | AQ35: 0 | AR35: ='Detailed Projection'!I26 -> 188.6397293 | AS35: 22.1 | AY35: 0 | AZ35: 0 | BA35: 39.67064891 | BF35: 0 | BG35: 0 | BH35: 2.911242604 | BM35: 0 | BN35: 0 | BO35: 132.2788664 | BP35: 6.911785973 | BU35: 0 | BV35: 0 | BW35: 0 | BX35: ='Detailed Projection'!J26 -> 365.7596992 | BY35: 22.1 | CE35: 0 | CF35: 0 | CG35: 39.67064891 | CL35: 0 | CM35: 0 | CN35: 2.911242604 | CS35: 0 | CT35: 0 | CU35: 132.2788664 | CV35: 6.911785973 | DA35: 0 | DB35: 0 | DC35: 0 | DD35: 0 | DE35: 0 | DF35: 0 | DG35: 0 | DH35: 0 | DI35: 0 | DJ35: 0 | DK35: 0 | DL35: 0
B36: ='Linear Projection'!B15 -> 2016 | C36: ='Detailed Projection'!F27+(0.5*'Detailed Projection'!G27) -> 1964.646617 | D36: 22.1 | J36: 0 | K36: 0 | L36: 39.67064891 | Q36: 0 | R36: 0 | S36: 2.911242604 | X36: 0 | Y36: 0 | Z36: 132.2788664 | AA36: 6.911785973 | AF36: 0 | AG36: 0 | AH36: 0 | AI36: 0 | AJ36: 0 | AK36: 0 | AL36: 0 | AM36: 0 | AN36: 0 | AO36: 0 | AP36: 0 | AQ36: 0 | AR36: ='Detailed Projection'!I27 -> 187.1145038 | AS36: 22.1 | AY36: 0 | AZ36: 0 | BA36: 39.67064891 | BF36: 0 | BG36: 0 | BH36: 2.911242604 | BM36: 0 | BN36: 0 | BO36: 132.2788664 | BP36: 6.911785973 | BU36: 0 | BV36: 0 | BW36: 0 | BX36: ='Detailed Projection'!J27 -> 368.852782 | BY36: 22.1 | CE36: 0 | CF36: 0 | CG36: 39.67064891 | CL36: 0 | CM36: 0 | CN36: 2.911242604 | CS36: 0 | CT36: 0 | CU36: 132.2788664 | CV36: 6.911785973 | DA36: 0 | DB36: 0 | DC36: 0 | DD36: 0 | DE36: 0 | DF36: 0 | DG36: 0 | DH36: 0 | DI36: 0 | DJ36: 0 | DK36: 0 | DL36: 0
B37: ='Linear Projection'!B16 -> 2017 | C37: ='Detailed Projection'!F28+(0.5*'Detailed Projection'!G28) -> 1974.549624 | D37: 22.1 | J37: 0 | K37: 0 | L37: 39.67064891 | Q37: 0 | R37: 0 | S37: 2.911242604 | X37: 0 | Y37: 0 | Z37: 132.2788664 | AA37: 6.911785973 | AF37: 0 | AG37: 0 | AH37: 0 | AI37: 0 | AJ37: 0 | AK37: 0 | AL37: 0 | AM37: 0 | AN37: 0 | AO37: 0 | AP37: 0 | AQ37: 0 | AR37: ='Detailed Projection'!I28 -> 185.5892782 | AS37: 22.1 | AY37: 0 | AZ37: 0 | BA37: 39.67064891 | BF37: 0 | BG37: 0 | BH37: 2.911242604 | BM37: 0 | BN37: 0 | BO37: 132.2788664 | BP37: 6.911785973 | BU37: 0 | BV37: 0 | BW37: 0 | BX37: ='Detailed Projection'!J28 -> 371.9458647 | BY37: 22.1 | CE37: 0 | CF37: 0 | CG37: 39.67064891 | CL37: 0 | CM37: 0 | CN37: 2.911242604 | CS37: 0 | CT37: 0 | CU37: 132.2788664 | CV37: 6.911785973 | DA37: 0 | DB37: 0 | DC37: 0 | DD37: 0 | DE37: 0 | DF37: 0 | DG37: 0 | DH37: 0 | DI37: 0 | DJ37: 0 | DK37: 0 | DL37: 0
B38: ='Linear Projection'!B17 -> 2018 | C38: ='Detailed Projection'!F29+(0.5*'Detailed Projection'!G29) -> 1984.452632 | D38: 22.1 | J38: 0 | K38: 0 | L38: 39.67064891 | Q38: 0 | R38: 0 | S38: 2.911242604 | X38: 0 | Y38: 0 | Z38: 132.2788664 | AA38: 6.911785973 | AF38: 0 | AG38: 0 | AH38: 0 | AI38: 0 | AJ38: 0 | AK38: 0 | AL38: 0 | AM38: 0 | AN38: 0 | AO38: 0 | AP38: 0 | AQ38: 0 | AR38: ='Detailed Projection'!I29 -> 184.0640526 | AS38: 22.1 | AY38: 0 | AZ38: 0 | BA38: 39.67064891 | BF38: 0 | BG38: 0 | BH38: 2.911242604 | BM38: 0 | BN38: 0 | BO38: 132.2788664 | BP38: 6.911785973 | BU38: 0 | BV38: 0 | BW38: 0 | BX38: ='Detailed Projection'!J29 -> 375.0389474 | BY38: 22.1 | CE38: 0 | CF38: 0 | CG38: 39.67064891 | CL38: 0 | CM38: 0 | CN38: 2.911242604 | CS38: 0 | CT38: 0 | CU38: 132.2788664 | CV38: 6.911785973 | DA38: 0 | DB38: 0 | DC38: 0 | DD38: 0 | DE38: 0 | DF38: 0 | DG38: 0 | DH38: 0 | DI38: 0 | DJ38: 0 | DK38: 0 | DL38: 0
B39: ='Linear Projection'!B18 -> 2019 | C39: ='Detailed Projection'!F30+(0.5*'Detailed Projection'!G30) -> 1994.355639 | D39: 22.1 | J39: 0 | K39: 0 | L39: 39.67064891 | Q39: 0 | R39: 0 | S39: 2.911242604 | X39: 0 | Y39: 0 | Z39: 132.2788664 | AA39: 6.911785973 | AF39: 0 | AG39: 0 | AH39: 0 | AI39: 0 | AJ39: 0 | AK39: 0 | AL39: 0 | AM39: 0 | AN39: 0 | AO39: 0 | AP39: 0 | AQ39: 0 | AR39: ='Detailed Projection'!I30 -> 182.5388271 | AS39: 22.1 | AY39: 0 | AZ39: 0 | BA39: 39.67064891 | BF39: 0 | BG39: 0 | BH39: 2.911242604 | BM39: 0 | BN39: 0 | BO39: 132.2788664 | BP39: 6.911785973 | BU39: 0 | BV39: 0 | BW39: 0 | BX39: ='Detailed Projection'!J30 -> 378.1320301 | BY39: 22.1 | CE39: 0 | CF39: 0 | CG39: 39.67064891 | CL39: 0 | CM39: 0 | CN39: 2.911242604 | CS39: 0 | CT39: 0 | CU39: 132.2788664 | CV39: 6.911785973 | DA39: 0 | DB39: 0 | DC39: 0 | DD39: 0 | DE39: 0 | DF39: 0 | DG39: 0 | DH39: 0 | DI39: 0 | DJ39: 0 | DK39: 0 | DL39: 0
B40: ='Linear Projection'!B19 -> 2020 | C40: ='Detailed Projection'!F31+(0.5*'Detailed Projection'!G31) -> 2004.258647 | D40: 22.1 | J40: 0 | K40: 0 | L40: 39.67064891 | Q40: 0 | R40: 0 | S40: 2.911242604 | X40: 0 | Y40: 0 | Z40: 132.2788664 | AA40: 6.911785973 | AF40: 0 | AG40: 0 | AH40: 0 | AI40: 0 | AJ40: 0 | AK40: 0 | AL40: 0 | AM40: 0 | AN40: 0 | AO40: 0 | AP40: 0 | AQ40: 0 | AR40: ='Detailed Projection'!I31 -> 181.0136015 | AS40: 22.1 | AY40: 0 | AZ40: 0 | BA40: 39.67064891 | BF40: 0 | BG40: 0 | BH40: 2.911242604 | BM40: 0 | BN40: 0 | BO40: 132.2788664 | BP40: 6.911785973 | BU40: 0 | BV40: 0 | BW40: 0 | BX40: ='Detailed Projection'!J31 -> 381.2251128 | BY40: 22.1 | CE40: 0 | CF40: 0 | CG40: 39.67064891 | CL40: 0 | CM40: 0 | CN40: 2.911242604 | CS40: 0 | CT40: 0 | CU40: 132.2788664 | CV40: 6.911785973 | DA40: 0 | DB40: 0 | DC40: 0 | DD40: 0 | DE40: 0 | DF40: 0 | DG40: 0 | DH40: 0 | DI40: 0 | DJ40: 0 | DK40: 0 | DL40: 0
B41: ='Linear Projection'!B20 -> 2021 | C41: ='Detailed Projection'!F32+(0.5*'Detailed Projection'!G32) -> 2014.161654 | D41: 22.1 | J41: 0 | K41: 0 | L41: 39.67064891 | Q41: 0 | R41: 0 | S41: 2.911242604 | X41: 0 | Y41: 0 | Z41: 132.2788664 | AA41: 6.911785973 | AF41: 0 | AG41: 0 | AH41: 0 | AI41: 0 | AJ41: 0 | AK41: 0 | AL41: 0 | AM41: 0 | AN41: 0 | AO41: 0 | AP41: 0 | AQ41: 0 | AR41: ='Detailed Projection'!I32 -> 179.4883759 | AS41: 22.1 | AY41: 0 | AZ41: 0 | BA41: 39.67064891 | BF41: 0 | BG41: 0 | BH41: 2.911242604 | BM41: 0 | BN41: 0 | BO41: 132.2788664 | BP41: 6.911785973 | BU41: 0 | BV41: 0 | BW41: 0 | BX41: ='Detailed Projection'!J32 -> 384.3181955 | BY41: 22.1 | CE41: 0 | CF41: 0 | CG41: 39.67064891 | CL41: 0 | CM41: 0 | CN41: 2.911242604 | CS41: 0 | CT41: 0 | CU41: 132.2788664 | CV41: 6.911785973 | DA41: 0 | DB41: 0 | DC41: 0 | DD41: 0 | DE41: 0 | DF41: 0 | DG41: 0 | DH41: 0 | DI41: 0 | DJ41: 0 | DK41: 0 | DL41: 0
B42: ='Linear Projection'!B21 -> 2022 | C42: ='Detailed Projection'!F33+(0.5*'Detailed Projection'!G33) -> 2024.064662 | D42: 22.1 | J42: =((C42*E42)+(C42*F42)/2)*G42*H42*I42 -> 0 | K42: 0 | L42: 39.67064891 | Q42: =((C42*M42)*N42*O42*P42) -> 0 | R42: 0 | S42: 2.911242604 | X42: =((C42*T42)*U42*V42*W42) -> 0 | Y42: 0 | Z42: 132.2788664 | AA42: 6.911785973 | AF42: =((C42*AB42)*AC42*AD42*AE42) -> 0 | AG42: 0 | AH42: 0 | AI42: 0 | AJ42: 0 | AK42: 0 | AL42: 0 | AM42: 0 | AN42: 0 | AO42: 0 | AP42: 0 | AQ42: 0 | AR42: ='Detailed Projection'!I33 -> 177.9631504 | AS42: 22.1 | AY42: =((AR42*AT42)+(AR42*AU42)/2)*AV42*AW42*AX42 -> 0 | AZ42: 0 | BA42: 39.67064891 | BF42: =((AR42*BB42)*BC42*BD42*BE42) -> 0 | BG42: 0 | BH42: 2.911242604 | BM42: =((AR42*BI42)*BJ42*BK42*BL42) -> 0 | BN42: 0 | BO42: 132.2788664 | BP42: 6.911785973 | BU42: =((AR42*BQ42)*BR42*BS42*BT42) -> 0 | BV42: 0 | BW42: 0 | BX42: ='Detailed Projection'!J33 -> 387.4112782 | BY42: 22.1 | CE42: =((BX42*BZ42)+(BX42*CA42)/2)*CB42*CC42*CD42 -> 0 | CF42: 0 | CG42: 39.67064891 | CL42: =((BX42*CH42)*CI42*CJ42*CK42) -> 0 | CM42: 0 | CN42: 2.911242604 | CS42: =((BX42*CO42)*CP42*CQ42*CR42) -> 0 | CT42: 0 | CU42: 132.2788664 | CV42: 6.911785973 | DA42: =((BX42*CW42)*CX42*CY42*CZ42) -> 0 | DB42: 0 | DC42: 0 | DD42: 0 | DE42: 0 | DF42: 0 | DG42: 0 | DH42: 0 | DI42: 0 | DJ42: 0 | DK42: 0 | DL42: 0
B43: ='Linear Projection'!B22 -> 2023 | C43: ='Detailed Projection'!F34+(0.5*'Detailed Projection'!G34) -> 2033.967669 | D43: 22.1 | J43: 0 | K43: 0 | L43: 39.67064891 | Q43: 0 | R43: 0 | S43: 2.911242604 | X43: 0 | Y43: 0 | Z43: 132.2788664 | AA43: 6.911785973 | AF43: 0 | AG43: 0 | AH43: 0 | AI43: 0 | AJ43: 0 | AK43: 0 | AL43: 0 | AM43: 0 | AN43: 0 | AO43: 0 | AP43: 0 | AQ43: 0 | AR43: ='Detailed Projection'!I34 -> 176.4379248 | AS43: 22.1 | AY43: 0 | AZ43: 0 | BA43: 39.67064891 | BF43: 0 | BG43: 0 | BH43: 2.911242604 | BM43: 0 | BN43: 0 | BO43: 132.2788664 | BP43: 6.911785973 | BU43: 0 | BV43: 0 | BW43: 0 | BX43: ='Detailed Projection'!J34 -> 390.5043609 | BY43: 22.1 | CE43: 0 | CF43: 0 | CG43: 39.67064891 | CL43: 0 | CM43: 0 | CN43: 2.911242604 | CS43: 0 | CT43: 0 | CU43: 132.2788664 | CV43: 6.911785973 | DA43: 0 | DB43: 0 | DC43: 0 | DD43: 0 | DE43: 0 | DF43: 0 | DG43: 0 | DH43: 0 | DI43: 0 | DJ43: 0 | DK43: 0 | DL43: 0
B44: ='Linear Projection'!B23 -> 2024 | C44: ='Detailed Projection'!F35+(0.5*'Detailed Projection'!G35) -> 2043.870677 | D44: 22.1 | J44: 0 | K44: 0 | L44: 39.67064891 | Q44: 0 | R44: 0 | S44: 2.911242604 | X44: 0 | Y44: 0 | Z44: 132.2788664 | AA44: 6.911785973 | AF44: 0 | AG44: 0 | AH44: 0 | AI44: 0 | AJ44: 0 | AK44: 0 | AL44: 0 | AM44: 0 | AN44: 0 | AO44: 0 | AP44: 0 | AQ44: 0 | AR44: ='Detailed Projection'!I35 -> 174.9126992 | AS44: 22.1 | AY44: 0 | AZ44: 0 | BA44: 39.67064891 | BF44: 0 | BG44: 0 | BH44: 2.911242604 | BM44: 0 | BN44: 0 | BO44: 132.2788664 | BP44: 6.911785973 | BU44: 0 | BV44: 0 | BW44: 0 | BX44: ='Detailed Projection'!J35 -> 393.5974436 | BY44: 22.1 | CE44: 0 | CF44: 0 | CG44: 39.67064891 | CL44: 0 | CM44: 0 | CN44: 2.911242604 | CS44: 0 | CT44: 0 | CU44: 132.2788664 | CV44: 6.911785973 | DA44: 0 | DB44: 0 | DC44: 0 | DD44: 0 | DE44: 0 | DF44: 0 | DG44: 0 | DH44: 0 | DI44: 0 | DJ44: 0 | DK44: 0 | DL44: 0
B45: ='Linear Projection'!B24 -> 2025 | C45: ='Detailed Projection'!F36+(0.5*'Detailed Projection'!G36) -> 2053.773684 | D45: 22.1 | J45: 0 | K45: 0 | L45: 39.67064891 | Q45: 0 | R45: 0 | S45: 2.911242604 | X45: 0 | Y45: 0 | Z45: 132.2788664 | AA45: 6.911785973 | AF45: 0 | AG45: 0 | AH45: 0 | AI45: 0 | AJ45: 0 | AK45: 0 | AL45: 0 | AM45: 0 | AN45: 0 | AO45: 0 | AP45: 0 | AQ45: 0 | AR45: ='Detailed Projection'!I36 -> 173.3874737 | AS45: 22.1 | AY45: 0 | AZ45: 0 | BA45: 39.67064891 | BF45: 0 | BG45: 0 | BH45: 2.911242604 | BM45: 0 | BN45: 0 | BO45: 132.2788664 | BP45: 6.911785973 | BU45: 0 | BV45: 0 | BW45: 0 | BX45: ='Detailed Projection'!J36 -> 396.6905263 | BY45: 22.1 | CE45: 0 | CF45: 0 | CG45: 39.67064891 | CL45: 0 | CM45: 0 | CN45: 2.911242604 | CS45: 0 | CT45: 0 | CU45: 132.2788664 | CV45: 6.911785973 | DA45: 0 | DB45: 0 | DC45: 0 | DD45: 0 | DE45: 0 | DF45: 0 | DG45: 0 | DH45: 0 | DI45: 0 | DJ45: 0 | DK45: 0 | DL45: 0
B46: ='Linear Projection'!B25 -> 2026 | C46: ='Detailed Projection'!F37+(0.5*'Detailed Projection'!G37) -> 2063.676692 | D46: 22.1 | J46: 0 | K46: 0 | L46: 39.67064891 | Q46: 0 | R46: 0 | S46: 2.911242604 | X46: 0 | Y46: 0 | Z46: 132.2788664 | AA46: 6.911785973 | AF46: 0 | AG46: 0 | AH46: 0 | AI46: 0 | AJ46: 0 | AK46: 0 | AL46: 0 | AM46: 0 | AN46: 0 | AO46: 0 | AP46: 0 | AQ46: 0 | AR46: ='Detailed Projection'!I37 -> 171.8622481 | AS46: 22.1 | AY46: 0 | AZ46: 0 | BA46: 39.67064891 | BF46: 0 | BG46: 0 | BH46: 2.911242604 | BM46: 0 | BN46: 0 | BO46: 132.2788664 | BP46: 6.911785973 | BU46: 0 | BV46: 0 | BW46: 0 | BX46: ='Detailed Projection'!J37 -> 399.783609 | BY46: 22.1 | CE46: 0 | CF46: 0 | CG46: 39.67064891 | CL46: 0 | CM46: 0 | CN46: 2.911242604 | CS46: 0 | CT46: 0 | CU46: 132.2788664 | CV46: 6.911785973 | DA46: 0 | DB46: 0 | DC46: 0 | DD46: 0 | DE46: 0 | DF46: 0 | DG46: 0 | DH46: 0 | DI46: 0 | DJ46: 0 | DK46: 0 | DL46: 0
B47: ='Linear Projection'!B26 -> 2027 | C47: ='Detailed Projection'!F38+(0.5*'Detailed Projection'!G38) -> 2073.579699 | D47: 22.1 | J47: 0 | K47: 0 | L47: 39.67064891 | Q47: 0 | R47: 0 | S47: 2.911242604 | X47: 0 | Y47: 0 | Z47: 132.2788664 | AA47: 6.911785973 | AF47: 0 | AG47: 0 | AH47: 0 | AI47: 0 | AJ47: 0 | AK47: 0 | AL47: 0 | AM47: 0 | AN47: 0 | AO47: 0 | AP47: 0 | AQ47: 0 | AR47: ='Detailed Projection'!I38 -> 170.3370226 | AS47: 22.1 | AY47: 0 | AZ47: 0 | BA47: 39.67064891 | BF47: 0 | BG47: 0 | BH47: 2.911242604 | BM47: 0 | BN47: 0 | BO47: 132.2788664 | BP47: 6.911785973 | BU47: 0 | BV47: 0 | BW47: 0 | BX47: ='Detailed Projection'!J38 -> 402.8766917 | BY47: 22.1 | CE47: 0 | CF47: 0 | CG47: 39.67064891 | CL47: 0 | CM47: 0 | CN47: 2.911242604 | CS47: 0 | CT47: 0 | CU47: 132.2788664 | CV47: 6.911785973 | DA47: 0 | DB47: 0 | DC47: 0 | DD47: 0 | DE47: 0 | DF47: 0 | DG47: 0 | DH47: 0 | DI47: 0 | DJ47: 0 | DK47: 0 | DL47: 0
B48: ='Linear Projection'!B27 -> 2028 | C48: ='Detailed Projection'!F39+(0.5*'Detailed Projection'!G39) -> 2083.482707 | D48: 22.1 | J48: 0 | K48: 0 | L48: 39.67064891 | Q48: 0 | R48: 0 | S48: 2.911242604 | X48: 0 | Y48: 0 | Z48: 132.2788664 | AA48: 6.911785973 | AF48: 0 | AG48: 0 | AH48: 0 | AI48: 0 | AJ48: 0 | AK48: 0 | AL48: 0 | AM48: 0 | AN48: 0 | AO48: 0 | AP48: 0 | AQ48: 0 | AR48: ='Detailed Projection'!I39 -> 168.811797 | AS48: 22.1 | AY48: 0 | AZ48: 0 | BA48: 39.67064891 | BF48: 0 | BG48: 0 | BH48: 2.911242604 | BM48: 0 | BN48: 0 | BO48: 132.2788664 | BP48: 6.911785973 | BU48: 0 | BV48: 0 | BW48: 0 | BX48: ='Detailed Projection'!J39 -> 405.9697744 | BY48: 22.1 | CE48: 0 | CF48: 0 | CG48: 39.67064891 | CL48: 0 | CM48: 0 | CN48: 2.911242604 | CS48: 0 | CT48: 0 | CU48: 132.2788664 | CV48: 6.911785973 | DA48: 0 | DB48: 0 | DC48: 0 | DD48: 0 | DE48: 0 | DF48: 0 | DG48: 0 | DH48: 0 | DI48: 0 | DJ48: 0 | DK48: 0 | DL48: 0
B49: ='Linear Projection'!B28 -> 2029 | C49: ='Detailed Projection'!F40+(0.5*'Detailed Projection'!G40) -> 2093.385714 | D49: 22.1 | J49: 0 | K49: 0 | L49: 39.67064891 | Q49: 0 | R49: 0 | S49: 2.911242604 | X49: 0 | Y49: 0 | Z49: 132.2788664 | AA49: 6.911785973 | AF49: 0 | AG49: 0 | AH49: 0 | AI49: 0 | AJ49: 0 | AK49: 0 | AL49: 0 | AM49: 0 | AN49: 0 | AO49: 0 | AP49: 0 | AQ49: 0 | AR49: ='Detailed Projection'!I40 -> 167.2865714 | AS49: 22.1 | AY49: 0 | AZ49: 0 | BA49: 39.67064891 | BF49: 0 | BG49: 0 | BH49: 2.911242604 | BM49: 0 | BN49: 0 | BO49: 132.2788664 | BP49: 6.911785973 | BU49: 0 | BV49: 0 | BW49: 0 | BX49: ='Detailed Projection'!J40 -> 409.0628571 | BY49: 22.1 | CE49: 0 | CF49: 0 | CG49: 39.67064891 | CL49: 0 | CM49: 0 | CN49: 2.911242604 | CS49: 0 | CT49: 0 | CU49: 132.2788664 | CV49: 6.911785973 | DA49: 0 | DB49: 0 | DC49: 0 | DD49: 0 | DE49: 0 | DF49: 0 | DG49: 0 | DH49: 0 | DI49: 0 | DJ49: 0 | DK49: 0 | DL49: 0
B50: ='Linear Projection'!B29 -> 2030 | C50: ='Detailed Projection'!F41+(0.5*'Detailed Projection'!G41) -> 2103.288722 | D50: 22.1 | J50: 0 | K50: 0 | L50: 39.67064891 | Q50: 0 | R50: 0 | S50: 2.911242604 | X50: 0 | Y50: 0 | Z50: 132.2788664 | AA50: 6.911785973 | AF50: 0 | AG50: 0 | AH50: 0 | AI50: 0 | AJ50: 0 | AK50: 0 | AL50: 0 | AM50: 0 | AN50: 0 | AO50: 0 | AP50: 0 | AQ50: 0 | AR50: ='Detailed Projection'!I41 -> 165.7613459 | AS50: 22.1 | AY50: 0 | AZ50: 0 | BA50: 39.67064891 | BF50: 0 | BG50: 0 | BH50: 2.911242604 | BM50: 0 | BN50: 0 | BO50: 132.2788664 | BP50: 6.911785973 | BU50: 0 | BV50: 0 | BW50: 0 | BX50: ='Detailed Projection'!J41 -> 412.1559398 | BY50: 22.1 | CE50: 0 | CF50: 0 | CG50: 39.67064891 | CL50: 0 | CM50: 0 | CN50: 2.911242604 | CS50: 0 | CT50: 0 | CU50: 132.2788664 | CV50: 6.911785973 | DA50: 0 | DB50: 0 | DC50: 0 | DD50: 0 | DE50: 0 | DF50: 0 | DG50: 0 | DH50: 0 | DI50: 0 | DJ50: 0 | DK50: 0 | DL50: 0
B51: ='Linear Projection'!B30 -> 2031 | C51: ='Detailed Projection'!F42+(0.5*'Detailed Projection'!G42) -> 2113.191729 | D51: 22.1 | J51: 0 | K51: 0 | L51: 39.67064891 | Q51: 0 | R51: 0 | S51: 2.911242604 | X51: 0 | Y51: 0 | Z51: 132.2788664 | AA51: 6.911785973 | AF51: 0 | AG51: 0 | AH51: 0 | AI51: 0 | AJ51: 0 | AK51: 0 | AL51: 0 | AM51: 0 | AN51: 0 | AO51: 0 | AP51: 0 | AQ51: 0 | AR51: ='Detailed Projection'!I42 -> 164.2361203 | AS51: 22.1 | AY51: 0 | AZ51: 0 | BA51: 39.67064891 | BF51: 0 | BG51: 0 | BH51: 2.911242604 | BM51: 0 | BN51: 0 | BO51: 132.2788664 | BP51: 6.911785973 | BU51: 0 | BV51: 0 | BW51: 0 | BX51: ='Detailed Projection'!J42 -> 415.2490226 | BY51: 22.1 | CE51: 0 | CF51: 0 | CG51: 39.67064891 | CL51: 0 | CM51: 0 | CN51: 2.911242604 | CS51: 0 | CT51: 0 | CU51: 132.2788664 | CV51: 6.911785973 | DA51: 0 | DB51: 0 | DC51: 0 | DD51: 0 | DE51: 0 | DF51: 0 | DG51: 0 | DH51: 0 | DI51: 0 | DJ51: 0 | DK51: 0 | DL51: 0
B52: ='Linear Projection'!B31 -> 2032 | C52: ='Detailed Projection'!F43+(0.5*'Detailed Projection'!G43) -> 2123.094737 | D52: 22.1 | J52: 0 | K52: 0 | L52: 39.67064891 | Q52: 0 | R52: 0 | S52: 2.911242604 | X52: 0 | Y52: 0 | Z52: 132.2788664 | AA52: 6.911785973 | AF52: 0 | AG52: 0 | AH52: 0 | AI52: 0 | AJ52: 0 | AK52: 0 | AL52: 0 | AM52: 0 | AN52: 0 | AO52: 0 | AP52: 0 | AQ52: 0 | AR52: ='Detailed Projection'!I43 -> 162.7108947 | AS52: 22.1 | AY52: 0 | AZ52: 0 | BA52: 39.67064891 | BF52: 0 | BG52: 0 | BH52: 2.911242604 | BM52: 0 | BN52: 0 | BO52: 132.2788664 | BP52: 6.911785973 | BU52: 0 | BV52: 0 | BW52: 0 | BX52: ='Detailed Projection'!J43 -> 418.3421053 | BY52: 22.1 | CE52: 0 | CF52: 0 | CG52: 39.67064891 | CL52: 0 | CM52: 0 | CN52: 2.911242604 | CS52: 0 | CT52: 0 | CU52: 132.2788664 | CV52: 6.911785973 | DA52: 0 | DB52: 0 | DC52: 0 | DD52: 0 | DE52: 0 | DF52: 0 | DG52: 0 | DH52: 0 | DI52: 0 | DJ52: 0 | DK52: 0 | DL52: 0
B53: ='Linear Projection'!B32 -> 2033 | C53: ='Detailed Projection'!F44+(0.5*'Detailed Projection'!G44) -> 2132.997744 | D53: 22.1 | J53: 0 | K53: 0 | L53: 39.67064891 | Q53: 0 | R53: 0 | S53: 2.911242604 | X53: 0 | Y53: 0 | Z53: 132.2788664 | AA53: 6.911785973 | AF53: 0 | AG53: 0 | AH53: 0 | AI53: 0 | AJ53: 0 | AK53: 0 | AL53: 0 | AM53: 0 | AN53: 0 | AO53: 0 | AP53: 0 | AQ53: 0 | AR53: ='Detailed Projection'!I44 -> 161.1856692 | AS53: 22.1 | AY53: 0 | AZ53: 0 | BA53: 39.67064891 | BF53: 0 | BG53: 0 | BH53: 2.911242604 | BM53: 0 | BN53: 0 | BO53: 132.2788664 | BP53: 6.911785973 | BU53: 0 | BV53: 0 | BW53: 0 | BX53: ='Detailed Projection'!J44 -> 421.435188 | BY53: 22.1 | CE53: 0 | CF53: 0 | CG53: 39.67064891 | CL53: 0 | CM53: 0 | CN53: 2.911242604 | CS53: 0 | CT53: 0 | CU53: 132.2788664 | CV53: 6.911785973 | DA53: 0 | DB53: 0 | DC53: 0 | DD53: 0 | DE53: 0 | DF53: 0 | DG53: 0 | DH53: 0 | DI53: 0 | DJ53: 0 | DK53: 0 | DL53: 0
B54: ='Linear Projection'!B33 -> 2034 | C54: ='Detailed Projection'!F45+(0.5*'Detailed Projection'!G45) -> 2142.900752 | D54: 22.1 | J54: 0 | K54: 0 | L54: 39.67064891 | Q54: 0 | R54: 0 | S54: 2.911242604 | X54: 0 | Y54: 0 | Z54: 132.2788664 | AA54: 6.911785973 | AF54: 0 | AG54: 0 | AH54: 0 | AI54: 0 | AJ54: 0 | AK54: 0 | AL54: 0 | AM54: 0 | AN54: 0 | AO54: 0 | AP54: 0 | AQ54: 0 | AR54: ='Detailed Projection'!I45 -> 159.6604436 | AS54: 22.1 | AY54: 0 | AZ54: 0 | BA54: 39.67064891 | BF54: 0 | BG54: 0 | BH54: 2.911242604 | BM54: 0 | BN54: 0 | BO54: 132.2788664 | BP54: 6.911785973 | BU54: 0 | BV54: 0 | BW54: 0 | BX54: ='Detailed Projection'!J45 -> 424.5282707 | BY54: 22.1 | CE54: 0 | CF54: 0 | CG54: 39.67064891 | CL54: 0 | CM54: 0 | CN54: 2.911242604 | CS54: 0 | CT54: 0 | CU54: 132.2788664 | CV54: 6.911785973 | DA54: 0 | DB54: 0 | DC54: 0 | DD54: 0 | DE54: 0 | DF54: 0 | DG54: 0 | DH54: 0 | DI54: 0 | DJ54: 0 | DK54: 0 | DL54: 0
B55: ='Linear Projection'!B34 -> 2035 | C55: ='Detailed Projection'!F46+(0.5*'Detailed Projection'!G46) -> 2152.803759 | D55: 22.1 | J55: 0 | K55: 0 | L55: 39.67064891 | Q55: 0 | R55: 0 | S55: 2.911242604 | X55: 0 | Y55: 0 | Z55: 132.2788664 | AA55: 6.911785973 | AF55: 0 | AG55: 0 | AH55: 0 | AI55: 0 | AJ55: 0 | AK55: 0 | AL55: 0 | AM55: 0 | AN55: 0 | AO55: 0 | AP55: 0 | AQ55: 0 | AR55: ='Detailed Projection'!I46 -> 158.135218 | AS55: 22.1 | AY55: 0 | AZ55: 0 | BA55: 39.67064891 | BF55: 0 | BG55: 0 | BH55: 2.911242604 | BM55: 0 | BN55: 0 | BO55: 132.2788664 | BP55: 6.911785973 | BU55: 0 | BV55: 0 | BW55: 0 | BX55: ='Detailed Projection'!J46 -> 427.6213534 | BY55: 22.1 | CE55: 0 | CF55: 0 | CG55: 39.67064891 | CL55: 0 | CM55: 0 | CN55: 2.911242604 | CS55: 0 | CT55: 0 | CU55: 132.2788664 | CV55: 6.911785973 | DA55: 0 | DB55: 0 | DC55: 0 | DD55: 0 | DE55: 0 | DF55: 0 | DG55: 0 | DH55: 0 | DI55: 0 | DJ55: 0 | DK55: 0 | DL55: 0
B56: ='Linear Projection'!B35 -> 2036 | C56: ='Detailed Projection'!F47+(0.5*'Detailed Projection'!G47) -> 2162.706767 | D56: 22.1 | J56: 0 | K56: 0 | L56: 39.67064891 | Q56: 0 | R56: 0 | S56: 2.911242604 | X56: 0 | Y56: 0 | Z56: 132.2788664 | AA56: 6.911785973 | AF56: 0 | AG56: 0 | AH56: 0 | AI56: 0 | AJ56: 0 | AK56: 0 | AL56: 0 | AM56: 0 | AN56: 0 | AO56: 0 | AP56: 0 | AQ56: 0 | AR56: ='Detailed Projection'!I47 -> 156.6099925 | AS56: 22.1 | AY56: 0 | AZ56: 0 | BA56: 39.67064891 | BF56: 0 | BG56: 0 | BH56: 2.911242604 | BM56: 0 | BN56: 0 | BO56: 132.2788664 | BP56: 6.911785973 | BU56: 0 | BV56: 0 | BW56: 0 | BX56: ='Detailed Projection'!J47 -> 430.7144361 | BY56: 22.1 | CE56: 0 | CF56: 0 | CG56: 39.67064891 | CL56: 0 | CM56: 0 | CN56: 2.911242604 | CS56: 0 | CT56: 0 | CU56: 132.2788664 | CV56: 6.911785973 | DA56: 0 | DB56: 0 | DC56: 0 | DD56: 0 | DE56: 0 | DF56: 0 | DG56: 0 | DH56: 0 | DI56: 0 | DJ56: 0 | DK56: 0 | DL56: 0
B57: ='Linear Projection'!B36 -> 2037 | C57: ='Detailed Projection'!F48+(0.5*'Detailed Projection'!G48) -> 2172.609774 | D57: 22.1 | J57: 0 | K57: 0 | L57: 39.67064891 | Q57: 0 | R57: 0 | S57: 2.911242604 | X57: 0 | Y57: 0 | Z57: 132.2788664 | AA57: 6.911785973 | AF57: 0 | AG57: 0 | AH57: 0 | AI57: 0 | AJ57: 0 | AK57: 0 | AL57: 0 | AM57: 0 | AN57: 0 | AO57: 0 | AP57: 0 | AQ57: 0 | AR57: ='Detailed Projection'!I48 -> 155.0847669 | AS57: 22.1 | AY57: 0 | AZ57: 0 | BA57: 39.67064891 | BF57: 0 | BG57: 0 | BH57: 2.911242604 | BM57: 0 | BN57: 0 | BO57: 132.2788664 | BP57: 6.911785973 | BU57: 0 | BV57: 0 | BW57: 0 | BX57: ='Detailed Projection'!J48 -> 433.8075188 | BY57: 22.1 | CE57: 0 | CF57: 0 | CG57: 39.67064891 | CL57: 0 | CM57: 0 | CN57: 2.911242604 | CS57: 0 | CT57: 0 | CU57: 132.2788664 | CV57: 6.911785973 | DA57: 0 | DB57: 0 | DC57: 0 | DD57: 0 | DE57: 0 | DF57: 0 | DG57: 0 | DH57: 0 | DI57: 0 | DJ57: 0 | DK57: 0 | DL57: 0
B58: ='Linear Projection'!B37 -> 2038 | C58: ='Detailed Projection'!F49+(0.5*'Detailed Projection'!G49) -> 2182.512782 | D58: 22.1 | J58: 0 | K58: 0 | L58: 39.67064891 | Q58: 0 | R58: 0 | S58: 2.911242604 | X58: 0 | Y58: 0 | Z58: 132.2788664 | AA58: 6.911785973 | AF58: 0 | AG58: 0 | AH58: 0 | AI58: 0 | AJ58: 0 | AK58: 0 | AL58: 0 | AM58: 0 | AN58: 0 | AO58: 0 | AP58: 0 | AQ58: 0 | AR58: ='Detailed Projection'!I49 -> 153.5595414 | AS58: 22.1 | AY58: 0 | AZ58: 0 | BA58: 39.67064891 | BF58: 0 | BG58: 0 | BH58: 2.911242604 | BM58: 0 | BN58: 0 | BO58: 132.2788664 | BP58: 6.911785973 | BU58: 0 | BV58: 0 | BW58: 0 | BX58: ='Detailed Projection'!J49 -> 436.9006015 | BY58: 22.1 | CE58: 0 | CF58: 0 | CG58: 39.67064891 | CL58: 0 | CM58: 0 | CN58: 2.911242604 | CS58: 0 | CT58: 0 | CU58: 132.2788664 | CV58: 6.911785973 | DA58: 0 | DB58: 0 | DC58: 0 | DD58: 0 | DE58: 0 | DF58: 0 | DG58: 0 | DH58: 0 | DI58: 0 | DJ58: 0 | DK58: 0 | DL58: 0
B59: ='Linear Projection'!B38 -> 2039 | C59: ='Detailed Projection'!F50+(0.5*'Detailed Projection'!G50) -> 2192.415789 | D59: 22.1 | J59: 0 | K59: 0 | L59: 39.67064891 | Q59: 0 | R59: 0 | S59: 2.911242604 | X59: 0 | Y59: 0 | Z59: 132.2788664 | AA59: 6.911785973 | AF59: 0 | AG59: 0 | AH59: 0 | AI59: 0 | AJ59: 0 | AK59: 0 | AL59: 0 | AM59: 0 | AN59: 0 | AO59: 0 | AP59: 0 | AQ59: 0 | AR59: ='Detailed Projection'!I50 -> 152.0343158 | AS59: 22.1 | AY59: 0 | AZ59: 0 | BA59: 39.67064891 | BF59: 0 | BG59: 0 | BH59: 2.911242604 | BM59: 0 | BN59: 0 | BO59: 132.2788664 | BP59: 6.911785973 | BU59: 0 | BV59: 0 | BW59: 0 | BX59: ='Detailed Projection'!J50 -> 439.9936842 | BY59: 22.1 | CE59: 0 | CF59: 0 | CG59: 39.67064891 | CL59: 0 | CM59: 0 | CN59: 2.911242604 | CS59: 0 | CT59: 0 | CU59: 132.2788664 | CV59: 6.911785973 | DA59: 0 | DB59: 0 | DC59: 0 | DD59: 0 | DE59: 0 | DF59: 0 | DG59: 0 | DH59: 0 | DI59: 0 | DJ59: 0 | DK59: 0 | DL59: 0
B60: ='Linear Projection'!B39 -> 2040 | C60: ='Detailed Projection'!F51+(0.5*'Detailed Projection'!G51) -> 2202.318797 | D60: 22.1 | J60: 0 | K60: 0 | L60: 39.67064891 | Q60: 0 | R60: 0 | S60: 2.911242604 | X60: 0 | Y60: 0 | Z60: 132.2788664 | AA60: 6.911785973 | AF60: 0 | AG60: 0 | AH60: 0 | AI60: 0 | AJ60: 0 | AK60: 0 | AL60: 0 | AM60: 0 | AN60: 0 | AO60: 0 | AP60: 0 | AQ60: 0 | AR60: ='Detailed Projection'!I51 -> 150.5090902 | AS60: 22.1 | AY60: 0 | AZ60: 0 | BA60: 39.67064891 | BF60: 0 | BG60: 0 | BH60: 2.911242604 | BM60: 0 | BN60: 0 | BO60: 132.2788664 | BP60: 6.911785973 | BU60: 0 | BV60: 0 | BW60: 0 | BX60: ='Detailed Projection'!J51 -> 443.0867669 | BY60: 22.1 | CE60: 0 | CF60: 0 | CG60: 39.67064891 | CL60: 0 | CM60: 0 | CN60: 2.911242604 | CS60: 0 | CT60: 0 | CU60: 132.2788664 | CV60: 6.911785973 | DA60: 0 | DB60: 0 | DC60: 0 | DD60: 0 | DE60: 0 | DF60: 0 | DG60: 0 | DH60: 0 | DI60: 0 | DJ60: 0 | DK60: 0 | DL60: 0
B61: ='Linear Projection'!B40 -> 2041 | C61: ='Detailed Projection'!F52+(0.5*'Detailed Projection'!G52) -> 2212.221805 | D61: 22.1 | J61: 0 | K61: 0 | L61: 39.67064891 | Q61: 0 | R61: 0 | S61: 2.911242604 | X61: 0 | Y61: 0 | Z61: 132.2788664 | AA61: 6.911785973 | AF61: 0 | AG61: 0 | AH61: 0 | AI61: 0 | AJ61: 0 | AK61: 0 | AL61: 0 | AM61: 0 | AN61: 0 | AO61: 0 | AP61: 0 | AQ61: 0 | AR61: ='Detailed Projection'!I52 -> 148.9838647 | AS61: 22.1 | AY61: 0 | AZ61: 0 | BA61: 39.67064891 | BF61: 0 | BG61: 0 | BH61: 2.911242604 | BM61: 0 | BN61: 0 | BO61: 132.2788664 | BP61: 6.911785973 | BU61: 0 | BV61: 0 | BW61: 0 | BX61: ='Detailed Projection'!J52 -> 446.1798496 | BY61: 22.1 | CE61: 0 | CF61: 0 | CG61: 39.67064891 | CL61: 0 | CM61: 0 | CN61: 2.911242604 | CS61: 0 | CT61: 0 | CU61: 132.2788664 | CV61: 6.911785973 | DA61: 0 | DB61: 0 | DC61: 0 | DD61: 0 | DE61: 0 | DF61: 0 | DG61: 0 | DH61: 0 | DI61: 0 | DJ61: 0 | DK61: 0 | DL61: 0
B62: ='Linear Projection'!B41 -> 2042 | C62: ='Detailed Projection'!F53+(0.5*'Detailed Projection'!G53) -> 2222.124812 | D62: 22.1 | J62: 0 | K62: 0 | L62: 39.67064891 | Q62: 0 | R62: 0 | S62: 2.911242604 | X62: 0 | Y62: 0 | Z62: 132.2788664 | AA62: 6.911785973 | AF62: 0 | AG62: 0 | AH62: 0 | AI62: 0 | AJ62: 0 | AK62: 0 | AL62: 0 | AM62: 0 | AN62: 0 | AO62: 0 | AP62: 0 | AQ62: 0 | AR62: ='Detailed Projection'!I53 -> 147.4586391 | AS62: 22.1 | AY62: 0 | AZ62: 0 | BA62: 39.67064891 | BF62: 0 | BG62: 0 | BH62: 2.911242604 | BM62: 0 | BN62: 0 | BO62: 132.2788664 | BP62: 6.911785973 | BU62: 0 | BV62: 0 | BW62: 0 | BX62: ='Detailed Projection'!J53 -> 449.2729323 | BY62: 22.1 | CE62: 0 | CF62: 0 | CG62: 39.67064891 | CL62: 0 | CM62: 0 | CN62: 2.911242604 | CS62: 0 | CT62: 0 | CU62: 132.2788664 | CV62: 6.911785973 | DA62: 0 | DB62: 0 | DC62: 0 | DD62: 0 | DE62: 0 | DF62: 0 | DG62: 0 | DH62: 0 | DI62: 0 | DJ62: 0 | DK62: 0 | DL62: 0
B63: ='Linear Projection'!B42 -> 2043 | C63: ='Detailed Projection'!F54+(0.5*'Detailed Projection'!G54) -> 2232.02782 | D63: 22.1 | J63: 0 | K63: 0 | L63: 39.67064891 | Q63: 0 | R63: 0 | S63: 2.911242604 | X63: 0 | Y63: 0 | Z63: 132.2788664 | AA63: 6.911785973 | AF63: 0 | AG63: 0 | AH63: 0 | AI63: 0 | AJ63: 0 | AK63: 0 | AL63: 0 | AM63: 0 | AN63: 0 | AO63: 0 | AP63: 0 | AQ63: 0 | AR63: ='Detailed Projection'!I54 -> 145.9334135 | AS63: 22.1 | AY63: 0 | AZ63: 0 | BA63: 39.67064891 | BF63: 0 | BG63: 0 | BH63: 2.911242604 | BM63: 0 | BN63: 0 | BO63: 132.2788664 | BP63: 6.911785973 | BU63: 0 | BV63: 0 | BW63: 0 | BX63: ='Detailed Projection'!J54 -> 452.366015 | BY63: 22.1 | CE63: 0 | CF63: 0 | CG63: 39.67064891 | CL63: 0 | CM63: 0 | CN63: 2.911242604 | CS63: 0 | CT63: 0 | CU63: 132.2788664 | CV63: 6.911785973 | DA63: 0 | DB63: 0 | DC63: 0 | DD63: 0 | DE63: 0 | DF63: 0 | DG63: 0 | DH63: 0 | DI63: 0 | DJ63: 0 | DK63: 0 | DL63: 0
B64: ='Linear Projection'!B43 -> 2044 | C64: ='Detailed Projection'!F55+(0.5*'Detailed Projection'!G55) -> 2241.930827 | D64: 22.1 | J64: 0 | K64: 0 | L64: 39.67064891 | Q64: 0 | R64: 0 | S64: 2.911242604 | X64: 0 | Y64: 0 | Z64: 132.2788664 | AA64: 6.911785973 | AF64: 0 | AG64: 0 | AH64: 0 | AI64: 0 | AJ64: 0 | AK64: 0 | AL64: 0 | AM64: 0 | AN64: 0 | AO64: 0 | AP64: 0 | AQ64: 0 | AR64: ='Detailed Projection'!I55 -> 144.408188 | AS64: 22.1 | AY64: 0 | AZ64: 0 | BA64: 39.67064891 | BF64: 0 | BG64: 0 | BH64: 2.911242604 | BM64: 0 | BN64: 0 | BO64: 132.2788664 | BP64: 6.911785973 | BU64: 0 | BV64: 0 | BW64: 0 | BX64: ='Detailed Projection'!J55 -> 455.4590977 | BY64: 22.1 | CE64: 0 | CF64: 0 | CG64: 39.67064891 | CL64: 0 | CM64: 0 | CN64: 2.911242604 | CS64: 0 | CT64: 0 | CU64: 132.2788664 | CV64: 6.911785973 | DA64: 0 | DB64: 0 | DC64: 0 | DD64: 0 | DE64: 0 | DF64: 0 | DG64: 0 | DH64: 0 | DI64: 0 | DJ64: 0 | DK64: 0 | DL64: 0
B65: ='Linear Projection'!B44 -> 2045 | C65: ='Detailed Projection'!F56+(0.5*'Detailed Projection'!G56) -> 2251.833835 | D65: 22.1 | J65: 0 | K65: 0 | L65: 39.67064891 | Q65: 0 | R65: 0 | S65: 2.911242604 | X65: 0 | Y65: 0 | Z65: 132.2788664 | AA65: 6.911785973 | AF65: 0 | AG65: 0 | AH65: 0 | AI65: 0 | AJ65: 0 | AK65: 0 | AL65: 0 | AM65: 0 | AN65: 0 | AO65: 0 | AP65: 0 | AQ65: 0 | AR65: ='Detailed Projection'!I56 -> 142.8829624 | AS65: 22.1 | AY65: 0 | AZ65: 0 | BA65: 39.67064891 | BF65: 0 | BG65: 0 | BH65: 2.911242604 | BM65: 0 | BN65: 0 | BO65: 132.2788664 | BP65: 6.911785973 | BU65: 0 | BV65: 0 | BW65: 0 | BX65: ='Detailed Projection'!J56 -> 458.5521805 | BY65: 22.1 | CE65: 0 | CF65: 0 | CG65: 39.67064891 | CL65: 0 | CM65: 0 | CN65: 2.911242604 | CS65: 0 | CT65: 0 | CU65: 132.2788664 | CV65: 6.911785973 | DA65: 0 | DB65: 0 | DC65: 0 | DD65: 0 | DE65: 0 | DF65: 0 | DG65: 0 | DH65: 0 | DI65: 0 | DJ65: 0 | DK65: 0 | DL65: 0
B66: ='Linear Projection'!B45 -> 2046 | C66: ='Detailed Projection'!F57+(0.5*'Detailed Projection'!G57) -> 2261.736842 | D66: 22.1 | J66: 0 | K66: 0 | L66: 39.67064891 | Q66: 0 | R66: 0 | S66: 2.911242604 | X66: 0 | Y66: 0 | Z66: 132.2788664 | AA66: 6.911785973 | AF66: 0 | AG66: 0 | AH66: 0 | AI66: 0 | AJ66: 0 | AK66: 0 | AL66: 0 | AM66: 0 | AN66: 0 | AO66: 0 | AP66: 0 | AQ66: 0 | AR66: ='Detailed Projection'!I57 -> 141.3577368 | AS66: 22.1 | AY66: 0 | AZ66: 0 | BA66: 39.67064891 | BF66: 0 | BG66: 0 | BH66: 2.911242604 | BM66: 0 | BN66: 0 | BO66: 132.2788664 | BP66: 6.911785973 | BU66: 0 | BV66: 0 | BW66: 0 | BX66: ='Detailed Projection'!J57 -> 461.6452632 | BY66: 22.1 | CE66: 0 | CF66: 0 | CG66: 39.67064891 | CL66: 0 | CM66: 0 | CN66: 2.911242604 | CS66: 0 | CT66: 0 | CU66: 132.2788664 | CV66: 6.911785973 | DA66: 0 | DB66: 0 | DC66: 0 | DD66: 0 | DE66: 0 | DF66: 0 | DG66: 0 | DH66: 0 | DI66: 0 | DJ66: 0 | DK66: 0 | DL66: 0
B67: ='Linear Projection'!B46 -> 2047 | C67: ='Detailed Projection'!F58+(0.5*'Detailed Projection'!G58) -> 2271.63985 | D67: 22.1 | J67: 0 | K67: 0 | L67: 39.67064891 | Q67: 0 | R67: 0 | S67: 2.911242604 | X67: 0 | Y67: 0 | Z67: 132.2788664 | AA67: 6.911785973 | AF67: 0 | AG67: 0 | AH67: 0 | AI67: 0 | AJ67: 0 | AK67: 0 | AL67: 0 | AM67: 0 | AN67: 0 | AO67: 0 | AP67: 0 | AQ67: 0 | AR67: ='Detailed Projection'!I58 -> 139.8325113 | AS67: 22.1 | AY67: 0 | AZ67: 0 | BA67: 39.67064891 | BF67: 0 | BG67: 0 | BH67: 2.911242604 | BM67: 0 | BN67: 0 | BO67: 132.2788664 | BP67: 6.911785973 | BU67: 0 | BV67: 0 | BW67: 0 | BX67: ='Detailed Projection'!J58 -> 464.7383459 | BY67: 22.1 | CE67: 0 | CF67: 0 | CG67: 39.67064891 | CL67: 0 | CM67: 0 | CN67: 2.911242604 | CS67: 0 | CT67: 0 | CU67: 132.2788664 | CV67: 6.911785973 | DA67: 0 | DB67: 0 | DC67: 0 | DD67: 0 | DE67: 0 | DF67: 0 | DG67: 0 | DH67: 0 | DI67: 0 | DJ67: 0 | DK67: 0 | DL67: 0
B68: ='Linear Projection'!B47 -> 2048 | C68: ='Detailed Projection'!F59+(0.5*'Detailed Projection'!G59) -> 2281.542857 | D68: 22.1 | J68: 0 | K68: 0 | L68: 39.67064891 | Q68: 0 | R68: 0 | S68: 2.911242604 | X68: 0 | Y68: 0 | Z68: 132.2788664 | AA68: 6.911785973 | AF68: 0 | AG68: 0 | AH68: 0 | AI68: 0 | AJ68: 0 | AK68: 0 | AL68: 0 | AM68: 0 | AN68: 0 | AO68: 0 | AP68: 0 | AQ68: 0 | AR68: ='Detailed Projection'!I59 -> 138.3072857 | AS68: 22.1 | AY68: 0 | AZ68: 0 | BA68: 39.67064891 | BF68: 0 | BG68: 0 | BH68: 2.911242604 | BM68: 0 | BN68: 0 | BO68: 132.2788664 | BP68: 6.911785973 | BU68: 0 | BV68: 0 | BW68: 0 | BX68: ='Detailed Projection'!J59 -> 467.8314286 | BY68: 22.1 | CE68: 0 | CF68: 0 | CG68: 39.67064891 | CL68: 0 | CM68: 0 | CN68: 2.911242604 | CS68: 0 | CT68: 0 | CU68: 132.2788664 | CV68: 6.911785973 | DA68: 0 | DB68: 0 | DC68: 0 | DD68: 0 | DE68: 0 | DF68: 0 | DG68: 0 | DH68: 0 | DI68: 0 | DJ68: 0 | DK68: 0 | DL68: 0
B69: ='Linear Projection'!B48 -> 2049 | C69: ='Detailed Projection'!F60+(0.5*'Detailed Projection'!G60) -> 2291.445865 | D69: 22.1 | J69: 0 | K69: 0 | L69: 39.67064891 | Q69: 0 | R69: 0 | S69: 2.911242604 | X69: 0 | Y69: 0 | Z69: 132.2788664 | AA69: 6.911785973 | AF69: 0 | AG69: 0 | AH69: 0 | AI69: 0 | AJ69: 0 | AK69: 0 | AL69: 0 | AM69: 0 | AN69: 0 | AO69: 0 | AP69: 0 | AQ69: 0 | AR69: ='Detailed Projection'!I60 -> 136.7820602 | AS69: 22.1 | AY69: 0 | AZ69: 0 | BA69: 39.67064891 | BF69: 0 | BG69: 0 | BH69: 2.911242604 | BM69: 0 | BN69: 0 | BO69: 132.2788664 | BP69: 6.911785973 | BU69: 0 | BV69: 0 | BW69: 0 | BX69: ='Detailed Projection'!J60 -> 470.9245113 | BY69: 22.1 | CE69: 0 | CF69: 0 | CG69: 39.67064891 | CL69: 0 | CM69: 0 | CN69: 2.911242604 | CS69: 0 | CT69: 0 | CU69: 132.2788664 | CV69: 6.911785973 | DA69: 0 | DB69: 0 | DC69: 0 | DD69: 0 | DE69: 0 | DF69: 0 | DG69: 0 | DH69: 0 | DI69: 0 | DJ69: 0 | DK69: 0 | DL69: 0
B70: ='Linear Projection'!B49 -> 2050 | C70: ='Detailed Projection'!F61+(0.5*'Detailed Projection'!G61) -> 2301.348872 | D70: 22.1 | J70: 0 | K70: 0 | L70: 39.67064891 | Q70: 0 | R70: 0 | S70: 2.911242604 | X70: 0 | Y70: 0 | Z70: 132.2788664 | AA70: 6.911785973 | AF70: 0 | AG70: 0 | AH70: 0 | AI70: 0 | AJ70: 0 | AK70: 0 | AL70: 0 | AM70: 0 | AN70: 0 | AO70: 0 | AP70: 0 | AQ70: 0 | AR70: ='Detailed Projection'!I61 -> 135.2568346 | AS70: 22.1 | AY70: 0 | AZ70: 0 | BA70: 39.67064891 | BF70: 0 | BG70: 0 | BH70: 2.911242604 | BM70: 0 | BN70: 0 | BO70: 132.2788664 | BP70: 6.911785973 | BU70: 0 | BV70: 0 | BW70: 0 | BX70: ='Detailed Projection'!J61 -> 474.017594 | BY70: 22.1 | CE70: 0 | CF70: 0 | CG70: 39.67064891 | CL70: 0 | CM70: 0 | CN70: 2.911242604 | CS70: 0 | CT70: 0 | CU70: 132.2788664 | CV70: 6.911785973 | DA70: 0 | DB70: 0 | DC70: 0 | DD70: 0 | DE70: 0 | DF70: 0 | DG70: 0 | DH70: 0 | DI70: 0 | DJ70: 0 | DK70: 0 | DL70: 0
B71: ='Linear Projection'!B50 -> 2051 | C71: ='Detailed Projection'!F62+(0.5*'Detailed Projection'!G62) -> 2311.25188 | D71: 22.1 | J71: 0 | K71: 0 | L71: 39.67064891 | Q71: 0 | R71: 0 | S71: 2.911242604 | X71: 0 | Y71: 0 | Z71: 132.2788664 | AA71: 6.911785973 | AF71: 0 | AG71: 0 | AH71: 0 | AI71: 0 | AJ71: 0 | AK71: 0 | AL71: 0 | AM71: 0 | AN71: 0 | AO71: 0 | AP71: 0 | AQ71: 0 | AR71: ='Detailed Projection'!I62 -> 133.731609 | AS71: 22.1 | AY71: 0 | AZ71: 0 | BA71: 39.67064891 | BF71: 0 | BG71: 0 | BH71: 2.911242604 | BM71: 0 | BN71: 0 | BO71: 132.2788664 | BP71: 6.911785973 | BU71: 0 | BV71: 0 | BW71: 0 | BX71: ='Detailed Projection'!J62 -> 477.1106767 | BY71: 22.1 | CE71: 0 | CF71: 0 | CG71: 39.67064891 | CL71: 0 | CM71: 0 | CN71: 2.911242604 | CS71: 0 | CT71: 0 | CU71: 132.2788664 | CV71: 6.911785973 | DA71: 0 | DB71: 0 | DC71: 0 | DD71: 0 | DE71: 0 | DF71: 0 | DG71: 0 | DH71: 0 | DI71: 0 | DJ71: 0 | DK71: 0 | DL71: 0
B72: ='Linear Projection'!B51 -> 2052 | C72: ='Detailed Projection'!F63+(0.5*'Detailed Projection'!G63) -> 2321.154887 | D72: 22.1 | J72: 0 | K72: 0 | L72: 39.67064891 | Q72: 0 | R72: 0 | S72: 2.911242604 | X72: 0 | Y72: 0 | Z72: 132.2788664 | AA72: 6.911785973 | AF72: 0 | AG72: 0 | AH72: 0 | AI72: 0 | AJ72: 0 | AK72: 0 | AL72: 0 | AM72: 0 | AN72: 0 | AO72: 0 | AP72: 0 | AQ72: 0 | AR72: ='Detailed Projection'!I63 -> 132.2063835 | AS72: 22.1 | AY72: 0 | AZ72: 0 | BA72: 39.67064891 | BF72: 0 | BG72: 0 | BH72: 2.911242604 | BM72: 0 | BN72: 0 | BO72: 132.2788664 | BP72: 6.911785973 | BU72: 0 | BV72: 0 | BW72: 0 | BX72: ='Detailed Projection'!J63 -> 480.2037594 | BY72: 22.1 | CE72: 0 | CF72: 0 | CG72: 39.67064891 | CL72: 0 | CM72: 0 | CN72: 2.911242604 | CS72: 0 | CT72: 0 | CU72: 132.2788664 | CV72: 6.911785973 | DA72: 0 | DB72: 0 | DC72: 0 | DD72: 0 | DE72: 0 | DF72: 0 | DG72: 0 | DH72: 0 | DI72: 0 | DJ72: 0 | DK72: 0 | DL72: 0
B73: ='Linear Projection'!B52 -> 2053 | C73: ='Detailed Projection'!F64+(0.5*'Detailed Projection'!G64) -> 2331.057895 | D73: 22.1 | J73: 0 | K73: 0 | L73: 39.67064891 | Q73: 0 | R73: 0 | S73: 2.911242604 | X73: 0 | Y73: 0 | Z73: 132.2788664 | AA73: 6.911785973 | AF73: 0 | AG73: 0 | AH73: 0 | AI73: 0 | AJ73: 0 | AK73: 0 | AL73: 0 | AM73: 0 | AN73: 0 | AO73: 0 | AP73: 0 | AQ73: 0 | AR73: ='Detailed Projection'!I64 -> 130.6811579 | AS73: 22.1 | AY73: 0 | AZ73: 0 | BA73: 39.67064891 | BF73: 0 | BG73: 0 | BH73: 2.911242604 | BM73: 0 | BN73: 0 | BO73: 132.2788664 | BP73: 6.911785973 | BU73: 0 | BV73: 0 | BW73: 0 | BX73: ='Detailed Projection'!J64 -> 483.2968421 | BY73: 22.1 | CE73: 0 | CF73: 0 | CG73: 39.67064891 | CL73: 0 | CM73: 0 | CN73: 2.911242604 | CS73: 0 | CT73: 0 | CU73: 132.2788664 | CV73: 6.911785973 | DA73: 0 | DB73: 0 | DC73: 0 | DD73: 0 | DE73: 0 | DF73: 0 | DG73: 0 | DH73: 0 | DI73: 0 | DJ73: 0 | DK73: 0 | DL73: 0
B74: ='Linear Projection'!B53 -> 2054 | C74: ='Detailed Projection'!F65+(0.5*'Detailed Projection'!G65) -> 2340.960902 | D74: 22.1 | J74: =((C74*E74)+(C74*F74)/2)*G74*H74*I74 -> 0 | K74: 0 | L74: 39.67064891 | Q74: =((C74*M74)*N74*O74*P74) -> 0 | R74: 0 | S74: 2.911242604 | X74: =((C74*T74)*U74*V74*W74) -> 0 | Y74: 0 | Z74: 132.2788664 | AA74: 6.911785973 | AF74: =((C74*AB74)*AC74*AD74*AE74) -> 0 | AG74: 0 | AH74: 0 | AI74: 0 | AJ74: 0 | AK74: 0 | AL74: 0 | AM74: 0 | AN74: 0 | AO74: 0 | AP74: 0 | AQ74: 0 | AR74: ='Detailed Projection'!I65 -> 129.1559323 | AS74: 22.1 | AY74: =((AR74*AT74)+(AR74*AU74)/2)*AV74*AW74*AX74 -> 0 | AZ74: 0 | BA74: 39.67064891 | BF74: =((AR74*BB74)*BC74*BD74*BE74) -> 0 | BG74: 0 | BH74: 2.911242604 | BM74: =((AR74*BI74)*BJ74*BK74*BL74) -> 0 | BN74: 0 | BO74: 132.2788664 | BP74: 6.911785973 | BU74: =((AR74*BQ74)*BR74*BS74*BT74) -> 0 | BV74: 0 | BW74: 0 | BX74: ='Detailed Projection'!J65 -> 486.3899248 | BY74: 22.1 | CE74: =((BX74*BZ74)+(BX74*CA74)/2)*CB74*CC74*CD74 -> 0 | CF74: 0 | CG74: 39.67064891 | CL74: =((BX74*CH74)*CI74*CJ74*CK74) -> 0 | CM74: 0 | CN74: 2.911242604 | CS74: =((BX74*CO74)*CP74*CQ74*CR74) -> 0 | CT74: 0 | CU74: 132.2788664 | CV74: 6.911785973 | DA74: =((BX74*CW74)*CX74*CY74*CZ74) -> 0 | DB74: 0 | DC74: 0 | DD74: 0 | DE74: 0 | DF74: 0 | DG74: 0 | DH74: 0 | DI74: 0 | DJ74: 0 | DK74: 0 | DL74: 0
B75: ='Linear Projection'!B54 -> 2055 | C75: ='Detailed Projection'!F66+(0.5*'Detailed Projection'!G66) -> 2350.86391 | D75: 22.1 | J75: 0 | K75: =J75/D75 -> 0 | L75: 39.67064891 | Q75: 0 | R75: =Q75/L75 -> 0 | S75: 2.911242604 | X75: 0 | Y75: =X75/S75 -> 0 | Z75: 132.2788664 | AA75: 6.911785973 | AF75: 0 | AG75: =AF75/Z75 -> 0 | AH75: =AF75/AA75 -> 0 | AI75: =J75 -> 0 | AJ75: =K75 -> 0 | AK75: =Q75 -> 0 | AL75: =R75 -> 0 | AM75: =X75 -> 0 | AN75: =Y75 -> 0 | AO75: =AF75 -> 0 | AP75: =AG75 -> 0 | AQ75: =AH75 -> 0 | AR75: ='Detailed Projection'!I66 -> 127.6307068 | AS75: 22.1 | AY75: 0 | AZ75: =AY75/AS75 -> 0 | BA75: 39.67064891 | BF75: 0 | BG75: =BF75/BA75 -> 0 | BH75: 2.911242604 | BM75: 0 | BN75: =BM75/BH75 -> 0 | BO75: 132.2788664 | BP75: 6.911785973 | BU75: 0 | BV75: =BU75/BO75 -> 0 | BW75: =BU75/BP75 -> 0 | BX75: ='Detailed Projection'!J66 -> 489.4830075 | BY75: 22.1 | CE75: 0 | CF75: =CE75/BY75 -> 0 | CG75: 39.67064891 | CL75: 0 | CM75: =CL75/CG75 -> 0 | CN75: 2.911242604 | CS75: 0 | CT75: =CS75/CN75 -> 0 | CU75: 132.2788664 | CV75: 6.911785973 | DA75: 0 | DB75: =DA75/CU75 -> 0 | DC75: =DA75/CV75 -> 0 | DD75: =AY75+CE75 -> 0 | DE75: =AZ75+CF75 -> 0 | DF75: =BF75+CL75 -> 0 | DG75: =BG75+CM75 -> 0 | DH75: =BM75+CS75 -> 0 | DI75: =BN75+CT75 -> 0 | DJ75: =BU75+DA75 -> 0 | DK75: =BV75+DB75 -> 0 | DL75: =BW75+DC75 -> 0
B76: ='Linear Projection'!B55 -> 2056 | C76: ='Detailed Projection'!F67+(0.5*'Detailed Projection'!G67) -> 2360.766917 | D76: 22.1 | J76: 0 | K76: 0 | L76: 39.67064891 | Q76: 0 | R76: 0 | S76: 2.911242604 | X76: 0 | Y76: 0 | Z76: 132.2788664 | AA76: 6.911785973 | AF76: 0 | AG76: 0 | AH76: 0 | AI76: 0 | AJ76: 0 | AK76: 0 | AL76: 0 | AM76: 0 | AN76: 0 | AO76: 0 | AP76: 0 | AQ76: 0 | AR76: ='Detailed Projection'!I67 -> 126.1054812 | AS76: 22.1 | AY76: 0 | AZ76: 0 | BA76: 39.67064891 | BF76: 0 | BG76: 0 | BH76: 2.911242604 | BM76: 0 | BN76: 0 | BO76: 132.2788664 | BP76: 6.911785973 | BU76: 0 | BV76: 0 | BW76: 0 | BX76: ='Detailed Projection'!J67 -> 492.5760902 | BY76: 22.1 | CE76: 0 | CF76: 0 | CG76: 39.67064891 | CL76: 0 | CM76: 0 | CN76: 2.911242604 | CS76: 0 | CT76: 0 | CU76: 132.2788664 | CV76: 6.911785973 | DA76: 0 | DB76: 0 | DC76: 0 | DD76: 0 | DE76: 0 | DF76: 0 | DG76: 0 | DH76: 0 | DI76: 0 | DJ76: 0 | DK76: 0 | DL76: 0
B77: ='Linear Projection'!B56 -> 2057 | C77: ='Detailed Projection'!F68+(0.5*'Detailed Projection'!G68) -> 2370.669925 | D77: 22.1 | J77: 0 | K77: 0 | L77: 39.67064891 | Q77: 0 | R77: 0 | S77: 2.911242604 | X77: 0 | Y77: 0 | Z77: 132.2788664 | AA77: 6.911785973 | AF77: 0 | AG77: 0 | AH77: 0 | AI77: 0 | AJ77: 0 | AK77: 0 | AL77: 0 | AM77: 0 | AN77: 0 | AO77: 0 | AP77: 0 | AQ77: 0 | AR77: ='Detailed Projection'!I68 -> 124.5802556 | AS77: 22.1 | AY77: 0 | AZ77: 0 | BA77: 39.67064891 | BF77: 0 | BG77: 0 | BH77: 2.911242604 | BM77: 0 | BN77: 0 | BO77: 132.2788664 | BP77: 6.911785973 | BU77: 0 | BV77: 0 | BW77: 0 | BX77: ='Detailed Projection'!J68 -> 495.6691729 | BY77: 22.1 | CE77: 0 | CF77: 0 | CG77: 39.67064891 | CL77: 0 | CM77: 0 | CN77: 2.911242604 | CS77: 0 | CT77: 0 | CU77: 132.2788664 | CV77: 6.911785973 | DA77: 0 | DB77: 0 | DC77: 0 | DD77: 0 | DE77: 0 | DF77: 0 | DG77: 0 | DH77: 0 | DI77: 0 | DJ77: 0 | DK77: 0 | DL77: 0
B78: ='Linear Projection'!B57 -> 2058 | C78: ='Detailed Projection'!F69+(0.5*'Detailed Projection'!G69) -> 2380.572932 | D78: 22.1 | J78: 0 | K78: 0 | L78: 39.67064891 | Q78: 0 | R78: 0 | S78: 2.911242604 | X78: 0 | Y78: 0 | Z78: 132.2788664 | AA78: 6.911785973 | AF78: 0 | AG78: 0 | AH78: 0 | AI78: 0 | AJ78: 0 | AK78: 0 | AL78: 0 | AM78: 0 | AN78: 0 | AO78: 0 | AP78: 0 | AQ78: 0 | AR78: ='Detailed Projection'!I69 -> 123.0550301 | AS78: 22.1 | AY78: 0 | AZ78: 0 | BA78: 39.67064891 | BF78: 0 | BG78: 0 | BH78: 2.911242604 | BM78: 0 | BN78: 0 | BO78: 132.2788664 | BP78: 6.911785973 | BU78: 0 | BV78: 0 | BW78: 0 | BX78: ='Detailed Projection'!J69 -> 498.7622556 | BY78: 22.1 | CE78: 0 | CF78: 0 | CG78: 39.67064891 | CL78: 0 | CM78: 0 | CN78: 2.911242604 | CS78: 0 | CT78: 0 | CU78: 132.2788664 | CV78: 6.911785973 | DA78: 0 | DB78: 0 | DC78: 0 | DD78: 0 | DE78: 0 | DF78: 0 | DG78: 0 | DH78: 0 | DI78: 0 | DJ78: 0 | DK78: 0 | DL78: 0
B79: ='Linear Projection'!B58 -> 2059 | C79: ='Detailed Projection'!F70+(0.5*'Detailed Projection'!G70) -> 2390.47594 | D79: 22.1 | J79: 0 | K79: 0 | L79: 39.67064891 | Q79: 0 | R79: 0 | S79: 2.911242604 | X79: 0 | Y79: 0 | Z79: 132.2788664 | AA79: 6.911785973 | AF79: 0 | AG79: 0 | AH79: 0 | AI79: 0 | AJ79: 0 | AK79: 0 | AL79: 0 | AM79: 0 | AN79: 0 | AO79: 0 | AP79: 0 | AQ79: 0 | AR79: ='Detailed Projection'!I70 -> 121.5298045 | AS79: 22.1 | AY79: 0 | AZ79: 0 | BA79: 39.67064891 | BF79: 0 | BG79: 0 | BH79: 2.911242604 | BM79: 0 | BN79: 0 | BO79: 132.2788664 | BP79: 6.911785973 | BU79: 0 | BV79: 0 | BW79: 0 | BX79: ='Detailed Projection'!J70 -> 501.8553383 | BY79: 22.1 | CE79: 0 | CF79: 0 | CG79: 39.67064891 | CL79: 0 | CM79: 0 | CN79: 2.911242604 | CS79: 0 | CT79: 0 | CU79: 132.2788664 | CV79: 6.911785973 | DA79: 0 | DB79: 0 | DC79: 0 | DD79: 0 | DE79: 0 | DF79: 0 | DG79: 0 | DH79: 0 | DI79: 0 | DJ79: 0 | DK79: 0 | DL79: 0
B80: ='Linear Projection'!B59 -> 2060 | C80: ='Detailed Projection'!F71+(0.5*'Detailed Projection'!G71) -> 2400.378947 | D80: 22.1 | J80: 0 | K80: 0 | L80: 39.67064891 | Q80: 0 | R80: 0 | S80: 2.911242604 | X80: 0 | Y80: 0 | Z80: 132.2788664 | AA80: 6.911785973 | AF80: 0 | AG80: 0 | AH80: 0 | AI80: 0 | AJ80: 0 | AK80: 0 | AL80: 0 | AM80: 0 | AN80: 0 | AO80: 0 | AP80: 0 | AQ80: 0 | AR80: ='Detailed Projection'!I71 -> 120.0045789 | AS80: 22.1 | AY80: 0 | AZ80: 0 | BA80: 39.67064891 | BF80: 0 | BG80: 0 | BH80: 2.911242604 | BM80: 0 | BN80: 0 | BO80: 132.2788664 | BP80: 6.911785973 | BU80: 0 | BV80: 0 | BW80: 0 | BX80: ='Detailed Projection'!J71 -> 504.9484211 | BY80: 22.1 | CE80: 0 | CF80: 0 | CG80: 39.67064891 | CL80: 0 | CM80: 0 | CN80: 2.911242604 | CS80: 0 | CT80: 0 | CU80: 132.2788664 | CV80: 6.911785973 | DA80: 0 | DB80: 0 | DC80: 0 | DD80: 0 | DE80: 0 | DF80: 0 | DG80: 0 | DH80: 0 | DI80: 0 | DJ80: 0 | DK80: 0 | DL80: 0
C81: Input | D81: =Reference!$B$9 -> 3 | J81: Total Distance = ((Students * % Drive Alone) + (Students * % Carpool)/2) * (Trips / Week) * (Weeks / Year) x (Miles / Trip) | K81: Fuel Consumption = Total Distance / Fuel Efficiency | L81: =Reference!$B$28 -> 22 | Q81: Total Distance = (Students * % Commuting by Bus) * Trips / Week * Weeks / Year * Miles / Trip | R81: Fuel Consumption = Total Distance / Fuel Efficiency | S81: =Reference!$B$28 -> 22 | X81: Total Distance = ((Total Students x % Commuting by Light Rail) x Trips/Week x Weeks/Year x Miles/Trip | Y81: Fuel Consumption = Total Distance / Fuel Efficiency | Z81: =Reference!$B$28 -> 22 | AA81: =Reference!$B$28 -> 22 | AF81: Total Distance = ((Total Students x % Commuting by Commuter Rail Rail) x Trips/Week x Weeks/Year x Miles/Trip | AG81: Fuel Consumption = Total Distance / Fuel Efficiency | AH81: Fuel Consumption = Total Distance / Fuel Efficiency | AR81: Input | AS81: =Reference!$B$9 -> 3 | AY81: Total Distance = ((Total Faculty x % Drive Alone) + (Total Faculty x % Carpool)/2) x Trips/Week x Weeks/Year x Miles/Trip | AZ81: Fuel Consumption = Total Distance / Fuel Efficiency | BA81: =Reference!$B$28 -> 22 | BF81: Total Distance = (Total Faculty Commuting by Bus) x Trips/Week x Weeks/Year x Miles/Trip | BG81: Fuel Consumption = Total Distance / Fuel Efficiency | BH81: =Reference!$B$28 -> 22 | BM81: Total Distance = (Total Faculty Commuting by Light Rail) x Trips/Week x Weeks/Year x Miles/Trip | BN81: Fuel Consumption = Total Distance / Fuel Efficiency | BO81: =Reference!$B$28 -> 22 | BP81: =Reference!$B$28 -> 22 | BU81: Total Distance = (Total Faculty Commuting by Commuter Rail) x Trips/Week x Weeks/Year x Miles/Trip | BV81: Fuel Consumption = Total Distance / Fuel Efficiency | BW81: Fuel Consumption = Total Distance / Fuel Efficiency | BX81: Input | BY81: =Reference!$B$9 -> 3 | CE81: Total Distance = ((Total Staff x % Drive Alone) + (Total Students x % Carpool)/2) x Trips/Week x Weeks/Year x Miles/Trip | CF81: Fuel Consumption = Total Distance / Fuel Efficiency | CG81: 22 | CL81: Total Distance = (Total Staff Commuting by Bus) x Trips/Week x Weeks/Year x Miles/Trip | CM81: Fuel Consumption = Total Distance / Fuel Efficiency | CN81: =Reference!$B$28 -> 22 | CS81: Total Distance = (Total Staff Commuting by Light Rail) x Trips/Week x Weeks/Year x Miles/Trip | CT81: Fuel Consumption = Total Distance / Fuel Efficiency | CU81: =Reference!$B$28 -> 22 | CV81: =Reference!$B$28 -> 22 | DA81: Total Distance = (Total Staff Commuting by Light Rail) x Trips/Week x Weeks/Year x Miles/Trip | DB81: Fuel Consumption = Total Distance / Fuel Efficiency | DC81: Fuel Consumption = Total Distance / Fuel Efficiency
B83: ©2001-2010 Clean Air-Cool Planet, Inc. All rights reserved
B84: Clean Air-Cool Planet, Campus Carbon Calculator, and the Clean Air-Cool Planet logo are trademarks of Clean Air-Cool Planet, Inc.

Sheet S_CO2
B2: On this Worksheet: CO2 emissions from all sources. These numbers are the product of the emission factor and the input data. Some sources have no formulas because they have no CO2 emissions, but are included to keep formatting consistent.
B3: MODULE | C3: Summary
B4: WORKSHEET | C4: CO2
B5: UNIVERSITY | C5: =IF((ISBLANK(Introduction!$G$10)),"Please enter university name on 'Introduction' sheet",Introduction!$G$10) -> Macalester College
C6: --- Scope 1 Emissions Sources --- | BA6: --- Scope 2 Emissions Sources --- | BD6: --- Scope 3 Emissions Sources --- | CI6: --- Offsets ---
C7: On-Campus Stationary Sources | AA7: Direct Transportation Sources | AK7: Refrigerants & Chemicals | AQ7: Agriculture Sources | BA7: Electricity, Steam, and Chilled Water | BD7: Commuting | BL7: Directly Financed Outsourced Travel | BS7: Study Abroad Travel | BT7: Solid Waste | BY7: Wastewater | CC7: Paper | CH7: Misc
B8: Fiscal Year | C8: On-Campus Cogeneration Plant(s) | O8: Other On-Campus Stationary Sources | AA8: University Fleet | AK8: Refrigerants & Chemicals | AQ8: Fertilizer | AS8: Animal Husbandry | BA8: Electricity | BB8: Steam | BC8: Chilled Water | BD8: Faculty / Staff Commuting | BH8: Student Commuting | BL8: Air Travel | BN8: Other | BT8: Incinerated Waste | BV8: Landfilled Waste | BY8: Septic System | BZ8: Central Treatment System | CC8: =Input!$CT$8 -> Uncoated Freesheet | CD8: =Input!$CU$8 -> Uncoated Freesheet | CE8: =Input!$CV$8 -> Uncoated Freesheet | CF8: =Input!$CW$8 -> Uncoated Freesheet | CG8: =Input!$CX$8 -> Uncoated Freesheet | CH8: Scope 2 | CI8: Offsets with Additionality | CN8: Non-Additional Renewable Energy Certificates (RECs)
C9: Residual Oil (#5-6) | D9: Distillate Oil (#1-4) | E9: Natural Gas | F9: LPG (Propane) | G9: Coal (Steam Coal) | H9: Incinerated Waste | I9: Wood Chips | J9: Wood Pellets | K9: Grass Pellets | L9: Residual BioHeat | M9: Distillate BioHeat | N9: Other Biogenic | O9: Residual Oil (#5-6) | P9: Distillate Oil (#1-4) | Q9: Natural Gas | R9: LPG (Propane) | S9: Coal (Steam Coal) | T9: Incinerated Waste | U9: Wood Chips | V9: Wood Pellets | W9: Grass Pellets | X9: Residual BioHeat | Y9: Distillate BioHeat | Z9: Other Biogenic | AA9: Gasoline Fleet | AB9: Diesel Fleet | AC9: Natural Gas Fleet | AD9: E85 Fleet | AE9: B5 Fleet | AF9: B20 Fleet | AG9: B100 | AH9: Hydrogen | AI9: Other Fleet Fuel | AJ9: Electric Fleet | AK9: =Input!$AZ$9 -> HFC-134a | AL9: =Input!$BA$9 -> HFC-404a | AM9: =Input!$BB$9 -> HCFC-22 | AN9: =Input!$BC$9 -> HCFE-235da2 | AO9: =Input!$BD$9 -> HG-10 | AP9: =Input!$BE$9 -> Other | AQ9: Synthetic | AR9: Organic | AS9: Dairy Cows | AT9: Beef Cows | AU9: Swine | AV9: Goats | AW9: Sheep | AX9: Horses | AY9: Poultry | AZ9: Other | BD9: Automobile | BE9: Bus | BF9: Light Rail | BG9: Commuter Rail | BH9: Automobile | BI9: Bus | BJ9: Light Rail | BK9: Commuter Rail | BL9: Faculty / Staff | BM9: Students | BN9: Train | BO9: Taxi / Ferry / Rental Car | BP9: Bus | BQ9: Alternative Fuel Bus | BR9: Personal Mileage Reimbursement | BS9: Air | BT9: Mass Burn | BU9: Refuse Derived Fuel (RDF) | BV9: No CH4 Recovery | BW9: CH4 Recovery and Flaring | BX9: CH4 Recovery and Electric Generation | BZ9: Aerobic | CA9: Anaerobic | CB9: Anaerobic Digestion | CC9: =Input!$CT$9 -> 0 | CD9: =Input!$CU$9 -> 0.3 | CE9: =Input!$CV$9 -> 0.5 | CF9: =Input!$CW$9 -> 0.75 | CG9: =Input!$CX$9 -> 1 | CH9: Transportation & Distribution Losses | CI9: On-campus Composting | CJ9: Forest Preservation | CK9: Retail Offsets (High End) | CL9: Retail Offsets (Low End) | CM9: Other | CN9: Green Power Certificates | CO9: Retail Offsets (High End) | CP9: Retail Offsets (Low End) | CQ9: Other
C10: kg CO2 | D10: kg CO2 | E10: kg CO2 | F10: kg CO2 | G10: kg CO2 | H10: kg CO2 | I10: kg CO2 | J10: kg CO2 | K10: kg CO2 | L10: kg CO2 | M10: kg CO2 | N10: kg CO2 | O10: kg CO2 | P10: kg CO2 | Q10: kg CO2 | R10: kg CO2 | S10: kg CO2 | T10: kg CO2 | U10: kg CO2 | V10: kg CO2 | W10: kg CO2 | X10: kg CO2 | Y10: kg CO2 | Z10: kg CO2 | AA10: kg CO2 | AB10: kg CO2 | AC10: kg CO2 | AD10: kg CO2 | AE10: kg CO2 | AF10: kg CO2 | AG10: kg CO2 | AH10: kg CO2 | AI10: kg CO2 | AJ10: kg CO2 | AK10: kg CO2 | AL10: kg CO2 | AM10: kg CO2 | AN10: kg CO2 | AO10: kg CO2 | AP10: kg CO2 | AQ10: kg CO2 | AR10: kg CO2 | AS10: kg CO2 | AT10: kg CO2 | AU10: kg CO2 | AV10: kg CO2 | AW10: kg CO2 | AX10: kg CO2 | AY10: kg CO2 | AZ10: kg CO2 | BA10: kg CO2 | BB10: kg CO2 | BC10: kg CO2 | BD10: kg CO2 | BE10: kg CO2 | BF10: kg CO2 | BG10: kg CO2 | BH10: kg CO2 | BI10: kg CO2 | BJ10: kg CO2 | BK10: kg CO2 | BL10: kg CO2 | BM10: kg CO2 | BN10: kg CO2 | BO10: kg CO2 | BP10: kg CO2 | BQ10: kg CO2 | BR10: kg CO2 | BS10: kg CO2 | BT10: kg CO2 | BU10: kg CO2 | BV10: kg CO2 | BW10: kg CO2 | BX10: kg CO2 | BY10: kg CO2 | BZ10: kg CO2 | CA10: kg CO2 | CB10: kg CO2 | CC10: kg CO2 | CD10: kg CO2 | CE10: kg CO2 | CF10: kg CO2 | CG10: kg CO2 | CH10: kg CO2 | CI10: kg CO2 | CJ10: kg CO2 | CK10: kg CO2 | CL10: kg CO2 | CM10: kg CO2 | CN10: kg CO2 | CO10: kg CO2 | CP10: kg CO2 | CQ10: kg CO2
B11: =Input!C11 -> 1990 | C11: =Input!N11*EF_CO2!C11 -> 0 | D11: =Input!O11*EF_CO2!D11 -> 0 | E11: =Input!P11*EF_CO2!E11 -> 0 | F11: =Input!Q11*EF_CO2!F11 -> 0 | G11: =Input!R11*EF_CO2!G11 -> 0 | H11: =Input!S11*EF_CO2!H11 -> 0 | I11: =Input!T11*EF_CO2!I11 -> 0 | J11: =Input!U11*EF_CO2!J11 -> 0 | K11: =Input!V11*EF_CO2!K11 -> 0 | L11: =Input!W11*EF_CO2!L11 -> 0 | M11: =Input!X11*EF_CO2!M11 -> 0 | N11: =Input!Y11*EF_CO2!N11 -> 0 | O11: =Input!AD11*EF_CO2!C11 -> 0 | P11: =Input!AE11*EF_CO2!D11 -> 0 | Q11: =Input!AF11*EF_CO2!E11 -> 0 | R11: =Input!AG11*EF_CO2!F11 -> 0 | S11: =Input!AH11*EF_CO2!G11 -> 0 | T11: =Input!AI11*EF_CO2!H11 -> 0 | U11: =Input!AJ11*EF_CO2!I11 -> 0 | V11: =Input!AK11*EF_CO2!J11 -> 0 | W11: =Input!AL11*EF_CO2!K11 -> 0 | X11: =Input!AM11*EF_CO2!L11 -> 0 | Y11: =Input!AN11*EF_CO2!M11 -> 0 | Z11: =Input!AO11*EF_CO2!N11 -> 0 | AA11: =Input!AP11*EF_CO2!O11 -> 0 | AB11: =Input!AQ11*EF_CO2!P11 -> 0 | AC11: =Input!AR11*EF_CO2!Q11 -> 0 | AD11: =Input!AS11*EF_CO2!R11 -> 0 | AE11: =Input!AT11*EF_CO2!S11 -> 0 | AF11: =Input!AU11*EF_CO2!T11 -> 0 | AG11: =Input!AV11*EF_CO2!U11 -> 0 | AH11: =Input!AW11*EF_CO2!V11 -> 0 | AI11: =Input!AX11*EF_CO2!W11 -> 0 | AJ11: =Input!AY11*EF_CO2!AN11 -> 0 | BA11: =Input!BR11*EF_CO2!AN11 -> 0 | BB11: =Input!BS11*EF_CO2!AO11 -> 0 | BC11: =Input!BT11*EF_CO2!AP11 -> 0 | BD11: =Input!BU11*EF_CO2!AQ11 -> 0 | BE11: =Input!BV11*EF_CO2!AR11 -> 0 | BF11: =Input!BW11*EF_CO2!AS11 -> 0 | BG11: =Input!BX11*EF_CO2!AT11 -> 0 | BH11: =Input!BY11*EF_CO2!AU11 -> 0 | BI11: =Input!BZ11*EF_CO2!AV11 -> 0 | BJ11: =Input!CA11*EF_CO2!AW11 -> 0 | BK11: =Input!CB11*EF_CO2!AX11 -> 0 | BL11: =Input!CC11*EF_CO2!AY11 -> 0 | BM11: =Input!CD11*EF_CO2!AZ11 -> 0 | BN11: =Input!CE11*EF_CO2!BA11 -> 0 | BO11: =Input!CF11*EF_CO2!BB11 -> 0 | BP11: =Input!CG11*EF_CO2!BC11 -> 0 | BQ11: =Input!CH11*EF_CO2!BD11 -> 0 | BR11: =Input!CI11*EF_CO2!BE11 -> 0 | BS11: =Input!CJ11*EF_CO2!BF11 -> 0 | BT11: =Input!CK11*EF_CO2!BG11 -> 0 | BU11: =Input!CL11*EF_CO2!BH11 -> 0 | CH11: =((EF_Electric!H12*BA11)/(1-EF_Electric!H12))+((EF_Steam!C9*BB11)/(1-EF_Steam!C9))+((EF_Water!C9*BC11)/(1-EF_Water!C9)) -> 0
B12: =Input!C12 -> 1991 | C12: =Input!N12*EF_CO2!C12 -> 0 | D12: =Input!O12*EF_CO2!D12 -> 0 | E12: =Input!P12*EF_CO2!E12 -> 0 | F12: =Input!Q12*EF_CO2!F12 -> 0 | G12: =Input!R12*EF_CO2!G12 -> 0 | H12: =Input!S12*EF_CO2!H12 -> 0 | I12: =Input!T12*EF_CO2!I12 -> 0 | J12: =Input!U12*EF_CO2!J12 -> 0 | K12: =Input!V12*EF_CO2!K12 -> 0 | L12: =Input!W12*EF_CO2!L12 -> 0 | M12: =Input!X12*EF_CO2!M12 -> 0 | N12: =Input!Y12*EF_CO2!N12 -> 0 | O12: =Input!AD12*EF_CO2!C12 -> 0 | P12: =Input!AE12*EF_CO2!D12 -> 0 | Q12: =Input!AF12*EF_CO2!E12 -> 3649739.908 | R12: =Input!AG12*EF_CO2!F12 -> 0 | S12: =Input!AH12*EF_CO2!G12 -> 0 | T12: =Input!AI12*EF_CO2!H12 -> 0 | U12: =Input!AJ12*EF_CO2!I12 -> 0 | V12: =Input!AK12*EF_CO2!J12 -> 0 | W12: =Input!AL12*EF_CO2!K12 -> 0 | X12: =Input!AM12*EF_CO2!L12 -> 0 | Y12: =Input!AN12*EF_CO2!M12 -> 0 | Z12: =Input!AO12*EF_CO2!N12 -> 0 | AA12: =Input!AP12*EF_CO2!O12 -> 121110.4534 | AB12: =Input!AQ12*EF_CO2!P12 -> 0 | AC12: =Input!AR12*EF_CO2!Q12 -> 0 | AD12: =Input!AS12*EF_CO2!R12 -> 0 | AE12: =Input!AT12*EF_CO2!S12 -> 0 | AF12: =Input!AU12*EF_CO2!T12 -> 0 | AG12: =Input!AV12*EF_CO2!U12 -> 0 | AH12: =Input!AW12*EF_CO2!V12 -> 0 | AI12: =Input!AX12*EF_CO2!W12 -> 0 | AJ12: =Input!AY12*EF_CO2!AN12 -> 0 | BA12: =Input!BR12*EF_CO2!AN12 -> 5563551.041 | BB12: =Input!BS12*EF_CO2!AO12 -> 0 | BC12: =Input!BT12*EF_CO2!AP12 -> 0 | BD12: =Input!BU12*EF_CO2!AQ12 -> 521516.9752 | BE12: =Input!BV12*EF_CO2!AR12 -> 11817.65797 | BF12: =Input!BW12*EF_CO2!AS12 -> 0 | BG12: =Input!BX12*EF_CO2!AT12 -> 0 | BH12: =Input!BY12*EF_CO2!AU12 -> 51005.93809 | BI12: =Input!BZ12*EF_CO2!AV12 -> 2778.915496 | BJ12: =Input!CA12*EF_CO2!AW12 -> 0 | BK12: =Input!CB12*EF_CO2!AX12 -> 0 | BL12: =Input!CC12*EF_CO2!AY12 -> 3001098.913 | BM12: =Input!CD12*EF_CO2!AZ12 -> 0 | BN12: =Input!CE12*EF_CO2!BA12 -> 0 | BO12: =Input!CF12*EF_CO2!BB12 -> 0 | BP12: =Input!CG12*EF_CO2!BC12 -> 0 | BQ12: =Input!CH12*EF_CO2!BD12 -> 0 | BR12: =Input!CI12*EF_CO2!BE12 -> 0 | BS12: =Input!CJ12*EF_CO2!BF12 -> 0 | BT12: =Input!CK12*EF_CO2!BG12 -> 0 | BU12: =Input!CL12*EF_CO2!BH12 -> -12356.66667 | CH12: =((EF_Electric!H13*BA12)/(1-EF_Electric!H13))+((EF_Steam!C10*BB12)/(1-EF_Steam!C10))+((EF_Water!C10*BC12)/(1-EF_Water!C10)) -> 550241.3118
B13: =Input!C13 -> 1992 | C13: =Input!N13*EF_CO2!C13 -> 0 | D13: =Input!O13*EF_CO2!D13 -> 0 | E13: =Input!P13*EF_CO2!E13 -> 0 | F13: =Input!Q13*EF_CO2!F13 -> 0 | G13: =Input!R13*EF_CO2!G13 -> 0 | H13: =Input!S13*EF_CO2!H13 -> 0 | I13: =Input!T13*EF_CO2!I13 -> 0 | J13: =Input!U13*EF_CO2!J13 -> 0 | K13: =Input!V13*EF_CO2!K13 -> 0 | L13: =Input!W13*EF_CO2!L13 -> 0 | M13: =Input!X13*EF_CO2!M13 -> 0 | N13: =Input!Y13*EF_CO2!N13 -> 0 | O13: =Input!AD13*EF_CO2!C13 -> 0 | P13: =Input!AE13*EF_CO2!D13 -> 0 | Q13: =Input!AF13*EF_CO2!E13 -> 3885963.505 | R13: =Input!AG13*EF_CO2!F13 -> 0 | S13: =Input!AH13*EF_CO2!G13 -> 0 | T13: =Input!AI13*EF_CO2!H13 -> 0 | U13: =Input!AJ13*EF_CO2!I13 -> 0 | V13: =Input!AK13*EF_CO2!J13 -> 0 | W13: =Input!AL13*EF_CO2!K13 -> 0 | X13: =Input!AM13*EF_CO2!L13 -> 0 | Y13: =Input!AN13*EF_CO2!M13 -> 0 | Z13: =Input!AO13*EF_CO2!N13 -> 0 | AA13: =Input!AP13*EF_CO2!O13 -> 97031.24144 | AB13: =Input!AQ13*EF_CO2!P13 -> 0 | AC13: =Input!AR13*EF_CO2!Q13 -> 0 | AD13: =Input!AS13*EF_CO2!R13 -> 0 | AE13: =Input!AT13*EF_CO2!S13 -> 0 | AF13: =Input!AU13*EF_CO2!T13 -> 0 | AG13: =Input!AV13*EF_CO2!U13 -> 0 | AH13: =Input!AW13*EF_CO2!V13 -> 0 | AI13: =Input!AX13*EF_CO2!W13 -> 0 | AJ13: =Input!AY13*EF_CO2!AN13 -> 0 | BA13: =Input!BR13*EF_CO2!AN13 -> 5657498.402 | BB13: =Input!BS13*EF_CO2!AO13 -> 0 | BC13: =Input!BT13*EF_CO2!AP13 -> 0 | BD13: =Input!BU13*EF_CO2!AQ13 -> 524462.5915 | BE13: =Input!BV13*EF_CO2!AR13 -> 11817.65797 | BF13: =Input!BW13*EF_CO2!AS13 -> 0 | BG13: =Input!BX13*EF_CO2!AT13 -> 0 | BH13: =Input!BY13*EF_CO2!AU13 -> 51178.7608 | BI13: =Input!BZ13*EF_CO2!AV13 -> 2772.670742 | BJ13: =Input!CA13*EF_CO2!AW13 -> 0 | BK13: =Input!CB13*EF_CO2!AX13 -> 0 | BL13: =Input!CC13*EF_CO2!AY13 -> 2366580.542 | BM13: =Input!CD13*EF_CO2!AZ13 -> 0 | BN13: =Input!CE13*EF_CO2!BA13 -> 0 | BO13: =Input!CF13*EF_CO2!BB13 -> 0 | BP13: =Input!CG13*EF_CO2!BC13 -> 0 | BQ13: =Input!CH13*EF_CO2!BD13 -> 0 | BR13: =Input!CI13*EF_CO2!BE13 -> 0 | BS13: =Input!CJ13*EF_CO2!BF13 -> 0 | BT13: =Input!CK13*EF_CO2!BG13 -> 0 | BU13: =Input!CL13*EF_CO2!BH13 -> -12356.66667 | CH13: =((EF_Electric!H14*BA13)/(1-EF_Electric!H14))+((EF_Steam!C11*BB13)/(1-EF_Steam!C11))+((EF_Water!C11*BC13)/(1-EF_Water!C11)) -> 559532.809
B14: =Input!C14 -> 1993 | C14: =Input!N14*EF_CO2!C14 -> 0 | D14: =Input!O14*EF_CO2!D14 -> 0 | E14: =Input!P14*EF_CO2!E14 -> 0 | F14: =Input!Q14*EF_CO2!F14 -> 0 | G14: =Input!R14*EF_CO2!G14 -> 0 | H14: =Input!S14*EF_CO2!H14 -> 0 | I14: =Input!T14*EF_CO2!I14 -> 0 | J14: =Input!U14*EF_CO2!J14 -> 0 | K14: =Input!V14*EF_CO2!K14 -> 0 | L14: =Input!W14*EF_CO2!L14 -> 0 | M14: =Input!X14*EF_CO2!M14 -> 0 | N14: =Input!Y14*EF_CO2!N14 -> 0 | O14: =Input!AD14*EF_CO2!C14 -> 2444915.542 | P14: =Input!AE14*EF_CO2!D14 -> 0 | Q14: =Input!AF14*EF_CO2!E14 -> 4224905.625 | R14: =Input!AG14*EF_CO2!F14 -> 0 | S14: =Input!AH14*EF_CO2!G14 -> 0 | T14: =Input!AI14*EF_CO2!H14 -> 0 | U14: =Input!AJ14*EF_CO2!I14 -> 0 | V14: =Input!AK14*EF_CO2!J14 -> 0 | W14: =Input!AL14*EF_CO2!K14 -> 0 | X14: =Input!AM14*EF_CO2!L14 -> 0 | Y14: =Input!AN14*EF_CO2!M14 -> 0 | Z14: =Input!AO14*EF_CO2!N14 -> 0 | AA14: =Input!AP14*EF_CO2!O14 -> 129689.1431 | AB14: =Input!AQ14*EF_CO2!P14 -> 0 | AC14: =Input!AR14*EF_CO2!Q14 -> 0 | AD14: =Input!AS14*EF_CO2!R14 -> 0 | AE14: =Input!AT14*EF_CO2!S14 -> 0 | AF14: =Input!AU14*EF_CO2!T14 -> 0 | AG14: =Input!AV14*EF_CO2!U14 -> 0 | AH14: =Input!AW14*EF_CO2!V14 -> 0 | AI14: =Input!AX14*EF_CO2!W14 -> 0 | AJ14: =Input!AY14*EF_CO2!AN14 -> 0 | BA14: =Input!BR14*EF_CO2!AN14 -> 5805255.591 | BB14: =Input!BS14*EF_CO2!AO14 -> 0 | BC14: =Input!BT14*EF_CO2!AP14 -> 0 | BD14: =Input!BU14*EF_CO2!AQ14 -> 533301.6714 | BE14: =Input!BV14*EF_CO2!AR14 -> 11817.65797 | BF14: =Input!BW14*EF_CO2!AS14 -> 0 | BG14: =Input!BX14*EF_CO2!AT14 -> 0 | BH14: =Input!BY14*EF_CO2!AU14 -> 67339.81734 | BI14: =Input!BZ14*EF_CO2!AV14 -> 3587.748897 | BJ14: =Input!CA14*EF_CO2!AW14 -> 0 | BK14: =Input!CB14*EF_CO2!AX14 -> 0 | BL14: =Input!CC14*EF_CO2!AY14 -> 3232278.185 | BM14: =Input!CD14*EF_CO2!AZ14 -> 0 | BN14: =Input!CE14*EF_CO2!BA14 -> 0 | BO14: =Input!CF14*EF_CO2!BB14 -> 0 | BP14: =Input!CG14*EF_CO2!BC14 -> 0 | BQ14: =Input!CH14*EF_CO2!BD14 -> 0 | BR14: =Input!CI14*EF_CO2!BE14 -> 0 | BS14: =Input!CJ14*EF_CO2!BF14 -> 0 | BT14: =Input!CK14*EF_CO2!BG14 -> 0 | BU14: =Input!CL14*EF_CO2!BH14 -> -12356.66667 | CH14: =((EF_Electric!H15*BA14)/(1-EF_Electric!H15))+((EF_Steam!C12*BB14)/(1-EF_Steam!C12))+((EF_Water!C12*BC14)/(1-EF_Water!C12)) -> 574146.1573
B15: =Input!C15 -> 1994 | C15: =Input!N15*EF_CO2!C15 -> 0 | D15: =Input!O15*EF_CO2!D15 -> 0 | E15: =Input!P15*EF_CO2!E15 -> 0 | F15: =Input!Q15*EF_CO2!F15 -> 0 | G15: =Input!R15*EF_CO2!G15 -> 0 | H15: =Input!S15*EF_CO2!H15 -> 0 | I15: =Input!T15*EF_CO2!I15 -> 0 | J15: =Input!U15*EF_CO2!J15 -> 0 | K15: =Input!V15*EF_CO2!K15 -> 0 | L15: =Input!W15*EF_CO2!L15 -> 0 | M15: =Input!X15*EF_CO2!M15 -> 0 | N15: =Input!Y15*EF_CO2!N15 -> 0 | O15: =Input!AD15*EF_CO2!C15 -> 3372740.44 | P15: =Input!AE15*EF_CO2!D15 -> 0 | Q15: =Input!AF15*EF_CO2!E15 -> 4319024.809 | R15: =Input!AG15*EF_CO2!F15 -> 0 | S15: =Input!AH15*EF_CO2!G15 -> 0 | T15: =Input!AI15*EF_CO2!H15 -> 0 | U15: =Input!AJ15*EF_CO2!I15 -> 0 | V15: =Input!AK15*EF_CO2!J15 -> 0 | W15: =Input!AL15*EF_CO2!K15 -> 0 | X15: =Input!AM15*EF_CO2!L15 -> 0 | Y15: =Input!AN15*EF_CO2!M15 -> 0 | Z15: =Input!AO15*EF_CO2!N15 -> 0 | AA15: =Input!AP15*EF_CO2!O15 -> 159753.259 | AB15: =Input!AQ15*EF_CO2!P15 -> 0 | AC15: =Input!AR15*EF_CO2!Q15 -> 0 | AD15: =Input!AS15*EF_CO2!R15 -> 0 | AE15: =Input!AT15*EF_CO2!S15 -> 0 | AF15: =Input!AU15*EF_CO2!T15 -> 0 | AG15: =Input!AV15*EF_CO2!U15 -> 0 | AH15: =Input!AW15*EF_CO2!V15 -> 0 | AI15: =Input!AX15*EF_CO2!W15 -> 0 | AJ15: =Input!AY15*EF_CO2!AN15 -> 0 | BA15: =Input!BR15*EF_CO2!AN15 -> 5818813.828 | BB15: =Input!BS15*EF_CO2!AO15 -> 0 | BC15: =Input!BT15*EF_CO2!AP15 -> 0 | BD15: =Input!BU15*EF_CO2!AQ15 -> 530567.7283 | BE15: =Input!BV15*EF_CO2!AR15 -> 13210.94652 | BF15: =Input!BW15*EF_CO2!AS15 -> 0 | BG15: =Input!BX15*EF_CO2!AT15 -> 0 | BH15: =Input!BY15*EF_CO2!AU15 -> 51337.23506 | BI15: =Input!BZ15*EF_CO2!AV15 -> 3073.386734 | BJ15: =Input!CA15*EF_CO2!AW15 -> 0 | BK15: =Input!CB15*EF_CO2!AX15 -> 0 | BL15: =Input!CC15*EF_CO2!AY15 -> 3505115.223 | BM15: =Input!CD15*EF_CO2!AZ15 -> 0 | BN15: =Input!CE15*EF_CO2!BA15 -> 0 | BO15: =Input!CF15*EF_CO2!BB15 -> 0 | BP15: =Input!CG15*EF_CO2!BC15 -> 0 | BQ15: =Input!CH15*EF_CO2!BD15 -> 0 | BR15: =Input!CI15*EF_CO2!BE15 -> 0 | BS15: =Input!CJ15*EF_CO2!BF15 -> 0 | BT15: =Input!CK15*EF_CO2!BG15 -> 0 | BU15: =Input!CL15*EF_CO2!BH15 -> -12356.66667 | CH15: =((EF_Electric!H16*BA15)/(1-EF_Electric!H16))+((EF_Steam!C13*BB15)/(1-EF_Steam!C13))+((EF_Water!C13*BC15)/(1-EF_Water!C13)) -> 575487.0818
B16: =Input!C16 -> 1995 | C16: =Input!N16*EF_CO2!C16 -> 0 | D16: =Input!O16*EF_CO2!D16 -> 0 | E16: =Input!P16*EF_CO2!E16 -> 0 | F16: =Input!Q16*EF_CO2!F16 -> 0 | G16: =Input!R16*EF_CO2!G16 -> 0 | H16: =Input!S16*EF_CO2!H16 -> 0 | I16: =Input!T16*EF_CO2!I16 -> 0 | J16: =Input!U16*EF_CO2!J16 -> 0 | K16: =Input!V16*EF_CO2!K16 -> 0 | L16: =Input!W16*EF_CO2!L16 -> 0 | M16: =Input!X16*EF_CO2!M16 -> 0 | N16: =Input!Y16*EF_CO2!N16 -> 0 | O16: =Input!AD16*EF_CO2!C16 -> 1747696.281 | P16: =Input!AE16*EF_CO2!D16 -> 0 | Q16: =Input!AF16*EF_CO2!E16 -> 3759538.545 | R16: =Input!AG16*EF_CO2!F16 -> 0 | S16: =Input!AH16*EF_CO2!G16 -> 0 | T16: =Input!AI16*EF_CO2!H16 -> 0 | U16: =Input!AJ16*EF_CO2!I16 -> 0 | V16: =Input!AK16*EF_CO2!J16 -> 0 | W16: =Input!AL16*EF_CO2!K16 -> 0 | X16: =Input!AM16*EF_CO2!L16 -> 0 | Y16: =Input!AN16*EF_CO2!M16 -> 0 | Z16: =Input!AO16*EF_CO2!N16 -> 0 | AA16: =Input!AP16*EF_CO2!O16 -> 151553.8042 | AB16: =Input!AQ16*EF_CO2!P16 -> 0 | AC16: =Input!AR16*EF_CO2!Q16 -> 0 | AD16: =Input!AS16*EF_CO2!R16 -> 0 | AE16: =Input!AT16*EF_CO2!S16 -> 0 | AF16: =Input!AU16*EF_CO2!T16 -> 0 | AG16: =Input!AV16*EF_CO2!U16 -> 0 | AH16: =Input!AW16*EF_CO2!V16 -> 0 | AI16: =Input!AX16*EF_CO2!W16 -> 0 | AJ16: =Input!AY16*EF_CO2!AN16 -> 0 | BA16: =Input!BR16*EF_CO2!AN16 -> 5820715.602 | BB16: =Input!BS16*EF_CO2!AO16 -> 0 | BC16: =Input!BT16*EF_CO2!AP16 -> 0 | BD16: =Input!BU16*EF_CO2!AQ16 -> 520803.2682 | BE16: =Input!BV16*EF_CO2!AR16 -> 13190.4292 | BF16: =Input!BW16*EF_CO2!AS16 -> 0 | BG16: =Input!BX16*EF_CO2!AT16 -> 0 | BH16: =Input!BY16*EF_CO2!AU16 -> 49791.50313 | BI16: =Input!BZ16*EF_CO2!AV16 -> 3032.020249 | BJ16: =Input!CA16*EF_CO2!AW16 -> 0 | BK16: =Input!CB16*EF_CO2!AX16 -> 0 | BL16: =Input!CC16*EF_CO2!AY16 -> 3487435.659 | BM16: =Input!CD16*EF_CO2!AZ16 -> 0 | BN16: =Input!CE16*EF_CO2!BA16 -> 0 | BO16: =Input!CF16*EF_CO2!BB16 -> 0 | BP16: =Input!CG16*EF_CO2!BC16 -> 0 | BQ16: =Input!CH16*EF_CO2!BD16 -> 0 | BR16: =Input!CI16*EF_CO2!BE16 -> 0 | BS16: =Input!CJ16*EF_CO2!BF16 -> 0 | BT16: =Input!CK16*EF_CO2!BG16 -> 0 | BU16: =Input!CL16*EF_CO2!BH16 -> -12356.66667 | CH16: =((EF_Electric!H17*BA16)/(1-EF_Electric!H17))+((EF_Steam!C14*BB16)/(1-EF_Steam!C14))+((EF_Water!C14*BC16)/(1-EF_Water!C14)) -> 575675.1694
B17: =Input!C17 -> 1996 | C17: =Input!N17*EF_CO2!C17 -> 0 | D17: =Input!O17*EF_CO2!D17 -> 0 | E17: =Input!P17*EF_CO2!E17 -> 0 | F17: =Input!Q17*EF_CO2!F17 -> 0 | G17: =Input!R17*EF_CO2!G17 -> 0 | H17: =Input!S17*EF_CO2!H17 -> 0 | I17: =Input!T17*EF_CO2!I17 -> 0 | J17: =Input!U17*EF_CO2!J17 -> 0 | K17: =Input!V17*EF_CO2!K17 -> 0 | L17: =Input!W17*EF_CO2!L17 -> 0 | M17: =Input!X17*EF_CO2!M17 -> 0 | N17: =Input!Y17*EF_CO2!N17 -> 0 | O17: =Input!AD17*EF_CO2!C17 -> 2722680.68 | P17: =Input!AE17*EF_CO2!D17 -> 0 | Q17: =Input!AF17*EF_CO2!E17 -> 4492099.532 | R17: =Input!AG17*EF_CO2!F17 -> 0 | S17: =Input!AH17*EF_CO2!G17 -> 0 | T17: =Input!AI17*EF_CO2!H17 -> 0 | U17: =Input!AJ17*EF_CO2!I17 -> 0 | V17: =Input!AK17*EF_CO2!J17 -> 0 | W17: =Input!AL17*EF_CO2!K17 -> 0 | X17: =Input!AM17*EF_CO2!L17 -> 0 | Y17: =Input!AN17*EF_CO2!M17 -> 0 | Z17: =Input!AO17*EF_CO2!N17 -> 0 | AA17: =Input!AP17*EF_CO2!O17 -> 158901.6969 | AB17: =Input!AQ17*EF_CO2!P17 -> 0 | AC17: =Input!AR17*EF_CO2!Q17 -> 0 | AD17: =Input!AS17*EF_CO2!R17 -> 0 | AE17: =Input!AT17*EF_CO2!S17 -> 0 | AF17: =Input!AU17*EF_CO2!T17 -> 0 | AG17: =Input!AV17*EF_CO2!U17 -> 0 | AH17: =Input!AW17*EF_CO2!V17 -> 0 | AI17: =Input!AX17*EF_CO2!W17 -> 0 | AJ17: =Input!AY17*EF_CO2!AN17 -> 0 | BA17: =Input!BR17*EF_CO2!AN17 -> 5830532.215 | BB17: =Input!BS17*EF_CO2!AO17 -> 0 | BC17: =Input!BT17*EF_CO2!AP17 -> 0 | BD17: =Input!BU17*EF_CO2!AQ17 -> 520573.9231 | BE17: =Input!BV17*EF_CO2!AR17 -> 13319.18547 | BF17: =Input!BW17*EF_CO2!AS17 -> 0 | BG17: =Input!BX17*EF_CO2!AT17 -> 0 | BH17: =Input!BY17*EF_CO2!AU17 -> 49168.90925 | BI17: =Input!BZ17*EF_CO2!AV17 -> 3024.666283 | BJ17: =Input!CA17*EF_CO2!AW17 -> 0 | BK17: =Input!CB17*EF_CO2!AX17 -> 0 | BL17: =Input!CC17*EF_CO2!AY17 -> 3438756.375 | BM17: =Input!CD17*EF_CO2!AZ17 -> 0 | BN17: =Input!CE17*EF_CO2!BA17 -> 0 | BO17: =Input!CF17*EF_CO2!BB17 -> 0 | BP17: =Input!CG17*EF_CO2!BC17 -> 0 | BQ17: =Input!CH17*EF_CO2!BD17 -> 0 | BR17: =Input!CI17*EF_CO2!BE17 -> 0 | BS17: =Input!CJ17*EF_CO2!BF17 -> 0 | BT17: =Input!CK17*EF_CO2!BG17 -> 0 | BU17: =Input!CL17*EF_CO2!BH17 -> -12356.66667 | CH17: =((EF_Electric!H18*BA17)/(1-EF_Electric!H18))+((EF_Steam!C15*BB17)/(1-EF_Steam!C15))+((EF_Water!C15*BC17)/(1-EF_Water!C15)) -> 576646.0433
B18: =Input!C18 -> 1997 | C18: =Input!N18*EF_CO2!C18 -> 0 | D18: =Input!O18*EF_CO2!D18 -> 0 | E18: =Input!P18*EF_CO2!E18 -> 0 | F18: =Input!Q18*EF_CO2!F18 -> 0 | G18: =Input!R18*EF_CO2!G18 -> 0 | H18: =Input!S18*EF_CO2!H18 -> 0 | I18: =Input!T18*EF_CO2!I18 -> 0 | J18: =Input!U18*EF_CO2!J18 -> 0 | K18: =Input!V18*EF_CO2!K18 -> 0 | L18: =Input!W18*EF_CO2!L18 -> 0 | M18: =Input!X18*EF_CO2!M18 -> 0 | N18: =Input!Y18*EF_CO2!N18 -> 0 | O18: =Input!AD18*EF_CO2!C18 -> 2009967.657 | P18: =Input!AE18*EF_CO2!D18 -> 74932.50348 | Q18: =Input!AF18*EF_CO2!E18 -> 4314318.85 | R18: =Input!AG18*EF_CO2!F18 -> 0 | S18: =Input!AH18*EF_CO2!G18 -> 0 | T18: =Input!AI18*EF_CO2!H18 -> 0 | U18: =Input!AJ18*EF_CO2!I18 -> 0 | V18: =Input!AK18*EF_CO2!J18 -> 0 | W18: =Input!AL18*EF_CO2!K18 -> 0 | X18: =Input!AM18*EF_CO2!L18 -> 0 | Y18: =Input!AN18*EF_CO2!M18 -> 0 | Z18: =Input!AO18*EF_CO2!N18 -> 0 | AA18: =Input!AP18*EF_CO2!O18 -> 166243.7913 | AB18: =Input!AQ18*EF_CO2!P18 -> 0 | AC18: =Input!AR18*EF_CO2!Q18 -> 0 | AD18: =Input!AS18*EF_CO2!R18 -> 0 | AE18: =Input!AT18*EF_CO2!S18 -> 0 | AF18: =Input!AU18*EF_CO2!T18 -> 0 | AG18: =Input!AV18*EF_CO2!U18 -> 0 | AH18: =Input!AW18*EF_CO2!V18 -> 0 | AI18: =Input!AX18*EF_CO2!W18 -> 0 | AJ18: =Input!AY18*EF_CO2!AN18 -> 0 | BA18: =Input!BR18*EF_CO2!AN18 -> 5836745.207 | BB18: =Input!BS18*EF_CO2!AO18 -> 0 | BC18: =Input!BT18*EF_CO2!AP18 -> 0 | BD18: =Input!BU18*EF_CO2!AQ18 -> 516503.4602 | BE18: =Input!BV18*EF_CO2!AR18 -> 13422.23372 | BF18: =Input!BW18*EF_CO2!AS18 -> 0 | BG18: =Input!BX18*EF_CO2!AT18 -> 0 | BH18: =Input!BY18*EF_CO2!AU18 -> 49437.17821 | BI18: =Input!BZ18*EF_CO2!AV18 -> 3088.850362 | BJ18: =Input!CA18*EF_CO2!AW18 -> 0 | BK18: =Input!CB18*EF_CO2!AX18 -> 0 | BL18: =Input!CC18*EF_CO2!AY18 -> 3883376.314 | BM18: =Input!CD18*EF_CO2!AZ18 -> 0 | BN18: =Input!CE18*EF_CO2!BA18 -> 0 | BO18: =Input!CF18*EF_CO2!BB18 -> 0 | BP18: =Input!CG18*EF_CO2!BC18 -> 0 | BQ18: =Input!CH18*EF_CO2!BD18 -> 0 | BR18: =Input!CI18*EF_CO2!BE18 -> 0 | BS18: =Input!CJ18*EF_CO2!BF18 -> 0 | BT18: =Input!CK18*EF_CO2!BG18 -> 0 | BU18: =Input!CL18*EF_CO2!BH18 -> -12356.66667 | CH18: =((EF_Electric!H19*BA18)/(1-EF_Electric!H19))+((EF_Steam!C16*BB18)/(1-EF_Steam!C16))+((EF_Water!C16*BC18)/(1-EF_Water!C16)) -> 577260.515
B19: =Input!C19 -> 1998 | C19: =Input!N19*EF_CO2!C19 -> 0 | D19: =Input!O19*EF_CO2!D19 -> 0 | E19: =Input!P19*EF_CO2!E19 -> 0 | F19: =Input!Q19*EF_CO2!F19 -> 0 | G19: =Input!R19*EF_CO2!G19 -> 0 | H19: =Input!S19*EF_CO2!H19 -> 0 | I19: =Input!T19*EF_CO2!I19 -> 0 | J19: =Input!U19*EF_CO2!J19 -> 0 | K19: =Input!V19*EF_CO2!K19 -> 0 | L19: =Input!W19*EF_CO2!L19 -> 0 | M19: =Input!X19*EF_CO2!M19 -> 0 | N19: =Input!Y19*EF_CO2!N19 -> 0 | O19: =Input!AD19*EF_CO2!C19 -> 108117.2208 | P19: =Input!AE19*EF_CO2!D19 -> 0 | Q19: =Input!AF19*EF_CO2!E19 -> 3869762.341 | R19: =Input!AG19*EF_CO2!F19 -> 0 | S19: =Input!AH19*EF_CO2!G19 -> 0 | T19: =Input!AI19*EF_CO2!H19 -> 0 | U19: =Input!AJ19*EF_CO2!I19 -> 0 | V19: =Input!AK19*EF_CO2!J19 -> 0 | W19: =Input!AL19*EF_CO2!K19 -> 0 | X19: =Input!AM19*EF_CO2!L19 -> 0 | Y19: =Input!AN19*EF_CO2!M19 -> 0 | Z19: =Input!AO19*EF_CO2!N19 -> 0 | AA19: =Input!AP19*EF_CO2!O19 -> 177770.3738 | AB19: =Input!AQ19*EF_CO2!P19 -> 0 | AC19: =Input!AR19*EF_CO2!Q19 -> 0 | AD19: =Input!AS19*EF_CO2!R19 -> 0 | AE19: =Input!AT19*EF_CO2!S19 -> 0 | AF19: =Input!AU19*EF_CO2!T19 -> 0 | AG19: =Input!AV19*EF_CO2!U19 -> 0 | AH19: =Input!AW19*EF_CO2!V19 -> 0 | AI19: =Input!AX19*EF_CO2!W19 -> 0 | AJ19: =Input!AY19*EF_CO2!AN19 -> 0 | BA19: =Input!BR19*EF_CO2!AN19 -> 6262994.76 | BB19: =Input!BS19*EF_CO2!AO19 -> 0 | BC19: =Input!BT19*EF_CO2!AP19 -> 0 | BD19: =Input!BU19*EF_CO2!AQ19 -> 484518.2936 | BE19: =Input!BV19*EF_CO2!AR19 -> 12193.34805 | BF19: =Input!BW19*EF_CO2!AS19 -> 0 | BG19: =Input!BX19*EF_CO2!AT19 -> 0 | BH19: =Input!BY19*EF_CO2!AU19 -> 48681.99522 | BI19: =Input!BZ19*EF_CO2!AV19 -> 2985.992867 | BJ19: =Input!CA19*EF_CO2!AW19 -> 0 | BK19: =Input!CB19*EF_CO2!AX19 -> 0 | BL19: =Input!CC19*EF_CO2!AY19 -> 4035173.523 | BM19: =Input!CD19*EF_CO2!AZ19 -> 0 | BN19: =Input!CE19*EF_CO2!BA19 -> 0 | BO19: =Input!CF19*EF_CO2!BB19 -> 0 | BP19: =Input!CG19*EF_CO2!BC19 -> 0 | BQ19: =Input!CH19*EF_CO2!BD19 -> 0 | BR19: =Input!CI19*EF_CO2!BE19 -> 0 | BS19: =Input!CJ19*EF_CO2!BF19 -> 0 | BT19: =Input!CK19*EF_CO2!BG19 -> 0 | BU19: =Input!CL19*EF_CO2!BH19 -> -12356.66667 | CH19: =((EF_Electric!H20*BA19)/(1-EF_Electric!H20))+((EF_Steam!C17*BB19)/(1-EF_Steam!C17))+((EF_Water!C17*BC19)/(1-EF_Water!C17)) -> 619417.0642
B20: =Input!C20 -> 1999 | C20: =Input!N20*EF_CO2!C20 -> 0 | D20: =Input!O20*EF_CO2!D20 -> 0 | E20: =Input!P20*EF_CO2!E20 -> 0 | F20: =Input!Q20*EF_CO2!F20 -> 0 | G20: =Input!R20*EF_CO2!G20 -> 0 | H20: =Input!S20*EF_CO2!H20 -> 0 | I20: =Input!T20*EF_CO2!I20 -> 0 | J20: =Input!U20*EF_CO2!J20 -> 0 | K20: =Input!V20*EF_CO2!K20 -> 0 | L20: =Input!W20*EF_CO2!L20 -> 0 | M20: =Input!X20*EF_CO2!M20 -> 0 | N20: =Input!Y20*EF_CO2!N20 -> 0 | O20: =Input!AD20*EF_CO2!C20 -> 853.6185503 | P20: =Input!AE20*EF_CO2!D20 -> 103834.8979 | Q20: =Input!AF20*EF_CO2!E20 -> 3843429.805 | R20: =Input!AG20*EF_CO2!F20 -> 0 | S20: =Input!AH20*EF_CO2!G20 -> 0 | T20: =Input!AI20*EF_CO2!H20 -> 0 | U20: =Input!AJ20*EF_CO2!I20 -> 0 | V20: =Input!AK20*EF_CO2!J20 -> 0 | W20: =Input!AL20*EF_CO2!K20 -> 0 | X20: =Input!AM20*EF_CO2!L20 -> 0 | Y20: =Input!AN20*EF_CO2!M20 -> 0 | Z20: =Input!AO20*EF_CO2!N20 -> 0 | AA20: =Input!AP20*EF_CO2!O20 -> 194564.1995 | AB20: =Input!AQ20*EF_CO2!P20 -> 0 | AC20: =Input!AR20*EF_CO2!Q20 -> 0 | AD20: =Input!AS20*EF_CO2!R20 -> 0 | AE20: =Input!AT20*EF_CO2!S20 -> 0 | AF20: =Input!AU20*EF_CO2!T20 -> 0 | AG20: =Input!AV20*EF_CO2!U20 -> 0 | AH20: =Input!AW20*EF_CO2!V20 -> 0 | AI20: =Input!AX20*EF_CO2!W20 -> 0 | AJ20: =Input!AY20*EF_CO2!AN20 -> 0 | BA20: =Input!BR20*EF_CO2!AN20 -> 6250079.496 | BB20: =Input!BS20*EF_CO2!AO20 -> 0 | BC20: =Input!BT20*EF_CO2!AP20 -> 0 | BD20: =Input!BU20*EF_CO2!AQ20 -> 492078.5746 | BE20: =Input!BV20*EF_CO2!AR20 -> 12013.0845 | BF20: =Input!BW20*EF_CO2!AS20 -> 0 | BG20: =Input!BX20*EF_CO2!AT20 -> 0 | BH20: =Input!BY20*EF_CO2!AU20 -> 61365.82692 | BI20: =Input!BZ20*EF_CO2!AV20 -> 3646.558125 | BJ20: =Input!CA20*EF_CO2!AW20 -> 0 | BK20: =Input!CB20*EF_CO2!AX20 -> 0 | BL20: =Input!CC20*EF_CO2!AY20 -> 3744776.471 | BM20: =Input!CD20*EF_CO2!AZ20 -> 0 | BN20: =Input!CE20*EF_CO2!BA20 -> 0 | BO20: =Input!CF20*EF_CO2!BB20 -> 0 | BP20: =Input!CG20*EF_CO2!BC20 -> 0 | BQ20: =Input!CH20*EF_CO2!BD20 -> 0 | BR20: =Input!CI20*EF_CO2!BE20 -> 0 | BS20: =Input!CJ20*EF_CO2!BF20 -> 0 | BT20: =Input!CK20*EF_CO2!BG20 -> 0 | BU20: =Input!CL20*EF_CO2!BH20 -> -12356.66667 | CH20: =((EF_Electric!H21*BA20)/(1-EF_Electric!H21))+((EF_Steam!C18*BB20)/(1-EF_Steam!C18))+((EF_Water!C18*BC20)/(1-EF_Water!C18)) -> 618139.7304
B21: =Input!C21 -> 2000 | C21: =Input!N21*EF_CO2!C21 -> 0 | D21: =Input!O21*EF_CO2!D21 -> 0 | E21: =Input!P21*EF_CO2!E21 -> 0 | F21: =Input!Q21*EF_CO2!F21 -> 0 | G21: =Input!R21*EF_CO2!G21 -> 0 | H21: =Input!S21*EF_CO2!H21 -> 0 | I21: =Input!T21*EF_CO2!I21 -> 0 | J21: =Input!U21*EF_CO2!J21 -> 0 | K21: =Input!V21*EF_CO2!K21 -> 0 | L21: =Input!W21*EF_CO2!L21 -> 0 | M21: =Input!X21*EF_CO2!M21 -> 0 | N21: =Input!Y21*EF_CO2!N21 -> 0 | O21: =Input!AD21*EF_CO2!C21 -> 1964.492006 | P21: =Input!AE21*EF_CO2!D21 -> 14870.65143 | Q21: =Input!AF21*EF_CO2!E21 -> 2181012.465 | R21: =Input!AG21*EF_CO2!F21 -> 0 | S21: =Input!AH21*EF_CO2!G21 -> 0 | T21: =Input!AI21*EF_CO2!H21 -> 0 | U21: =Input!AJ21*EF_CO2!I21 -> 0 | V21: =Input!AK21*EF_CO2!J21 -> 0 | W21: =Input!AL21*EF_CO2!K21 -> 0 | X21: =Input!AM21*EF_CO2!L21 -> 0 | Y21: =Input!AN21*EF_CO2!M21 -> 0 | Z21: =Input!AO21*EF_CO2!N21 -> 0 | AA21: =Input!AP21*EF_CO2!O21 -> 184491.8874 | AB21: =Input!AQ21*EF_CO2!P21 -> 0 | AC21: =Input!AR21*EF_CO2!Q21 -> 0 | AD21: =Input!AS21*EF_CO2!R21 -> 0 | AE21: =Input!AT21*EF_CO2!S21 -> 0 | AF21: =Input!AU21*EF_CO2!T21 -> 0 | AG21: =Input!AV21*EF_CO2!U21 -> 0 | AH21: =Input!AW21*EF_CO2!V21 -> 0 | AI21: =Input!AX21*EF_CO2!W21 -> 0 | AJ21: =Input!AY21*EF_CO2!AN21 -> 0 | BA21: =Input!BR21*EF_CO2!AN21 -> 6215867.867 | BB21: =Input!BS21*EF_CO2!AO21 -> 0 | BC21: =Input!BT21*EF_CO2!AP21 -> 0 | BD21: =Input!BU21*EF_CO2!AQ21 -> 498399.3213 | BE21: =Input!BV21*EF_CO2!AR21 -> 12828.02835 | BF21: =Input!BW21*EF_CO2!AS21 -> 0 | BG21: =Input!BX21*EF_CO2!AT21 -> 0 | BH21: =Input!BY21*EF_CO2!AU21 -> 49035.58087 | BI21: =Input!BZ21*EF_CO2!AV21 -> 3048.925128 | BJ21: =Input!CA21*EF_CO2!AW21 -> 0 | BK21: =Input!CB21*EF_CO2!AX21 -> 0 | BL21: =Input!CC21*EF_CO2!AY21 -> 3825972.304 | BM21: =Input!CD21*EF_CO2!AZ21 -> 0 | BN21: =Input!CE21*EF_CO2!BA21 -> 0 | BO21: =Input!CF21*EF_CO2!BB21 -> 0 | BP21: =Input!CG21*EF_CO2!BC21 -> 0 | BQ21: =Input!CH21*EF_CO2!BD21 -> 0 | BR21: =Input!CI21*EF_CO2!BE21 -> 0 | BS21: =Input!CJ21*EF_CO2!BF21 -> 0 | BT21: =Input!CK21*EF_CO2!BG21 -> 0 | BU21: =Input!CL21*EF_CO2!BH21 -> -12356.66667 | CH21: =((EF_Electric!H22*BA21)/(1-EF_Electric!H22))+((EF_Steam!C19*BB21)/(1-EF_Steam!C19))+((EF_Water!C19*BC21)/(1-EF_Water!C19)) -> 614756.1626
B22: =Input!C22 -> 2001 | C22: =Input!N22*EF_CO2!C22 -> 0 | D22: =Input!O22*EF_CO2!D22 -> 0 | E22: =Input!P22*EF_CO2!E22 -> 0 | F22: =Input!Q22*EF_CO2!F22 -> 0 | G22: =Input!R22*EF_CO2!G22 -> 0 | H22: =Input!S22*EF_CO2!H22 -> 0 | I22: =Input!T22*EF_CO2!I22 -> 0 | J22: =Input!U22*EF_CO2!J22 -> 0 | K22: =Input!V22*EF_CO2!K22 -> 0 | L22: =Input!W22*EF_CO2!L22 -> 0 | M22: =Input!X22*EF_CO2!M22 -> 0 | N22: =Input!Y22*EF_CO2!N22 -> 0 | O22: =Input!AD22*EF_CO2!C22 -> 3676991.139 | P22: =Input!AE22*EF_CO2!D22 -> 0 | Q22: =Input!AF22*EF_CO2!E22 -> 4873553.754 | R22: =Input!AG22*EF_CO2!F22 -> 0 | S22: =Input!AH22*EF_CO2!G22 -> 0 | T22: =Input!AI22*EF_CO2!H22 -> 0 | U22: =Input!AJ22*EF_CO2!I22 -> 0 | V22: =Input!AK22*EF_CO2!J22 -> 0 | W22: =Input!AL22*EF_CO2!K22 -> 0 | X22: =Input!AM22*EF_CO2!L22 -> 0 | Y22: =Input!AN22*EF_CO2!M22 -> 0 | Z22: =Input!AO22*EF_CO2!N22 -> 0 | AA22: =Input!AP22*EF_CO2!O22 -> 141758.9479 | AB22: =Input!AQ22*EF_CO2!P22 -> 0 | AC22: =Input!AR22*EF_CO2!Q22 -> 0 | AD22: =Input!AS22*EF_CO2!R22 -> 0 | AE22: =Input!AT22*EF_CO2!S22 -> 0 | AF22: =Input!AU22*EF_CO2!T22 -> 0 | AG22: =Input!AV22*EF_CO2!U22 -> 0 | AH22: =Input!AW22*EF_CO2!V22 -> 0 | AI22: =Input!AX22*EF_CO2!W22 -> 0 | AJ22: =Input!AY22*EF_CO2!AN22 -> 0 | BA22: =Input!BR22*EF_CO2!AN22 -> 5925713.033 | BB22: =Input!BS22*EF_CO2!AO22 -> 0 | BC22: =Input!BT22*EF_CO2!AP22 -> 0 | BD22: =Input!BU22*EF_CO2!AQ22 -> 498384.1222 | BE22: =Input!BV22*EF_CO2!AR22 -> 11589.00947 | BF22: =Input!BW22*EF_CO2!AS22 -> 0 | BG22: =Input!BX22*EF_CO2!AT22 -> 0 | BH22: =Input!BY22*EF_CO2!AU22 -> 41103.02671 | BI22: =Input!BZ22*EF_CO2!AV22 -> 2303.382488 | BJ22: =Input!CA22*EF_CO2!AW22 -> 0 | BK22: =Input!CB22*EF_CO2!AX22 -> 0 | BL22: =Input!CC22*EF_CO2!AY22 -> 3737211.142 | BM22: =Input!CD22*EF_CO2!AZ22 -> 0 | BN22: =Input!CE22*EF_CO2!BA22 -> 0 | BO22: =Input!CF22*EF_CO2!BB22 -> 0 | BP22: =Input!CG22*EF_CO2!BC22 -> 0 | BQ22: =Input!CH22*EF_CO2!BD22 -> 0 | BR22: =Input!CI22*EF_CO2!BE22 -> 0 | BS22: =Input!CJ22*EF_CO2!BF22 -> 0 | BT22: =Input!CK22*EF_CO2!BG22 -> 0 | BU22: =Input!CL22*EF_CO2!BH22 -> -12356.66667 | CH22: =((EF_Electric!H23*BA22)/(1-EF_Electric!H23))+((EF_Steam!C20*BB22)/(1-EF_Steam!C20))+((EF_Water!C20*BC22)/(1-EF_Water!C20)) -> 586059.5307
B23: =Input!C23 -> 2002 | C23: =Input!N23*EF_CO2!C23 -> 0 | D23: =Input!O23*EF_CO2!D23 -> 0 | E23: =Input!P23*EF_CO2!E23 -> 0 | F23: =Input!Q23*EF_CO2!F23 -> 0 | G23: =Input!R23*EF_CO2!G23 -> 0 | H23: =Input!S23*EF_CO2!H23 -> 0 | I23: =Input!T23*EF_CO2!I23 -> 0 | J23: =Input!U23*EF_CO2!J23 -> 0 | K23: =Input!V23*EF_CO2!K23 -> 0 | L23: =Input!W23*EF_CO2!L23 -> 0 | M23: =Input!X23*EF_CO2!M23 -> 0 | N23: =Input!Y23*EF_CO2!N23 -> 0 | O23: =Input!AD23*EF_CO2!C23 -> 76498.25419 | P23: =Input!AE23*EF_CO2!D23 -> 30819.89947 | Q23: =Input!AF23*EF_CO2!E23 -> 2241762.012 | R23: =Input!AG23*EF_CO2!F23 -> 0 | S23: =Input!AH23*EF_CO2!G23 -> 0 | T23: =Input!AI23*EF_CO2!H23 -> 0 | U23: =Input!AJ23*EF_CO2!I23 -> 0 | V23: =Input!AK23*EF_CO2!J23 -> 0 | W23: =Input!AL23*EF_CO2!K23 -> 0 | X23: =Input!AM23*EF_CO2!L23 -> 0 | Y23: =Input!AN23*EF_CO2!M23 -> 0 | Z23: =Input!AO23*EF_CO2!N23 -> 0 | AA23: =Input!AP23*EF_CO2!O23 -> 153718.1906 | AB23: =Input!AQ23*EF_CO2!P23 -> 0 | AC23: =Input!AR23*EF_CO2!Q23 -> 0 | AD23: =Input!AS23*EF_CO2!R23 -> 0 | AE23: =Input!AT23*EF_CO2!S23 -> 0 | AF23: =Input!AU23*EF_CO2!T23 -> 0 | AG23: =Input!AV23*EF_CO2!U23 -> 0 | AH23: =Input!AW23*EF_CO2!V23 -> 0 | AI23: =Input!AX23*EF_CO2!W23 -> 0 | AJ23: =Input!AY23*EF_CO2!AN23 -> 0 | BA23: =Input!BR23*EF_CO2!AN23 -> 6466453.101 | BB23: =Input!BS23*EF_CO2!AO23 -> 0 | BC23: =Input!BT23*EF_CO2!AP23 -> 0 | BD23: =Input!BU23*EF_CO2!AQ23 -> 483866.595 | BE23: =Input!BV23*EF_CO2!AR23 -> 10762.81636 | BF23: =Input!BW23*EF_CO2!AS23 -> 0 | BG23: =Input!BX23*EF_CO2!AT23 -> 0 | BH23: =Input!BY23*EF_CO2!AU23 -> 58706.93728 | BI23: =Input!BZ23*EF_CO2!AV23 -> 3134.66107 | BJ23: =Input!CA23*EF_CO2!AW23 -> 0 | BK23: =Input!CB23*EF_CO2!AX23 -> 0 | BL23: =Input!CC23*EF_CO2!AY23 -> 4266571.744 | BM23: =Input!CD23*EF_CO2!AZ23 -> 0 | BN23: =Input!CE23*EF_CO2!BA23 -> 0 | BO23: =Input!CF23*EF_CO2!BB23 -> 0 | BP23: =Input!CG23*EF_CO2!BC23 -> 0 | BQ23: =Input!CH23*EF_CO2!BD23 -> 0 | BR23: =Input!CI23*EF_CO2!BE23 -> 0 | BS23: =Input!CJ23*EF_CO2!BF23 -> 0 | BT23: =Input!CK23*EF_CO2!BG23 -> 0 | BU23: =Input!CL23*EF_CO2!BH23 -> -12356.66667 | CH23: =((EF_Electric!H24*BA23)/(1-EF_Electric!H24))+((EF_Steam!C21*BB23)/(1-EF_Steam!C21))+((EF_Water!C21*BC23)/(1-EF_Water!C21)) -> 639539.3177
B24: =Input!C24 -> 2003 | C24: =Input!N24*EF_CO2!C24 -> 0 | D24: =Input!O24*EF_CO2!D24 -> 0 | E24: =Input!P24*EF_CO2!E24 -> 0 | F24: =Input!Q24*EF_CO2!F24 -> 0 | G24: =Input!R24*EF_CO2!G24 -> 0 | H24: =Input!S24*EF_CO2!H24 -> 0 | I24: =Input!T24*EF_CO2!I24 -> 0 | J24: =Input!U24*EF_CO2!J24 -> 0 | K24: =Input!V24*EF_CO2!K24 -> 0 | L24: =Input!W24*EF_CO2!L24 -> 0 | M24: =Input!X24*EF_CO2!M24 -> 0 | N24: =Input!Y24*EF_CO2!N24 -> 0 | O24: =Input!AD24*EF_CO2!C24 -> 1964.492006 | P24: =Input!AE24*EF_CO2!D24 -> 14870.65143 | Q24: =Input!AF24*EF_CO2!E24 -> 1648684.245 | R24: =Input!AG24*EF_CO2!F24 -> 0 | S24: =Input!AH24*EF_CO2!G24 -> 0 | T24: =Input!AI24*EF_CO2!H24 -> 0 | U24: =Input!AJ24*EF_CO2!I24 -> 0 | V24: =Input!AK24*EF_CO2!J24 -> 0 | W24: =Input!AL24*EF_CO2!K24 -> 0 | X24: =Input!AM24*EF_CO2!L24 -> 0 | Y24: =Input!AN24*EF_CO2!M24 -> 0 | Z24: =Input!AO24*EF_CO2!N24 -> 0 | AA24: =Input!AP24*EF_CO2!O24 -> 168567.7266 | AB24: =Input!AQ24*EF_CO2!P24 -> 0 | AC24: =Input!AR24*EF_CO2!Q24 -> 0 | AD24: =Input!AS24*EF_CO2!R24 -> 0 | AE24: =Input!AT24*EF_CO2!S24 -> 0 | AF24: =Input!AU24*EF_CO2!T24 -> 0 | AG24: =Input!AV24*EF_CO2!U24 -> 0 | AH24: =Input!AW24*EF_CO2!V24 -> 0 | AI24: =Input!AX24*EF_CO2!W24 -> 0 | AJ24: =Input!AY24*EF_CO2!AN24 -> 0 | BA24: =Input!BR24*EF_CO2!AN24 -> 6649210.618 | BB24: =Input!BS24*EF_CO2!AO24 -> 0 | BC24: =Input!BT24*EF_CO2!AP24 -> 0 | BD24: =Input!BU24*EF_CO2!AQ24 -> 505766.8467 | BE24: =Input!BV24*EF_CO2!AR24 -> 11205.19441 | BF24: =Input!BW24*EF_CO2!AS24 -> 0 | BG24: =Input!BX24*EF_CO2!AT24 -> 0 | BH24: =Input!BY24*EF_CO2!AU24 -> 41009.47632 | BI24: =Input!BZ24*EF_CO2!AV24 -> 2187.913289 | BJ24: =Input!CA24*EF_CO2!AW24 -> 0 | BK24: =Input!CB24*EF_CO2!AX24 -> 0 | BL24: =Input!CC24*EF_CO2!AY24 -> 4822049.499 | BM24: =Input!CD24*EF_CO2!AZ24 -> 0 | BN24: =Input!CE24*EF_CO2!BA24 -> 0 | BO24: =Input!CF24*EF_CO2!BB24 -> 0 | BP24: =Input!CG24*EF_CO2!BC24 -> 0 | BQ24: =Input!CH24*EF_CO2!BD24 -> 0 | BR24: =Input!CI24*EF_CO2!BE24 -> 0 | BS24: =Input!CJ24*EF_CO2!BF24 -> 0 | BT24: =Input!CK24*EF_CO2!BG24 -> 0 | BU24: =Input!CL24*EF_CO2!BH24 -> -12356.66667 | CH24: =((EF_Electric!H25*BA24)/(1-EF_Electric!H25))+((EF_Steam!C22*BB24)/(1-EF_Steam!C22))+((EF_Water!C22*BC24)/(1-EF_Water!C22)) -> 657614.2369
B25: =Input!C25 -> 2004 | C25: =Input!N25*EF_CO2!C25 -> 0 | D25: =Input!O25*EF_CO2!D25 -> 0 | E25: =Input!P25*EF_CO2!E25 -> 0 | F25: =Input!Q25*EF_CO2!F25 -> 0 | G25: =Input!R25*EF_CO2!G25 -> 0 | H25: =Input!S25*EF_CO2!H25 -> 0 | I25: =Input!T25*EF_CO2!I25 -> 0 | J25: =Input!U25*EF_CO2!J25 -> 0 | K25: =Input!V25*EF_CO2!K25 -> 0 | L25: =Input!W25*EF_CO2!L25 -> 0 | M25: =Input!X25*EF_CO2!M25 -> 0 | N25: =Input!Y25*EF_CO2!N25 -> 0 | O25: =Input!AD25*EF_CO2!C25 -> 4059119.914 | P25: =Input!AE25*EF_CO2!D25 -> 139798.1053 | Q25: =Input!AF25*EF_CO2!E25 -> 4800153.502 | R25: =Input!AG25*EF_CO2!F25 -> 0 | S25: =Input!AH25*EF_CO2!G25 -> 0 | T25: =Input!AI25*EF_CO2!H25 -> 0 | U25: =Input!AJ25*EF_CO2!I25 -> 0 | V25: =Input!AK25*EF_CO2!J25 -> 0 | W25: =Input!AL25*EF_CO2!K25 -> 0 | X25: =Input!AM25*EF_CO2!L25 -> 0 | Y25: =Input!AN25*EF_CO2!M25 -> 0 | Z25: =Input!AO25*EF_CO2!N25 -> 0 | AA25: =Input!AP25*EF_CO2!O25 -> 144895.6719 | AB25: =Input!AQ25*EF_CO2!P25 -> 0 | AC25: =Input!AR25*EF_CO2!Q25 -> 0 | AD25: =Input!AS25*EF_CO2!R25 -> 0 | AE25: =Input!AT25*EF_CO2!S25 -> 0 | AF25: =Input!AU25*EF_CO2!T25 -> 0 | AG25: =Input!AV25*EF_CO2!U25 -> 0 | AH25: =Input!AW25*EF_CO2!V25 -> 0 | AI25: =Input!AX25*EF_CO2!W25 -> 0 | AJ25: =Input!AY25*EF_CO2!AN25 -> 0 | BA25: =Input!BR25*EF_CO2!AN25 -> 6528764.057 | BB25: =Input!BS25*EF_CO2!AO25 -> 0 | BC25: =Input!BT25*EF_CO2!AP25 -> 0 | BD25: =Input!BU25*EF_CO2!AQ25 -> 479424.8821 | BE25: =Input!BV25*EF_CO2!AR25 -> 11098.47827 | BF25: =Input!BW25*EF_CO2!AS25 -> 0 | BG25: =Input!BX25*EF_CO2!AT25 -> 0 | BH25: =Input!BY25*EF_CO2!AU25 -> 45774.48001 | BI25: =Input!BZ25*EF_CO2!AV25 -> 2543.511224 | BJ25: =Input!CA25*EF_CO2!AW25 -> 0 | BK25: =Input!CB25*EF_CO2!AX25 -> 0 | BL25: =Input!CC25*EF_CO2!AY25 -> 4607199.129 | BM25: =Input!CD25*EF_CO2!AZ25 -> 0 | BN25: =Input!CE25*EF_CO2!BA25 -> 0 | BO25: =Input!CF25*EF_CO2!BB25 -> 0 | BP25: =Input!CG25*EF_CO2!BC25 -> 0 | BQ25: =Input!CH25*EF_CO2!BD25 -> 0 | BR25: =Input!CI25*EF_CO2!BE25 -> 0 | BS25: =Input!CJ25*EF_CO2!BF25 -> 0 | BT25: =Input!CK25*EF_CO2!BG25 -> 0 | BU25: =Input!CL25*EF_CO2!BH25 -> -12356.66667 | CH25: =((EF_Electric!H26*BA25)/(1-EF_Electric!H26))+((EF_Steam!C23*BB25)/(1-EF_Steam!C23))+((EF_Water!C23*BC25)/(1-EF_Water!C23)) -> 645701.9397
B26: =Input!C26 -> 2005 | C26: =Input!N26*EF_CO2!C26 -> 0 | D26: =Input!O26*EF_CO2!D26 -> 0 | E26: =Input!P26*EF_CO2!E26 -> 0 | F26: =Input!Q26*EF_CO2!F26 -> 0 | G26: =Input!R26*EF_CO2!G26 -> 0 | H26: =Input!S26*EF_CO2!H26 -> 0 | I26: =Input!T26*EF_CO2!I26 -> 0 | J26: =Input!U26*EF_CO2!J26 -> 0 | K26: =Input!V26*EF_CO2!K26 -> 0 | L26: =Input!W26*EF_CO2!L26 -> 0 | M26: =Input!X26*EF_CO2!M26 -> 0 | N26: =Input!Y26*EF_CO2!N26 -> 0 | O26: =Input!AD26*EF_CO2!C26 -> 4790694.399 | P26: =Input!AE26*EF_CO2!D26 -> 0 | Q26: =Input!AF26*EF_CO2!E26 -> 5379381.011 | R26: =Input!AG26*EF_CO2!F26 -> 0 | S26: =Input!AH26*EF_CO2!G26 -> 0 | T26: =Input!AI26*EF_CO2!H26 -> 0 | U26: =Input!AJ26*EF_CO2!I26 -> 0 | V26: =Input!AK26*EF_CO2!J26 -> 0 | W26: =Input!AL26*EF_CO2!K26 -> 0 | X26: =Input!AM26*EF_CO2!L26 -> 0 | Y26: =Input!AN26*EF_CO2!M26 -> 0 | Z26: =Input!AO26*EF_CO2!N26 -> 0 | AA26: =Input!AP26*EF_CO2!O26 -> 122947.5217 | AB26: =Input!AQ26*EF_CO2!P26 -> 0 | AC26: =Input!AR26*EF_CO2!Q26 -> 0 | AD26: =Input!AS26*EF_CO2!R26 -> 0 | AE26: =Input!AT26*EF_CO2!S26 -> 0 | AF26: =Input!AU26*EF_CO2!T26 -> 0 | AG26: =Input!AV26*EF_CO2!U26 -> 0 | AH26: =Input!AW26*EF_CO2!V26 -> 0 | AI26: =Input!AX26*EF_CO2!W26 -> 0 | AJ26: =Input!AY26*EF_CO2!AN26 -> 0 | BA26: =Input!BR26*EF_CO2!AN26 -> 6567606.445 | BB26: =Input!BS26*EF_CO2!AO26 -> 0 | BC26: =Input!BT26*EF_CO2!AP26 -> 0 | BD26: =Input!BU26*EF_CO2!AQ26 -> 491173.1808 | BE26: =Input!BV26*EF_CO2!AR26 -> 11418.62668 | BF26: =Input!BW26*EF_CO2!AS26 -> 0 | BG26: =Input!BX26*EF_CO2!AT26 -> 0 | BH26: =Input!BY26*EF_CO2!AU26 -> 49567.60698 | BI26: =Input!BZ26*EF_CO2!AV26 -> 2754.280653 | BJ26: =Input!CA26*EF_CO2!AW26 -> 0 | BK26: =Input!CB26*EF_CO2!AX26 -> 0 | BL26: =Input!CC26*EF_CO2!AY26 -> 4711904.731 | BM26: =Input!CD26*EF_CO2!AZ26 -> 0 | BN26: =Input!CE26*EF_CO2!BA26 -> 0 | BO26: =Input!CF26*EF_CO2!BB26 -> 0 | BP26: =Input!CG26*EF_CO2!BC26 -> 0 | BQ26: =Input!CH26*EF_CO2!BD26 -> 0 | BR26: =Input!CI26*EF_CO2!BE26 -> 0 | BS26: =Input!CJ26*EF_CO2!BF26 -> 0 | BT26: =Input!CK26*EF_CO2!BG26 -> 0 | BU26: =Input!CL26*EF_CO2!BH26 -> -12356.66667 | CH26: =((EF_Electric!H27*BA26)/(1-EF_Electric!H27))+((EF_Steam!C24*BB26)/(1-EF_Steam!C24))+((EF_Water!C24*BC26)/(1-EF_Water!C24)) -> 649543.4946
B27: =Input!C27 -> 2006 | C27: =Input!N27*EF_CO2!C27 -> 0 | D27: =Input!O27*EF_CO2!D27 -> 0 | E27: =Input!P27*EF_CO2!E27 -> 0 | F27: =Input!Q27*EF_CO2!F27 -> 0 | G27: =Input!R27*EF_CO2!G27 -> 0 | H27: =Input!S27*EF_CO2!H27 -> 0 | I27: =Input!T27*EF_CO2!I27 -> 0 | J27: =Input!U27*EF_CO2!J27 -> 0 | K27: =Input!V27*EF_CO2!K27 -> 0 | L27: =Input!W27*EF_CO2!L27 -> 0 | M27: =Input!X27*EF_CO2!M27 -> 0 | N27: =Input!Y27*EF_CO2!N27 -> 0 | O27: =Input!AD27*EF_CO2!C27 -> 2561101.212 | P27: =Input!AE27*EF_CO2!D27 -> 0 | Q27: =Input!AF27*EF_CO2!E27 -> 5190653.737 | R27: =Input!AG27*EF_CO2!F27 -> 0 | S27: =Input!AH27*EF_CO2!G27 -> 0 | T27: =Input!AI27*EF_CO2!H27 -> 0 | U27: =Input!AJ27*EF_CO2!I27 -> 0 | V27: =Input!AK27*EF_CO2!J27 -> 0 | W27: =Input!AL27*EF_CO2!K27 -> 0 | X27: =Input!AM27*EF_CO2!L27 -> 0 | Y27: =Input!AN27*EF_CO2!M27 -> 0 | Z27: =Input!AO27*EF_CO2!N27 -> 0 | AA27: =Input!AP27*EF_CO2!O27 -> 104766.6106 | AB27: =Input!AQ27*EF_CO2!P27 -> 0 | AC27: =Input!AR27*EF_CO2!Q27 -> 0 | AD27: =Input!AS27*EF_CO2!R27 -> 0 | AE27: =Input!AT27*EF_CO2!S27 -> 0 | AF27: =Input!AU27*EF_CO2!T27 -> 0 | AG27: =Input!AV27*EF_CO2!U27 -> 0 | AH27: =Input!AW27*EF_CO2!V27 -> 0 | AI27: =Input!AX27*EF_CO2!W27 -> 0 | AJ27: =Input!AY27*EF_CO2!AN27 -> 0 | BA27: =Input!BR27*EF_CO2!AN27 -> 6601296.704 | BB27: =Input!BS27*EF_CO2!AO27 -> 0 | BC27: =Input!BT27*EF_CO2!AP27 -> 0 | BD27: =Input!BU27*EF_CO2!AQ27 -> 490191.1137 | BE27: =Input!BV27*EF_CO2!AR27 -> 11311.91054 | BF27: =Input!BW27*EF_CO2!AS27 -> 0 | BG27: =Input!BX27*EF_CO2!AT27 -> 0 | BH27: =Input!BY27*EF_CO2!AU27 -> 62592.30336 | BI27: =Input!BZ27*EF_CO2!AV27 -> 3478.012772 | BJ27: =Input!CA27*EF_CO2!AW27 -> 0 | BK27: =Input!CB27*EF_CO2!AX27 -> 0 | BL27: =Input!CC27*EF_CO2!AY27 -> 4823703.166 | BM27: =Input!CD27*EF_CO2!AZ27 -> 0 | BN27: =Input!CE27*EF_CO2!BA27 -> 0 | BO27: =Input!CF27*EF_CO2!BB27 -> 0 | BP27: =Input!CG27*EF_CO2!BC27 -> 0 | BQ27: =Input!CH27*EF_CO2!BD27 -> 0 | BR27: =Input!CI27*EF_CO2!BE27 -> 0 | BS27: =Input!CJ27*EF_CO2!BF27 -> 0 | BT27: =Input!CK27*EF_CO2!BG27 -> 0 | BU27: =Input!CL27*EF_CO2!BH27 -> -7223.333333 | CH27: =((EF_Electric!H28*BA27)/(1-EF_Electric!H28))+((EF_Steam!C25*BB27)/(1-EF_Steam!C25))+((EF_Water!C25*BC27)/(1-EF_Water!C25)) -> 652875.4982
B28: =Input!C28 -> 2007 | C28: =Input!N28*EF_CO2!C28 -> 0 | D28: =Input!O28*EF_CO2!D28 -> 0 | E28: =Input!P28*EF_CO2!E28 -> 0 | F28: =Input!Q28*EF_CO2!F28 -> 0 | G28: =Input!R28*EF_CO2!G28 -> 0 | H28: =Input!S28*EF_CO2!H28 -> 0 | I28: =Input!T28*EF_CO2!I28 -> 0 | J28: =Input!U28*EF_CO2!J28 -> 0 | K28: =Input!V28*EF_CO2!K28 -> 0 | L28: =Input!W28*EF_CO2!L28 -> 0 | M28: =Input!X28*EF_CO2!M28 -> 0 | N28: =Input!Y28*EF_CO2!N28 -> 0 | O28: =Input!AD28*EF_CO2!C28 -> 3748999.126 | P28: =Input!AE28*EF_CO2!D28 -> 0 | Q28: =Input!AF28*EF_CO2!E28 -> 5247333.581 | R28: =Input!AG28*EF_CO2!F28 -> 0 | S28: =Input!AH28*EF_CO2!G28 -> 0 | T28: =Input!AI28*EF_CO2!H28 -> 0 | U28: =Input!AJ28*EF_CO2!I28 -> 0 | V28: =Input!AK28*EF_CO2!J28 -> 0 | W28: =Input!AL28*EF_CO2!K28 -> 0 | X28: =Input!AM28*EF_CO2!L28 -> 0 | Y28: =Input!AN28*EF_CO2!M28 -> 0 | Z28: =Input!AO28*EF_CO2!N28 -> 0 | AA28: =Input!AP28*EF_CO2!O28 -> 106843.0603 | AB28: =Input!AQ28*EF_CO2!P28 -> 0 | AC28: =Input!AR28*EF_CO2!Q28 -> 0 | AD28: =Input!AS28*EF_CO2!R28 -> 0 | AE28: =Input!AT28*EF_CO2!S28 -> 0 | AF28: =Input!AU28*EF_CO2!T28 -> 0 | AG28: =Input!AV28*EF_CO2!U28 -> 0 | AH28: =Input!AW28*EF_CO2!V28 -> 0 | AI28: =Input!AX28*EF_CO2!W28 -> 0 | AJ28: =Input!AY28*EF_CO2!AN28 -> 0 | BA28: =Input!BR28*EF_CO2!AN28 -> 6159774.161 | BB28: =Input!BS28*EF_CO2!AO28 -> 0 | BC28: =Input!BT28*EF_CO2!AP28 -> 0 | BD28: =Input!BU28*EF_CO2!AQ28 -> 512426.7996 | BE28: =Input!BV28*EF_CO2!AR28 -> 11916.63532 | BF28: =Input!BW28*EF_CO2!AS28 -> 0 | BG28: =Input!BX28*EF_CO2!AT28 -> 0 | BH28: =Input!BY28*EF_CO2!AU28 -> 36935.02698 | BI28: =Input!BZ28*EF_CO2!AV28 -> 2052.336928 | BJ28: =Input!CA28*EF_CO2!AW28 -> 0 | BK28: =Input!CB28*EF_CO2!AX28 -> 0 | BL28: =Input!CC28*EF_CO2!AY28 -> 5222016.077 | BM28: =Input!CD28*EF_CO2!AZ28 -> 0 | BN28: =Input!CE28*EF_CO2!BA28 -> 0 | BO28: =Input!CF28*EF_CO2!BB28 -> 0 | BP28: =Input!CG28*EF_CO2!BC28 -> 0 | BQ28: =Input!CH28*EF_CO2!BD28 -> 0 | BR28: =Input!CI28*EF_CO2!BE28 -> 0 | BS28: =Input!CJ28*EF_CO2!BF28 -> 0 | BT28: =Input!CK28*EF_CO2!BG28 -> 0 | BU28: =Input!CL28*EF_CO2!BH28 -> -3080 | CH28: =((EF_Electric!H29*BA28)/(1-EF_Electric!H29))+((EF_Steam!C26*BB28)/(1-EF_Steam!C26))+((EF_Water!C26*BC28)/(1-EF_Water!C26)) -> 609208.4335
B29: =Input!C29 -> 2008 | C29: =Input!N29*EF_CO2!C29 -> 0 | D29: =Input!O29*EF_CO2!D29 -> 0 | E29: =Input!P29*EF_CO2!E29 -> 0 | F29: =Input!Q29*EF_CO2!F29 -> 0 | G29: =Input!R29*EF_CO2!G29 -> 0 | H29: =Input!S29*EF_CO2!H29 -> 0 | I29: =Input!T29*EF_CO2!I29 -> 0 | J29: =Input!U29*EF_CO2!J29 -> 0 | K29: =Input!V29*EF_CO2!K29 -> 0 | L29: =Input!W29*EF_CO2!L29 -> 0 | M29: =Input!X29*EF_CO2!M29 -> 0 | N29: =Input!Y29*EF_CO2!N29 -> 0 | O29: =Input!AD29*EF_CO2!C29 -> 692272.9509 | P29: =Input!AE29*EF_CO2!D29 -> 169339.668 | Q29: =Input!AF29*EF_CO2!E29 -> 5503848.185 | R29: =Input!AG29*EF_CO2!F29 -> 0 | S29: =Input!AH29*EF_CO2!G29 -> 0 | T29: =Input!AI29*EF_CO2!H29 -> 0 | U29: =Input!AJ29*EF_CO2!I29 -> 0 | V29: =Input!AK29*EF_CO2!J29 -> 0 | W29: =Input!AL29*EF_CO2!K29 -> 0 | X29: =Input!AM29*EF_CO2!L29 -> 0 | Y29: =Input!AN29*EF_CO2!M29 -> 0 | Z29: =Input!AO29*EF_CO2!N29 -> 0 | AA29: =Input!AP29*EF_CO2!O29 -> 113151.3888 | AB29: =Input!AQ29*EF_CO2!P29 -> 0 | AC29: =Input!AR29*EF_CO2!Q29 -> 0 | AD29: =Input!AS29*EF_CO2!R29 -> 0 | AE29: =Input!AT29*EF_CO2!S29 -> 0 | AF29: =Input!AU29*EF_CO2!T29 -> 0 | AG29: =Input!AV29*EF_CO2!U29 -> 0 | AH29: =Input!AW29*EF_CO2!V29 -> 0 | AI29: =Input!AX29*EF_CO2!W29 -> 0 | AJ29: =Input!AY29*EF_CO2!AN29 -> 0 | BA29: =Input!BR29*EF_CO2!AN29 -> 6441898.376 | BB29: =Input!BS29*EF_CO2!AO29 -> 0 | BC29: =Input!BT29*EF_CO2!AP29 -> 0 | BD29: =Input!BU29*EF_CO2!AQ29 -> 528412.9392 | BE29: =Input!BV29*EF_CO2!AR29 -> 12983.79669 | BF29: =Input!BW29*EF_CO2!AS29 -> 0 | BG29: =Input!BX29*EF_CO2!AT29 -> 0 | BH29: =Input!BY29*EF_CO2!AU29 -> 40575.55095 | BI29: =Input!BZ29*EF_CO2!AV29 -> 2254.626797 | BJ29: =Input!CA29*EF_CO2!AW29 -> 0 | BK29: =Input!CB29*EF_CO2!AX29 -> 0 | BL29: =Input!CC29*EF_CO2!AY29 -> 2982522.502 | BM29: =Input!CD29*EF_CO2!AZ29 -> 0 | BN29: =Input!CE29*EF_CO2!BA29 -> 0 | BO29: =Input!CF29*EF_CO2!BB29 -> 0 | BP29: =Input!CG29*EF_CO2!BC29 -> 0 | BQ29: =Input!CH29*EF_CO2!BD29 -> 0 | BR29: =Input!CI29*EF_CO2!BE29 -> 0 | BS29: =Input!CJ29*EF_CO2!BF29 -> 2136785.003 | BT29: =Input!CK29*EF_CO2!BG29 -> 0 | BU29: =Input!CL29*EF_CO2!BH29 -> -4198.333333 | CH29: =((EF_Electric!H30*BA29)/(1-EF_Electric!H30))+((EF_Steam!C27*BB29)/(1-EF_Steam!C27))+((EF_Water!C27*BC29)/(1-EF_Water!C27)) -> 637110.8284
B30: =Input!C30 -> 2009 | C30: =Input!N30*EF_CO2!C30 -> 0 | D30: =Input!O30*EF_CO2!D30 -> 0 | E30: =Input!P30*EF_CO2!E30 -> 0 | F30: =Input!Q30*EF_CO2!F30 -> 0 | G30: =Input!R30*EF_CO2!G30 -> 0 | H30: =Input!S30*EF_CO2!H30 -> 0 | I30: =Input!T30*EF_CO2!I30 -> 0 | J30: =Input!U30*EF_CO2!J30 -> 0 | K30: =Input!V30*EF_CO2!K30 -> 0 | L30: =Input!W30*EF_CO2!L30 -> 0 | M30: =Input!X30*EF_CO2!M30 -> 0 | N30: =Input!Y30*EF_CO2!N30 -> 0 | O30: =Input!AD30*EF_CO2!C30 -> 3125997.905 | P30: =Input!AE30*EF_CO2!D30 -> 0 | Q30: =Input!AF30*EF_CO2!E30 -> 3339090.213 | R30: =Input!AG30*EF_CO2!F30 -> 0 | S30: =Input!AH30*EF_CO2!G30 -> 0 | T30: =Input!AI30*EF_CO2!H30 -> 0 | U30: =Input!AJ30*EF_CO2!I30 -> 0 | V30: =Input!AK30*EF_CO2!J30 -> 0 | W30: =Input!AL30*EF_CO2!K30 -> 0 | X30: =Input!AM30*EF_CO2!L30 -> 0 | Y30: =Input!AN30*EF_CO2!M30 -> 0 | Z30: =Input!AO30*EF_CO2!N30 -> 0 | AA30: =Input!AP30*EF_CO2!O30 -> 54061.30616 | AB30: =Input!AQ30*EF_CO2!P30 -> 0 | AC30: =Input!AR30*EF_CO2!Q30 -> 0 | AD30: =Input!AS30*EF_CO2!R30 -> 0 | AE30: =Input!AT30*EF_CO2!S30 -> 0 | AF30: =Input!AU30*EF_CO2!T30 -> 0 | AG30: =Input!AV30*EF_CO2!U30 -> 0 | AH30: =Input!AW30*EF_CO2!V30 -> 0 | AI30: =Input!AX30*EF_CO2!W30 -> 0 | AJ30: =Input!AY30*EF_CO2!AN30 -> 0 | BA30: =Input!BR30*EF_CO2!AN30 -> 6355636.531 | BB30: =Input!BS30*EF_CO2!AO30 -> 0 | BC30: =Input!BT30*EF_CO2!AP30 -> 0 | BD30: =Input!BU30*EF_CO2!AQ30 -> 566821.942 | BE30: =Input!BV30*EF_CO2!AR30 -> 15718.73807 | BF30: =Input!BW30*EF_CO2!AS30 -> 0 | BG30: =Input!BX30*EF_CO2!AT30 -> 0 | BH30: =Input!BY30*EF_CO2!AU30 -> 49394.99701 | BI30: =Input!BZ30*EF_CO2!AV30 -> 2744.689383 | BJ30: =Input!CA30*EF_CO2!AW30 -> 0 | BK30: =Input!CB30*EF_CO2!AX30 -> 0 | BL30: =Input!CC30*EF_CO2!AY30 -> 3593342.202 | BM30: =Input!CD30*EF_CO2!AZ30 -> 0 | BN30: =Input!CE30*EF_CO2!BA30 -> 0 | BO30: =Input!CF30*EF_CO2!BB30 -> 0 | BP30: =Input!CG30*EF_CO2!BC30 -> 0 | BQ30: =Input!CH30*EF_CO2!BD30 -> 0 | BR30: =Input!CI30*EF_CO2!BE30 -> 0 | BS30: =Input!CJ30*EF_CO2!BF30 -> 2148619.264 | BT30: =Input!CK30*EF_CO2!BG30 -> 0 | BU30: =Input!CL30*EF_CO2!BH30 -> -3923.333333 | CH30: =((EF_Electric!H31*BA30)/(1-EF_Electric!H31))+((EF_Steam!C28*BB30)/(1-EF_Steam!C28))+((EF_Water!C28*BC30)/(1-EF_Water!C28)) -> 628579.4372
B31: =Input!C31 -> 2010 | C31: =Input!N31*EF_CO2!C31 -> 0 | D31: =Input!O31*EF_CO2!D31 -> 0 | E31: =Input!P31*EF_CO2!E31 -> 0 | F31: =Input!Q31*EF_CO2!F31 -> 0 | G31: =Input!R31*EF_CO2!G31 -> 0 | H31: =Input!S31*EF_CO2!H31 -> 0 | I31: =Input!T31*EF_CO2!I31 -> 0 | J31: =Input!U31*EF_CO2!J31 -> 0 | K31: =Input!V31*EF_CO2!K31 -> 0 | L31: =Input!W31*EF_CO2!L31 -> 0 | M31: =Input!X31*EF_CO2!M31 -> 0 | N31: =Input!Y31*EF_CO2!N31 -> 0 | O31: =Input!AD31*EF_CO2!C31 -> 504640.5775 | P31: =Input!AE31*EF_CO2!D31 -> 0 | Q31: =Input!AF31*EF_CO2!E31 -> 4493604.761 | R31: =Input!AG31*EF_CO2!F31 -> 0 | S31: =Input!AH31*EF_CO2!G31 -> 0 | T31: =Input!AI31*EF_CO2!H31 -> 0 | U31: =Input!AJ31*EF_CO2!I31 -> 0 | V31: =Input!AK31*EF_CO2!J31 -> 0 | W31: =Input!AL31*EF_CO2!K31 -> 0 | X31: =Input!AM31*EF_CO2!L31 -> 0 | Y31: =Input!AN31*EF_CO2!M31 -> 0 | Z31: =Input!AO31*EF_CO2!N31 -> 0 | AA31: =Input!AP31*EF_CO2!O31 -> 58929.37272 | AB31: =Input!AQ31*EF_CO2!P31 -> 0 | AC31: =Input!AR31*EF_CO2!Q31 -> 0 | AD31: =Input!AS31*EF_CO2!R31 -> 0 | AE31: =Input!AT31*EF_CO2!S31 -> 0 | AF31: =Input!AU31*EF_CO2!T31 -> 0 | AG31: =Input!AV31*EF_CO2!U31 -> 0 | AH31: =Input!AW31*EF_CO2!V31 -> 0 | AI31: =Input!AX31*EF_CO2!W31 -> 0 | AJ31: =Input!AY31*EF_CO2!AN31 -> 0 | BA31: =Input!BR31*EF_CO2!AN31 -> 5731182.319 | BB31: =Input!BS31*EF_CO2!AO31 -> 0 | BC31: =Input!BT31*EF_CO2!AP31 -> 0 | BD31: =Input!BU31*EF_CO2!AQ31 -> 69822.80417 | BE31: =Input!BV31*EF_CO2!AR31 -> 1693.51147 | BF31: =Input!BW31*EF_CO2!AS31 -> 0 | BG31: =Input!BX31*EF_CO2!AT31 -> 0 | BH31: =Input!BY31*EF_CO2!AU31 -> 7722.813109 | BI31: =Input!BZ31*EF_CO2!AV31 -> 889.1819155 | BJ31: =Input!CA31*EF_CO2!AW31 -> 0 | BK31: =Input!CB31*EF_CO2!AX31 -> 0 | BL31: =Input!CC31*EF_CO2!AY31 -> 3408442.616 | BM31: =Input!CD31*EF_CO2!AZ31 -> 0 | BN31: =Input!CE31*EF_CO2!BA31 -> 0 | BO31: =Input!CF31*EF_CO2!BB31 -> 0 | BP31: =Input!CG31*EF_CO2!BC31 -> 0 | BQ31: =Input!CH31*EF_CO2!BD31 -> 0 | BR31: =Input!CI31*EF_CO2!BE31 -> 0 | BS31: =Input!CJ31*EF_CO2!BF31 -> 2129672.752 | BT31: =Input!CK31*EF_CO2!BG31 -> 0 | BU31: =Input!CL31*EF_CO2!BH31 -> -8838.344167 | CH31: =((EF_Electric!H32*BA31)/(1-EF_Electric!H32))+((EF_Steam!C29*BB31)/(1-EF_Steam!C29))+((EF_Water!C29*BC31)/(1-EF_Water!C29)) -> 566820.2294
B32: =Input!C32 -> 2011 | C32: =Input!N32*EF_CO2!C32 -> 0 | D32: =Input!O32*EF_CO2!D32 -> 0 | E32: =Input!P32*EF_CO2!E32 -> 0 | F32: =Input!Q32*EF_CO2!F32 -> 0 | G32: =Input!R32*EF_CO2!G32 -> 0 | H32: =Input!S32*EF_CO2!H32 -> 0 | I32: =Input!T32*EF_CO2!I32 -> 0 | J32: =Input!U32*EF_CO2!J32 -> 0 | K32: =Input!V32*EF_CO2!K32 -> 0 | L32: =Input!W32*EF_CO2!L32 -> 0 | M32: =Input!X32*EF_CO2!M32 -> 0 | N32: =Input!Y32*EF_CO2!N32 -> 0 | O32: =Input!AD32*EF_CO2!C32 -> 0 | P32: =Input!AE32*EF_CO2!D32 -> 0 | Q32: =Input!AF32*EF_CO2!E32 -> 0 | R32: =Input!AG32*EF_CO2!F32 -> 0 | S32: =Input!AH32*EF_CO2!G32 -> 0 | T32: =Input!AI32*EF_CO2!H32 -> 0 | U32: =Input!AJ32*EF_CO2!I32 -> 0 | V32: =Input!AK32*EF_CO2!J32 -> 0 | W32: =Input!AL32*EF_CO2!K32 -> 0 | X32: =Input!AM32*EF_CO2!L32 -> 0 | Y32: =Input!AN32*EF_CO2!M32 -> 0 | Z32: =Input!AO32*EF_CO2!N32 -> 0 | AA32: =Input!AP32*EF_CO2!O32 -> 0 | AB32: =Input!AQ32*EF_CO2!P32 -> 0 | AC32: =Input!AR32*EF_CO2!Q32 -> 0 | AD32: =Input!AS32*EF_CO2!R32 -> 0 | AE32: =Input!AT32*EF_CO2!S32 -> 0 | AF32: =Input!AU32*EF_CO2!T32 -> 0 | AG32: =Input!AV32*EF_CO2!U32 -> 0 | AH32: =Input!AW32*EF_CO2!V32 -> 0 | AI32: =Input!AX32*EF_CO2!W32 -> 0 | AJ32: =Input!AY32*EF_CO2!AN32 -> 0 | BA32: =Input!BR32*EF_CO2!AN32 -> 0 | BB32: =Input!BS32*EF_CO2!AO32 -> 0 | BC32: =Input!BT32*EF_CO2!AP32 -> 0 | BD32: =Input!BU32*EF_CO2!AQ32 -> 0 | BE32: =Input!BV32*EF_CO2!AR32 -> 0 | BF32: =Input!BW32*EF_CO2!AS32 -> 0 | BG32: =Input!BX32*EF_CO2!AT32 -> 0 | BH32: =Input!BY32*EF_CO2!AU32 -> 0 | BI32: =Input!BZ32*EF_CO2!AV32 -> 0 | BJ32: =Input!CA32*EF_CO2!AW32 -> 0 | BK32: =Input!CB32*EF_CO2!AX32 -> 0 | BL32: =Input!CC32*EF_CO2!AY32 -> 0 | BM32: =Input!CD32*EF_CO2!AZ32 -> 0 | BN32: =Input!CE32*EF_CO2!BA32 -> 0 | BO32: =Input!CF32*EF_CO2!BB32 -> 0 | BP32: =Input!CG32*EF_CO2!BC32 -> 0 | BQ32: =Input!CH32*EF_CO2!BD32 -> 0 | BR32: =Input!CI32*EF_CO2!BE32 -> 0 | BS32: =Input!CJ32*EF_CO2!BF32 -> 0 | BT32: =Input!CK32*EF_CO2!BG32 -> 0 | BU32: =Input!CL32*EF_CO2!BH32 -> 0 | CH32: =((EF_Electric!H33*BA32)/(1-EF_Electric!H33))+((EF_Steam!C30*BB32)/(1-EF_Steam!C30))+((EF_Water!C30*BC32)/(1-EF_Water!C30)) -> 0
B33: ='Linear Projection'!B11 -> 2012 | C33: ='Detailed Projection'!M23*EF_CO2!C33 -> 0 | D33: ='Detailed Projection'!N23*EF_CO2!D33 -> 0 | E33: ='Detailed Projection'!O23*EF_CO2!E33 -> 0 | F33: ='Detailed Projection'!P23*EF_CO2!F33 -> 0 | G33: ='Detailed Projection'!Q23*EF_CO2!G33 -> 0 | H33: ='Detailed Projection'!R23*EF_CO2!H33 -> 0 | I33: ='Detailed Projection'!S23*EF_CO2!I33 -> 0 | J33: ='Detailed Projection'!T23*EF_CO2!J33 -> 0 | K33: ='Detailed Projection'!U23*EF_CO2!K33 -> 0 | L33: ='Detailed Projection'!V23*EF_CO2!L33 -> 0 | M33: ='Detailed Projection'!W23*EF_CO2!M33 -> 0 | N33: ='Detailed Projection'!X23*EF_CO2!N33 -> 0 | O33: ='Detailed Projection'!AC23*EF_CO2!C33 -> 2531215.718 | P33: ='Detailed Projection'!AD23*EF_CO2!D33 -> 51932.94757 | Q33: ='Detailed Projection'!AE23*EF_CO2!E33 -> 4511648.346 | R33: ='Detailed Projection'!AF23*EF_CO2!F33 -> 0 | S33: ='Detailed Projection'!AG23*EF_CO2!G33 -> 0 | T33: ='Detailed Projection'!AH23*EF_CO2!H33 -> 0 | U33: ='Detailed Projection'!AI23*EF_CO2!I33 -> 0 | V33: ='Detailed Projection'!AJ23*EF_CO2!J33 -> 0 | W33: ='Detailed Projection'!AK23*EF_CO2!K33 -> 0 | X33: ='Detailed Projection'!AL23*EF_CO2!L33 -> 0 | Y33: ='Detailed Projection'!AM23*EF_CO2!M33 -> 0 | Z33: ='Detailed Projection'!AN23*EF_CO2!N33 -> 0 | AA33: ='Detailed Projection'!AO23*EF_CO2!O33 -> 101097.603 | AB33: ='Detailed Projection'!AP23*EF_CO2!P33 -> 0 | AC33: ='Detailed Projection'!AQ23*EF_CO2!Q33 -> 0 | AD33: ='Detailed Projection'!AR23*EF_CO2!R33 -> 0 | AE33: ='Detailed Projection'!AS23*EF_CO2!S33 -> 0 | AF33: ='Detailed Projection'!AT23*EF_CO2!T33 -> 0 | AG33: ='Detailed Projection'!AU23*EF_CO2!U33 -> 0 | AH33: ='Detailed Projection'!AV23*EF_CO2!V33 -> 0 | AI33: ='Detailed Projection'!AW23*EF_CO2!W33 -> 0 | AJ33: ='Detailed Projection'!AX23*EF_CO2!AN33 -> 0 | BA33: ='Detailed Projection'!BQ23*EF_CO2!AN33 -> 0 | BB33: ='Detailed Projection'!BR23*EF_CO2!AO33 -> 0 | BC33: ='Detailed Projection'!BS23*EF_CO2!AP33 -> 0 | BD33: ='Detailed Projection'!BT23*EF_CO2!AQ33 -> 423289.6068 | BE33: ='Detailed Projection'!BU23*EF_CO2!AR33 -> 10466.44638 | BF33: ='Detailed Projection'!BV23*EF_CO2!AS33 -> 0 | BG33: ='Detailed Projection'!BW23*EF_CO2!AT33 -> 0 | BH33: ='Detailed Projection'!BX23*EF_CO2!AU33 -> 37465.16726 | BI33: ='Detailed Projection'!BY23*EF_CO2!AV33 -> 2180.37799 | BJ33: ='Detailed Projection'!BZ23*EF_CO2!AW33 -> 0 | BK33: ='Detailed Projection'!CA23*EF_CO2!AX33 -> 0 | BL33: ='Detailed Projection'!CB23*EF_CO2!AY33 -> 4726494.613 | BM33: ='Detailed Projection'!CC23*EF_CO2!AZ33 -> 0 | BN33: ='Detailed Projection'!CD23*EF_CO2!BA33 -> 0 | BO33: ='Detailed Projection'!CE23*EF_CO2!BB33 -> 0 | BP33: ='Detailed Projection'!CF23*EF_CO2!BC33 -> 0 | BQ33: ='Detailed Projection'!CG23*EF_CO2!BD33 -> 0 | BR33: ='Detailed Projection'!CH23*EF_CO2!BE33 -> 0 | BS33: ='Detailed Projection'!CI23*EF_CO2!BF33 -> 2127690.63 | BT33: ='Detailed Projection'!CJ23*EF_CO2!BG33 -> 0 | BU33: ='Detailed Projection'!CK23*EF_CO2!BH33 -> -6223.892046 | CH33: =((EF_Electric!H34*BA33)/(1-EF_Electric!H34))+((EF_Steam!C31*BB33)/(1-EF_Steam!C31))+((EF_Water!C31*BC33)/(1-EF_Water!C31)) -> 0
B34: ='Linear Projection'!B12 -> 2013 | C34: ='Detailed Projection'!M24*EF_CO2!C34 -> 0 | D34: ='Detailed Projection'!N24*EF_CO2!D34 -> 0 | E34: ='Detailed Projection'!O24*EF_CO2!E34 -> 0 | F34: ='Detailed Projection'!P24*EF_CO2!F34 -> 0 | G34: ='Detailed Projection'!Q24*EF_CO2!G34 -> 0 | H34: ='Detailed Projection'!R24*EF_CO2!H34 -> 0 | I34: ='Detailed Projection'!S24*EF_CO2!I34 -> 0 | J34: ='Detailed Projection'!T24*EF_CO2!J34 -> 0 | K34: ='Detailed Projection'!U24*EF_CO2!K34 -> 0 | L34: ='Detailed Projection'!V24*EF_CO2!L34 -> 0 | M34: ='Detailed Projection'!W24*EF_CO2!M34 -> 0 | N34: ='Detailed Projection'!X24*EF_CO2!N34 -> 0 | O34: ='Detailed Projection'!AC24*EF_CO2!C34 -> 2596333.538 | P34: ='Detailed Projection'!AD24*EF_CO2!D34 -> 54064.21963 | Q34: ='Detailed Projection'!AE24*EF_CO2!E34 -> 4550670.549 | R34: ='Detailed Projection'!AF24*EF_CO2!F34 -> 0 | S34: ='Detailed Projection'!AG24*EF_CO2!G34 -> 0 | T34: ='Detailed Projection'!AH24*EF_CO2!H34 -> 0 | U34: ='Detailed Projection'!AI24*EF_CO2!I34 -> 0 | V34: ='Detailed Projection'!AJ24*EF_CO2!J34 -> 0 | W34: ='Detailed Projection'!AK24*EF_CO2!K34 -> 0 | X34: ='Detailed Projection'!AL24*EF_CO2!L34 -> 0 | Y34: ='Detailed Projection'!AM24*EF_CO2!M34 -> 0 | Z34: ='Detailed Projection'!AN24*EF_CO2!N34 -> 0 | AA34: ='Detailed Projection'!AO24*EF_CO2!O34 -> 98127.33156 | AB34: ='Detailed Projection'!AP24*EF_CO2!P34 -> 0 | AC34: ='Detailed Projection'!AQ24*EF_CO2!Q34 -> 0 | AD34: ='Detailed Projection'!AR24*EF_CO2!R34 -> 0 | AE34: ='Detailed Projection'!AS24*EF_CO2!S34 -> 0 | AF34: ='Detailed Projection'!AT24*EF_CO2!T34 -> 0 | AG34: ='Detailed Projection'!AU24*EF_CO2!U34 -> 0 | AH34: ='Detailed Projection'!AV24*EF_CO2!V34 -> 0 | AI34: ='Detailed Projection'!AW24*EF_CO2!W34 -> 0 | AJ34: ='Detailed Projection'!AX24*EF_CO2!AN34 -> 0 | BA34: ='Detailed Projection'!BQ24*EF_CO2!AN34 -> 0 | BB34: ='Detailed Projection'!BR24*EF_CO2!AO34 -> 0 | BC34: ='Detailed Projection'!BS24*EF_CO2!AP34 -> 0 | BD34: ='Detailed Projection'!BT24*EF_CO2!AQ34 -> 419679.0683 | BE34: ='Detailed Projection'!BU24*EF_CO2!AR34 -> 10428.26897 | BF34: ='Detailed Projection'!BV24*EF_CO2!AS34 -> 0 | BG34: ='Detailed Projection'!BW24*EF_CO2!AT34 -> 0 | BH34: ='Detailed Projection'!BX24*EF_CO2!AU34 -> 36752.05728 | BI34: ='Detailed Projection'!BY24*EF_CO2!AV34 -> 2147.325434 | BJ34: ='Detailed Projection'!BZ24*EF_CO2!AW34 -> 0 | BK34: ='Detailed Projection'!CA24*EF_CO2!AX34 -> 0 | BL34: ='Detailed Projection'!CB24*EF_CO2!AY34 -> 4815770.56 | BM34: ='Detailed Projection'!CC24*EF_CO2!AZ34 -> 0 | BN34: ='Detailed Projection'!CD24*EF_CO2!BA34 -> 0 | BO34: ='Detailed Projection'!CE24*EF_CO2!BB34 -> 0 | BP34: ='Detailed Projection'!CF24*EF_CO2!BC34 -> 0 | BQ34: ='Detailed Projection'!CG24*EF_CO2!BD34 -> 0 | BR34: ='Detailed Projection'!CH24*EF_CO2!BE34 -> 0 | BS34: ='Detailed Projection'!CI24*EF_CO2!BF34 -> 2124134.504 | BT34: ='Detailed Projection'!CJ24*EF_CO2!BG34 -> 0 | BU34: ='Detailed Projection'!CK24*EF_CO2!BH34 -> -5840.694206 | CH34: =((EF_Electric!H35*BA34)/(1-EF_Electric!H35))+((EF_Steam!C32*BB34)/(1-EF_Steam!C32))+((EF_Water!C32*BC34)/(1-EF_Water!C32)) -> 0
B35: ='Linear Projection'!B13 -> 2014 | C35: ='Detailed Projection'!M25*EF_CO2!C35 -> 0 | D35: ='Detailed Projection'!N25*EF_CO2!D35 -> 0 | E35: ='Detailed Projection'!O25*EF_CO2!E35 -> 0 | F35: ='Detailed Projection'!P25*EF_CO2!F35 -> 0 | G35: ='Detailed Projection'!Q25*EF_CO2!G35 -> 0 | H35: ='Detailed Projection'!R25*EF_CO2!H35 -> 0 | I35: ='Detailed Projection'!S25*EF_CO2!I35 -> 0 | J35: ='Detailed Projection'!T25*EF_CO2!J35 -> 0 | K35: ='Detailed Projection'!U25*EF_CO2!K35 -> 0 | L35: ='Detailed Projection'!V25*EF_CO2!L35 -> 0 | M35: ='Detailed Projection'!W25*EF_CO2!M35 -> 0 | N35: ='Detailed Projection'!X25*EF_CO2!N35 -> 0 | O35: ='Detailed Projection'!AC25*EF_CO2!C35 -> 2661451.357 | P35: ='Detailed Projection'!AD25*EF_CO2!D35 -> 56195.49169 | Q35: ='Detailed Projection'!AE25*EF_CO2!E35 -> 4589692.751 | R35: ='Detailed Projection'!AF25*EF_CO2!F35 -> 0 | S35: ='Detailed Projection'!AG25*EF_CO2!G35 -> 0 | T35: ='Detailed Projection'!AH25*EF_CO2!H35 -> 0 | U35: ='Detailed Projection'!AI25*EF_CO2!I35 -> 0 | V35: ='Detailed Projection'!AJ25*EF_CO2!J35 -> 0 | W35: ='Detailed Projection'!AK25*EF_CO2!K35 -> 0 | X35: ='Detailed Projection'!AL25*EF_CO2!L35 -> 0 | Y35: ='Detailed Projection'!AM25*EF_CO2!M35 -> 0 | Z35: ='Detailed Projection'!AN25*EF_CO2!N35 -> 0 | AA35: ='Detailed Projection'!AO25*EF_CO2!O35 -> 95157.06009 | AB35: ='Detailed Projection'!AP25*EF_CO2!P35 -> 0 | AC35: ='Detailed Projection'!AQ25*EF_CO2!Q35 -> 0 | AD35: ='Detailed Projection'!AR25*EF_CO2!R35 -> 0 | AE35: ='Detailed Projection'!AS25*EF_CO2!S35 -> 0 | AF35: ='Detailed Projection'!AT25*EF_CO2!T35 -> 0 | AG35: ='Detailed Projection'!AU25*EF_CO2!U35 -> 0 | AH35: ='Detailed Projection'!AV25*EF_CO2!V35 -> 0 | AI35: ='Detailed Projection'!AW25*EF_CO2!W35 -> 0 | AJ35: ='Detailed Projection'!AX25*EF_CO2!AN35 -> 0 | BA35: ='Detailed Projection'!BQ25*EF_CO2!AN35 -> 0 | BB35: ='Detailed Projection'!BR25*EF_CO2!AO35 -> 0 | BC35: ='Detailed Projection'!BS25*EF_CO2!AP35 -> 0 | BD35: ='Detailed Projection'!BT25*EF_CO2!AQ35 -> 416068.5298 | BE35: ='Detailed Projection'!BU25*EF_CO2!AR35 -> 10390.09157 | BF35: ='Detailed Projection'!BV25*EF_CO2!AS35 -> 0 | BG35: ='Detailed Projection'!BW25*EF_CO2!AT35 -> 0 | BH35: ='Detailed Projection'!BX25*EF_CO2!AU35 -> 36038.94729 | BI35: ='Detailed Projection'!BY25*EF_CO2!AV35 -> 2114.272878 | BJ35: ='Detailed Projection'!BZ25*EF_CO2!AW35 -> 0 | BK35: ='Detailed Projection'!CA25*EF_CO2!AX35 -> 0 | BL35: ='Detailed Projection'!CB25*EF_CO2!AY35 -> 4905046.507 | BM35: ='Detailed Projection'!CC25*EF_CO2!AZ35 -> 0 | BN35: ='Detailed Projection'!CD25*EF_CO2!BA35 -> 0 | BO35: ='Detailed Projection'!CE25*EF_CO2!BB35 -> 0 | BP35: ='Detailed Projection'!CF25*EF_CO2!BC35 -> 0 | BQ35: ='Detailed Projection'!CG25*EF_CO2!BD35 -> 0 | BR35: ='Detailed Projection'!CH25*EF_CO2!BE35 -> 0 | BS35: ='Detailed Projection'!CI25*EF_CO2!BF35 -> 2120578.378 | BT35: ='Detailed Projection'!CJ25*EF_CO2!BG35 -> 0 | BU35: ='Detailed Projection'!CK25*EF_CO2!BH35 -> -5457.496365 | CH35: =((EF_Electric!H36*BA35)/(1-EF_Electric!H36))+((EF_Steam!C33*BB35)/(1-EF_Steam!C33))+((EF_Water!C33*BC35)/(1-EF_Water!C33)) -> 0
B36: ='Linear Projection'!B14 -> 2015 | C36: ='Detailed Projection'!M26*EF_CO2!C36 -> 0 | D36: ='Detailed Projection'!N26*EF_CO2!D36 -> 0 | E36: ='Detailed Projection'!O26*EF_CO2!E36 -> 0 | F36: ='Detailed Projection'!P26*EF_CO2!F36 -> 0 | G36: ='Detailed Projection'!Q26*EF_CO2!G36 -> 0 | H36: ='Detailed Projection'!R26*EF_CO2!H36 -> 0 | I36: ='Detailed Projection'!S26*EF_CO2!I36 -> 0 | J36: ='Detailed Projection'!T26*EF_CO2!J36 -> 0 | K36: ='Detailed Projection'!U26*EF_CO2!K36 -> 0 | L36: ='Detailed Projection'!V26*EF_CO2!L36 -> 0 | M36: ='Detailed Projection'!W26*EF_CO2!M36 -> 0 | N36: ='Detailed Projection'!X26*EF_CO2!N36 -> 0 | O36: ='Detailed Projection'!AC26*EF_CO2!C36 -> 2726569.177 | P36: ='Detailed Projection'!AD26*EF_CO2!D36 -> 58326.76375 | Q36: ='Detailed Projection'!AE26*EF_CO2!E36 -> 4628714.953 | R36: ='Detailed Projection'!AF26*EF_CO2!F36 -> 0 | S36: ='Detailed Projection'!AG26*EF_CO2!G36 -> 0 | T36: ='Detailed Projection'!AH26*EF_CO2!H36 -> 0 | U36: ='Detailed Projection'!AI26*EF_CO2!I36 -> 0 | V36: ='Detailed Projection'!AJ26*EF_CO2!J36 -> 0 | W36: ='Detailed Projection'!AK26*EF_CO2!K36 -> 0 | X36: ='Detailed Projection'!AL26*EF_CO2!L36 -> 0 | Y36: ='Detailed Projection'!AM26*EF_CO2!M36 -> 0 | Z36: ='Detailed Projection'!AN26*EF_CO2!N36 -> 0 | AA36: ='Detailed Projection'!AO26*EF_CO2!O36 -> 92186.78862 | AB36: ='Detailed Projection'!AP26*EF_CO2!P36 -> 0 | AC36: ='Detailed Projection'!AQ26*EF_CO2!Q36 -> 0 | AD36: ='Detailed Projection'!AR26*EF_CO2!R36 -> 0 | AE36: ='Detailed Projection'!AS26*EF_CO2!S36 -> 0 | AF36: ='Detailed Projection'!AT26*EF_CO2!T36 -> 0 | AG36: ='Detailed Projection'!AU26*EF_CO2!U36 -> 0 | AH36: ='Detailed Projection'!AV26*EF_CO2!V36 -> 0 | AI36: ='Detailed Projection'!AW26*EF_CO2!W36 -> 0 | AJ36: ='Detailed Projection'!AX26*EF_CO2!AN36 -> 0 | BA36: ='Detailed Projection'!BQ26*EF_CO2!AN36 -> 0 | BB36: ='Detailed Projection'!BR26*EF_CO2!AO36 -> 0 | BC36: ='Detailed Projection'!BS26*EF_CO2!AP36 -> 0 | BD36: ='Detailed Projection'!BT26*EF_CO2!AQ36 -> 412457.9914 | BE36: ='Detailed Projection'!BU26*EF_CO2!AR36 -> 10351.91416 | BF36: ='Detailed Projection'!BV26*EF_CO2!AS36 -> 0 | BG36: ='Detailed Projection'!BW26*EF_CO2!AT36 -> 0 | BH36: ='Detailed Projection'!BX26*EF_CO2!AU36 -> 35325.83731 | BI36: ='Detailed Projection'!BY26*EF_CO2!AV36 -> 2081.220322 | BJ36: ='Detailed Projection'!BZ26*EF_CO2!AW36 -> 0 | BK36: ='Detailed Projection'!CA26*EF_CO2!AX36 -> 0 | BL36: ='Detailed Projection'!CB26*EF_CO2!AY36 -> 4994322.454 | BM36: ='Detailed Projection'!CC26*EF_CO2!AZ36 -> 0 | BN36: ='Detailed Projection'!CD26*EF_CO2!BA36 -> 0 | BO36: ='Detailed Projection'!CE26*EF_CO2!BB36 -> 0 | BP36: ='Detailed Projection'!CF26*EF_CO2!BC36 -> 0 | BQ36: ='Detailed Projection'!CG26*EF_CO2!BD36 -> 0 | BR36: ='Detailed Projection'!CH26*EF_CO2!BE36 -> 0 | BS36: ='Detailed Projection'!CI26*EF_CO2!BF36 -> 2117022.253 | BT36: ='Detailed Projection'!CJ26*EF_CO2!BG36 -> 0 | BU36: ='Detailed Projection'!CK26*EF_CO2!BH36 -> -5074.298525 | CH36: =((EF_Electric!H37*BA36)/(1-EF_Electric!H37))+((EF_Steam!C34*BB36)/(1-EF_Steam!C34))+((EF_Water!C34*BC36)/(1-EF_Water!C34)) -> 0
B37: ='Linear Projection'!B15 -> 2016 | C37: ='Detailed Projection'!M27*EF_CO2!C37 -> 0 | D37: ='Detailed Projection'!N27*EF_CO2!D37 -> 0 | E37: ='Detailed Projection'!O27*EF_CO2!E37 -> 0 | F37: ='Detailed Projection'!P27*EF_CO2!F37 -> 0 | G37: ='Detailed Projection'!Q27*EF_CO2!G37 -> 0 | H37: ='Detailed Projection'!R27*EF_CO2!H37 -> 0 | I37: ='Detailed Projection'!S27*EF_CO2!I37 -> 0 | J37: ='Detailed Projection'!T27*EF_CO2!J37 -> 0 | K37: ='Detailed Projection'!U27*EF_CO2!K37 -> 0 | L37: ='Detailed Projection'!V27*EF_CO2!L37 -> 0 | M37: ='Detailed Projection'!W27*EF_CO2!M37 -> 0 | N37: ='Detailed Projection'!X27*EF_CO2!N37 -> 0 | O37: ='Detailed Projection'!AC27*EF_CO2!C37 -> 2791686.996 | P37: ='Detailed Projection'!AD27*EF_CO2!D37 -> 60458.03582 | Q37: ='Detailed Projection'!AE27*EF_CO2!E37 -> 4667737.156 | R37: ='Detailed Projection'!AF27*EF_CO2!F37 -> 0 | S37: ='Detailed Projection'!AG27*EF_CO2!G37 -> 0 | T37: ='Detailed Projection'!AH27*EF_CO2!H37 -> 0 | U37: ='Detailed Projection'!AI27*EF_CO2!I37 -> 0 | V37: ='Detailed Projection'!AJ27*EF_CO2!J37 -> 0 | W37: ='Detailed Projection'!AK27*EF_CO2!K37 -> 0 | X37: ='Detailed Projection'!AL27*EF_CO2!L37 -> 0 | Y37: ='Detailed Projection'!AM27*EF_CO2!M37 -> 0 | Z37: ='Detailed Projection'!AN27*EF_CO2!N37 -> 0 | AA37: ='Detailed Projection'!AO27*EF_CO2!O37 -> 89216.51715 | AB37: ='Detailed Projection'!AP27*EF_CO2!P37 -> 0 | AC37: ='Detailed Projection'!AQ27*EF_CO2!Q37 -> 0 | AD37: ='Detailed Projection'!AR27*EF_CO2!R37 -> 0 | AE37: ='Detailed Projection'!AS27*EF_CO2!S37 -> 0 | AF37: ='Detailed Projection'!AT27*EF_CO2!T37 -> 0 | AG37: ='Detailed Projection'!AU27*EF_CO2!U37 -> 0 | AH37: ='Detailed Projection'!AV27*EF_CO2!V37 -> 0 | AI37: ='Detailed Projection'!AW27*EF_CO2!W37 -> 0 | AJ37: ='Detailed Projection'!AX27*EF_CO2!AN37 -> 0 | BA37: ='Detailed Projection'!BQ27*EF_CO2!AN37 -> 0 | BB37: ='Detailed Projection'!BR27*EF_CO2!AO37 -> 0 | BC37: ='Detailed Projection'!BS27*EF_CO2!AP37 -> 0 | BD37: ='Detailed Projection'!BT27*EF_CO2!AQ37 -> 408847.4529 | BE37: ='Detailed Projection'!BU27*EF_CO2!AR37 -> 10313.73675 | BF37: ='Detailed Projection'!BV27*EF_CO2!AS37 -> 0 | BG37: ='Detailed Projection'!BW27*EF_CO2!AT37 -> 0 | BH37: ='Detailed Projection'!BX27*EF_CO2!AU37 -> 34612.72733 | BI37: ='Detailed Projection'!BY27*EF_CO2!AV37 -> 2048.167766 | BJ37: ='Detailed Projection'!BZ27*EF_CO2!AW37 -> 0 | BK37: ='Detailed Projection'!CA27*EF_CO2!AX37 -> 0 | BL37: ='Detailed Projection'!CB27*EF_CO2!AY37 -> 5083598.402 | BM37: ='Detailed Projection'!CC27*EF_CO2!AZ37 -> 0 | BN37: ='Detailed Projection'!CD27*EF_CO2!BA37 -> 0 | BO37: ='Detailed Projection'!CE27*EF_CO2!BB37 -> 0 | BP37: ='Detailed Projection'!CF27*EF_CO2!BC37 -> 0 | BQ37: ='Detailed Projection'!CG27*EF_CO2!BD37 -> 0 | BR37: ='Detailed Projection'!CH27*EF_CO2!BE37 -> 0 | BS37: ='Detailed Projection'!CI27*EF_CO2!BF37 -> 2113466.127 | BT37: ='Detailed Projection'!CJ27*EF_CO2!BG37 -> 0 | BU37: ='Detailed Projection'!CK27*EF_CO2!BH37 -> -4691.100685 | CH37: =((EF_Electric!H38*BA37)/(1-EF_Electric!H38))+((EF_Steam!C35*BB37)/(1-EF_Steam!C35))+((EF_Water!C35*BC37)/(1-EF_Water!C35)) -> 0
B38: ='Linear Projection'!B16 -> 2017 | C38: ='Detailed Projection'!M28*EF_CO2!C38 -> 0 | D38: ='Detailed Projection'!N28*EF_CO2!D38 -> 0 | E38: ='Detailed Projection'!O28*EF_CO2!E38 -> 0 | F38: ='Detailed Projection'!P28*EF_CO2!F38 -> 0 | G38: ='Detailed Projection'!Q28*EF_CO2!G38 -> 0 | H38: ='Detailed Projection'!R28*EF_CO2!H38 -> 0 | I38: ='Detailed Projection'!S28*EF_CO2!I38 -> 0 | J38: ='Detailed Projection'!T28*EF_CO2!J38 -> 0 | K38: ='Detailed Projection'!U28*EF_CO2!K38 -> 0 | L38: ='Detailed Projection'!V28*EF_CO2!L38 -> 0 | M38: ='Detailed Projection'!W28*EF_CO2!M38 -> 0 | N38: ='Detailed Projection'!X28*EF_CO2!N38 -> 0 | O38: ='Detailed Projection'!AC28*EF_CO2!C38 -> 2856804.815 | P38: ='Detailed Projection'!AD28*EF_CO2!D38 -> 62589.30788 | Q38: ='Detailed Projection'!AE28*EF_CO2!E38 -> 4706759.358 | R38: ='Detailed Projection'!AF28*EF_CO2!F38 -> 0 | S38: ='Detailed Projection'!AG28*EF_CO2!G38 -> 0 | T38: ='Detailed Projection'!AH28*EF_CO2!H38 -> 0 | U38: ='Detailed Projection'!AI28*EF_CO2!I38 -> 0 | V38: ='Detailed Projection'!AJ28*EF_CO2!J38 -> 0 | W38: ='Detailed Projection'!AK28*EF_CO2!K38 -> 0 | X38: ='Detailed Projection'!AL28*EF_CO2!L38 -> 0 | Y38: ='Detailed Projection'!AM28*EF_CO2!M38 -> 0 | Z38: ='Detailed Projection'!AN28*EF_CO2!N38 -> 0 | AA38: ='Detailed Projection'!AO28*EF_CO2!O38 -> 86246.24568 | AB38: ='Detailed Projection'!AP28*EF_CO2!P38 -> 0 | AC38: ='Detailed Projection'!AQ28*EF_CO2!Q38 -> 0 | AD38: ='Detailed Projection'!AR28*EF_CO2!R38 -> 0 | AE38: ='Detailed Projection'!AS28*EF_CO2!S38 -> 0 | AF38: ='Detailed Projection'!AT28*EF_CO2!T38 -> 0 | AG38: ='Detailed Projection'!AU28*EF_CO2!U38 -> 0 | AH38: ='Detailed Projection'!AV28*EF_CO2!V38 -> 0 | AI38: ='Detailed Projection'!AW28*EF_CO2!W38 -> 0 | AJ38: ='Detailed Projection'!AX28*EF_CO2!AN38 -> 0 | BA38: ='Detailed Projection'!BQ28*EF_CO2!AN38 -> 0 | BB38: ='Detailed Projection'!BR28*EF_CO2!AO38 -> 0 | BC38: ='Detailed Projection'!BS28*EF_CO2!AP38 -> 0 | BD38: ='Detailed Projection'!BT28*EF_CO2!AQ38 -> 405236.9144 | BE38: ='Detailed Projection'!BU28*EF_CO2!AR38 -> 10275.55934 | BF38: ='Detailed Projection'!BV28*EF_CO2!AS38 -> 0 | BG38: ='Detailed Projection'!BW28*EF_CO2!AT38 -> 0 | BH38: ='Detailed Projection'!BX28*EF_CO2!AU38 -> 33899.61735 | BI38: ='Detailed Projection'!BY28*EF_CO2!AV38 -> 2015.11521 | BJ38: ='Detailed Projection'!BZ28*EF_CO2!AW38 -> 0 | BK38: ='Detailed Projection'!CA28*EF_CO2!AX38 -> 0 | BL38: ='Detailed Projection'!CB28*EF_CO2!AY38 -> 5172874.349 | BM38: ='Detailed Projection'!CC28*EF_CO2!AZ38 -> 0 | BN38: ='Detailed Projection'!CD28*EF_CO2!BA38 -> 0 | BO38: ='Detailed Projection'!CE28*EF_CO2!BB38 -> 0 | BP38: ='Detailed Projection'!CF28*EF_CO2!BC38 -> 0 | BQ38: ='Detailed Projection'!CG28*EF_CO2!BD38 -> 0 | BR38: ='Detailed Projection'!CH28*EF_CO2!BE38 -> 0 | BS38: ='Detailed Projection'!CI28*EF_CO2!BF38 -> 2109910.002 | BT38: ='Detailed Projection'!CJ28*EF_CO2!BG38 -> 0 | BU38: ='Detailed Projection'!CK28*EF_CO2!BH38 -> -4307.902845 | CH38: =((EF_Electric!H39*BA38)/(1-EF_Electric!H39))+((EF_Steam!C36*BB38)/(1-EF_Steam!C36))+((EF_Water!C36*BC38)/(1-EF_Water!C36)) -> 0
B39: ='Linear Projection'!B17 -> 2018 | C39: ='Detailed Projection'!M29*EF_CO2!C39 -> 0 | D39: ='Detailed Projection'!N29*EF_CO2!D39 -> 0 | E39: ='Detailed Projection'!O29*EF_CO2!E39 -> 0 | F39: ='Detailed Projection'!P29*EF_CO2!F39 -> 0 | G39: ='Detailed Projection'!Q29*EF_CO2!G39 -> 0 | H39: ='Detailed Projection'!R29*EF_CO2!H39 -> 0 | I39: ='Detailed Projection'!S29*EF_CO2!I39 -> 0 | J39: ='Detailed Projection'!T29*EF_CO2!J39 -> 0 | K39: ='Detailed Projection'!U29*EF_CO2!K39 -> 0 | L39: ='Detailed Projection'!V29*EF_CO2!L39 -> 0 | M39: ='Detailed Projection'!W29*EF_CO2!M39 -> 0 | N39: ='Detailed Projection'!X29*EF_CO2!N39 -> 0 | O39: ='Detailed Projection'!AC29*EF_CO2!C39 -> 2921922.635 | P39: ='Detailed Projection'!AD29*EF_CO2!D39 -> 64720.57994 | Q39: ='Detailed Projection'!AE29*EF_CO2!E39 -> 4745781.56 | R39: ='Detailed Projection'!AF29*EF_CO2!F39 -> 0 | S39: ='Detailed Projection'!AG29*EF_CO2!G39 -> 0 | T39: ='Detailed Projection'!AH29*EF_CO2!H39 -> 0 | U39: ='Detailed Projection'!AI29*EF_CO2!I39 -> 0 | V39: ='Detailed Projection'!AJ29*EF_CO2!J39 -> 0 | W39: ='Detailed Projection'!AK29*EF_CO2!K39 -> 0 | X39: ='Detailed Projection'!AL29*EF_CO2!L39 -> 0 | Y39: ='Detailed Projection'!AM29*EF_CO2!M39 -> 0 | Z39: ='Detailed Projection'!AN29*EF_CO2!N39 -> 0 | AA39: ='Detailed Projection'!AO29*EF_CO2!O39 -> 83275.97421 | AB39: ='Detailed Projection'!AP29*EF_CO2!P39 -> 0 | AC39: ='Detailed Projection'!AQ29*EF_CO2!Q39 -> 0 | AD39: ='Detailed Projection'!AR29*EF_CO2!R39 -> 0 | AE39: ='Detailed Projection'!AS29*EF_CO2!S39 -> 0 | AF39: ='Detailed Projection'!AT29*EF_CO2!T39 -> 0 | AG39: ='Detailed Projection'!AU29*EF_CO2!U39 -> 0 | AH39: ='Detailed Projection'!AV29*EF_CO2!V39 -> 0 | AI39: ='Detailed Projection'!AW29*EF_CO2!W39 -> 0 | AJ39: ='Detailed Projection'!AX29*EF_CO2!AN39 -> 0 | BA39: ='Detailed Projection'!BQ29*EF_CO2!AN39 -> 0 | BB39: ='Detailed Projection'!BR29*EF_CO2!AO39 -> 0 | BC39: ='Detailed Projection'!BS29*EF_CO2!AP39 -> 0 | BD39: ='Detailed Projection'!BT29*EF_CO2!AQ39 -> 401626.3759 | BE39: ='Detailed Projection'!BU29*EF_CO2!AR39 -> 10237.38193 | BF39: ='Detailed Projection'!BV29*EF_CO2!AS39 -> 0 | BG39: ='Detailed Projection'!BW29*EF_CO2!AT39 -> 0 | BH39: ='Detailed Projection'!BX29*EF_CO2!AU39 -> 33186.50736 | BI39: ='Detailed Projection'!BY29*EF_CO2!AV39 -> 1982.062655 | BJ39: ='Detailed Projection'!BZ29*EF_CO2!AW39 -> 0 | BK39: ='Detailed Projection'!CA29*EF_CO2!AX39 -> 0 | BL39: ='Detailed Projection'!CB29*EF_CO2!AY39 -> 5262150.296 | BM39: ='Detailed Projection'!CC29*EF_CO2!AZ39 -> 0 | BN39: ='Detailed Projection'!CD29*EF_CO2!BA39 -> 0 | BO39: ='Detailed Projection'!CE29*EF_CO2!BB39 -> 0 | BP39: ='Detailed Projection'!CF29*EF_CO2!BC39 -> 0 | BQ39: ='Detailed Projection'!CG29*EF_CO2!BD39 -> 0 | BR39: ='Detailed Projection'!CH29*EF_CO2!BE39 -> 0 | BS39: ='Detailed Projection'!CI29*EF_CO2!BF39 -> 2106353.876 | BT39: ='Detailed Projection'!CJ29*EF_CO2!BG39 -> 0 | BU39: ='Detailed Projection'!CK29*EF_CO2!BH39 -> -3924.705004 | CH39: =((EF_Electric!H40*BA39)/(1-EF_Electric!H40))+((EF_Steam!C37*BB39)/(1-EF_Steam!C37))+((EF_Water!C37*BC39)/(1-EF_Water!C37)) -> 0
B40: ='Linear Projection'!B18 -> 2019 | C40: ='Detailed Projection'!M30*EF_CO2!C40 -> 0 | D40: ='Detailed Projection'!N30*EF_CO2!D40 -> 0 | E40: ='Detailed Projection'!O30*EF_CO2!E40 -> 0 | F40: ='Detailed Projection'!P30*EF_CO2!F40 -> 0 | G40: ='Detailed Projection'!Q30*EF_CO2!G40 -> 0 | H40: ='Detailed Projection'!R30*EF_CO2!H40 -> 0 | I40: ='Detailed Projection'!S30*EF_CO2!I40 -> 0 | J40: ='Detailed Projection'!T30*EF_CO2!J40 -> 0 | K40: ='Detailed Projection'!U30*EF_CO2!K40 -> 0 | L40: ='Detailed Projection'!V30*EF_CO2!L40 -> 0 | M40: ='Detailed Projection'!W30*EF_CO2!M40 -> 0 | N40: ='Detailed Projection'!X30*EF_CO2!N40 -> 0 | O40: ='Detailed Projection'!AC30*EF_CO2!C40 -> 2987040.454 | P40: ='Detailed Projection'!AD30*EF_CO2!D40 -> 66851.852 | Q40: ='Detailed Projection'!AE30*EF_CO2!E40 -> 4784803.763 | R40: ='Detailed Projection'!AF30*EF_CO2!F40 -> 0 | S40: ='Detailed Projection'!AG30*EF_CO2!G40 -> 0 | T40: ='Detailed Projection'!AH30*EF_CO2!H40 -> 0 | U40: ='Detailed Projection'!AI30*EF_CO2!I40 -> 0 | V40: ='Detailed Projection'!AJ30*EF_CO2!J40 -> 0 | W40: ='Detailed Projection'!AK30*EF_CO2!K40 -> 0 | X40: ='Detailed Projection'!AL30*EF_CO2!L40 -> 0 | Y40: ='Detailed Projection'!AM30*EF_CO2!M40 -> 0 | Z40: ='Detailed Projection'!AN30*EF_CO2!N40 -> 0 | AA40: ='Detailed Projection'!AO30*EF_CO2!O40 -> 80305.70274 | AB40: ='Detailed Projection'!AP30*EF_CO2!P40 -> 0 | AC40: ='Detailed Projection'!AQ30*EF_CO2!Q40 -> 0 | AD40: ='Detailed Projection'!AR30*EF_CO2!R40 -> 0 | AE40: ='Detailed Projection'!AS30*EF_CO2!S40 -> 0 | AF40: ='Detailed Projection'!AT30*EF_CO2!T40 -> 0 | AG40: ='Detailed Projection'!AU30*EF_CO2!U40 -> 0 | AH40: ='Detailed Projection'!AV30*EF_CO2!V40 -> 0 | AI40: ='Detailed Projection'!AW30*EF_CO2!W40 -> 0 | AJ40: ='Detailed Projection'!AX30*EF_CO2!AN40 -> 0 | BA40: ='Detailed Projection'!BQ30*EF_CO2!AN40 -> 0 | BB40: ='Detailed Projection'!BR30*EF_CO2!AO40 -> 0 | BC40: ='Detailed Projection'!BS30*EF_CO2!AP40 -> 0 | BD40: ='Detailed Projection'!BT30*EF_CO2!AQ40 -> 398015.8375 | BE40: ='Detailed Projection'!BU30*EF_CO2!AR40 -> 10199.20452 | BF40: ='Detailed Projection'!BV30*EF_CO2!AS40 -> 0 | BG40: ='Detailed Projection'!BW30*EF_CO2!AT40 -> 0 | BH40: ='Detailed Projection'!BX30*EF_CO2!AU40 -> 32473.39738 | BI40: ='Detailed Projection'!BY30*EF_CO2!AV40 -> 1949.010099 | BJ40: ='Detailed Projection'!BZ30*EF_CO2!AW40 -> 0 | BK40: ='Detailed Projection'!CA30*EF_CO2!AX40 -> 0 | BL40: ='Detailed Projection'!CB30*EF_CO2!AY40 -> 5351426.243 | BM40: ='Detailed Projection'!CC30*EF_CO2!AZ40 -> 0 | BN40: ='Detailed Projection'!CD30*EF_CO2!BA40 -> 0 | BO40: ='Detailed Projection'!CE30*EF_CO2!BB40 -> 0 | BP40: ='Detailed Projection'!CF30*EF_CO2!BC40 -> 0 | BQ40: ='Detailed Projection'!CG30*EF_CO2!BD40 -> 0 | BR40: ='Detailed Projection'!CH30*EF_CO2!BE40 -> 0 | BS40: ='Detailed Projection'!CI30*EF_CO2!BF40 -> 2102797.751 | BT40: ='Detailed Projection'!CJ30*EF_CO2!BG40 -> 0 | BU40: ='Detailed Projection'!CK30*EF_CO2!BH40 -> -3541.507164 | CH40: =((EF_Electric!H41*BA40)/(1-EF_Electric!H41))+((EF_Steam!C38*BB40)/(1-EF_Steam!C38))+((EF_Water!C38*BC40)/(1-EF_Water!C38)) -> 0
B41: ='Linear Projection'!B19 -> 2020 | C41: ='Detailed Projection'!M31*EF_CO2!C41 -> 0 | D41: ='Detailed Projection'!N31*EF_CO2!D41 -> 0 | E41: ='Detailed Projection'!O31*EF_CO2!E41 -> 0 | F41: ='Detailed Projection'!P31*EF_CO2!F41 -> 0 | G41: ='Detailed Projection'!Q31*EF_CO2!G41 -> 0 | H41: ='Detailed Projection'!R31*EF_CO2!H41 -> 0 | I41: ='Detailed Projection'!S31*EF_CO2!I41 -> 0 | J41: ='Detailed Projection'!T31*EF_CO2!J41 -> 0 | K41: ='Detailed Projection'!U31*EF_CO2!K41 -> 0 | L41: ='Detailed Projection'!V31*EF_CO2!L41 -> 0 | M41: ='Detailed Projection'!W31*EF_CO2!M41 -> 0 | N41: ='Detailed Projection'!X31*EF_CO2!N41 -> 0 | O41: ='Detailed Projection'!AC31*EF_CO2!C41 -> 3052158.274 | P41: ='Detailed Projection'!AD31*EF_CO2!D41 -> 68983.12407 | Q41: ='Detailed Projection'!AE31*EF_CO2!E41 -> 4823825.965 | R41: ='Detailed Projection'!AF31*EF_CO2!F41 -> 0 | S41: ='Detailed Projection'!AG31*EF_CO2!G41 -> 0 | T41: ='Detailed Projection'!AH31*EF_CO2!H41 -> 0 | U41: ='Detailed Projection'!AI31*EF_CO2!I41 -> 0 | V41: ='Detailed Projection'!AJ31*EF_CO2!J41 -> 0 | W41: ='Detailed Projection'!AK31*EF_CO2!K41 -> 0 | X41: ='Detailed Projection'!AL31*EF_CO2!L41 -> 0 | Y41: ='Detailed Projection'!AM31*EF_CO2!M41 -> 0 | Z41: ='Detailed Projection'!AN31*EF_CO2!N41 -> 0 | AA41: ='Detailed Projection'!AO31*EF_CO2!O41 -> 77335.43127 | AB41: ='Detailed Projection'!AP31*EF_CO2!P41 -> 0 | AC41: ='Detailed Projection'!AQ31*EF_CO2!Q41 -> 0 | AD41: ='Detailed Projection'!AR31*EF_CO2!R41 -> 0 | AE41: ='Detailed Projection'!AS31*EF_CO2!S41 -> 0 | AF41: ='Detailed Projection'!AT31*EF_CO2!T41 -> 0 | AG41: ='Detailed Projection'!AU31*EF_CO2!U41 -> 0 | AH41: ='Detailed Projection'!AV31*EF_CO2!V41 -> 0 | AI41: ='Detailed Projection'!AW31*EF_CO2!W41 -> 0 | AJ41: ='Detailed Projection'!AX31*EF_CO2!AN41 -> 0 | BA41: ='Detailed Projection'!BQ31*EF_CO2!AN41 -> 0 | BB41: ='Detailed Projection'!BR31*EF_CO2!AO41 -> 0 | BC41: ='Detailed Projection'!BS31*EF_CO2!AP41 -> 0 | BD41: ='Detailed Projection'!BT31*EF_CO2!AQ41 -> 394405.299 | BE41: ='Detailed Projection'!BU31*EF_CO2!AR41 -> 10161.02712 | BF41: ='Detailed Projection'!BV31*EF_CO2!AS41 -> 0 | BG41: ='Detailed Projection'!BW31*EF_CO2!AT41 -> 0 | BH41: ='Detailed Projection'!BX31*EF_CO2!AU41 -> 31760.2874 | BI41: ='Detailed Projection'!BY31*EF_CO2!AV41 -> 1915.957543 | BJ41: ='Detailed Projection'!BZ31*EF_CO2!AW41 -> 0 | BK41: ='Detailed Projection'!CA31*EF_CO2!AX41 -> 0 | BL41: ='Detailed Projection'!CB31*EF_CO2!AY41 -> 5440702.19 | BM41: ='Detailed Projection'!CC31*EF_CO2!AZ41 -> 0 | BN41: ='Detailed Projection'!CD31*EF_CO2!BA41 -> 0 | BO41: ='Detailed Projection'!CE31*EF_CO2!BB41 -> 0 | BP41: ='Detailed Projection'!CF31*EF_CO2!BC41 -> 0 | BQ41: ='Detailed Projection'!CG31*EF_CO2!BD41 -> 0 | BR41: ='Detailed Projection'!CH31*EF_CO2!BE41 -> 0 | BS41: ='Detailed Projection'!CI31*EF_CO2!BF41 -> 2099241.625 | BT41: ='Detailed Projection'!CJ31*EF_CO2!BG41 -> 0 | BU41: ='Detailed Projection'!CK31*EF_CO2!BH41 -> -3158.309324 | CH41: =((EF_Electric!H42*BA41)/(1-EF_Electric!H42))+((EF_Steam!C39*BB41)/(1-EF_Steam!C39))+((EF_Water!C39*BC41)/(1-EF_Water!C39)) -> 0
B42: ='Linear Projection'!B20 -> 2021 | C42: ='Detailed Projection'!M32*EF_CO2!C42 -> 0 | D42: ='Detailed Projection'!N32*EF_CO2!D42 -> 0 | E42: ='Detailed Projection'!O32*EF_CO2!E42 -> 0 | F42: ='Detailed Projection'!P32*EF_CO2!F42 -> 0 | G42: ='Detailed Projection'!Q32*EF_CO2!G42 -> 0 | H42: ='Detailed Projection'!R32*EF_CO2!H42 -> 0 | I42: ='Detailed Projection'!S32*EF_CO2!I42 -> 0 | J42: ='Detailed Projection'!T32*EF_CO2!J42 -> 0 | K42: ='Detailed Projection'!U32*EF_CO2!K42 -> 0 | L42: ='Detailed Projection'!V32*EF_CO2!L42 -> 0 | M42: ='Detailed Projection'!W32*EF_CO2!M42 -> 0 | N42: ='Detailed Projection'!X32*EF_CO2!N42 -> 0 | O42: ='Detailed Projection'!AC32*EF_CO2!C42 -> 3117276.093 | P42: ='Detailed Projection'!AD32*EF_CO2!D42 -> 71114.39613 | Q42: ='Detailed Projection'!AE32*EF_CO2!E42 -> 4862848.168 | R42: ='Detailed Projection'!AF32*EF_CO2!F42 -> 0 | S42: ='Detailed Projection'!AG32*EF_CO2!G42 -> 0 | T42: ='Detailed Projection'!AH32*EF_CO2!H42 -> 0 | U42: ='Detailed Projection'!AI32*EF_CO2!I42 -> 0 | V42: ='Detailed Projection'!AJ32*EF_CO2!J42 -> 0 | W42: ='Detailed Projection'!AK32*EF_CO2!K42 -> 0 | X42: ='Detailed Projection'!AL32*EF_CO2!L42 -> 0 | Y42: ='Detailed Projection'!AM32*EF_CO2!M42 -> 0 | Z42: ='Detailed Projection'!AN32*EF_CO2!N42 -> 0 | AA42: ='Detailed Projection'!AO32*EF_CO2!O42 -> 74365.15979 | AB42: ='Detailed Projection'!AP32*EF_CO2!P42 -> 0 | AC42: ='Detailed Projection'!AQ32*EF_CO2!Q42 -> 0 | AD42: ='Detailed Projection'!AR32*EF_CO2!R42 -> 0 | AE42: ='Detailed Projection'!AS32*EF_CO2!S42 -> 0 | AF42: ='Detailed Projection'!AT32*EF_CO2!T42 -> 0 | AG42: ='Detailed Projection'!AU32*EF_CO2!U42 -> 0 | AH42: ='Detailed Projection'!AV32*EF_CO2!V42 -> 0 | AI42: ='Detailed Projection'!AW32*EF_CO2!W42 -> 0 | AJ42: ='Detailed Projection'!AX32*EF_CO2!AN42 -> 0 | BA42: ='Detailed Projection'!BQ32*EF_CO2!AN42 -> 0 | BB42: ='Detailed Projection'!BR32*EF_CO2!AO42 -> 0 | BC42: ='Detailed Projection'!BS32*EF_CO2!AP42 -> 0 | BD42: ='Detailed Projection'!BT32*EF_CO2!AQ42 -> 390794.7605 | BE42: ='Detailed Projection'!BU32*EF_CO2!AR42 -> 10122.84971 | BF42: ='Detailed Projection'!BV32*EF_CO2!AS42 -> 0 | BG42: ='Detailed Projection'!BW32*EF_CO2!AT42 -> 0 | BH42: ='Detailed Projection'!BX32*EF_CO2!AU42 -> 31047.17742 | BI42: ='Detailed Projection'!BY32*EF_CO2!AV42 -> 1882.904987 | BJ42: ='Detailed Projection'!BZ32*EF_CO2!AW42 -> 0 | BK42: ='Detailed Projection'!CA32*EF_CO2!AX42 -> 0 | BL42: ='Detailed Projection'!CB32*EF_CO2!AY42 -> 5529978.138 | BM42: ='Detailed Projection'!CC32*EF_CO2!AZ42 -> 0 | BN42: ='Detailed Projection'!CD32*EF_CO2!BA42 -> 0 | BO42: ='Detailed Projection'!CE32*EF_CO2!BB42 -> 0 | BP42: ='Detailed Projection'!CF32*EF_CO2!BC42 -> 0 | BQ42: ='Detailed Projection'!CG32*EF_CO2!BD42 -> 0 | BR42: ='Detailed Projection'!CH32*EF_CO2!BE42 -> 0 | BS42: ='Detailed Projection'!CI32*EF_CO2!BF42 -> 2095685.5 | BT42: ='Detailed Projection'!CJ32*EF_CO2!BG42 -> 0 | BU42: ='Detailed Projection'!CK32*EF_CO2!BH42 -> -2775.111484 | CH42: =((EF_Electric!H43*BA42)/(1-EF_Electric!H43))+((EF_Steam!C40*BB42)/(1-EF_Steam!C40))+((EF_Water!C40*BC42)/(1-EF_Water!C40)) -> 0
B43: ='Linear Projection'!B21 -> 2022 | C43: ='Detailed Projection'!M33*EF_CO2!C43 -> 0 | D43: ='Detailed Projection'!N33*EF_CO2!D43 -> 0 | E43: ='Detailed Projection'!O33*EF_CO2!E43 -> 0 | F43: ='Detailed Projection'!P33*EF_CO2!F43 -> 0 | G43: ='Detailed Projection'!Q33*EF_CO2!G43 -> 0 | H43: ='Detailed Projection'!R33*EF_CO2!H43 -> 0 | I43: ='Detailed Projection'!S33*EF_CO2!I43 -> 0 | J43: ='Detailed Projection'!T33*EF_CO2!J43 -> 0 | K43: ='Detailed Projection'!U33*EF_CO2!K43 -> 0 | L43: ='Detailed Projection'!V33*EF_CO2!L43 -> 0 | M43: ='Detailed Projection'!W33*EF_CO2!M43 -> 0 | N43: ='Detailed Projection'!X33*EF_CO2!N43 -> 0 | O43: ='Detailed Projection'!AC33*EF_CO2!C43 -> 3182393.913 | P43: ='Detailed Projection'!AD33*EF_CO2!D43 -> 73245.66819 | Q43: ='Detailed Projection'!AE33*EF_CO2!E43 -> 4901870.37 | R43: ='Detailed Projection'!AF33*EF_CO2!F43 -> 0 | S43: ='Detailed Projection'!AG33*EF_CO2!G43 -> 0 | T43: ='Detailed Projection'!AH33*EF_CO2!H43 -> 0 | U43: ='Detailed Projection'!AI33*EF_CO2!I43 -> 0 | V43: ='Detailed Projection'!AJ33*EF_CO2!J43 -> 0 | W43: ='Detailed Projection'!AK33*EF_CO2!K43 -> 0 | X43: ='Detailed Projection'!AL33*EF_CO2!L43 -> 0 | Y43: ='Detailed Projection'!AM33*EF_CO2!M43 -> 0 | Z43: ='Detailed Projection'!AN33*EF_CO2!N43 -> 0 | AA43: ='Detailed Projection'!AO33*EF_CO2!O43 -> 71394.88832 | AB43: ='Detailed Projection'!AP33*EF_CO2!P43 -> 0 | AC43: ='Detailed Projection'!AQ33*EF_CO2!Q43 -> 0 | AD43: ='Detailed Projection'!AR33*EF_CO2!R43 -> 0 | AE43: ='Detailed Projection'!AS33*EF_CO2!S43 -> 0 | AF43: ='Detailed Projection'!AT33*EF_CO2!T43 -> 0 | AG43: ='Detailed Projection'!AU33*EF_CO2!U43 -> 0 | AH43: ='Detailed Projection'!AV33*EF_CO2!V43 -> 0 | AI43: ='Detailed Projection'!AW33*EF_CO2!W43 -> 0 | AJ43: ='Detailed Projection'!AX33*EF_CO2!AN43 -> 0 | BA43: ='Detailed Projection'!BQ33*EF_CO2!AN43 -> 0 | BB43: ='Detailed Projection'!BR33*EF_CO2!AO43 -> 0 | BC43: ='Detailed Projection'!BS33*EF_CO2!AP43 -> 0 | BD43: ='Detailed Projection'!BT33*EF_CO2!AQ43 -> 387184.222 | BE43: ='Detailed Projection'!BU33*EF_CO2!AR43 -> 10084.6723 | BF43: ='Detailed Projection'!BV33*EF_CO2!AS43 -> 0 | BG43: ='Detailed Projection'!BW33*EF_CO2!AT43 -> 0 | BH43: ='Detailed Projection'!BX33*EF_CO2!AU43 -> 30334.06743 | BI43: ='Detailed Projection'!BY33*EF_CO2!AV43 -> 1849.852431 | BJ43: ='Detailed Projection'!BZ33*EF_CO2!AW43 -> 0 | BK43: ='Detailed Projection'!CA33*EF_CO2!AX43 -> 0 | BL43: ='Detailed Projection'!CB33*EF_CO2!AY43 -> 5619254.085 | BM43: ='Detailed Projection'!CC33*EF_CO2!AZ43 -> 0 | BN43: ='Detailed Projection'!CD33*EF_CO2!BA43 -> 0 | BO43: ='Detailed Projection'!CE33*EF_CO2!BB43 -> 0 | BP43: ='Detailed Projection'!CF33*EF_CO2!BC43 -> 0 | BQ43: ='Detailed Projection'!CG33*EF_CO2!BD43 -> 0 | BR43: ='Detailed Projection'!CH33*EF_CO2!BE43 -> 0 | BS43: ='Detailed Projection'!CI33*EF_CO2!BF43 -> 2092129.374 | BT43: ='Detailed Projection'!CJ33*EF_CO2!BG43 -> 0 | BU43: ='Detailed Projection'!CK33*EF_CO2!BH43 -> -2391.913643 | CH43: =((EF_Electric!H44*BA43)/(1-EF_Electric!H44))+((EF_Steam!C41*BB43)/(1-EF_Steam!C41))+((EF_Water!C41*BC43)/(1-EF_Water!C41)) -> 0
B44: ='Linear Projection'!B22 -> 2023 | C44: ='Detailed Projection'!M34*EF_CO2!C44 -> 0 | D44: ='Detailed Projection'!N34*EF_CO2!D44 -> 0 | E44: ='Detailed Projection'!O34*EF_CO2!E44 -> 0 | F44: ='Detailed Projection'!P34*EF_CO2!F44 -> 0 | G44: ='Detailed Projection'!Q34*EF_CO2!G44 -> 0 | H44: ='Detailed Projection'!R34*EF_CO2!H44 -> 0 | I44: ='Detailed Projection'!S34*EF_CO2!I44 -> 0 | J44: ='Detailed Projection'!T34*EF_CO2!J44 -> 0 | K44: ='Detailed Projection'!U34*EF_CO2!K44 -> 0 | L44: ='Detailed Projection'!V34*EF_CO2!L44 -> 0 | M44: ='Detailed Projection'!W34*EF_CO2!M44 -> 0 | N44: ='Detailed Projection'!X34*EF_CO2!N44 -> 0 | O44: ='Detailed Projection'!AC34*EF_CO2!C44 -> 3247511.732 | P44: ='Detailed Projection'!AD34*EF_CO2!D44 -> 75376.94025 | Q44: ='Detailed Projection'!AE34*EF_CO2!E44 -> 4940892.572 | R44: ='Detailed Projection'!AF34*EF_CO2!F44 -> 0 | S44: ='Detailed Projection'!AG34*EF_CO2!G44 -> 0 | T44: ='Detailed Projection'!AH34*EF_CO2!H44 -> 0 | U44: ='Detailed Projection'!AI34*EF_CO2!I44 -> 0 | V44: ='Detailed Projection'!AJ34*EF_CO2!J44 -> 0 | W44: ='Detailed Projection'!AK34*EF_CO2!K44 -> 0 | X44: ='Detailed Projection'!AL34*EF_CO2!L44 -> 0 | Y44: ='Detailed Projection'!AM34*EF_CO2!M44 -> 0 | Z44: ='Detailed Projection'!AN34*EF_CO2!N44 -> 0 | AA44: ='Detailed Projection'!AO34*EF_CO2!O44 -> 68424.61685 | AB44: ='Detailed Projection'!AP34*EF_CO2!P44 -> 0 | AC44: ='Detailed Projection'!AQ34*EF_CO2!Q44 -> 0 | AD44: ='Detailed Projection'!AR34*EF_CO2!R44 -> 0 | AE44: ='Detailed Projection'!AS34*EF_CO2!S44 -> 0 | AF44: ='Detailed Projection'!AT34*EF_CO2!T44 -> 0 | AG44: ='Detailed Projection'!AU34*EF_CO2!U44 -> 0 | AH44: ='Detailed Projection'!AV34*EF_CO2!V44 -> 0 | AI44: ='Detailed Projection'!AW34*EF_CO2!W44 -> 0 | AJ44: ='Detailed Projection'!AX34*EF_CO2!AN44 -> 0 | BA44: ='Detailed Projection'!BQ34*EF_CO2!AN44 -> 0 | BB44: ='Detailed Projection'!BR34*EF_CO2!AO44 -> 0 | BC44: ='Detailed Projection'!BS34*EF_CO2!AP44 -> 0 | BD44: ='Detailed Projection'!BT34*EF_CO2!AQ44 -> 383573.6836 | BE44: ='Detailed Projection'!BU34*EF_CO2!AR44 -> 10046.49489 | BF44: ='Detailed Projection'!BV34*EF_CO2!AS44 -> 0 | BG44: ='Detailed Projection'!BW34*EF_CO2!AT44 -> 0 | BH44: ='Detailed Projection'!BX34*EF_CO2!AU44 -> 29620.95745 | BI44: ='Detailed Projection'!BY34*EF_CO2!AV44 -> 1816.799875 | BJ44: ='Detailed Projection'!BZ34*EF_CO2!AW44 -> 0 | BK44: ='Detailed Projection'!CA34*EF_CO2!AX44 -> 0 | BL44: ='Detailed Projection'!CB34*EF_CO2!AY44 -> 5708530.032 | BM44: ='Detailed Projection'!CC34*EF_CO2!AZ44 -> 0 | BN44: ='Detailed Projection'!CD34*EF_CO2!BA44 -> 0 | BO44: ='Detailed Projection'!CE34*EF_CO2!BB44 -> 0 | BP44: ='Detailed Projection'!CF34*EF_CO2!BC44 -> 0 | BQ44: ='Detailed Projection'!CG34*EF_CO2!BD44 -> 0 | BR44: ='Detailed Projection'!CH34*EF_CO2!BE44 -> 0 | BS44: ='Detailed Projection'!CI34*EF_CO2!BF44 -> 2088573.249 | BT44: ='Detailed Projection'!CJ34*EF_CO2!BG44 -> 0 | BU44: ='Detailed Projection'!CK34*EF_CO2!BH44 -> -2008.715803 | CH44: =((EF_Electric!H45*BA44)/(1-EF_Electric!H45))+((EF_Steam!C42*BB44)/(1-EF_Steam!C42))+((EF_Water!C42*BC44)/(1-EF_Water!C42)) -> 0
B45: ='Linear Projection'!B23 -> 2024 | C45: ='Detailed Projection'!M35*EF_CO2!C45 -> 0 | D45: ='Detailed Projection'!N35*EF_CO2!D45 -> 0 | E45: ='Detailed Projection'!O35*EF_CO2!E45 -> 0 | F45: ='Detailed Projection'!P35*EF_CO2!F45 -> 0 | G45: ='Detailed Projection'!Q35*EF_CO2!G45 -> 0 | H45: ='Detailed Projection'!R35*EF_CO2!H45 -> 0 | I45: ='Detailed Projection'!S35*EF_CO2!I45 -> 0 | J45: ='Detailed Projection'!T35*EF_CO2!J45 -> 0 | K45: ='Detailed Projection'!U35*EF_CO2!K45 -> 0 | L45: ='Detailed Projection'!V35*EF_CO2!L45 -> 0 | M45: ='Detailed Projection'!W35*EF_CO2!M45 -> 0 | N45: ='Detailed Projection'!X35*EF_CO2!N45 -> 0 | O45: ='Detailed Projection'!AC35*EF_CO2!C45 -> 3312629.551 | P45: ='Detailed Projection'!AD35*EF_CO2!D45 -> 77508.21232 | Q45: ='Detailed Projection'!AE35*EF_CO2!E45 -> 4979914.775 | R45: ='Detailed Projection'!AF35*EF_CO2!F45 -> 0 | S45: ='Detailed Projection'!AG35*EF_CO2!G45 -> 0 | T45: ='Detailed Projection'!AH35*EF_CO2!H45 -> 0 | U45: ='Detailed Projection'!AI35*EF_CO2!I45 -> 0 | V45: ='Detailed Projection'!AJ35*EF_CO2!J45 -> 0 | W45: ='Detailed Projection'!AK35*EF_CO2!K45 -> 0 | X45: ='Detailed Projection'!AL35*EF_CO2!L45 -> 0 | Y45: ='Detailed Projection'!AM35*EF_CO2!M45 -> 0 | Z45: ='Detailed Projection'!AN35*EF_CO2!N45 -> 0 | AA45: ='Detailed Projection'!AO35*EF_CO2!O45 -> 65454.34538 | AB45: ='Detailed Projection'!AP35*EF_CO2!P45 -> 0 | AC45: ='Detailed Projection'!AQ35*EF_CO2!Q45 -> 0 | AD45: ='Detailed Projection'!AR35*EF_CO2!R45 -> 0 | AE45: ='Detailed Projection'!AS35*EF_CO2!S45 -> 0 | AF45: ='Detailed Projection'!AT35*EF_CO2!T45 -> 0 | AG45: ='Detailed Projection'!AU35*EF_CO2!U45 -> 0 | AH45: ='Detailed Projection'!AV35*EF_CO2!V45 -> 0 | AI45: ='Detailed Projection'!AW35*EF_CO2!W45 -> 0 | AJ45: ='Detailed Projection'!AX35*EF_CO2!AN45 -> 0 | BA45: ='Detailed Projection'!BQ35*EF_CO2!AN45 -> 0 | BB45: ='Detailed Projection'!BR35*EF_CO2!AO45 -> 0 | BC45: ='Detailed Projection'!BS35*EF_CO2!AP45 -> 0 | BD45: ='Detailed Projection'!BT35*EF_CO2!AQ45 -> 379963.1451 | BE45: ='Detailed Projection'!BU35*EF_CO2!AR45 -> 10008.31748 | BF45: ='Detailed Projection'!BV35*EF_CO2!AS45 -> 0 | BG45: ='Detailed Projection'!BW35*EF_CO2!AT45 -> 0 | BH45: ='Detailed Projection'!BX35*EF_CO2!AU45 -> 28907.84747 | BI45: ='Detailed Projection'!BY35*EF_CO2!AV45 -> 1783.747319 | BJ45: ='Detailed Projection'!BZ35*EF_CO2!AW45 -> 0 | BK45: ='Detailed Projection'!CA35*EF_CO2!AX45 -> 0 | BL45: ='Detailed Projection'!CB35*EF_CO2!AY45 -> 5797805.979 | BM45: ='Detailed Projection'!CC35*EF_CO2!AZ45 -> 0 | BN45: ='Detailed Projection'!CD35*EF_CO2!BA45 -> 0 | BO45: ='Detailed Projection'!CE35*EF_CO2!BB45 -> 0 | BP45: ='Detailed Projection'!CF35*EF_CO2!BC45 -> 0 | BQ45: ='Detailed Projection'!CG35*EF_CO2!BD45 -> 0 | BR45: ='Detailed Projection'!CH35*EF_CO2!BE45 -> 0 | BS45: ='Detailed Projection'!CI35*EF_CO2!BF45 -> 2085017.123 | BT45: ='Detailed Projection'!CJ35*EF_CO2!BG45 -> 0 | BU45: ='Detailed Projection'!CK35*EF_CO2!BH45 -> -1625.517963 | CH45: =((EF_Electric!H46*BA45)/(1-EF_Electric!H46))+((EF_Steam!C43*BB45)/(1-EF_Steam!C43))+((EF_Water!C43*BC45)/(1-EF_Water!C43)) -> 0
B46: ='Linear Projection'!B24 -> 2025 | C46: ='Detailed Projection'!M36*EF_CO2!C46 -> 0 | D46: ='Detailed Projection'!N36*EF_CO2!D46 -> 0 | E46: ='Detailed Projection'!O36*EF_CO2!E46 -> 0 | F46: ='Detailed Projection'!P36*EF_CO2!F46 -> 0 | G46: ='Detailed Projection'!Q36*EF_CO2!G46 -> 0 | H46: ='Detailed Projection'!R36*EF_CO2!H46 -> 0 | I46: ='Detailed Projection'!S36*EF_CO2!I46 -> 0 | J46: ='Detailed Projection'!T36*EF_CO2!J46 -> 0 | K46: ='Detailed Projection'!U36*EF_CO2!K46 -> 0 | L46: ='Detailed Projection'!V36*EF_CO2!L46 -> 0 | M46: ='Detailed Projection'!W36*EF_CO2!M46 -> 0 | N46: ='Detailed Projection'!X36*EF_CO2!N46 -> 0 | O46: ='Detailed Projection'!AC36*EF_CO2!C46 -> 3377747.371 | P46: ='Detailed Projection'!AD36*EF_CO2!D46 -> 79639.48438 | Q46: ='Detailed Projection'!AE36*EF_CO2!E46 -> 5018936.977 | R46: ='Detailed Projection'!AF36*EF_CO2!F46 -> 0 | S46: ='Detailed Projection'!AG36*EF_CO2!G46 -> 0 | T46: ='Detailed Projection'!AH36*EF_CO2!H46 -> 0 | U46: ='Detailed Projection'!AI36*EF_CO2!I46 -> 0 | V46: ='Detailed Projection'!AJ36*EF_CO2!J46 -> 0 | W46: ='Detailed Projection'!AK36*EF_CO2!K46 -> 0 | X46: ='Detailed Projection'!AL36*EF_CO2!L46 -> 0 | Y46: ='Detailed Projection'!AM36*EF_CO2!M46 -> 0 | Z46: ='Detailed Projection'!AN36*EF_CO2!N46 -> 0 | AA46: ='Detailed Projection'!AO36*EF_CO2!O46 -> 62484.07391 | AB46: ='Detailed Projection'!AP36*EF_CO2!P46 -> 0 | AC46: ='Detailed Projection'!AQ36*EF_CO2!Q46 -> 0 | AD46: ='Detailed Projection'!AR36*EF_CO2!R46 -> 0 | AE46: ='Detailed Projection'!AS36*EF_CO2!S46 -> 0 | AF46: ='Detailed Projection'!AT36*EF_CO2!T46 -> 0 | AG46: ='Detailed Projection'!AU36*EF_CO2!U46 -> 0 | AH46: ='Detailed Projection'!AV36*EF_CO2!V46 -> 0 | AI46: ='Detailed Projection'!AW36*EF_CO2!W46 -> 0 | AJ46: ='Detailed Projection'!AX36*EF_CO2!AN46 -> 0 | BA46: ='Detailed Projection'!BQ36*EF_CO2!AN46 -> 0 | BB46: ='Detailed Projection'!BR36*EF_CO2!AO46 -> 0 | BC46: ='Detailed Projection'!BS36*EF_CO2!AP46 -> 0 | BD46: ='Detailed Projection'!BT36*EF_CO2!AQ46 -> 376352.6066 | BE46: ='Detailed Projection'!BU36*EF_CO2!AR46 -> 9970.140075 | BF46: ='Detailed Projection'!BV36*EF_CO2!AS46 -> 0 | BG46: ='Detailed Projection'!BW36*EF_CO2!AT46 -> 0 | BH46: ='Detailed Projection'!BX36*EF_CO2!AU46 -> 28194.73748 | BI46: ='Detailed Projection'!BY36*EF_CO2!AV46 -> 1750.694763 | BJ46: ='Detailed Projection'!BZ36*EF_CO2!AW46 -> 0 | BK46: ='Detailed Projection'!CA36*EF_CO2!AX46 -> 0 | BL46: ='Detailed Projection'!CB36*EF_CO2!AY46 -> 5887081.926 | BM46: ='Detailed Projection'!CC36*EF_CO2!AZ46 -> 0 | BN46: ='Detailed Projection'!CD36*EF_CO2!BA46 -> 0 | BO46: ='Detailed Projection'!CE36*EF_CO2!BB46 -> 0 | BP46: ='Detailed Projection'!CF36*EF_CO2!BC46 -> 0 | BQ46: ='Detailed Projection'!CG36*EF_CO2!BD46 -> 0 | BR46: ='Detailed Projection'!CH36*EF_CO2!BE46 -> 0 | BS46: ='Detailed Projection'!CI36*EF_CO2!BF46 -> 2081460.997 | BT46: ='Detailed Projection'!CJ36*EF_CO2!BG46 -> 0 | BU46: ='Detailed Projection'!CK36*EF_CO2!BH46 -> -1242.320123 | CH46: =((EF_Electric!H47*BA46)/(1-EF_Electric!H47))+((EF_Steam!C44*BB46)/(1-EF_Steam!C44))+((EF_Water!C44*BC46)/(1-EF_Water!C44)) -> 0
B47: ='Linear Projection'!B25 -> 2026 | C47: ='Detailed Projection'!M37*EF_CO2!C47 -> 0 | D47: ='Detailed Projection'!N37*EF_CO2!D47 -> 0 | E47: ='Detailed Projection'!O37*EF_CO2!E47 -> 0 | F47: ='Detailed Projection'!P37*EF_CO2!F47 -> 0 | G47: ='Detailed Projection'!Q37*EF_CO2!G47 -> 0 | H47: ='Detailed Projection'!R37*EF_CO2!H47 -> 0 | I47: ='Detailed Projection'!S37*EF_CO2!I47 -> 0 | J47: ='Detailed Projection'!T37*EF_CO2!J47 -> 0 | K47: ='Detailed Projection'!U37*EF_CO2!K47 -> 0 | L47: ='Detailed Projection'!V37*EF_CO2!L47 -> 0 | M47: ='Detailed Projection'!W37*EF_CO2!M47 -> 0 | N47: ='Detailed Projection'!X37*EF_CO2!N47 -> 0 | O47: ='Detailed Projection'!AC37*EF_CO2!C47 -> 3442865.19 | P47: ='Detailed Projection'!AD37*EF_CO2!D47 -> 81770.75644 | Q47: ='Detailed Projection'!AE37*EF_CO2!E47 -> 5057959.179 | R47: ='Detailed Projection'!AF37*EF_CO2!F47 -> 0 | S47: ='Detailed Projection'!AG37*EF_CO2!G47 -> 0 | T47: ='Detailed Projection'!AH37*EF_CO2!H47 -> 0 | U47: ='Detailed Projection'!AI37*EF_CO2!I47 -> 0 | V47: ='Detailed Projection'!AJ37*EF_CO2!J47 -> 0 | W47: ='Detailed Projection'!AK37*EF_CO2!K47 -> 0 | X47: ='Detailed Projection'!AL37*EF_CO2!L47 -> 0 | Y47: ='Detailed Projection'!AM37*EF_CO2!M47 -> 0 | Z47: ='Detailed Projection'!AN37*EF_CO2!N47 -> 0 | AA47: ='Detailed Projection'!AO37*EF_CO2!O47 -> 59513.80244 | AB47: ='Detailed Projection'!AP37*EF_CO2!P47 -> 0 | AC47: ='Detailed Projection'!AQ37*EF_CO2!Q47 -> 0 | AD47: ='Detailed Projection'!AR37*EF_CO2!R47 -> 0 | AE47: ='Detailed Projection'!AS37*EF_CO2!S47 -> 0 | AF47: ='Detailed Projection'!AT37*EF_CO2!T47 -> 0 | AG47: ='Detailed Projection'!AU37*EF_CO2!U47 -> 0 | AH47: ='Detailed Projection'!AV37*EF_CO2!V47 -> 0 | AI47: ='Detailed Projection'!AW37*EF_CO2!W47 -> 0 | AJ47: ='Detailed Projection'!AX37*EF_CO2!AN47 -> 0 | BA47: ='Detailed Projection'!BQ37*EF_CO2!AN47 -> 0 | BB47: ='Detailed Projection'!BR37*EF_CO2!AO47 -> 0 | BC47: ='Detailed Projection'!BS37*EF_CO2!AP47 -> 0 | BD47: ='Detailed Projection'!BT37*EF_CO2!AQ47 -> 372742.0681 | BE47: ='Detailed Projection'!BU37*EF_CO2!AR47 -> 9931.962666 | BF47: ='Detailed Projection'!BV37*EF_CO2!AS47 -> 0 | BG47: ='Detailed Projection'!BW37*EF_CO2!AT47 -> 0 | BH47: ='Detailed Projection'!BX37*EF_CO2!AU47 -> 27481.6275 | BI47: ='Detailed Projection'!BY37*EF_CO2!AV47 -> 1717.642207 | BJ47: ='Detailed Projection'!BZ37*EF_CO2!AW47 -> 0 | BK47: ='Detailed Projection'!CA37*EF_CO2!AX47 -> 0 | BL47: ='Detailed Projection'!CB37*EF_CO2!AY47 -> 5976357.874 | BM47: ='Detailed Projection'!CC37*EF_CO2!AZ47 -> 0 | BN47: ='Detailed Projection'!CD37*EF_CO2!BA47 -> 0 | BO47: ='Detailed Projection'!CE37*EF_CO2!BB47 -> 0 | BP47: ='Detailed Projection'!CF37*EF_CO2!BC47 -> 0 | BQ47: ='Detailed Projection'!CG37*EF_CO2!BD47 -> 0 | BR47: ='Detailed Projection'!CH37*EF_CO2!BE47 -> 0 | BS47: ='Detailed Projection'!CI37*EF_CO2!BF47 -> 2077904.872 | BT47: ='Detailed Projection'!CJ37*EF_CO2!BG47 -> 0 | BU47: ='Detailed Projection'!CK37*EF_CO2!BH47 -> -859.1222826 | CH47: =((EF_Electric!H48*BA47)/(1-EF_Electric!H48))+((EF_Steam!C45*BB47)/(1-EF_Steam!C45))+((EF_Water!C45*BC47)/(1-EF_Water!C45)) -> 0
B48: ='Linear Projection'!B26 -> 2027 | C48: ='Detailed Projection'!M38*EF_CO2!C48 -> 0 | D48: ='Detailed Projection'!N38*EF_CO2!D48 -> 0 | E48: ='Detailed Projection'!O38*EF_CO2!E48 -> 0 | F48: ='Detailed Projection'!P38*EF_CO2!F48 -> 0 | G48: ='Detailed Projection'!Q38*EF_CO2!G48 -> 0 | H48: ='Detailed Projection'!R38*EF_CO2!H48 -> 0 | I48: ='Detailed Projection'!S38*EF_CO2!I48 -> 0 | J48: ='Detailed Projection'!T38*EF_CO2!J48 -> 0 | K48: ='Detailed Projection'!U38*EF_CO2!K48 -> 0 | L48: ='Detailed Projection'!V38*EF_CO2!L48 -> 0 | M48: ='Detailed Projection'!W38*EF_CO2!M48 -> 0 | N48: ='Detailed Projection'!X38*EF_CO2!N48 -> 0 | O48: ='Detailed Projection'!AC38*EF_CO2!C48 -> 3507983.01 | P48: ='Detailed Projection'!AD38*EF_CO2!D48 -> 83902.0285 | Q48: ='Detailed Projection'!AE38*EF_CO2!E48 -> 5096981.382 | R48: ='Detailed Projection'!AF38*EF_CO2!F48 -> 0 | S48: ='Detailed Projection'!AG38*EF_CO2!G48 -> 0 | T48: ='Detailed Projection'!AH38*EF_CO2!H48 -> 0 | U48: ='Detailed Projection'!AI38*EF_CO2!I48 -> 0 | V48: ='Detailed Projection'!AJ38*EF_CO2!J48 -> 0 | W48: ='Detailed Projection'!AK38*EF_CO2!K48 -> 0 | X48: ='Detailed Projection'!AL38*EF_CO2!L48 -> 0 | Y48: ='Detailed Projection'!AM38*EF_CO2!M48 -> 0 | Z48: ='Detailed Projection'!AN38*EF_CO2!N48 -> 0 | AA48: ='Detailed Projection'!AO38*EF_CO2!O48 -> 56543.53097 | AB48: ='Detailed Projection'!AP38*EF_CO2!P48 -> 0 | AC48: ='Detailed Projection'!AQ38*EF_CO2!Q48 -> 0 | AD48: ='Detailed Projection'!AR38*EF_CO2!R48 -> 0 | AE48: ='Detailed Projection'!AS38*EF_CO2!S48 -> 0 | AF48: ='Detailed Projection'!AT38*EF_CO2!T48 -> 0 | AG48: ='Detailed Projection'!AU38*EF_CO2!U48 -> 0 | AH48: ='Detailed Projection'!AV38*EF_CO2!V48 -> 0 | AI48: ='Detailed Projection'!AW38*EF_CO2!W48 -> 0 | AJ48: ='Detailed Projection'!AX38*EF_CO2!AN48 -> 0 | BA48: ='Detailed Projection'!BQ38*EF_CO2!AN48 -> 0 | BB48: ='Detailed Projection'!BR38*EF_CO2!AO48 -> 0 | BC48: ='Detailed Projection'!BS38*EF_CO2!AP48 -> 0 | BD48: ='Detailed Projection'!BT38*EF_CO2!AQ48 -> 369131.5297 | BE48: ='Detailed Projection'!BU38*EF_CO2!AR48 -> 9893.785258 | BF48: ='Detailed Projection'!BV38*EF_CO2!AS48 -> 0 | BG48: ='Detailed Projection'!BW38*EF_CO2!AT48 -> 0 | BH48: ='Detailed Projection'!BX38*EF_CO2!AU48 -> 26768.51752 | BI48: ='Detailed Projection'!BY38*EF_CO2!AV48 -> 1684.589651 | BJ48: ='Detailed Projection'!BZ38*EF_CO2!AW48 -> 0 | BK48: ='Detailed Projection'!CA38*EF_CO2!AX48 -> 0 | BL48: ='Detailed Projection'!CB38*EF_CO2!AY48 -> 6065633.821 | BM48: ='Detailed Projection'!CC38*EF_CO2!AZ48 -> 0 | BN48: ='Detailed Projection'!CD38*EF_CO2!BA48 -> 0 | BO48: ='Detailed Projection'!CE38*EF_CO2!BB48 -> 0 | BP48: ='Detailed Projection'!CF38*EF_CO2!BC48 -> 0 | BQ48: ='Detailed Projection'!CG38*EF_CO2!BD48 -> 0 | BR48: ='Detailed Projection'!CH38*EF_CO2!BE48 -> 0 | BS48: ='Detailed Projection'!CI38*EF_CO2!BF48 -> 2074348.746 | BT48: ='Detailed Projection'!CJ38*EF_CO2!BG48 -> 0 | BU48: ='Detailed Projection'!CK38*EF_CO2!BH48 -> -475.9244424 | CH48: =((EF_Electric!H49*BA48)/(1-EF_Electric!H49))+((EF_Steam!C46*BB48)/(1-EF_Steam!C46))+((EF_Water!C46*BC48)/(1-EF_Water!C46)) -> 0
B49: ='Linear Projection'!B27 -> 2028 | C49: ='Detailed Projection'!M39*EF_CO2!C49 -> 0 | D49: ='Detailed Projection'!N39*EF_CO2!D49 -> 0 | E49: ='Detailed Projection'!O39*EF_CO2!E49 -> 0 | F49: ='Detailed Projection'!P39*EF_CO2!F49 -> 0 | G49: ='Detailed Projection'!Q39*EF_CO2!G49 -> 0 | H49: ='Detailed Projection'!R39*EF_CO2!H49 -> 0 | I49: ='Detailed Projection'!S39*EF_CO2!I49 -> 0 | J49: ='Detailed Projection'!T39*EF_CO2!J49 -> 0 | K49: ='Detailed Projection'!U39*EF_CO2!K49 -> 0 | L49: ='Detailed Projection'!V39*EF_CO2!L49 -> 0 | M49: ='Detailed Projection'!W39*EF_CO2!M49 -> 0 | N49: ='Detailed Projection'!X39*EF_CO2!N49 -> 0 | O49: ='Detailed Projection'!AC39*EF_CO2!C49 -> 3573100.829 | P49: ='Detailed Projection'!AD39*EF_CO2!D49 -> 86033.30056 | Q49: ='Detailed Projection'!AE39*EF_CO2!E49 -> 5136003.584 | R49: ='Detailed Projection'!AF39*EF_CO2!F49 -> 0 | S49: ='Detailed Projection'!AG39*EF_CO2!G49 -> 0 | T49: ='Detailed Projection'!AH39*EF_CO2!H49 -> 0 | U49: ='Detailed Projection'!AI39*EF_CO2!I49 -> 0 | V49: ='Detailed Projection'!AJ39*EF_CO2!J49 -> 0 | W49: ='Detailed Projection'!AK39*EF_CO2!K49 -> 0 | X49: ='Detailed Projection'!AL39*EF_CO2!L49 -> 0 | Y49: ='Detailed Projection'!AM39*EF_CO2!M49 -> 0 | Z49: ='Detailed Projection'!AN39*EF_CO2!N49 -> 0 | AA49: ='Detailed Projection'!AO39*EF_CO2!O49 -> 53573.2595 | AB49: ='Detailed Projection'!AP39*EF_CO2!P49 -> 0 | AC49: ='Detailed Projection'!AQ39*EF_CO2!Q49 -> 0 | AD49: ='Detailed Projection'!AR39*EF_CO2!R49 -> 0 | AE49: ='Detailed Projection'!AS39*EF_CO2!S49 -> 0 | AF49: ='Detailed Projection'!AT39*EF_CO2!T49 -> 0 | AG49: ='Detailed Projection'!AU39*EF_CO2!U49 -> 0 | AH49: ='Detailed Projection'!AV39*EF_CO2!V49 -> 0 | AI49: ='Detailed Projection'!AW39*EF_CO2!W49 -> 0 | AJ49: ='Detailed Projection'!AX39*EF_CO2!AN49 -> 0 | BA49: ='Detailed Projection'!BQ39*EF_CO2!AN49 -> 0 | BB49: ='Detailed Projection'!BR39*EF_CO2!AO49 -> 0 | BC49: ='Detailed Projection'!BS39*EF_CO2!AP49 -> 0 | BD49: ='Detailed Projection'!BT39*EF_CO2!AQ49 -> 365520.9912 | BE49: ='Detailed Projection'!BU39*EF_CO2!AR49 -> 9855.60785 | BF49: ='Detailed Projection'!BV39*EF_CO2!AS49 -> 0 | BG49: ='Detailed Projection'!BW39*EF_CO2!AT49 -> 0 | BH49: ='Detailed Projection'!BX39*EF_CO2!AU49 -> 26055.40754 | BI49: ='Detailed Projection'!BY39*EF_CO2!AV49 -> 1651.537096 | BJ49: ='Detailed Projection'!BZ39*EF_CO2!AW49 -> 0 | BK49: ='Detailed Projection'!CA39*EF_CO2!AX49 -> 0 | BL49: ='Detailed Projection'!CB39*EF_CO2!AY49 -> 6154909.768 | BM49: ='Detailed Projection'!CC39*EF_CO2!AZ49 -> 0 | BN49: ='Detailed Projection'!CD39*EF_CO2!BA49 -> 0 | BO49: ='Detailed Projection'!CE39*EF_CO2!BB49 -> 0 | BP49: ='Detailed Projection'!CF39*EF_CO2!BC49 -> 0 | BQ49: ='Detailed Projection'!CG39*EF_CO2!BD49 -> 0 | BR49: ='Detailed Projection'!CH39*EF_CO2!BE49 -> 0 | BS49: ='Detailed Projection'!CI39*EF_CO2!BF49 -> 2070792.621 | BT49: ='Detailed Projection'!CJ39*EF_CO2!BG49 -> 0 | BU49: ='Detailed Projection'!CK39*EF_CO2!BH49 -> -92.72660213 | CH49: =((EF_Electric!H50*BA49)/(1-EF_Electric!H50))+((EF_Steam!C47*BB49)/(1-EF_Steam!C47))+((EF_Water!C47*BC49)/(1-EF_Water!C47)) -> 0
B50: ='Linear Projection'!B28 -> 2029 | C50: ='Detailed Projection'!M40*EF_CO2!C50 -> 0 | D50: ='Detailed Projection'!N40*EF_CO2!D50 -> 0 | E50: ='Detailed Projection'!O40*EF_CO2!E50 -> 0 | F50: ='Detailed Projection'!P40*EF_CO2!F50 -> 0 | G50: ='Detailed Projection'!Q40*EF_CO2!G50 -> 0 | H50: ='Detailed Projection'!R40*EF_CO2!H50 -> 0 | I50: ='Detailed Projection'!S40*EF_CO2!I50 -> 0 | J50: ='Detailed Projection'!T40*EF_CO2!J50 -> 0 | K50: ='Detailed Projection'!U40*EF_CO2!K50 -> 0 | L50: ='Detailed Projection'!V40*EF_CO2!L50 -> 0 | M50: ='Detailed Projection'!W40*EF_CO2!M50 -> 0 | N50: ='Detailed Projection'!X40*EF_CO2!N50 -> 0 | O50: ='Detailed Projection'!AC40*EF_CO2!C50 -> 3638218.649 | P50: ='Detailed Projection'!AD40*EF_CO2!D50 -> 88164.57263 | Q50: ='Detailed Projection'!AE40*EF_CO2!E50 -> 5175025.786 | R50: ='Detailed Projection'!AF40*EF_CO2!F50 -> 0 | S50: ='Detailed Projection'!AG40*EF_CO2!G50 -> 0 | T50: ='Detailed Projection'!AH40*EF_CO2!H50 -> 0 | U50: ='Detailed Projection'!AI40*EF_CO2!I50 -> 0 | V50: ='Detailed Projection'!AJ40*EF_CO2!J50 -> 0 | W50: ='Detailed Projection'!AK40*EF_CO2!K50 -> 0 | X50: ='Detailed Projection'!AL40*EF_CO2!L50 -> 0 | Y50: ='Detailed Projection'!AM40*EF_CO2!M50 -> 0 | Z50: ='Detailed Projection'!AN40*EF_CO2!N50 -> 0 | AA50: ='Detailed Projection'!AO40*EF_CO2!O50 -> 50602.98803 | AB50: ='Detailed Projection'!AP40*EF_CO2!P50 -> 0 | AC50: ='Detailed Projection'!AQ40*EF_CO2!Q50 -> 0 | AD50: ='Detailed Projection'!AR40*EF_CO2!R50 -> 0 | AE50: ='Detailed Projection'!AS40*EF_CO2!S50 -> 0 | AF50: ='Detailed Projection'!AT40*EF_CO2!T50 -> 0 | AG50: ='Detailed Projection'!AU40*EF_CO2!U50 -> 0 | AH50: ='Detailed Projection'!AV40*EF_CO2!V50 -> 0 | AI50: ='Detailed Projection'!AW40*EF_CO2!W50 -> 0 | AJ50: ='Detailed Projection'!AX40*EF_CO2!AN50 -> 0 | BA50: ='Detailed Projection'!BQ40*EF_CO2!AN50 -> 0 | BB50: ='Detailed Projection'!BR40*EF_CO2!AO50 -> 0 | BC50: ='Detailed Projection'!BS40*EF_CO2!AP50 -> 0 | BD50: ='Detailed Projection'!BT40*EF_CO2!AQ50 -> 361910.4527 | BE50: ='Detailed Projection'!BU40*EF_CO2!AR50 -> 9817.430441 | BF50: ='Detailed Projection'!BV40*EF_CO2!AS50 -> 0 | BG50: ='Detailed Projection'!BW40*EF_CO2!AT50 -> 0 | BH50: ='Detailed Projection'!BX40*EF_CO2!AU50 -> 25342.29755 | BI50: ='Detailed Projection'!BY40*EF_CO2!AV50 -> 1618.48454 | BJ50: ='Detailed Projection'!BZ40*EF_CO2!AW50 -> 0 | BK50: ='Detailed Projection'!CA40*EF_CO2!AX50 -> 0 | BL50: ='Detailed Projection'!CB40*EF_CO2!AY50 -> 6244185.715 | BM50: ='Detailed Projection'!CC40*EF_CO2!AZ50 -> 0 | BN50: ='Detailed Projection'!CD40*EF_CO2!BA50 -> 0 | BO50: ='Detailed Projection'!CE40*EF_CO2!BB50 -> 0 | BP50: ='Detailed Projection'!CF40*EF_CO2!BC50 -> 0 | BQ50: ='Detailed Projection'!CG40*EF_CO2!BD50 -> 0 | BR50: ='Detailed Projection'!CH40*EF_CO2!BE50 -> 0 | BS50: ='Detailed Projection'!CI40*EF_CO2!BF50 -> 2067236.495 | BT50: ='Detailed Projection'!CJ40*EF_CO2!BG50 -> 0 | BU50: ='Detailed Projection'!CK40*EF_CO2!BH50 -> 290.4712381 | CH50: =((EF_Electric!H51*BA50)/(1-EF_Electric!H51))+((EF_Steam!C48*BB50)/(1-EF_Steam!C48))+((EF_Water!C48*BC50)/(1-EF_Water!C48)) -> 0
B51: ='Linear Projection'!B29 -> 2030 | C51: ='Detailed Projection'!M41*EF_CO2!C51 -> 0 | D51: ='Detailed Projection'!N41*EF_CO2!D51 -> 0 | E51: ='Detailed Projection'!O41*EF_CO2!E51 -> 0 | F51: ='Detailed Projection'!P41*EF_CO2!F51 -> 0 | G51: ='Detailed Projection'!Q41*EF_CO2!G51 -> 0 | H51: ='Detailed Projection'!R41*EF_CO2!H51 -> 0 | I51: ='Detailed Projection'!S41*EF_CO2!I51 -> 0 | J51: ='Detailed Projection'!T41*EF_CO2!J51 -> 0 | K51: ='Detailed Projection'!U41*EF_CO2!K51 -> 0 | L51: ='Detailed Projection'!V41*EF_CO2!L51 -> 0 | M51: ='Detailed Projection'!W41*EF_CO2!M51 -> 0 | N51: ='Detailed Projection'!X41*EF_CO2!N51 -> 0 | O51: ='Detailed Projection'!AC41*EF_CO2!C51 -> 3703336.468 | P51: ='Detailed Projection'!AD41*EF_CO2!D51 -> 90295.84469 | Q51: ='Detailed Projection'!AE41*EF_CO2!E51 -> 5214047.989 | R51: ='Detailed Projection'!AF41*EF_CO2!F51 -> 0 | S51: ='Detailed Projection'!AG41*EF_CO2!G51 -> 0 | T51: ='Detailed Projection'!AH41*EF_CO2!H51 -> 0 | U51: ='Detailed Projection'!AI41*EF_CO2!I51 -> 0 | V51: ='Detailed Projection'!AJ41*EF_CO2!J51 -> 0 | W51: ='Detailed Projection'!AK41*EF_CO2!K51 -> 0 | X51: ='Detailed Projection'!AL41*EF_CO2!L51 -> 0 | Y51: ='Detailed Projection'!AM41*EF_CO2!M51 -> 0 | Z51: ='Detailed Projection'!AN41*EF_CO2!N51 -> 0 | AA51: ='Detailed Projection'!AO41*EF_CO2!O51 -> 47632.71656 | AB51: ='Detailed Projection'!AP41*EF_CO2!P51 -> 0 | AC51: ='Detailed Projection'!AQ41*EF_CO2!Q51 -> 0 | AD51: ='Detailed Projection'!AR41*EF_CO2!R51 -> 0 | AE51: ='Detailed Projection'!AS41*EF_CO2!S51 -> 0 | AF51: ='Detailed Projection'!AT41*EF_CO2!T51 -> 0 | AG51: ='Detailed Projection'!AU41*EF_CO2!U51 -> 0 | AH51: ='Detailed Projection'!AV41*EF_CO2!V51 -> 0 | AI51: ='Detailed Projection'!AW41*EF_CO2!W51 -> 0 | AJ51: ='Detailed Projection'!AX41*EF_CO2!AN51 -> 0 | BA51: ='Detailed Projection'!BQ41*EF_CO2!AN51 -> 0 | BB51: ='Detailed Projection'!BR41*EF_CO2!AO51 -> 0 | BC51: ='Detailed Projection'!BS41*EF_CO2!AP51 -> 0 | BD51: ='Detailed Projection'!BT41*EF_CO2!AQ51 -> 358299.9142 | BE51: ='Detailed Projection'!BU41*EF_CO2!AR51 -> 9779.253033 | BF51: ='Detailed Projection'!BV41*EF_CO2!AS51 -> 0 | BG51: ='Detailed Projection'!BW41*EF_CO2!AT51 -> 0 | BH51: ='Detailed Projection'!BX41*EF_CO2!AU51 -> 24629.18757 | BI51: ='Detailed Projection'!BY41*EF_CO2!AV51 -> 1585.431984 | BJ51: ='Detailed Projection'!BZ41*EF_CO2!AW51 -> 0 | BK51: ='Detailed Projection'!CA41*EF_CO2!AX51 -> 0 | BL51: ='Detailed Projection'!CB41*EF_CO2!AY51 -> 6333461.662 | BM51: ='Detailed Projection'!CC41*EF_CO2!AZ51 -> 0 | BN51: ='Detailed Projection'!CD41*EF_CO2!BA51 -> 0 | BO51: ='Detailed Projection'!CE41*EF_CO2!BB51 -> 0 | BP51: ='Detailed Projection'!CF41*EF_CO2!BC51 -> 0 | BQ51: ='Detailed Projection'!CG41*EF_CO2!BD51 -> 0 | BR51: ='Detailed Projection'!CH41*EF_CO2!BE51 -> 0 | BS51: ='Detailed Projection'!CI41*EF_CO2!BF51 -> 2063680.37 | BT51: ='Detailed Projection'!CJ41*EF_CO2!BG51 -> 0 | BU51: ='Detailed Projection'!CK41*EF_CO2!BH51 -> 673.6690783 | CH51: =((EF_Electric!H52*BA51)/(1-EF_Electric!H52))+((EF_Steam!C49*BB51)/(1-EF_Steam!C49))+((EF_Water!C49*BC51)/(1-EF_Water!C49)) -> 0
B52: ='Linear Projection'!B30 -> 2031 | C52: ='Detailed Projection'!M42*EF_CO2!C52 -> 0 | D52: ='Detailed Projection'!N42*EF_CO2!D52 -> 0 | E52: ='Detailed Projection'!O42*EF_CO2!E52 -> 0 | F52: ='Detailed Projection'!P42*EF_CO2!F52 -> 0 | G52: ='Detailed Projection'!Q42*EF_CO2!G52 -> 0 | H52: ='Detailed Projection'!R42*EF_CO2!H52 -> 0 | I52: ='Detailed Projection'!S42*EF_CO2!I52 -> 0 | J52: ='Detailed Projection'!T42*EF_CO2!J52 -> 0 | K52: ='Detailed Projection'!U42*EF_CO2!K52 -> 0 | L52: ='Detailed Projection'!V42*EF_CO2!L52 -> 0 | M52: ='Detailed Projection'!W42*EF_CO2!M52 -> 0 | N52: ='Detailed Projection'!X42*EF_CO2!N52 -> 0 | O52: ='Detailed Projection'!AC42*EF_CO2!C52 -> 3768454.287 | P52: ='Detailed Projection'!AD42*EF_CO2!D52 -> 92427.11675 | Q52: ='Detailed Projection'!AE42*EF_CO2!E52 -> 5253070.191 | R52: ='Detailed Projection'!AF42*EF_CO2!F52 -> 0 | S52: ='Detailed Projection'!AG42*EF_CO2!G52 -> 0 | T52: ='Detailed Projection'!AH42*EF_CO2!H52 -> 0 | U52: ='Detailed Projection'!AI42*EF_CO2!I52 -> 0 | V52: ='Detailed Projection'!AJ42*EF_CO2!J52 -> 0 | W52: ='Detailed Projection'!AK42*EF_CO2!K52 -> 0 | X52: ='Detailed Projection'!AL42*EF_CO2!L52 -> 0 | Y52: ='Detailed Projection'!AM42*EF_CO2!M52 -> 0 | Z52: ='Detailed Projection'!AN42*EF_CO2!N52 -> 0 | AA52: ='Detailed Projection'!AO42*EF_CO2!O52 -> 44662.44509 | AB52: ='Detailed Projection'!AP42*EF_CO2!P52 -> 0 | AC52: ='Detailed Projection'!AQ42*EF_CO2!Q52 -> 0 | AD52: ='Detailed Projection'!AR42*EF_CO2!R52 -> 0 | AE52: ='Detailed Projection'!AS42*EF_CO2!S52 -> 0 | AF52: ='Detailed Projection'!AT42*EF_CO2!T52 -> 0 | AG52: ='Detailed Projection'!AU42*EF_CO2!U52 -> 0 | AH52: ='Detailed Projection'!AV42*EF_CO2!V52 -> 0 | AI52: ='Detailed Projection'!AW42*EF_CO2!W52 -> 0 | AJ52: ='Detailed Projection'!AX42*EF_CO2!AN52 -> 0 | BA52: ='Detailed Projection'!BQ42*EF_CO2!AN52 -> 0 | BB52: ='Detailed Projection'!BR42*EF_CO2!AO52 -> 0 | BC52: ='Detailed Projection'!BS42*EF_CO2!AP52 -> 0 | BD52: ='Detailed Projection'!BT42*EF_CO2!AQ52 -> 354689.3758 | BE52: ='Detailed Projection'!BU42*EF_CO2!AR52 -> 9741.075625 | BF52: ='Detailed Projection'!BV42*EF_CO2!AS52 -> 0 | BG52: ='Detailed Projection'!BW42*EF_CO2!AT52 -> 0 | BH52: ='Detailed Projection'!BX42*EF_CO2!AU52 -> 23916.07759 | BI52: ='Detailed Projection'!BY42*EF_CO2!AV52 -> 1552.379428 | BJ52: ='Detailed Projection'!BZ42*EF_CO2!AW52 -> 0 | BK52: ='Detailed Projection'!CA42*EF_CO2!AX52 -> 0 | BL52: ='Detailed Projection'!CB42*EF_CO2!AY52 -> 6422737.61 | BM52: ='Detailed Projection'!CC42*EF_CO2!AZ52 -> 0 | BN52: ='Detailed Projection'!CD42*EF_CO2!BA52 -> 0 | BO52: ='Detailed Projection'!CE42*EF_CO2!BB52 -> 0 | BP52: ='Detailed Projection'!CF42*EF_CO2!BC52 -> 0 | BQ52: ='Detailed Projection'!CG42*EF_CO2!BD52 -> 0 | BR52: ='Detailed Projection'!CH42*EF_CO2!BE52 -> 0 | BS52: ='Detailed Projection'!CI42*EF_CO2!BF52 -> 2060124.244 | BT52: ='Detailed Projection'!CJ42*EF_CO2!BG52 -> 0 | BU52: ='Detailed Projection'!CK42*EF_CO2!BH52 -> 1056.866919 | CH52: =((EF_Electric!H53*BA52)/(1-EF_Electric!H53))+((EF_Steam!C50*BB52)/(1-EF_Steam!C50))+((EF_Water!C50*BC52)/(1-EF_Water!C50)) -> 0
B53: ='Linear Projection'!B31 -> 2032 | C53: ='Detailed Projection'!M43*EF_CO2!C53 -> 0 | D53: ='Detailed Projection'!N43*EF_CO2!D53 -> 0 | E53: ='Detailed Projection'!O43*EF_CO2!E53 -> 0 | F53: ='Detailed Projection'!P43*EF_CO2!F53 -> 0 | G53: ='Detailed Projection'!Q43*EF_CO2!G53 -> 0 | H53: ='Detailed Projection'!R43*EF_CO2!H53 -> 0 | I53: ='Detailed Projection'!S43*EF_CO2!I53 -> 0 | J53: ='Detailed Projection'!T43*EF_CO2!J53 -> 0 | K53: ='Detailed Projection'!U43*EF_CO2!K53 -> 0 | L53: ='Detailed Projection'!V43*EF_CO2!L53 -> 0 | M53: ='Detailed Projection'!W43*EF_CO2!M53 -> 0 | N53: ='Detailed Projection'!X43*EF_CO2!N53 -> 0 | O53: ='Detailed Projection'!AC43*EF_CO2!C53 -> 3833572.107 | P53: ='Detailed Projection'!AD43*EF_CO2!D53 -> 94558.38881 | Q53: ='Detailed Projection'!AE43*EF_CO2!E53 -> 5292092.393 | R53: ='Detailed Projection'!AF43*EF_CO2!F53 -> 0 | S53: ='Detailed Projection'!AG43*EF_CO2!G53 -> 0 | T53: ='Detailed Projection'!AH43*EF_CO2!H53 -> 0 | U53: ='Detailed Projection'!AI43*EF_CO2!I53 -> 0 | V53: ='Detailed Projection'!AJ43*EF_CO2!J53 -> 0 | W53: ='Detailed Projection'!AK43*EF_CO2!K53 -> 0 | X53: ='Detailed Projection'!AL43*EF_CO2!L53 -> 0 | Y53: ='Detailed Projection'!AM43*EF_CO2!M53 -> 0 | Z53: ='Detailed Projection'!AN43*EF_CO2!N53 -> 0 | AA53: ='Detailed Projection'!AO43*EF_CO2!O53 -> 41692.17361 | AB53: ='Detailed Projection'!AP43*EF_CO2!P53 -> 0 | AC53: ='Detailed Projection'!AQ43*EF_CO2!Q53 -> 0 | AD53: ='Detailed Projection'!AR43*EF_CO2!R53 -> 0 | AE53: ='Detailed Projection'!AS43*EF_CO2!S53 -> 0 | AF53: ='Detailed Projection'!AT43*EF_CO2!T53 -> 0 | AG53: ='Detailed Projection'!AU43*EF_CO2!U53 -> 0 | AH53: ='Detailed Projection'!AV43*EF_CO2!V53 -> 0 | AI53: ='Detailed Projection'!AW43*EF_CO2!W53 -> 0 | AJ53: ='Detailed Projection'!AX43*EF_CO2!AN53 -> 0 | BA53: ='Detailed Projection'!BQ43*EF_CO2!AN53 -> 0 | BB53: ='Detailed Projection'!BR43*EF_CO2!AO53 -> 0 | BC53: ='Detailed Projection'!BS43*EF_CO2!AP53 -> 0 | BD53: ='Detailed Projection'!BT43*EF_CO2!AQ53 -> 351078.8373 | BE53: ='Detailed Projection'!BU43*EF_CO2!AR53 -> 9702.898216 | BF53: ='Detailed Projection'!BV43*EF_CO2!AS53 -> 0 | BG53: ='Detailed Projection'!BW43*EF_CO2!AT53 -> 0 | BH53: ='Detailed Projection'!BX43*EF_CO2!AU53 -> 23202.9676 | BI53: ='Detailed Projection'!BY43*EF_CO2!AV53 -> 1519.326872 | BJ53: ='Detailed Projection'!BZ43*EF_CO2!AW53 -> 0 | BK53: ='Detailed Projection'!CA43*EF_CO2!AX53 -> 0 | BL53: ='Detailed Projection'!CB43*EF_CO2!AY53 -> 6512013.557 | BM53: ='Detailed Projection'!CC43*EF_CO2!AZ53 -> 0 | BN53: ='Detailed Projection'!CD43*EF_CO2!BA53 -> 0 | BO53: ='Detailed Projection'!CE43*EF_CO2!BB53 -> 0 | BP53: ='Detailed Projection'!CF43*EF_CO2!BC53 -> 0 | BQ53: ='Detailed Projection'!CG43*EF_CO2!BD53 -> 0 | BR53: ='Detailed Projection'!CH43*EF_CO2!BE53 -> 0 | BS53: ='Detailed Projection'!CI43*EF_CO2!BF53 -> 2056568.119 | BT53: ='Detailed Projection'!CJ43*EF_CO2!BG53 -> 0 | BU53: ='Detailed Projection'!CK43*EF_CO2!BH53 -> 1440.064759 | CH53: =((EF_Electric!H54*BA53)/(1-EF_Electric!H54))+((EF_Steam!C51*BB53)/(1-EF_Steam!C51))+((EF_Water!C51*BC53)/(1-EF_Water!C51)) -> 0
B54: ='Linear Projection'!B32 -> 2033 | C54: ='Detailed Projection'!M44*EF_CO2!C54 -> 0 | D54: ='Detailed Projection'!N44*EF_CO2!D54 -> 0 | E54: ='Detailed Projection'!O44*EF_CO2!E54 -> 0 | F54: ='Detailed Projection'!P44*EF_CO2!F54 -> 0 | G54: ='Detailed Projection'!Q44*EF_CO2!G54 -> 0 | H54: ='Detailed Projection'!R44*EF_CO2!H54 -> 0 | I54: ='Detailed Projection'!S44*EF_CO2!I54 -> 0 | J54: ='Detailed Projection'!T44*EF_CO2!J54 -> 0 | K54: ='Detailed Projection'!U44*EF_CO2!K54 -> 0 | L54: ='Detailed Projection'!V44*EF_CO2!L54 -> 0 | M54: ='Detailed Projection'!W44*EF_CO2!M54 -> 0 | N54: ='Detailed Projection'!X44*EF_CO2!N54 -> 0 | O54: ='Detailed Projection'!AC44*EF_CO2!C54 -> 3898689.926 | P54: ='Detailed Projection'!AD44*EF_CO2!D54 -> 96689.66088 | Q54: ='Detailed Projection'!AE44*EF_CO2!E54 -> 5331114.596 | R54: ='Detailed Projection'!AF44*EF_CO2!F54 -> 0 | S54: ='Detailed Projection'!AG44*EF_CO2!G54 -> 0 | T54: ='Detailed Projection'!AH44*EF_CO2!H54 -> 0 | U54: ='Detailed Projection'!AI44*EF_CO2!I54 -> 0 | V54: ='Detailed Projection'!AJ44*EF_CO2!J54 -> 0 | W54: ='Detailed Projection'!AK44*EF_CO2!K54 -> 0 | X54: ='Detailed Projection'!AL44*EF_CO2!L54 -> 0 | Y54: ='Detailed Projection'!AM44*EF_CO2!M54 -> 0 | Z54: ='Detailed Projection'!AN44*EF_CO2!N54 -> 0 | AA54: ='Detailed Projection'!AO44*EF_CO2!O54 -> 38721.90214 | AB54: ='Detailed Projection'!AP44*EF_CO2!P54 -> 0 | AC54: ='Detailed Projection'!AQ44*EF_CO2!Q54 -> 0 | AD54: ='Detailed Projection'!AR44*EF_CO2!R54 -> 0 | AE54: ='Detailed Projection'!AS44*EF_CO2!S54 -> 0 | AF54: ='Detailed Projection'!AT44*EF_CO2!T54 -> 0 | AG54: ='Detailed Projection'!AU44*EF_CO2!U54 -> 0 | AH54: ='Detailed Projection'!AV44*EF_CO2!V54 -> 0 | AI54: ='Detailed Projection'!AW44*EF_CO2!W54 -> 0 | AJ54: ='Detailed Projection'!AX44*EF_CO2!AN54 -> 0 | BA54: ='Detailed Projection'!BQ44*EF_CO2!AN54 -> 0 | BB54: ='Detailed Projection'!BR44*EF_CO2!AO54 -> 0 | BC54: ='Detailed Projection'!BS44*EF_CO2!AP54 -> 0 | BD54: ='Detailed Projection'!BT44*EF_CO2!AQ54 -> 347468.2988 | BE54: ='Detailed Projection'!BU44*EF_CO2!AR54 -> 9664.720808 | BF54: ='Detailed Projection'!BV44*EF_CO2!AS54 -> 0 | BG54: ='Detailed Projection'!BW44*EF_CO2!AT54 -> 0 | BH54: ='Detailed Projection'!BX44*EF_CO2!AU54 -> 22489.85762 | BI54: ='Detailed Projection'!BY44*EF_CO2!AV54 -> 1486.274316 | BJ54: ='Detailed Projection'!BZ44*EF_CO2!AW54 -> 0 | BK54: ='Detailed Projection'!CA44*EF_CO2!AX54 -> 0 | BL54: ='Detailed Projection'!CB44*EF_CO2!AY54 -> 6601289.504 | BM54: ='Detailed Projection'!CC44*EF_CO2!AZ54 -> 0 | BN54: ='Detailed Projection'!CD44*EF_CO2!BA54 -> 0 | BO54: ='Detailed Projection'!CE44*EF_CO2!BB54 -> 0 | BP54: ='Detailed Projection'!CF44*EF_CO2!BC54 -> 0 | BQ54: ='Detailed Projection'!CG44*EF_CO2!BD54 -> 0 | BR54: ='Detailed Projection'!CH44*EF_CO2!BE54 -> 0 | BS54: ='Detailed Projection'!CI44*EF_CO2!BF54 -> 2053011.993 | BT54: ='Detailed Projection'!CJ44*EF_CO2!BG54 -> 0 | BU54: ='Detailed Projection'!CK44*EF_CO2!BH54 -> 1823.262599 | CH54: =((EF_Electric!H55*BA54)/(1-EF_Electric!H55))+((EF_Steam!C52*BB54)/(1-EF_Steam!C52))+((EF_Water!C52*BC54)/(1-EF_Water!C52)) -> 0
B55: ='Linear Projection'!B33 -> 2034 | C55: ='Detailed Projection'!M45*EF_CO2!C55 -> 0 | D55: ='Detailed Projection'!N45*EF_CO2!D55 -> 0 | E55: ='Detailed Projection'!O45*EF_CO2!E55 -> 0 | F55: ='Detailed Projection'!P45*EF_CO2!F55 -> 0 | G55: ='Detailed Projection'!Q45*EF_CO2!G55 -> 0 | H55: ='Detailed Projection'!R45*EF_CO2!H55 -> 0 | I55: ='Detailed Projection'!S45*EF_CO2!I55 -> 0 | J55: ='Detailed Projection'!T45*EF_CO2!J55 -> 0 | K55: ='Detailed Projection'!U45*EF_CO2!K55 -> 0 | L55: ='Detailed Projection'!V45*EF_CO2!L55 -> 0 | M55: ='Detailed Projection'!W45*EF_CO2!M55 -> 0 | N55: ='Detailed Projection'!X45*EF_CO2!N55 -> 0 | O55: ='Detailed Projection'!AC45*EF_CO2!C55 -> 3963807.746 | P55: ='Detailed Projection'!AD45*EF_CO2!D55 -> 98820.93294 | Q55: ='Detailed Projection'!AE45*EF_CO2!E55 -> 5370136.798 | R55: ='Detailed Projection'!AF45*EF_CO2!F55 -> 0 | S55: ='Detailed Projection'!AG45*EF_CO2!G55 -> 0 | T55: ='Detailed Projection'!AH45*EF_CO2!H55 -> 0 | U55: ='Detailed Projection'!AI45*EF_CO2!I55 -> 0 | V55: ='Detailed Projection'!AJ45*EF_CO2!J55 -> 0 | W55: ='Detailed Projection'!AK45*EF_CO2!K55 -> 0 | X55: ='Detailed Projection'!AL45*EF_CO2!L55 -> 0 | Y55: ='Detailed Projection'!AM45*EF_CO2!M55 -> 0 | Z55: ='Detailed Projection'!AN45*EF_CO2!N55 -> 0 | AA55: ='Detailed Projection'!AO45*EF_CO2!O55 -> 35751.63067 | AB55: ='Detailed Projection'!AP45*EF_CO2!P55 -> 0 | AC55: ='Detailed Projection'!AQ45*EF_CO2!Q55 -> 0 | AD55: ='Detailed Projection'!AR45*EF_CO2!R55 -> 0 | AE55: ='Detailed Projection'!AS45*EF_CO2!S55 -> 0 | AF55: ='Detailed Projection'!AT45*EF_CO2!T55 -> 0 | AG55: ='Detailed Projection'!AU45*EF_CO2!U55 -> 0 | AH55: ='Detailed Projection'!AV45*EF_CO2!V55 -> 0 | AI55: ='Detailed Projection'!AW45*EF_CO2!W55 -> 0 | AJ55: ='Detailed Projection'!AX45*EF_CO2!AN55 -> 0 | BA55: ='Detailed Projection'!BQ45*EF_CO2!AN55 -> 0 | BB55: ='Detailed Projection'!BR45*EF_CO2!AO55 -> 0 | BC55: ='Detailed Projection'!BS45*EF_CO2!AP55 -> 0 | BD55: ='Detailed Projection'!BT45*EF_CO2!AQ55 -> 343857.7603 | BE55: ='Detailed Projection'!BU45*EF_CO2!AR55 -> 9626.5434 | BF55: ='Detailed Projection'!BV45*EF_CO2!AS55 -> 0 | BG55: ='Detailed Projection'!BW45*EF_CO2!AT55 -> 0 | BH55: ='Detailed Projection'!BX45*EF_CO2!AU55 -> 21776.74764 | BI55: ='Detailed Projection'!BY45*EF_CO2!AV55 -> 1453.22176 | BJ55: ='Detailed Projection'!BZ45*EF_CO2!AW55 -> 0 | BK55: ='Detailed Projection'!CA45*EF_CO2!AX55 -> 0 | BL55: ='Detailed Projection'!CB45*EF_CO2!AY55 -> 6690565.451 | BM55: ='Detailed Projection'!CC45*EF_CO2!AZ55 -> 0 | BN55: ='Detailed Projection'!CD45*EF_CO2!BA55 -> 0 | BO55: ='Detailed Projection'!CE45*EF_CO2!BB55 -> 0 | BP55: ='Detailed Projection'!CF45*EF_CO2!BC55 -> 0 | BQ55: ='Detailed Projection'!CG45*EF_CO2!BD55 -> 0 | BR55: ='Detailed Projection'!CH45*EF_CO2!BE55 -> 0 | BS55: ='Detailed Projection'!CI45*EF_CO2!BF55 -> 2049455.867 | BT55: ='Detailed Projection'!CJ45*EF_CO2!BG55 -> 0 | BU55: ='Detailed Projection'!CK45*EF_CO2!BH55 -> 2206.460439 | CH55: =((EF_Electric!H56*BA55)/(1-EF_Electric!H56))+((EF_Steam!C53*BB55)/(1-EF_Steam!C53))+((EF_Water!C53*BC55)/(1-EF_Water!C53)) -> 0
B56: ='Linear Projection'!B34 -> 2035 | C56: ='Detailed Projection'!M46*EF_CO2!C56 -> 0 | D56: ='Detailed Projection'!N46*EF_CO2!D56 -> 0 | E56: ='Detailed Projection'!O46*EF_CO2!E56 -> 0 | F56: ='Detailed Projection'!P46*EF_CO2!F56 -> 0 | G56: ='Detailed Projection'!Q46*EF_CO2!G56 -> 0 | H56: ='Detailed Projection'!R46*EF_CO2!H56 -> 0 | I56: ='Detailed Projection'!S46*EF_CO2!I56 -> 0 | J56: ='Detailed Projection'!T46*EF_CO2!J56 -> 0 | K56: ='Detailed Projection'!U46*EF_CO2!K56 -> 0 | L56: ='Detailed Projection'!V46*EF_CO2!L56 -> 0 | M56: ='Detailed Projection'!W46*EF_CO2!M56 -> 0 | N56: ='Detailed Projection'!X46*EF_CO2!N56 -> 0 | O56: ='Detailed Projection'!AC46*EF_CO2!C56 -> 4028925.565 | P56: ='Detailed Projection'!AD46*EF_CO2!D56 -> 100952.205 | Q56: ='Detailed Projection'!AE46*EF_CO2!E56 -> 5409159 | R56: ='Detailed Projection'!AF46*EF_CO2!F56 -> 0 | S56: ='Detailed Projection'!AG46*EF_CO2!G56 -> 0 | T56: ='Detailed Projection'!AH46*EF_CO2!H56 -> 0 | U56: ='Detailed Projection'!AI46*EF_CO2!I56 -> 0 | V56: ='Detailed Projection'!AJ46*EF_CO2!J56 -> 0 | W56: ='Detailed Projection'!AK46*EF_CO2!K56 -> 0 | X56: ='Detailed Projection'!AL46*EF_CO2!L56 -> 0 | Y56: ='Detailed Projection'!AM46*EF_CO2!M56 -> 0 | Z56: ='Detailed Projection'!AN46*EF_CO2!N56 -> 0 | AA56: ='Detailed Projection'!AO46*EF_CO2!O56 -> 32781.3592 | AB56: ='Detailed Projection'!AP46*EF_CO2!P56 -> 0 | AC56: ='Detailed Projection'!AQ46*EF_CO2!Q56 -> 0 | AD56: ='Detailed Projection'!AR46*EF_CO2!R56 -> 0 | AE56: ='Detailed Projection'!AS46*EF_CO2!S56 -> 0 | AF56: ='Detailed Projection'!AT46*EF_CO2!T56 -> 0 | AG56: ='Detailed Projection'!AU46*EF_CO2!U56 -> 0 | AH56: ='Detailed Projection'!AV46*EF_CO2!V56 -> 0 | AI56: ='Detailed Projection'!AW46*EF_CO2!W56 -> 0 | AJ56: ='Detailed Projection'!AX46*EF_CO2!AN56 -> 0 | BA56: ='Detailed Projection'!BQ46*EF_CO2!AN56 -> 0 | BB56: ='Detailed Projection'!BR46*EF_CO2!AO56 -> 0 | BC56: ='Detailed Projection'!BS46*EF_CO2!AP56 -> 0 | BD56: ='Detailed Projection'!BT46*EF_CO2!AQ56 -> 340247.2219 | BE56: ='Detailed Projection'!BU46*EF_CO2!AR56 -> 9588.365992 | BF56: ='Detailed Projection'!BV46*EF_CO2!AS56 -> 0 | BG56: ='Detailed Projection'!BW46*EF_CO2!AT56 -> 0 | BH56: ='Detailed Projection'!BX46*EF_CO2!AU56 -> 21063.63766 | BI56: ='Detailed Projection'!BY46*EF_CO2!AV56 -> 1420.169204 | BJ56: ='Detailed Projection'!BZ46*EF_CO2!AW56 -> 0 | BK56: ='Detailed Projection'!CA46*EF_CO2!AX56 -> 0 | BL56: ='Detailed Projection'!CB46*EF_CO2!AY56 -> 6779841.399 | BM56: ='Detailed Projection'!CC46*EF_CO2!AZ56 -> 0 | BN56: ='Detailed Projection'!CD46*EF_CO2!BA56 -> 0 | BO56: ='Detailed Projection'!CE46*EF_CO2!BB56 -> 0 | BP56: ='Detailed Projection'!CF46*EF_CO2!BC56 -> 0 | BQ56: ='Detailed Projection'!CG46*EF_CO2!BD56 -> 0 | BR56: ='Detailed Projection'!CH46*EF_CO2!BE56 -> 0 | BS56: ='Detailed Projection'!CI46*EF_CO2!BF56 -> 2045899.742 | BT56: ='Detailed Projection'!CJ46*EF_CO2!BG56 -> 0 | BU56: ='Detailed Projection'!CK46*EF_CO2!BH56 -> 2589.658279 | CH56: =((EF_Electric!H57*BA56)/(1-EF_Electric!H57))+((EF_Steam!C54*BB56)/(1-EF_Steam!C54))+((EF_Water!C54*BC56)/(1-EF_Water!C54)) -> 0
B57: ='Linear Projection'!B35 -> 2036 | C57: ='Detailed Projection'!M47*EF_CO2!C57 -> 0 | D57: ='Detailed Projection'!N47*EF_CO2!D57 -> 0 | E57: ='Detailed Projection'!O47*EF_CO2!E57 -> 0 | F57: ='Detailed Projection'!P47*EF_CO2!F57 -> 0 | G57: ='Detailed Projection'!Q47*EF_CO2!G57 -> 0 | H57: ='Detailed Projection'!R47*EF_CO2!H57 -> 0 | I57: ='Detailed Projection'!S47*EF_CO2!I57 -> 0 | J57: ='Detailed Projection'!T47*EF_CO2!J57 -> 0 | K57: ='Detailed Projection'!U47*EF_CO2!K57 -> 0 | L57: ='Detailed Projection'!V47*EF_CO2!L57 -> 0 | M57: ='Detailed Projection'!W47*EF_CO2!M57 -> 0 | N57: ='Detailed Projection'!X47*EF_CO2!N57 -> 0 | O57: ='Detailed Projection'!AC47*EF_CO2!C57 -> 4094043.384 | P57: ='Detailed Projection'!AD47*EF_CO2!D57 -> 103083.4771 | Q57: ='Detailed Projection'!AE47*EF_CO2!E57 -> 5448181.203 | R57: ='Detailed Projection'!AF47*EF_CO2!F57 -> 0 | S57: ='Detailed Projection'!AG47*EF_CO2!G57 -> 0 | T57: ='Detailed Projection'!AH47*EF_CO2!H57 -> 0 | U57: ='Detailed Projection'!AI47*EF_CO2!I57 -> 0 | V57: ='Detailed Projection'!AJ47*EF_CO2!J57 -> 0 | W57: ='Detailed Projection'!AK47*EF_CO2!K57 -> 0 | X57: ='Detailed Projection'!AL47*EF_CO2!L57 -> 0 | Y57: ='Detailed Projection'!AM47*EF_CO2!M57 -> 0 | Z57: ='Detailed Projection'!AN47*EF_CO2!N57 -> 0 | AA57: ='Detailed Projection'!AO47*EF_CO2!O57 -> 29811.08773 | AB57: ='Detailed Projection'!AP47*EF_CO2!P57 -> 0 | AC57: ='Detailed Projection'!AQ47*EF_CO2!Q57 -> 0 | AD57: ='Detailed Projection'!AR47*EF_CO2!R57 -> 0 | AE57: ='Detailed Projection'!AS47*EF_CO2!S57 -> 0 | AF57: ='Detailed Projection'!AT47*EF_CO2!T57 -> 0 | AG57: ='Detailed Projection'!AU47*EF_CO2!U57 -> 0 | AH57: ='Detailed Projection'!AV47*EF_CO2!V57 -> 0 | AI57: ='Detailed Projection'!AW47*EF_CO2!W57 -> 0 | AJ57: ='Detailed Projection'!AX47*EF_CO2!AN57 -> 0 | BA57: ='Detailed Projection'!BQ47*EF_CO2!AN57 -> 0 | BB57: ='Detailed Projection'!BR47*EF_CO2!AO57 -> 0 | BC57: ='Detailed Projection'!BS47*EF_CO2!AP57 -> 0 | BD57: ='Detailed Projection'!BT47*EF_CO2!AQ57 -> 336636.6834 | BE57: ='Detailed Projection'!BU47*EF_CO2!AR57 -> 9550.188583 | BF57: ='Detailed Projection'!BV47*EF_CO2!AS57 -> 0 | BG57: ='Detailed Projection'!BW47*EF_CO2!AT57 -> 0 | BH57: ='Detailed Projection'!BX47*EF_CO2!AU57 -> 20350.52767 | BI57: ='Detailed Projection'!BY47*EF_CO2!AV57 -> 1387.116648 | BJ57: ='Detailed Projection'!BZ47*EF_CO2!AW57 -> 0 | BK57: ='Detailed Projection'!CA47*EF_CO2!AX57 -> 0 | BL57: ='Detailed Projection'!CB47*EF_CO2!AY57 -> 6869117.346 | BM57: ='Detailed Projection'!CC47*EF_CO2!AZ57 -> 0 | BN57: ='Detailed Projection'!CD47*EF_CO2!BA57 -> 0 | BO57: ='Detailed Projection'!CE47*EF_CO2!BB57 -> 0 | BP57: ='Detailed Projection'!CF47*EF_CO2!BC57 -> 0 | BQ57: ='Detailed Projection'!CG47*EF_CO2!BD57 -> 0 | BR57: ='Detailed Projection'!CH47*EF_CO2!BE57 -> 0 | BS57: ='Detailed Projection'!CI47*EF_CO2!BF57 -> 2042343.616 | BT57: ='Detailed Projection'!CJ47*EF_CO2!BG57 -> 0 | BU57: ='Detailed Projection'!CK47*EF_CO2!BH57 -> 2972.85612 | CH57: =((EF_Electric!H58*BA57)/(1-EF_Electric!H58))+((EF_Steam!C55*BB57)/(1-EF_Steam!C55))+((EF_Water!C55*BC57)/(1-EF_Water!C55)) -> 0
B58: ='Linear Projection'!B36 -> 2037 | C58: ='Detailed Projection'!M48*EF_CO2!C58 -> 0 | D58: ='Detailed Projection'!N48*EF_CO2!D58 -> 0 | E58: ='Detailed Projection'!O48*EF_CO2!E58 -> 0 | F58: ='Detailed Projection'!P48*EF_CO2!F58 -> 0 | G58: ='Detailed Projection'!Q48*EF_CO2!G58 -> 0 | H58: ='Detailed Projection'!R48*EF_CO2!H58 -> 0 | I58: ='Detailed Projection'!S48*EF_CO2!I58 -> 0 | J58: ='Detailed Projection'!T48*EF_CO2!J58 -> 0 | K58: ='Detailed Projection'!U48*EF_CO2!K58 -> 0 | L58: ='Detailed Projection'!V48*EF_CO2!L58 -> 0 | M58: ='Detailed Projection'!W48*EF_CO2!M58 -> 0 | N58: ='Detailed Projection'!X48*EF_CO2!N58 -> 0 | O58: ='Detailed Projection'!AC48*EF_CO2!C58 -> 4159161.204 | P58: ='Detailed Projection'!AD48*EF_CO2!D58 -> 105214.7491 | Q58: ='Detailed Projection'!AE48*EF_CO2!E58 -> 5487203.405 | R58: ='Detailed Projection'!AF48*EF_CO2!F58 -> 0 | S58: ='Detailed Projection'!AG48*EF_CO2!G58 -> 0 | T58: ='Detailed Projection'!AH48*EF_CO2!H58 -> 0 | U58: ='Detailed Projection'!AI48*EF_CO2!I58 -> 0 | V58: ='Detailed Projection'!AJ48*EF_CO2!J58 -> 0 | W58: ='Detailed Projection'!AK48*EF_CO2!K58 -> 0 | X58: ='Detailed Projection'!AL48*EF_CO2!L58 -> 0 | Y58: ='Detailed Projection'!AM48*EF_CO2!M58 -> 0 | Z58: ='Detailed Projection'!AN48*EF_CO2!N58 -> 0 | AA58: ='Detailed Projection'!AO48*EF_CO2!O58 -> 26840.81626 | AB58: ='Detailed Projection'!AP48*EF_CO2!P58 -> 0 | AC58: ='Detailed Projection'!AQ48*EF_CO2!Q58 -> 0 | AD58: ='Detailed Projection'!AR48*EF_CO2!R58 -> 0 | AE58: ='Detailed Projection'!AS48*EF_CO2!S58 -> 0 | AF58: ='Detailed Projection'!AT48*EF_CO2!T58 -> 0 | AG58: ='Detailed Projection'!AU48*EF_CO2!U58 -> 0 | AH58: ='Detailed Projection'!AV48*EF_CO2!V58 -> 0 | AI58: ='Detailed Projection'!AW48*EF_CO2!W58 -> 0 | AJ58: ='Detailed Projection'!AX48*EF_CO2!AN58 -> 0 | BA58: ='Detailed Projection'!BQ48*EF_CO2!AN58 -> 0 | BB58: ='Detailed Projection'!BR48*EF_CO2!AO58 -> 0 | BC58: ='Detailed Projection'!BS48*EF_CO2!AP58 -> 0 | BD58: ='Detailed Projection'!BT48*EF_CO2!AQ58 -> 333026.1449 | BE58: ='Detailed Projection'!BU48*EF_CO2!AR58 -> 9512.011175 | BF58: ='Detailed Projection'!BV48*EF_CO2!AS58 -> 0 | BG58: ='Detailed Projection'!BW48*EF_CO2!AT58 -> 0 | BH58: ='Detailed Projection'!BX48*EF_CO2!AU58 -> 19637.41769 | BI58: ='Detailed Projection'!BY48*EF_CO2!AV58 -> 1354.064092 | BJ58: ='Detailed Projection'!BZ48*EF_CO2!AW58 -> 0 | BK58: ='Detailed Projection'!CA48*EF_CO2!AX58 -> 0 | BL58: ='Detailed Projection'!CB48*EF_CO2!AY58 -> 6958393.293 | BM58: ='Detailed Projection'!CC48*EF_CO2!AZ58 -> 0 | BN58: ='Detailed Projection'!CD48*EF_CO2!BA58 -> 0 | BO58: ='Detailed Projection'!CE48*EF_CO2!BB58 -> 0 | BP58: ='Detailed Projection'!CF48*EF_CO2!BC58 -> 0 | BQ58: ='Detailed Projection'!CG48*EF_CO2!BD58 -> 0 | BR58: ='Detailed Projection'!CH48*EF_CO2!BE58 -> 0 | BS58: ='Detailed Projection'!CI48*EF_CO2!BF58 -> 2038787.491 | BT58: ='Detailed Projection'!CJ48*EF_CO2!BG58 -> 0 | BU58: ='Detailed Projection'!CK48*EF_CO2!BH58 -> 3356.05396 | CH58: =((EF_Electric!H59*BA58)/(1-EF_Electric!H59))+((EF_Steam!C56*BB58)/(1-EF_Steam!C56))+((EF_Water!C56*BC58)/(1-EF_Water!C56)) -> 0
B59: ='Linear Projection'!B37 -> 2038 | C59: ='Detailed Projection'!M49*EF_CO2!C59 -> 0 | D59: ='Detailed Projection'!N49*EF_CO2!D59 -> 0 | E59: ='Detailed Projection'!O49*EF_CO2!E59 -> 0 | F59: ='Detailed Projection'!P49*EF_CO2!F59 -> 0 | G59: ='Detailed Projection'!Q49*EF_CO2!G59 -> 0 | H59: ='Detailed Projection'!R49*EF_CO2!H59 -> 0 | I59: ='Detailed Projection'!S49*EF_CO2!I59 -> 0 | J59: ='Detailed Projection'!T49*EF_CO2!J59 -> 0 | K59: ='Detailed Projection'!U49*EF_CO2!K59 -> 0 | L59: ='Detailed Projection'!V49*EF_CO2!L59 -> 0 | M59: ='Detailed Projection'!W49*EF_CO2!M59 -> 0 | N59: ='Detailed Projection'!X49*EF_CO2!N59 -> 0 | O59: ='Detailed Projection'!AC49*EF_CO2!C59 -> 4224279.023 | P59: ='Detailed Projection'!AD49*EF_CO2!D59 -> 107346.0212 | Q59: ='Detailed Projection'!AE49*EF_CO2!E59 -> 5526225.607 | R59: ='Detailed Projection'!AF49*EF_CO2!F59 -> 0 | S59: ='Detailed Projection'!AG49*EF_CO2!G59 -> 0 | T59: ='Detailed Projection'!AH49*EF_CO2!H59 -> 0 | U59: ='Detailed Projection'!AI49*EF_CO2!I59 -> 0 | V59: ='Detailed Projection'!AJ49*EF_CO2!J59 -> 0 | W59: ='Detailed Projection'!AK49*EF_CO2!K59 -> 0 | X59: ='Detailed Projection'!AL49*EF_CO2!L59 -> 0 | Y59: ='Detailed Projection'!AM49*EF_CO2!M59 -> 0 | Z59: ='Detailed Projection'!AN49*EF_CO2!N59 -> 0 | AA59: ='Detailed Projection'!AO49*EF_CO2!O59 -> 23870.54479 | AB59: ='Detailed Projection'!AP49*EF_CO2!P59 -> 0 | AC59: ='Detailed Projection'!AQ49*EF_CO2!Q59 -> 0 | AD59: ='Detailed Projection'!AR49*EF_CO2!R59 -> 0 | AE59: ='Detailed Projection'!AS49*EF_CO2!S59 -> 0 | AF59: ='Detailed Projection'!AT49*EF_CO2!T59 -> 0 | AG59: ='Detailed Projection'!AU49*EF_CO2!U59 -> 0 | AH59: ='Detailed Projection'!AV49*EF_CO2!V59 -> 0 | AI59: ='Detailed Projection'!AW49*EF_CO2!W59 -> 0 | AJ59: ='Detailed Projection'!AX49*EF_CO2!AN59 -> 0 | BA59: ='Detailed Projection'!BQ49*EF_CO2!AN59 -> 0 | BB59: ='Detailed Projection'!BR49*EF_CO2!AO59 -> 0 | BC59: ='Detailed Projection'!BS49*EF_CO2!AP59 -> 0 | BD59: ='Detailed Projection'!BT49*EF_CO2!AQ59 -> 329415.6064 | BE59: ='Detailed Projection'!BU49*EF_CO2!AR59 -> 9473.833767 | BF59: ='Detailed Projection'!BV49*EF_CO2!AS59 -> 0 | BG59: ='Detailed Projection'!BW49*EF_CO2!AT59 -> 0 | BH59: ='Detailed Projection'!BX49*EF_CO2!AU59 -> 18924.30771 | BI59: ='Detailed Projection'!BY49*EF_CO2!AV59 -> 1321.011536 | BJ59: ='Detailed Projection'!BZ49*EF_CO2!AW59 -> 0 | BK59: ='Detailed Projection'!CA49*EF_CO2!AX59 -> 0 | BL59: ='Detailed Projection'!CB49*EF_CO2!AY59 -> 7047669.24 | BM59: ='Detailed Projection'!CC49*EF_CO2!AZ59 -> 0 | BN59: ='Detailed Projection'!CD49*EF_CO2!BA59 -> 0 | BO59: ='Detailed Projection'!CE49*EF_CO2!BB59 -> 0 | BP59: ='Detailed Projection'!CF49*EF_CO2!BC59 -> 0 | BQ59: ='Detailed Projection'!CG49*EF_CO2!BD59 -> 0 | BR59: ='Detailed Projection'!CH49*EF_CO2!BE59 -> 0 | BS59: ='Detailed Projection'!CI49*EF_CO2!BF59 -> 2035231.365 | BT59: ='Detailed Projection'!CJ49*EF_CO2!BG59 -> 0 | BU59: ='Detailed Projection'!CK49*EF_CO2!BH59 -> 3739.2518 | CH59: =((EF_Electric!H60*BA59)/(1-EF_Electric!H60))+((EF_Steam!C57*BB59)/(1-EF_Steam!C57))+((EF_Water!C57*BC59)/(1-EF_Water!C57)) -> 0
B60: ='Linear Projection'!B38 -> 2039 | C60: ='Detailed Projection'!M50*EF_CO2!C60 -> 0 | D60: ='Detailed Projection'!N50*EF_CO2!D60 -> 0 | E60: ='Detailed Projection'!O50*EF_CO2!E60 -> 0 | F60: ='Detailed Projection'!P50*EF_CO2!F60 -> 0 | G60: ='Detailed Projection'!Q50*EF_CO2!G60 -> 0 | H60: ='Detailed Projection'!R50*EF_CO2!H60 -> 0 | I60: ='Detailed Projection'!S50*EF_CO2!I60 -> 0 | J60: ='Detailed Projection'!T50*EF_CO2!J60 -> 0 | K60: ='Detailed Projection'!U50*EF_CO2!K60 -> 0 | L60: ='Detailed Projection'!V50*EF_CO2!L60 -> 0 | M60: ='Detailed Projection'!W50*EF_CO2!M60 -> 0 | N60: ='Detailed Projection'!X50*EF_CO2!N60 -> 0 | O60: ='Detailed Projection'!AC50*EF_CO2!C60 -> 4289396.843 | P60: ='Detailed Projection'!AD50*EF_CO2!D60 -> 109477.2933 | Q60: ='Detailed Projection'!AE50*EF_CO2!E60 -> 5565247.81 | R60: ='Detailed Projection'!AF50*EF_CO2!F60 -> 0 | S60: ='Detailed Projection'!AG50*EF_CO2!G60 -> 0 | T60: ='Detailed Projection'!AH50*EF_CO2!H60 -> 0 | U60: ='Detailed Projection'!AI50*EF_CO2!I60 -> 0 | V60: ='Detailed Projection'!AJ50*EF_CO2!J60 -> 0 | W60: ='Detailed Projection'!AK50*EF_CO2!K60 -> 0 | X60: ='Detailed Projection'!AL50*EF_CO2!L60 -> 0 | Y60: ='Detailed Projection'!AM50*EF_CO2!M60 -> 0 | Z60: ='Detailed Projection'!AN50*EF_CO2!N60 -> 0 | AA60: ='Detailed Projection'!AO50*EF_CO2!O60 -> 20900.27332 | AB60: ='Detailed Projection'!AP50*EF_CO2!P60 -> 0 | AC60: ='Detailed Projection'!AQ50*EF_CO2!Q60 -> 0 | AD60: ='Detailed Projection'!AR50*EF_CO2!R60 -> 0 | AE60: ='Detailed Projection'!AS50*EF_CO2!S60 -> 0 | AF60: ='Detailed Projection'!AT50*EF_CO2!T60 -> 0 | AG60: ='Detailed Projection'!AU50*EF_CO2!U60 -> 0 | AH60: ='Detailed Projection'!AV50*EF_CO2!V60 -> 0 | AI60: ='Detailed Projection'!AW50*EF_CO2!W60 -> 0 | AJ60: ='Detailed Projection'!AX50*EF_CO2!AN60 -> 0 | BA60: ='Detailed Projection'!BQ50*EF_CO2!AN60 -> 0 | BB60: ='Detailed Projection'!BR50*EF_CO2!AO60 -> 0 | BC60: ='Detailed Projection'!BS50*EF_CO2!AP60 -> 0 | BD60: ='Detailed Projection'!BT50*EF_CO2!AQ60 -> 325805.068 | BE60: ='Detailed Projection'!BU50*EF_CO2!AR60 -> 9435.656358 | BF60: ='Detailed Projection'!BV50*EF_CO2!AS60 -> 0 | BG60: ='Detailed Projection'!BW50*EF_CO2!AT60 -> 0 | BH60: ='Detailed Projection'!BX50*EF_CO2!AU60 -> 18211.19773 | BI60: ='Detailed Projection'!BY50*EF_CO2!AV60 -> 1287.958981 | BJ60: ='Detailed Projection'!BZ50*EF_CO2!AW60 -> 0 | BK60: ='Detailed Projection'!CA50*EF_CO2!AX60 -> 0 | BL60: ='Detailed Projection'!CB50*EF_CO2!AY60 -> 7136945.187 | BM60: ='Detailed Projection'!CC50*EF_CO2!AZ60 -> 0 | BN60: ='Detailed Projection'!CD50*EF_CO2!BA60 -> 0 | BO60: ='Detailed Projection'!CE50*EF_CO2!BB60 -> 0 | BP60: ='Detailed Projection'!CF50*EF_CO2!BC60 -> 0 | BQ60: ='Detailed Projection'!CG50*EF_CO2!BD60 -> 0 | BR60: ='Detailed Projection'!CH50*EF_CO2!BE60 -> 0 | BS60: ='Detailed Projection'!CI50*EF_CO2!BF60 -> 2031675.24 | BT60: ='Detailed Projection'!CJ50*EF_CO2!BG60 -> 0 | BU60: ='Detailed Projection'!CK50*EF_CO2!BH60 -> 4122.44964 | CH60: =((EF_Electric!H61*BA60)/(1-EF_Electric!H61))+((EF_Steam!C58*BB60)/(1-EF_Steam!C58))+((EF_Water!C58*BC60)/(1-EF_Water!C58)) -> 0
B61: ='Linear Projection'!B39 -> 2040 | C61: ='Detailed Projection'!M51*EF_CO2!C61 -> 0 | D61: ='Detailed Projection'!N51*EF_CO2!D61 -> 0 | E61: ='Detailed Projection'!O51*EF_CO2!E61 -> 0 | F61: ='Detailed Projection'!P51*EF_CO2!F61 -> 0 | G61: ='Detailed Projection'!Q51*EF_CO2!G61 -> 0 | H61: ='Detailed Projection'!R51*EF_CO2!H61 -> 0 | I61: ='Detailed Projection'!S51*EF_CO2!I61 -> 0 | J61: ='Detailed Projection'!T51*EF_CO2!J61 -> 0 | K61: ='Detailed Projection'!U51*EF_CO2!K61 -> 0 | L61: ='Detailed Projection'!V51*EF_CO2!L61 -> 0 | M61: ='Detailed Projection'!W51*EF_CO2!M61 -> 0 | N61: ='Detailed Projection'!X51*EF_CO2!N61 -> 0 | O61: ='Detailed Projection'!AC51*EF_CO2!C61 -> 4354514.662 | P61: ='Detailed Projection'!AD51*EF_CO2!D61 -> 111608.5653 | Q61: ='Detailed Projection'!AE51*EF_CO2!E61 -> 5604270.012 | R61: ='Detailed Projection'!AF51*EF_CO2!F61 -> 0 | S61: ='Detailed Projection'!AG51*EF_CO2!G61 -> 0 | T61: ='Detailed Projection'!AH51*EF_CO2!H61 -> 0 | U61: ='Detailed Projection'!AI51*EF_CO2!I61 -> 0 | V61: ='Detailed Projection'!AJ51*EF_CO2!J61 -> 0 | W61: ='Detailed Projection'!AK51*EF_CO2!K61 -> 0 | X61: ='Detailed Projection'!AL51*EF_CO2!L61 -> 0 | Y61: ='Detailed Projection'!AM51*EF_CO2!M61 -> 0 | Z61: ='Detailed Projection'!AN51*EF_CO2!N61 -> 0 | AA61: ='Detailed Projection'!AO51*EF_CO2!O61 -> 17930.00185 | AB61: ='Detailed Projection'!AP51*EF_CO2!P61 -> 0 | AC61: ='Detailed Projection'!AQ51*EF_CO2!Q61 -> 0 | AD61: ='Detailed Projection'!AR51*EF_CO2!R61 -> 0 | AE61: ='Detailed Projection'!AS51*EF_CO2!S61 -> 0 | AF61: ='Detailed Projection'!AT51*EF_CO2!T61 -> 0 | AG61: ='Detailed Projection'!AU51*EF_CO2!U61 -> 0 | AH61: ='Detailed Projection'!AV51*EF_CO2!V61 -> 0 | AI61: ='Detailed Projection'!AW51*EF_CO2!W61 -> 0 | AJ61: ='Detailed Projection'!AX51*EF_CO2!AN61 -> 0 | BA61: ='Detailed Projection'!BQ51*EF_CO2!AN61 -> 0 | BB61: ='Detailed Projection'!BR51*EF_CO2!AO61 -> 0 | BC61: ='Detailed Projection'!BS51*EF_CO2!AP61 -> 0 | BD61: ='Detailed Projection'!BT51*EF_CO2!AQ61 -> 322194.5295 | BE61: ='Detailed Projection'!BU51*EF_CO2!AR61 -> 9397.47895 | BF61: ='Detailed Projection'!BV51*EF_CO2!AS61 -> 0 | BG61: ='Detailed Projection'!BW51*EF_CO2!AT61 -> 0 | BH61: ='Detailed Projection'!BX51*EF_CO2!AU61 -> 17498.08774 | BI61: ='Detailed Projection'!BY51*EF_CO2!AV61 -> 1254.906425 | BJ61: ='Detailed Projection'!BZ51*EF_CO2!AW61 -> 0 | BK61: ='Detailed Projection'!CA51*EF_CO2!AX61 -> 0 | BL61: ='Detailed Projection'!CB51*EF_CO2!AY61 -> 7226221.135 | BM61: ='Detailed Projection'!CC51*EF_CO2!AZ61 -> 0 | BN61: ='Detailed Projection'!CD51*EF_CO2!BA61 -> 0 | BO61: ='Detailed Projection'!CE51*EF_CO2!BB61 -> 0 | BP61: ='Detailed Projection'!CF51*EF_CO2!BC61 -> 0 | BQ61: ='Detailed Projection'!CG51*EF_CO2!BD61 -> 0 | BR61: ='Detailed Projection'!CH51*EF_CO2!BE61 -> 0 | BS61: ='Detailed Projection'!CI51*EF_CO2!BF61 -> 2028119.114 | BT61: ='Detailed Projection'!CJ51*EF_CO2!BG61 -> 0 | BU61: ='Detailed Projection'!CK51*EF_CO2!BH61 -> 4505.647481 | CH61: =((EF_Electric!H62*BA61)/(1-EF_Electric!H62))+((EF_Steam!C59*BB61)/(1-EF_Steam!C59))+((EF_Water!C59*BC61)/(1-EF_Water!C59)) -> 0
B62: ='Linear Projection'!B40 -> 2041 | C62: ='Detailed Projection'!M52*EF_CO2!C62 -> 0 | D62: ='Detailed Projection'!N52*EF_CO2!D62 -> 0 | E62: ='Detailed Projection'!O52*EF_CO2!E62 -> 0 | F62: ='Detailed Projection'!P52*EF_CO2!F62 -> 0 | G62: ='Detailed Projection'!Q52*EF_CO2!G62 -> 0 | H62: ='Detailed Projection'!R52*EF_CO2!H62 -> 0 | I62: ='Detailed Projection'!S52*EF_CO2!I62 -> 0 | J62: ='Detailed Projection'!T52*EF_CO2!J62 -> 0 | K62: ='Detailed Projection'!U52*EF_CO2!K62 -> 0 | L62: ='Detailed Projection'!V52*EF_CO2!L62 -> 0 | M62: ='Detailed Projection'!W52*EF_CO2!M62 -> 0 | N62: ='Detailed Projection'!X52*EF_CO2!N62 -> 0 | O62: ='Detailed Projection'!AC52*EF_CO2!C62 -> 4419632.482 | P62: ='Detailed Projection'!AD52*EF_CO2!D62 -> 113739.8374 | Q62: ='Detailed Projection'!AE52*EF_CO2!E62 -> 5643292.215 | R62: ='Detailed Projection'!AF52*EF_CO2!F62 -> 0 | S62: ='Detailed Projection'!AG52*EF_CO2!G62 -> 0 | T62: ='Detailed Projection'!AH52*EF_CO2!H62 -> 0 | U62: ='Detailed Projection'!AI52*EF_CO2!I62 -> 0 | V62: ='Detailed Projection'!AJ52*EF_CO2!J62 -> 0 | W62: ='Detailed Projection'!AK52*EF_CO2!K62 -> 0 | X62: ='Detailed Projection'!AL52*EF_CO2!L62 -> 0 | Y62: ='Detailed Projection'!AM52*EF_CO2!M62 -> 0 | Z62: ='Detailed Projection'!AN52*EF_CO2!N62 -> 0 | AA62: ='Detailed Projection'!AO52*EF_CO2!O62 -> 14959.73038 | AB62: ='Detailed Projection'!AP52*EF_CO2!P62 -> 0 | AC62: ='Detailed Projection'!AQ52*EF_CO2!Q62 -> 0 | AD62: ='Detailed Projection'!AR52*EF_CO2!R62 -> 0 | AE62: ='Detailed Projection'!AS52*EF_CO2!S62 -> 0 | AF62: ='Detailed Projection'!AT52*EF_CO2!T62 -> 0 | AG62: ='Detailed Projection'!AU52*EF_CO2!U62 -> 0 | AH62: ='Detailed Projection'!AV52*EF_CO2!V62 -> 0 | AI62: ='Detailed Projection'!AW52*EF_CO2!W62 -> 0 | AJ62: ='Detailed Projection'!AX52*EF_CO2!AN62 -> 0 | BA62: ='Detailed Projection'!BQ52*EF_CO2!AN62 -> 0 | BB62: ='Detailed Projection'!BR52*EF_CO2!AO62 -> 0 | BC62: ='Detailed Projection'!BS52*EF_CO2!AP62 -> 0 | BD62: ='Detailed Projection'!BT52*EF_CO2!AQ62 -> 318583.991 | BE62: ='Detailed Projection'!BU52*EF_CO2!AR62 -> 9359.301542 | BF62: ='Detailed Projection'!BV52*EF_CO2!AS62 -> 0 | BG62: ='Detailed Projection'!BW52*EF_CO2!AT62 -> 0 | BH62: ='Detailed Projection'!BX52*EF_CO2!AU62 -> 16784.97776 | BI62: ='Detailed Projection'!BY52*EF_CO2!AV62 -> 1221.853869 | BJ62: ='Detailed Projection'!BZ52*EF_CO2!AW62 -> 0 | BK62: ='Detailed Projection'!CA52*EF_CO2!AX62 -> 0 | BL62: ='Detailed Projection'!CB52*EF_CO2!AY62 -> 7315497.082 | BM62: ='Detailed Projection'!CC52*EF_CO2!AZ62 -> 0 | BN62: ='Detailed Projection'!CD52*EF_CO2!BA62 -> 0 | BO62: ='Detailed Projection'!CE52*EF_CO2!BB62 -> 0 | BP62: ='Detailed Projection'!CF52*EF_CO2!BC62 -> 0 | BQ62: ='Detailed Projection'!CG52*EF_CO2!BD62 -> 0 | BR62: ='Detailed Projection'!CH52*EF_CO2!BE62 -> 0 | BS62: ='Detailed Projection'!CI52*EF_CO2!BF62 -> 2024562.989 | BT62: ='Detailed Projection'!CJ52*EF_CO2!BG62 -> 0 | BU62: ='Detailed Projection'!CK52*EF_CO2!BH62 -> 4888.845321 | CH62: =((EF_Electric!H63*BA62)/(1-EF_Electric!H63))+((EF_Steam!C60*BB62)/(1-EF_Steam!C60))+((EF_Water!C60*BC62)/(1-EF_Water!C60)) -> 0
B63: ='Linear Projection'!B41 -> 2042 | C63: ='Detailed Projection'!M53*EF_CO2!C63 -> 0 | D63: ='Detailed Projection'!N53*EF_CO2!D63 -> 0 | E63: ='Detailed Projection'!O53*EF_CO2!E63 -> 0 | F63: ='Detailed Projection'!P53*EF_CO2!F63 -> 0 | G63: ='Detailed Projection'!Q53*EF_CO2!G63 -> 0 | H63: ='Detailed Projection'!R53*EF_CO2!H63 -> 0 | I63: ='Detailed Projection'!S53*EF_CO2!I63 -> 0 | J63: ='Detailed Projection'!T53*EF_CO2!J63 -> 0 | K63: ='Detailed Projection'!U53*EF_CO2!K63 -> 0 | L63: ='Detailed Projection'!V53*EF_CO2!L63 -> 0 | M63: ='Detailed Projection'!W53*EF_CO2!M63 -> 0 | N63: ='Detailed Projection'!X53*EF_CO2!N63 -> 0 | O63: ='Detailed Projection'!AC53*EF_CO2!C63 -> 4484750.301 | P63: ='Detailed Projection'!AD53*EF_CO2!D63 -> 115871.1094 | Q63: ='Detailed Projection'!AE53*EF_CO2!E63 -> 5682314.417 | R63: ='Detailed Projection'!AF53*EF_CO2!F63 -> 0 | S63: ='Detailed Projection'!AG53*EF_CO2!G63 -> 0 | T63: ='Detailed Projection'!AH53*EF_CO2!H63 -> 0 | U63: ='Detailed Projection'!AI53*EF_CO2!I63 -> 0 | V63: ='Detailed Projection'!AJ53*EF_CO2!J63 -> 0 | W63: ='Detailed Projection'!AK53*EF_CO2!K63 -> 0 | X63: ='Detailed Projection'!AL53*EF_CO2!L63 -> 0 | Y63: ='Detailed Projection'!AM53*EF_CO2!M63 -> 0 | Z63: ='Detailed Projection'!AN53*EF_CO2!N63 -> 0 | AA63: ='Detailed Projection'!AO53*EF_CO2!O63 -> 11989.45891 | AB63: ='Detailed Projection'!AP53*EF_CO2!P63 -> 0 | AC63: ='Detailed Projection'!AQ53*EF_CO2!Q63 -> 0 | AD63: ='Detailed Projection'!AR53*EF_CO2!R63 -> 0 | AE63: ='Detailed Projection'!AS53*EF_CO2!S63 -> 0 | AF63: ='Detailed Projection'!AT53*EF_CO2!T63 -> 0 | AG63: ='Detailed Projection'!AU53*EF_CO2!U63 -> 0 | AH63: ='Detailed Projection'!AV53*EF_CO2!V63 -> 0 | AI63: ='Detailed Projection'!AW53*EF_CO2!W63 -> 0 | AJ63: ='Detailed Projection'!AX53*EF_CO2!AN63 -> 0 | BA63: ='Detailed Projection'!BQ53*EF_CO2!AN63 -> 0 | BB63: ='Detailed Projection'!BR53*EF_CO2!AO63 -> 0 | BC63: ='Detailed Projection'!BS53*EF_CO2!AP63 -> 0 | BD63: ='Detailed Projection'!BT53*EF_CO2!AQ63 -> 314973.4525 | BE63: ='Detailed Projection'!BU53*EF_CO2!AR63 -> 9321.124133 | BF63: ='Detailed Projection'!BV53*EF_CO2!AS63 -> 0 | BG63: ='Detailed Projection'!BW53*EF_CO2!AT63 -> 0 | BH63: ='Detailed Projection'!BX53*EF_CO2!AU63 -> 16071.86778 | BI63: ='Detailed Projection'!BY53*EF_CO2!AV63 -> 1188.801313 | BJ63: ='Detailed Projection'!BZ53*EF_CO2!AW63 -> 0 | BK63: ='Detailed Projection'!CA53*EF_CO2!AX63 -> 0 | BL63: ='Detailed Projection'!CB53*EF_CO2!AY63 -> 7404773.029 | BM63: ='Detailed Projection'!CC53*EF_CO2!AZ63 -> 0 | BN63: ='Detailed Projection'!CD53*EF_CO2!BA63 -> 0 | BO63: ='Detailed Projection'!CE53*EF_CO2!BB63 -> 0 | BP63: ='Detailed Projection'!CF53*EF_CO2!BC63 -> 0 | BQ63: ='Detailed Projection'!CG53*EF_CO2!BD63 -> 0 | BR63: ='Detailed Projection'!CH53*EF_CO2!BE63 -> 0 | BS63: ='Detailed Projection'!CI53*EF_CO2!BF63 -> 2021006.863 | BT63: ='Detailed Projection'!CJ53*EF_CO2!BG63 -> 0 | BU63: ='Detailed Projection'!CK53*EF_CO2!BH63 -> 5272.043161 | CH63: =((EF_Electric!H64*BA63)/(1-EF_Electric!H64))+((EF_Steam!C61*BB63)/(1-EF_Steam!C61))+((EF_Water!C61*BC63)/(1-EF_Water!C61)) -> 0
B64: ='Linear Projection'!B42 -> 2043 | C64: ='Detailed Projection'!M54*EF_CO2!C64 -> 0 | D64: ='Detailed Projection'!N54*EF_CO2!D64 -> 0 | E64: ='Detailed Projection'!O54*EF_CO2!E64 -> 0 | F64: ='Detailed Projection'!P54*EF_CO2!F64 -> 0 | G64: ='Detailed Projection'!Q54*EF_CO2!G64 -> 0 | H64: ='Detailed Projection'!R54*EF_CO2!H64 -> 0 | I64: ='Detailed Projection'!S54*EF_CO2!I64 -> 0 | J64: ='Detailed Projection'!T54*EF_CO2!J64 -> 0 | K64: ='Detailed Projection'!U54*EF_CO2!K64 -> 0 | L64: ='Detailed Projection'!V54*EF_CO2!L64 -> 0 | M64: ='Detailed Projection'!W54*EF_CO2!M64 -> 0 | N64: ='Detailed Projection'!X54*EF_CO2!N64 -> 0 | O64: ='Detailed Projection'!AC54*EF_CO2!C64 -> 4549868.12 | P64: ='Detailed Projection'!AD54*EF_CO2!D64 -> 118002.3815 | Q64: ='Detailed Projection'!AE54*EF_CO2!E64 -> 5721336.619 | R64: ='Detailed Projection'!AF54*EF_CO2!F64 -> 0 | S64: ='Detailed Projection'!AG54*EF_CO2!G64 -> 0 | T64: ='Detailed Projection'!AH54*EF_CO2!H64 -> 0 | U64: ='Detailed Projection'!AI54*EF_CO2!I64 -> 0 | V64: ='Detailed Projection'!AJ54*EF_CO2!J64 -> 0 | W64: ='Detailed Projection'!AK54*EF_CO2!K64 -> 0 | X64: ='Detailed Projection'!AL54*EF_CO2!L64 -> 0 | Y64: ='Detailed Projection'!AM54*EF_CO2!M64 -> 0 | Z64: ='Detailed Projection'!AN54*EF_CO2!N64 -> 0 | AA64: ='Detailed Projection'!AO54*EF_CO2!O64 -> 9019.187436 | AB64: ='Detailed Projection'!AP54*EF_CO2!P64 -> 0 | AC64: ='Detailed Projection'!AQ54*EF_CO2!Q64 -> 0 | AD64: ='Detailed Projection'!AR54*EF_CO2!R64 -> 0 | AE64: ='Detailed Projection'!AS54*EF_CO2!S64 -> 0 | AF64: ='Detailed Projection'!AT54*EF_CO2!T64 -> 0 | AG64: ='Detailed Projection'!AU54*EF_CO2!U64 -> 0 | AH64: ='Detailed Projection'!AV54*EF_CO2!V64 -> 0 | AI64: ='Detailed Projection'!AW54*EF_CO2!W64 -> 0 | AJ64: ='Detailed Projection'!AX54*EF_CO2!AN64 -> 0 | BA64: ='Detailed Projection'!BQ54*EF_CO2!AN64 -> 0 | BB64: ='Detailed Projection'!BR54*EF_CO2!AO64 -> 0 | BC64: ='Detailed Projection'!BS54*EF_CO2!AP64 -> 0 | BD64: ='Detailed Projection'!BT54*EF_CO2!AQ64 -> 311362.9141 | BE64: ='Detailed Projection'!BU54*EF_CO2!AR64 -> 9282.946725 | BF64: ='Detailed Projection'!BV54*EF_CO2!AS64 -> 0 | BG64: ='Detailed Projection'!BW54*EF_CO2!AT64 -> 0 | BH64: ='Detailed Projection'!BX54*EF_CO2!AU64 -> 15358.75779 | BI64: ='Detailed Projection'!BY54*EF_CO2!AV64 -> 1155.748757 | BJ64: ='Detailed Projection'!BZ54*EF_CO2!AW64 -> 0 | BK64: ='Detailed Projection'!CA54*EF_CO2!AX64 -> 0 | BL64: ='Detailed Projection'!CB54*EF_CO2!AY64 -> 7494048.976 | BM64: ='Detailed Projection'!CC54*EF_CO2!AZ64 -> 0 | BN64: ='Detailed Projection'!CD54*EF_CO2!BA64 -> 0 | BO64: ='Detailed Projection'!CE54*EF_CO2!BB64 -> 0 | BP64: ='Detailed Projection'!CF54*EF_CO2!BC64 -> 0 | BQ64: ='Detailed Projection'!CG54*EF_CO2!BD64 -> 0 | BR64: ='Detailed Projection'!CH54*EF_CO2!BE64 -> 0 | BS64: ='Detailed Projection'!CI54*EF_CO2!BF64 -> 2017450.738 | BT64: ='Detailed Projection'!CJ54*EF_CO2!BG64 -> 0 | BU64: ='Detailed Projection'!CK54*EF_CO2!BH64 -> 5655.241001 | CH64: =((EF_Electric!H65*BA64)/(1-EF_Electric!H65))+((EF_Steam!C62*BB64)/(1-EF_Steam!C62))+((EF_Water!C62*BC64)/(1-EF_Water!C62)) -> 0
B65: ='Linear Projection'!B43 -> 2044 | C65: ='Detailed Projection'!M55*EF_CO2!C65 -> 0 | D65: ='Detailed Projection'!N55*EF_CO2!D65 -> 0 | E65: ='Detailed Projection'!O55*EF_CO2!E65 -> 0 | F65: ='Detailed Projection'!P55*EF_CO2!F65 -> 0 | G65: ='Detailed Projection'!Q55*EF_CO2!G65 -> 0 | H65: ='Detailed Projection'!R55*EF_CO2!H65 -> 0 | I65: ='Detailed Projection'!S55*EF_CO2!I65 -> 0 | J65: ='Detailed Projection'!T55*EF_CO2!J65 -> 0 | K65: ='Detailed Projection'!U55*EF_CO2!K65 -> 0 | L65: ='Detailed Projection'!V55*EF_CO2!L65 -> 0 | M65: ='Detailed Projection'!W55*EF_CO2!M65 -> 0 | N65: ='Detailed Projection'!X55*EF_CO2!N65 -> 0 | O65: ='Detailed Projection'!AC55*EF_CO2!C65 -> 4614985.94 | P65: ='Detailed Projection'!AD55*EF_CO2!D65 -> 120133.6536 | Q65: ='Detailed Projection'!AE55*EF_CO2!E65 -> 5760358.822 | R65: ='Detailed Projection'!AF55*EF_CO2!F65 -> 0 | S65: ='Detailed Projection'!AG55*EF_CO2!G65 -> 0 | T65: ='Detailed Projection'!AH55*EF_CO2!H65 -> 0 | U65: ='Detailed Projection'!AI55*EF_CO2!I65 -> 0 | V65: ='Detailed Projection'!AJ55*EF_CO2!J65 -> 0 | W65: ='Detailed Projection'!AK55*EF_CO2!K65 -> 0 | X65: ='Detailed Projection'!AL55*EF_CO2!L65 -> 0 | Y65: ='Detailed Projection'!AM55*EF_CO2!M65 -> 0 | Z65: ='Detailed Projection'!AN55*EF_CO2!N65 -> 0 | AA65: ='Detailed Projection'!AO55*EF_CO2!O65 -> 6048.915965 | AB65: ='Detailed Projection'!AP55*EF_CO2!P65 -> 0 | AC65: ='Detailed Projection'!AQ55*EF_CO2!Q65 -> 0 | AD65: ='Detailed Projection'!AR55*EF_CO2!R65 -> 0 | AE65: ='Detailed Projection'!AS55*EF_CO2!S65 -> 0 | AF65: ='Detailed Projection'!AT55*EF_CO2!T65 -> 0 | AG65: ='Detailed Projection'!AU55*EF_CO2!U65 -> 0 | AH65: ='Detailed Projection'!AV55*EF_CO2!V65 -> 0 | AI65: ='Detailed Projection'!AW55*EF_CO2!W65 -> 0 | AJ65: ='Detailed Projection'!AX55*EF_CO2!AN65 -> 0 | BA65: ='Detailed Projection'!BQ55*EF_CO2!AN65 -> 0 | BB65: ='Detailed Projection'!BR55*EF_CO2!AO65 -> 0 | BC65: ='Detailed Projection'!BS55*EF_CO2!AP65 -> 0 | BD65: ='Detailed Projection'!BT55*EF_CO2!AQ65 -> 307752.3756 | BE65: ='Detailed Projection'!BU55*EF_CO2!AR65 -> 9244.769317 | BF65: ='Detailed Projection'!BV55*EF_CO2!AS65 -> 0 | BG65: ='Detailed Projection'!BW55*EF_CO2!AT65 -> 0 | BH65: ='Detailed Projection'!BX55*EF_CO2!AU65 -> 14645.64781 | BI65: ='Detailed Projection'!BY55*EF_CO2!AV65 -> 1122.696201 | BJ65: ='Detailed Projection'!BZ55*EF_CO2!AW65 -> 0 | BK65: ='Detailed Projection'!CA55*EF_CO2!AX65 -> 0 | BL65: ='Detailed Projection'!CB55*EF_CO2!AY65 -> 7583324.923 | BM65: ='Detailed Projection'!CC55*EF_CO2!AZ65 -> 0 | BN65: ='Detailed Projection'!CD55*EF_CO2!BA65 -> 0 | BO65: ='Detailed Projection'!CE55*EF_CO2!BB65 -> 0 | BP65: ='Detailed Projection'!CF55*EF_CO2!BC65 -> 0 | BQ65: ='Detailed Projection'!CG55*EF_CO2!BD65 -> 0 | BR65: ='Detailed Projection'!CH55*EF_CO2!BE65 -> 0 | BS65: ='Detailed Projection'!CI55*EF_CO2!BF65 -> 2013894.612 | BT65: ='Detailed Projection'!CJ55*EF_CO2!BG65 -> 0 | BU65: ='Detailed Projection'!CK55*EF_CO2!BH65 -> 6038.438841 | CH65: =((EF_Electric!H66*BA65)/(1-EF_Electric!H66))+((EF_Steam!C63*BB65)/(1-EF_Steam!C63))+((EF_Water!C63*BC65)/(1-EF_Water!C63)) -> 0
B66: ='Linear Projection'!B44 -> 2045 | C66: ='Detailed Projection'!M56*EF_CO2!C66 -> 0 | D66: ='Detailed Projection'!N56*EF_CO2!D66 -> 0 | E66: ='Detailed Projection'!O56*EF_CO2!E66 -> 0 | F66: ='Detailed Projection'!P56*EF_CO2!F66 -> 0 | G66: ='Detailed Projection'!Q56*EF_CO2!G66 -> 0 | H66: ='Detailed Projection'!R56*EF_CO2!H66 -> 0 | I66: ='Detailed Projection'!S56*EF_CO2!I66 -> 0 | J66: ='Detailed Projection'!T56*EF_CO2!J66 -> 0 | K66: ='Detailed Projection'!U56*EF_CO2!K66 -> 0 | L66: ='Detailed Projection'!V56*EF_CO2!L66 -> 0 | M66: ='Detailed Projection'!W56*EF_CO2!M66 -> 0 | N66: ='Detailed Projection'!X56*EF_CO2!N66 -> 0 | O66: ='Detailed Projection'!AC56*EF_CO2!C66 -> 4680103.759 | P66: ='Detailed Projection'!AD56*EF_CO2!D66 -> 122264.9256 | Q66: ='Detailed Projection'!AE56*EF_CO2!E66 -> 5799381.024 | R66: ='Detailed Projection'!AF56*EF_CO2!F66 -> 0 | S66: ='Detailed Projection'!AG56*EF_CO2!G66 -> 0 | T66: ='Detailed Projection'!AH56*EF_CO2!H66 -> 0 | U66: ='Detailed Projection'!AI56*EF_CO2!I66 -> 0 | V66: ='Detailed Projection'!AJ56*EF_CO2!J66 -> 0 | W66: ='Detailed Projection'!AK56*EF_CO2!K66 -> 0 | X66: ='Detailed Projection'!AL56*EF_CO2!L66 -> 0 | Y66: ='Detailed Projection'!AM56*EF_CO2!M66 -> 0 | Z66: ='Detailed Projection'!AN56*EF_CO2!N66 -> 0 | AA66: ='Detailed Projection'!AO56*EF_CO2!O66 -> 3078.644494 | AB66: ='Detailed Projection'!AP56*EF_CO2!P66 -> 0 | AC66: ='Detailed Projection'!AQ56*EF_CO2!Q66 -> 0 | AD66: ='Detailed Projection'!AR56*EF_CO2!R66 -> 0 | AE66: ='Detailed Projection'!AS56*EF_CO2!S66 -> 0 | AF66: ='Detailed Projection'!AT56*EF_CO2!T66 -> 0 | AG66: ='Detailed Projection'!AU56*EF_CO2!U66 -> 0 | AH66: ='Detailed Projection'!AV56*EF_CO2!V66 -> 0 | AI66: ='Detailed Projection'!AW56*EF_CO2!W66 -> 0 | AJ66: ='Detailed Projection'!AX56*EF_CO2!AN66 -> 0 | BA66: ='Detailed Projection'!BQ56*EF_CO2!AN66 -> 0 | BB66: ='Detailed Projection'!BR56*EF_CO2!AO66 -> 0 | BC66: ='Detailed Projection'!BS56*EF_CO2!AP66 -> 0 | BD66: ='Detailed Projection'!BT56*EF_CO2!AQ66 -> 304141.8371 | BE66: ='Detailed Projection'!BU56*EF_CO2!AR66 -> 9206.591908 | BF66: ='Detailed Projection'!BV56*EF_CO2!AS66 -> 0 | BG66: ='Detailed Projection'!BW56*EF_CO2!AT66 -> 0 | BH66: ='Detailed Projection'!BX56*EF_CO2!AU66 -> 13932.53783 | BI66: ='Detailed Projection'!BY56*EF_CO2!AV66 -> 1089.643645 | BJ66: ='Detailed Projection'!BZ56*EF_CO2!AW66 -> 0 | BK66: ='Detailed Projection'!CA56*EF_CO2!AX66 -> 0 | BL66: ='Detailed Projection'!CB56*EF_CO2!AY66 -> 7672600.871 | BM66: ='Detailed Projection'!CC56*EF_CO2!AZ66 -> 0 | BN66: ='Detailed Projection'!CD56*EF_CO2!BA66 -> 0 | BO66: ='Detailed Projection'!CE56*EF_CO2!BB66 -> 0 | BP66: ='Detailed Projection'!CF56*EF_CO2!BC66 -> 0 | BQ66: ='Detailed Projection'!CG56*EF_CO2!BD66 -> 0 | BR66: ='Detailed Projection'!CH56*EF_CO2!BE66 -> 0 | BS66: ='Detailed Projection'!CI56*EF_CO2!BF66 -> 2010338.486 | BT66: ='Detailed Projection'!CJ56*EF_CO2!BG66 -> 0 | BU66: ='Detailed Projection'!CK56*EF_CO2!BH66 -> 6421.636682 | CH66: =((EF_Electric!H67*BA66)/(1-EF_Electric!H67))+((EF_Steam!C64*BB66)/(1-EF_Steam!C64))+((EF_Water!C64*BC66)/(1-EF_Water!C64)) -> 0
B67: ='Linear Projection'!B45 -> 2046 | C67: ='Detailed Projection'!M57*EF_CO2!C67 -> 0 | D67: ='Detailed Projection'!N57*EF_CO2!D67 -> 0 | E67: ='Detailed Projection'!O57*EF_CO2!E67 -> 0 | F67: ='Detailed Projection'!P57*EF_CO2!F67 -> 0 | G67: ='Detailed Projection'!Q57*EF_CO2!G67 -> 0 | H67: ='Detailed Projection'!R57*EF_CO2!H67 -> 0 | I67: ='Detailed Projection'!S57*EF_CO2!I67 -> 0 | J67: ='Detailed Projection'!T57*EF_CO2!J67 -> 0 | K67: ='Detailed Projection'!U57*EF_CO2!K67 -> 0 | L67: ='Detailed Projection'!V57*EF_CO2!L67 -> 0 | M67: ='Detailed Projection'!W57*EF_CO2!M67 -> 0 | N67: ='Detailed Projection'!X57*EF_CO2!N67 -> 0 | O67: ='Detailed Projection'!AC57*EF_CO2!C67 -> 4745221.579 | P67: ='Detailed Projection'!AD57*EF_CO2!D67 -> 124396.1977 | Q67: ='Detailed Projection'!AE57*EF_CO2!E67 -> 5838403.226 | R67: ='Detailed Projection'!AF57*EF_CO2!F67 -> 0 | S67: ='Detailed Projection'!AG57*EF_CO2!G67 -> 0 | T67: ='Detailed Projection'!AH57*EF_CO2!H67 -> 0 | U67: ='Detailed Projection'!AI57*EF_CO2!I67 -> 0 | V67: ='Detailed Projection'!AJ57*EF_CO2!J67 -> 0 | W67: ='Detailed Projection'!AK57*EF_CO2!K67 -> 0 | X67: ='Detailed Projection'!AL57*EF_CO2!L67 -> 0 | Y67: ='Detailed Projection'!AM57*EF_CO2!M67 -> 0 | Z67: ='Detailed Projection'!AN57*EF_CO2!N67 -> 0 | AA67: ='Detailed Projection'!AO57*EF_CO2!O67 -> 108.373023 | AB67: ='Detailed Projection'!AP57*EF_CO2!P67 -> 0 | AC67: ='Detailed Projection'!AQ57*EF_CO2!Q67 -> 0 | AD67: ='Detailed Projection'!AR57*EF_CO2!R67 -> 0 | AE67: ='Detailed Projection'!AS57*EF_CO2!S67 -> 0 | AF67: ='Detailed Projection'!AT57*EF_CO2!T67 -> 0 | AG67: ='Detailed Projection'!AU57*EF_CO2!U67 -> 0 | AH67: ='Detailed Projection'!AV57*EF_CO2!V67 -> 0 | AI67: ='Detailed Projection'!AW57*EF_CO2!W67 -> 0 | AJ67: ='Detailed Projection'!AX57*EF_CO2!AN67 -> 0 | BA67: ='Detailed Projection'!BQ57*EF_CO2!AN67 -> 0 | BB67: ='Detailed Projection'!BR57*EF_CO2!AO67 -> 0 | BC67: ='Detailed Projection'!BS57*EF_CO2!AP67 -> 0 | BD67: ='Detailed Projection'!BT57*EF_CO2!AQ67 -> 300531.2987 | BE67: ='Detailed Projection'!BU57*EF_CO2!AR67 -> 9168.4145 | BF67: ='Detailed Projection'!BV57*EF_CO2!AS67 -> 0 | BG67: ='Detailed Projection'!BW57*EF_CO2!AT67 -> 0 | BH67: ='Detailed Projection'!BX57*EF_CO2!AU67 -> 13219.42785 | BI67: ='Detailed Projection'!BY57*EF_CO2!AV67 -> 1056.591089 | BJ67: ='Detailed Projection'!BZ57*EF_CO2!AW67 -> 0 | BK67: ='Detailed Projection'!CA57*EF_CO2!AX67 -> 0 | BL67: ='Detailed Projection'!CB57*EF_CO2!AY67 -> 7761876.818 | BM67: ='Detailed Projection'!CC57*EF_CO2!AZ67 -> 0 | BN67: ='Detailed Projection'!CD57*EF_CO2!BA67 -> 0 | BO67: ='Detailed Projection'!CE57*EF_CO2!BB67 -> 0 | BP67: ='Detailed Projection'!CF57*EF_CO2!BC67 -> 0 | BQ67: ='Detailed Projection'!CG57*EF_CO2!BD67 -> 0 | BR67: ='Detailed Projection'!CH57*EF_CO2!BE67 -> 0 | BS67: ='Detailed Projection'!CI57*EF_CO2!BF67 -> 2006782.361 | BT67: ='Detailed Projection'!CJ57*EF_CO2!BG67 -> 0 | BU67: ='Detailed Projection'!CK57*EF_CO2!BH67 -> 6804.834522 | CH67: =((EF_Electric!H68*BA67)/(1-EF_Electric!H68))+((EF_Steam!C65*BB67)/(1-EF_Steam!C65))+((EF_Water!C65*BC67)/(1-EF_Water!C65)) -> 0
B68: ='Linear Projection'!B46 -> 2047 | C68: ='Detailed Projection'!M58*EF_CO2!C68 -> 0 | D68: ='Detailed Projection'!N58*EF_CO2!D68 -> 0 | E68: ='Detailed Projection'!O58*EF_CO2!E68 -> 0 | F68: ='Detailed Projection'!P58*EF_CO2!F68 -> 0 | G68: ='Detailed Projection'!Q58*EF_CO2!G68 -> 0 | H68: ='Detailed Projection'!R58*EF_CO2!H68 -> 0 | I68: ='Detailed Projection'!S58*EF_CO2!I68 -> 0 | J68: ='Detailed Projection'!T58*EF_CO2!J68 -> 0 | K68: ='Detailed Projection'!U58*EF_CO2!K68 -> 0 | L68: ='Detailed Projection'!V58*EF_CO2!L68 -> 0 | M68: ='Detailed Projection'!W58*EF_CO2!M68 -> 0 | N68: ='Detailed Projection'!X58*EF_CO2!N68 -> 0 | O68: ='Detailed Projection'!AC58*EF_CO2!C68 -> 4810339.398 | P68: ='Detailed Projection'!AD58*EF_CO2!D68 -> 126527.4698 | Q68: ='Detailed Projection'!AE58*EF_CO2!E68 -> 5877425.429 | R68: ='Detailed Projection'!AF58*EF_CO2!F68 -> 0 | S68: ='Detailed Projection'!AG58*EF_CO2!G68 -> 0 | T68: ='Detailed Projection'!AH58*EF_CO2!H68 -> 0 | U68: ='Detailed Projection'!AI58*EF_CO2!I68 -> 0 | V68: ='Detailed Projection'!AJ58*EF_CO2!J68 -> 0 | W68: ='Detailed Projection'!AK58*EF_CO2!K68 -> 0 | X68: ='Detailed Projection'!AL58*EF_CO2!L68 -> 0 | Y68: ='Detailed Projection'!AM58*EF_CO2!M68 -> 0 | Z68: ='Detailed Projection'!AN58*EF_CO2!N68 -> 0 | AA68: ='Detailed Projection'!AO58*EF_CO2!O68 -> -2861.898448 | AB68: ='Detailed Projection'!AP58*EF_CO2!P68 -> 0 | AC68: ='Detailed Projection'!AQ58*EF_CO2!Q68 -> 0 | AD68: ='Detailed Projection'!AR58*EF_CO2!R68 -> 0 | AE68: ='Detailed Projection'!AS58*EF_CO2!S68 -> 0 | AF68: ='Detailed Projection'!AT58*EF_CO2!T68 -> 0 | AG68: ='Detailed Projection'!AU58*EF_CO2!U68 -> 0 | AH68: ='Detailed Projection'!AV58*EF_CO2!V68 -> 0 | AI68: ='Detailed Projection'!AW58*EF_CO2!W68 -> 0 | AJ68: ='Detailed Projection'!AX58*EF_CO2!AN68 -> 0 | BA68: ='Detailed Projection'!BQ58*EF_CO2!AN68 -> 0 | BB68: ='Detailed Projection'!BR58*EF_CO2!AO68 -> 0 | BC68: ='Detailed Projection'!BS58*EF_CO2!AP68 -> 0 | BD68: ='Detailed Projection'!BT58*EF_CO2!AQ68 -> 296920.7602 | BE68: ='Detailed Projection'!BU58*EF_CO2!AR68 -> 9130.237092 | BF68: ='Detailed Projection'!BV58*EF_CO2!AS68 -> 0 | BG68: ='Detailed Projection'!BW58*EF_CO2!AT68 -> 0 | BH68: ='Detailed Projection'!BX58*EF_CO2!AU68 -> 12506.31786 | BI68: ='Detailed Projection'!BY58*EF_CO2!AV68 -> 1023.538533 | BJ68: ='Detailed Projection'!BZ58*EF_CO2!AW68 -> 0 | BK68: ='Detailed Projection'!CA58*EF_CO2!AX68 -> 0 | BL68: ='Detailed Projection'!CB58*EF_CO2!AY68 -> 7851152.765 | BM68: ='Detailed Projection'!CC58*EF_CO2!AZ68 -> 0 | BN68: ='Detailed Projection'!CD58*EF_CO2!BA68 -> 0 | BO68: ='Detailed Projection'!CE58*EF_CO2!BB68 -> 0 | BP68: ='Detailed Projection'!CF58*EF_CO2!BC68 -> 0 | BQ68: ='Detailed Projection'!CG58*EF_CO2!BD68 -> 0 | BR68: ='Detailed Projection'!CH58*EF_CO2!BE68 -> 0 | BS68: ='Detailed Projection'!CI58*EF_CO2!BF68 -> 2003226.235 | BT68: ='Detailed Projection'!CJ58*EF_CO2!BG68 -> 0 | BU68: ='Detailed Projection'!CK58*EF_CO2!BH68 -> 7188.032362 | CH68: =((EF_Electric!H69*BA68)/(1-EF_Electric!H69))+((EF_Steam!C66*BB68)/(1-EF_Steam!C66))+((EF_Water!C66*BC68)/(1-EF_Water!C66)) -> 0
